Workbook

Sheet Introduction and outcomes
C3: Introduction to the schools resource management self-assessment tool
C5: The school resource management self-assessment tool helps to provide trusts with assurance that they are meeting the basic standards necessary to achieve a good level of financial health and resource management. The tool can be used to identify possible areas for change to ensure that resources are being used to support high-quality teaching and the best education outcomes for pupils. The tool is in two parts:
C6: 1. A checklist, which asks a number of questions of trust boards in six areas of resource management to provide assurance that the trust is managing its resources effectively. This should be completed at trust level.
C7: 2. A dashboard, which shows how a school's data compares to thresholds on a range of statistics that have been identified as indicators for good resource management and outcomes. This should be completed at school level.
C8: From autumn 2019, completion of the self-assessment tool is compulsory for all academy trusts. The checklist must be submitted to the ESFA using the online form, which will be made available in October. The dashboard must be completed but trusts are not required to submit it.
C11: Outcome of school resource management self-assessment
C13: Summary of agreed action and timetable for reporting back:
C14: [enter text]
C16: Signature: | O16: Chair of trust board
C18: Full name of signatory:
C20: Date self-assessment agreed:

Sheet Checklist
C3: School resource management self-assessment checklist
C5: The checklist asks a number of questions of trust boards in six areas of resource management to help provide assurance that resources are being managed effectively. The mandatory return of the self-assessment tool must be submitted to the ESFA using an online form. The online form will be available in October. The deadline for submission is 14 November 2019. This downloaded form can be used to prepare for the return or to assess use of resources at various points throughout the year. The checklist should be completed at academy trust level.
C6: Guidance on completion of this document can be found here. This guidance also includes examples of good practice and details further support available to assist trusts in addressing specific issues. Clicking on the individual questions below will also take you to the relevant section of the guidance.
C7: Trusts should answer each question with 'yes', 'no', or 'in part' from the drop down lists provided. If a trust answers 'no' or 'in part' to a question, they must provide a target date and comments. Trusts may also provide comments, evidence and proposed actions for 'yes' answers.
C9: Trust name: | G9: Shenfield High School
M12: Answer (yes, in part, no) | O12: Target date | Q12: Comments, evidence and proposed actions
C13: A. Governance
C15: 1 | D15: Has the board assessed its composition during the year in terms of skills, effectiveness, leadership and impact? | K15: Q1 guidance | M15: Yes
C16: 2 | D16: Has the board got a plan in place to address any gaps in its capabilities through recruitment, induction, training or other development activity? | K16: Q2 guidance | M16: Yes
C17: 3 | D17: Has the board appointed the senior executive leader as accounting officer? | K17: Q3 guidance | M17: Yes
C18: 4 | D18: Has the board appointed a qualified and/or experienced chief financial officer? | K18: Q4 guidance | M18: Yes
C19: 5 | D19: Has the board appointed a clerk who is someone other than a trustee, principal or chief executive of the trust? | K19: Q5 guidance | M19: Yes
C20: 6A | D20: How many times has the board met in the last year? | K20: Q6 guidance | M20: 5
C21: 6B | D21: If less than 6 times, has the board explained in the governance statement how it has maintained effective oversight? (Not applicable answer available) | K21: Q6 guidance | M21: Yes | Q21: This will be documented in the financial statements
C22: 7 | D22: Has the board approved a written scheme of financial delegations? | K22: Q7 guidance | M22: Yes | Q22: In the Financial Regulations
C23: 8 | D23: Does the trust have a finance committee (or equivalent) with clear terms of reference and a knowledgeable and experienced chair? | K23: Q8 guidance | M23: Yes
C24: 9 | D24: Does the trust have an audit committee? | K24: Q9 guidance | M24: Yes | Q24: Within Resources ToR
C25: 10 | D25: Are there arrangements in place to manage conflict of interest or any related party transactions? | K25: Q10 guidance | M25: Yes
C26: 11 | D26: Has the trust published its governance arrangements on its website in accordance with the Academies Financial Handbook? | K26: Q11 guidance | M26: Yes
M27: =IF(OR(ROUND(SUM(M15:M26),3)=100%,SUM(M15:M26)=0),"","Section must sum to 100%") -> Section must sum to 100%
C28: B. Trust financial strategy
C30: 12 | D30: Can the trust evidence that its 3-year financial forecast has been reviewed by the trustees before approval? | K30: Q12 guidance | M30: Yes
C31: 13 | D31: Can the trust evidence that trustees have taken financial performance in previous years into account (e.g. adjustments for areas of significant underspend or overspend)? | K31: Q13 guidance | M31: Yes
C32: 14 | D32: Are the assumptions behind the 3-year forecast, including pupil number projections, documented? | K32: Q14 guidance | M32: Yes
C33: 15 | D33: If a cumulative deficit has been forecast within the 3-year budget, is there a plan to mitigate it? (Not applicable answer available) | K33: Q15 guidance | M33: Not applicable
C34: 16 | D34: Is the financial strategy integrated with the trust's strategy for raising standards and attainment? | K34: Q16 guidance | M34: Yes
C35: 17 | D35: Does the trust have an appropriate business continuity or disaster recovery plan, including an up-to-date asset register and adequate insurance? | K35: Q17 guidance | M35: Yes
M36: =IF(OR(ROUND(SUM(M27:M33),3)=100%,SUM(M27:M33)=0),"","Section must sum to 100%") -> 
C37: C. Setting the annual budget
C39: 18 | D39: Does the trust set a well-informed and balanced budget each year? | K39: Q18 guidance | M39: Yes
C40: 19 | D40: Does the budget setting process allow sufficient time for the trust board to scrutinise and challenge the information provided? | K40: Q19 guidance | M40: Yes
C41: 20 | D41: Is the trust realistic in its pupil number projections and can it move quickly to recast the budget if the projections and the reality are materially different? | K41: Q20 guidance | M41: Yes
C42: 21 | D42: Is end year outturn in line with budget projections, or if not, is the trust board alerted to significant variations in a timely manner, and do they result from explicitly planned changes or from genuinely unforeseeable circumstances? | K42: Q21 guidance | M42: Yes
C43: 22 | D43: Are balances at a reasonable level and does the trust have a clear plan for using the money it plans to hold in balance at the end of each year? | K43: Q22 guidance | M43: Yes
M44: =IF(OR(ROUND(SUM(M37:M43),3)=100%,SUM(M37:M43)=0),"","Section must sum to 100%") -> 
C45: D. Staffing
C47: 23 | D47: Does the trust review and challenge its staffing structure regularly to ensure it is the best structure to meet the needs of the trust whilst maintaining financial integrity? | K47: Q23 guidance | M47: Yes
C48: 24 | D48: Is the pay of senior leaders tightly correlated to strong educational outcomes and sound financial management? | K48: Q24 guidance | M48: Yes
C49: 25 | D49: Does the trust benchmark the size of its senior leadership team annually against that of similar schools? | K49: Q25 guidance | M49: Yes | Q49: As well as the operational needs of the school
M50: =IF(OR(ROUND(SUM(M43:M49),3)=100%,SUM(M43:M49)=0),"","Section must sum to 100%") -> 
C51: E. Value for money
C53: 26 | D53: Does the trust benchmark its income and expenditure and that of its schools annually against that of similar schools and investigate further where any category appears to be out of line? | K53: Q26 guidance | M53: Yes
C54: 27 | D54: Does the trust have procedures for purchasing goods and services that both meet legal requirements and secure value for money? | K54: Q27 guidance | M54: Yes
C55: 28 | D55: Are the trustees given the opportunity to challenge their staff’s plans for replacing contracts for goods and services that are due to expire shortly? | K55: Q28 guidance | M55: Yes | Q55: On major contracts such as catering and cleaning, trustee representatives are included on the decision making committee. Smaller contracts are negotiated on an operational level and reviewed by trustees on the Resources committee regularly.
C56: 29 | D56: Does the trust consider collaboration with others, for example on sharing staff or joint purchasing, where that would improve value for money? | K56: Q29 guidance | M56: Yes | Q56: GDPR support negotiated ASHE discount.
C57: 30 | D57: Does the trust compare its non-staff expenditure against the DfE recommended national deals to ensure you are achieving best value for money? | K57: Q30 guidance | M57: Yes | Q57: Purchasing frameworks and consortiums
C58: 31 | D58: Does the trust maintain its premises and other assets to an adequate standard and make best use of capital monies for this purpose? | K58: Q31 guidance | M58: Yes
M59: =IF(OR(ROUND(SUM(M54:M58),3)=100%,SUM(M54:M58)=0),"","Section must sum to 100%") -> 
C60: F. Protecting public money
C62: 32 | D62: Are the trustees sure that there are no outstanding matters from audit reports? | K62: Q32 guidance | M62: Yes
C63: 33 | D63: Are the internal scrutiny arrangements, as defined in the Academies Financial Handbook, adhered to? | K63: Q33 guidance | M63: Yes
C64: 34 | D64: Are there adequate arrangements in place to guard against fraud and theft by staff, contractors and suppliers? | K64: Q34 guidance | M64: Yes
C65: 35 | D65: Are all staff aware of the trust’s whistleblowing arrangements and to whom they should report concerns? | K65: Q35 guidance | M65: Yes
C66: 36 | D66: Does the trust have an accounting system that is adequate and properly run and delivers accurate reports, including the required returns to ESFA? | K66: Q36 guidance | M66: Yes
M67: =IF(OR(ROUND(SUM(M63:M66),3)=100%,SUM(M63:M66)=0),"","Section must sum to 100%") -> 
C68: G. Self-assessment dashboard
C70: 37 | D70: Have the results of the self-assessment dashboard been carefully considered and potential follow-up actions identified? (Not applicable for sixth form colleges) | K70: Q37 guidance

Sheet Dashboard
C3: School resource management self-assessment dashboard
C5: Effective resource management is about how a trust uses its resources to drive outcomes for its pupils. A trust can improve outcomes by using its resources more effectively. The dashboard below is designed to help trusts identify areas for improved resource management. It shows how a school compares to thresholds on a range of key indicators.
C11: A. Information about your school(s)
A12: * | F12: 1 | J12: 2 | N12: 3 | R12: 4 | V12: 5 | Z12: 6 | AD12: 7 | AH12: 8 | AL12: 9 | AP12: 10 | AT12: 11 | AX12: 12 | BB12: 13 | BF12: 14 | BJ12: 15 | BN12: 16 | BR12: 17 | BV12: 18 | BZ12: 19 | CD12: 20
C13: Using the dashboard The dashboard data should be completed at school level. Sixth form colleges do not need to complete the dashboard. Schools and trusts should use the most up to date data available to them, and not rely on lagged published data. Complete all highlighted cells. | F13: School name: | H13: Shenfield High School | J13: School name: | N13: School name: | R13: School name: | V13: School name: | Z13: School name: | AD13: School name: | AH13: School name: | AL13: School name: | AP13: School name: | AT13: School name: | AX13: School name: | BB13: School name: | BF13: School name: | BJ13: School name: | BN13: School name: | BR13: School name: | BV13: School name: | BZ13: School name: | CD13: School name:
F14: Phase: | H14: Secondary with sixth form | J14: Phase: | N14: Phase: | R14: Phase: | V14: Phase: | Z14: Phase: | AD14: Phase: | AH14: Phase: | AL14: Phase: | AP14: Phase: | AT14: Phase: | AX14: Phase: | BB14: Phase: | BF14: Phase: | BJ14: Phase: | BN14: Phase: | BR14: Phase: | BV14: Phase: | BZ14: Phase: | CD14: Phase:
F15: Region: | H15: East of England | J15: Region: | N15: Region: | R15: Region: | V15: Region: | Z15: Region: | AD15: Region: | AH15: Region: | AL15: Region: | AP15: Region: | AT15: Region: | AX15: Region: | BB15: Region: | BF15: Region: | BJ15: Region: | BN15: Region: | BR15: Region: | BV15: Region: | BZ15: Region: | CD15: Region:
F16: Number of pupils: | H16: 1352 | J16: Number of pupils: | N16: Number of pupils: | R16: Number of pupils: | V16: Number of pupils: | Z16: Number of pupils: | AD16: Number of pupils: | AH16: Number of pupils: | AL16: Number of pupils: | AP16: Number of pupils: | AT16: Number of pupils: | AX16: Number of pupils: | BB16: Number of pupils: | BF16: Number of pupils: | BJ16: Number of pupils: | BN16: Number of pupils: | BR16: Number of pupils: | BV16: Number of pupils: | BZ16: Number of pupils: | CD16: Number of pupils:
F17: % of pupils eligible for FSM: | H17: 6.1% | J17: % of pupils eligible for FSM: | N17: % of pupils eligible for FSM: | R17: % of pupils eligible for FSM: | V17: % of pupils eligible for FSM: | Z17: % of pupils eligible for FSM: | AD17: % of pupils eligible for FSM: | AH17: % of pupils eligible for FSM: | AL17: % of pupils eligible for FSM: | AP17: % of pupils eligible for FSM: | AT17: % of pupils eligible for FSM: | AX17: % of pupils eligible for FSM: | BB17: % of pupils eligible for FSM: | BF17: % of pupils eligible for FSM: | BJ17: % of pupils eligible for FSM: | BN17: % of pupils eligible for FSM: | BR17: % of pupils eligible for FSM: | BV17: % of pupils eligible for FSM: | BZ17: % of pupils eligible for FSM: | CD17: % of pupils eligible for FSM:
C19: Guidance on calculating or collecting the data for the school so that metrics are compared to thresholds consistently can be found here. Clicking on the link next to individual indicators below will also take you to the relevant section of the guidance. | F19: This school is being compared to other: | J19: This school is being compared to other: | N19: This school is being compared to other: | R19: This school is being compared to other: | V19: This school is being compared to other: | Z19: This school is being compared to other: | AD19: This school is being compared to other: | AH19: This school is being compared to other: | AL19: This school is being compared to other: | AP19: This school is being compared to other: | AT19: This school is being compared to other: | AX19: This school is being compared to other: | BB19: This school is being compared to other: | BF19: This school is being compared to other: | BJ19: This school is being compared to other: | BN19: This school is being compared to other: | BR19: This school is being compared to other: | BV19: This school is being compared to other: | BZ19: This school is being compared to other: | CD19: This school is being compared to other:
F20: =IF(OR(H$14="",H$15="",H$16="",H$17=""),"", "- "&Calcs!$J29& IF(H14="Primary"," primary schools with ",IF(H14="Secondary with sixth form"," secondary schools with a sixth form with ",IF(H14="Secondary without sixth form"," secondary schools without a sixth form with ",IF(H14="Special","special schools",IF(H14="Alternative provision","alternative provision schools",IF(H14="All-through","all-through schools",IF(H14="Nursery","nursery schools","")))))))&Calcs!$K29) -> - large secondary schools with a sixth form with medium levels of FSM | J20: =IF(OR(L$14="",L$15="",L$16="",L$17=""),"", "- "&Calcs!$J30& IF(L14="Primary"," primary schools with ",IF(L14="Secondary with sixth form"," secondary schools with a sixth form with ",IF(L14="Secondary without sixth form"," secondary schools without a sixth form with ",IF(L14="Special","special schools",IF(L14="Alternative provision","alternative provision schools",IF(L14="All-through","all-through schools",IF(L14="Nursery","nursery schools","")))))))&Calcs!$K30) ->  | N20: =IF(OR(P$14="",P$15="",P$16="",P$17=""),"", "- "&Calcs!$J31& IF(P14="Primary"," primary schools with ",IF(P14="Secondary with sixth form"," secondary schools with a sixth form with ",IF(P14="Secondary without sixth form"," secondary schools without a sixth form with ",IF(P14="Special","special schools",IF(P14="Alternative provision","alternative provision schools",IF(P14="All-through","all-through schools",IF(P14="Nursery","nursery schools","")))))))&Calcs!$K31) ->  | R20: =IF(OR(T$14="",T$15="",T$16="",T$17=""),"", "- "&Calcs!$J32& IF(T14="Primary"," primary schools with ",IF(T14="Secondary with sixth form"," secondary schools with a sixth form with ",IF(T14="Secondary without sixth form"," secondary schools without a sixth form with ",IF(T14="Special","special schools",IF(T14="Alternative provision","alternative provision schools",IF(T14="All-through","all-through schools",IF(T14="Nursery","nursery schools","")))))))&Calcs!$K32) ->  | V20: =IF(OR(X$14="",X$15="",X$16="",X$17=""),"", "- "&Calcs!$J33& IF(X14="Primary"," primary schools with ",IF(X14="Secondary with sixth form"," secondary schools with a sixth form with ",IF(X14="Secondary without sixth form"," secondary schools without a sixth form with ",IF(X14="Special","special schools",IF(X14="Alternative provision","alternative provision schools",IF(X14="All-through","all-through schools",IF(X14="Nursery","nursery schools","")))))))&Calcs!$K33) ->  | Z20: =IF(OR(AB$14="",AB$15="",AB$16="",AB$17=""),"", "- "&Calcs!$J34& IF(AB14="Primary"," primary schools with ",IF(AB14="Secondary with sixth form"," secondary schools with a sixth form with ",IF(AB14="Secondary without sixth form"," secondary schools without a sixth form with ",IF(AB14="Special","special schools",IF(AB14="Alternative provision","alternative provision schools",IF(AB14="All-through","all-through schools",IF(AB14="Nursery"," nursery schools","")))))))&Calcs!$K34) ->  | AD20: =IF(OR(AF$14="",AF$15="",AF$16="",AF$17=""),"", "- "&Calcs!$J35& IF(AF14="Primary"," primary schools with ",IF(AF14="Secondary with sixth form"," secondary schools with a sixth form with ",IF(AF14="Secondary without sixth form"," secondary schools without a sixth form with ",IF(AF14="Special","special schools",IF(AF14="Alternative provision","alternative provision schools",IF(AF14="All-through","all-through schools",IF(AF14="Nursery","nursery schools","")))))))&Calcs!$K35) ->  | AH20: =IF(OR(AJ$14="",AJ$15="",AJ$16="",AJ$17=""),"", "- "&Calcs!$J36& IF(AJ14="Primary"," primary schools with ",IF(AJ14="Secondary with sixth form"," secondary schools with a sixth form with ",IF(AJ14="Secondary without sixth form"," secondary schools without a sixth form with ",IF(AJ14="Special","special schools",IF(AJ14="Alternative provision","alternative provision schools",IF(AJ14="All-through","all-through schools",IF(AJ14="Nursery","nursery schools","")))))))&Calcs!$K36) ->  | AL20: =IF(OR(AN$14="",AN$15="",AN$16="",AN$17=""),"", "- "&Calcs!$J37& IF(AN14="Primary"," primary schools with ",IF(AN14="Secondary with sixth form"," secondary schools with a sixth form with ",IF(AN14="Secondary without sixth form"," secondary schools without a sixth form with ",IF(AN14="Special","special schools",IF(AN14="Alternative provision","alternative provision schools",IF(AN14="All-through","all-through schools",IF(AN14="Nursery","nursery schools","")))))))&Calcs!$K37) ->  | AP20: =IF(OR(AR$14="",AR$15="",AR$16="",AR$17=""),"", "- "&Calcs!$J38& IF(AR14="Primary"," primary schools with ",IF(AR14="Secondary with sixth form"," secondary schools with a sixth form with ",IF(AR14="Secondary without sixth form"," secondary schools without a sixth form with ",IF(AR14="Special","special schools",IF(AR14="Alternative provision","alternative provision schools",IF(AR14="All-through","all-through schools",IF(AR14="Nursery","nursery schools","")))))))&Calcs!$K38) ->  | AT20: =IF(OR(AV$14="",AV$15="",AV$16="",AV$17=""),"", "- "&Calcs!$J39& IF(AV14="Primary"," primary schools with ",IF(AV14="Secondary with sixth form"," secondary schools with a sixth form with ",IF(AV14="Secondary without sixth form"," secondary schools without a sixth form with ",IF(AV14="Special","special schools",IF(AV14="Alternative provision","alternative provision schools",IF(AV14="All-through","all-through schools",IF(AV14="Nursery","nursery schools","")))))))&Calcs!$K39) ->  | AX20: =IF(OR(AZ$14="",AZ$15="",AZ$16="",AZ$17=""),"", "- "&Calcs!$J40& IF(AZ14="Primary"," primary schools with ",IF(AZ14="Secondary with sixth form"," secondary schools with a sixth form with ",IF(AZ14="Secondary without sixth form"," secondary schools without a sixth form with ",IF(AZ14="Special","special schools",IF(AZ14="Alternative provision","alternative provision schools",IF(AZ14="All-through","all-through schools",IF(AZ14="Nursery","nursery schools","")))))))&Calcs!$K40) ->  | BB20: =IF(OR(BD$14="",BD$15="",BD$16="",BD$17=""),"", "- "&Calcs!$J41& IF(BD14="Primary"," primary schools with ",IF(BD14="Secondary with sixth form"," secondary schools with a sixth form with ",IF(BD14="Secondary without sixth form"," secondary schools without a sixth form with ",IF(BD14="Special","special schools",IF(BD14="Alternative provision","alternative provision schools",IF(BD14="All-through","all-through schools",IF(BD14="Nursery","nursery schools","")))))))&Calcs!$K41) ->  | BF20: =IF(OR(BH$14="",BH$15="",BH$16="",BH$17=""),"", "- "&Calcs!$J42& IF(BH14="Primary"," primary schools with ",IF(BH14="Secondary with sixth form"," secondary schools with a sixth form with ",IF(BH14="Secondary without sixth form"," secondary schools without a sixth form with ",IF(BH14="Special","special schools",IF(BH14="Alternative provision","alternative provision schools",IF(BH14="All-through","all-through schools",IF(BH14="Nursery","nursery schools","")))))))&Calcs!$K42) ->  | BJ20: =IF(OR(BL$14="",BL$15="",BL$16="",BL$17=""),"", "- "&Calcs!$J43& IF(BL14="Primary"," primary schools with ",IF(BL14="Secondary with sixth form"," secondary schools with a sixth form with ",IF(BL14="Secondary without sixth form"," secondary schools without a sixth form with ",IF(BL14="Special","special schools",IF(BL14="Alternative provision","alternative provision schools",IF(BL14="All-through","all-through schools",IF(BL14="Nursery","nursery schools","")))))))&Calcs!$K43) ->  | BN20: =IF(OR(BP$14="",BP$15="",BP$16="",BP$17=""),"", "- "&Calcs!$J44& IF(BP14="Primary"," primary schools with ",IF(BP14="Secondary with sixth form"," secondary schools with a sixth form with ",IF(BP14="Secondary without sixth form"," secondary schools without a sixth form with ",IF(BP14="Special","special schools",IF(BP14="Alternative provision","alternative provision schools",IF(BP14="All-through","all-through schools",IF(BP14="Nursery","nursery schools","")))))))&Calcs!$K44) ->  | BR20: =IF(OR(BT$14="",BT$15="",BT$16="",BT$17=""),"", "- "&Calcs!$J45& IF(BT14="Primary"," primary schools with ",IF(BT14="Secondary with sixth form"," secondary schools with a sixth form with ",IF(BT14="Secondary without sixth form"," secondary schools without a sixth form with ",IF(BT14="Special","special schools",IF(BT14="Alternative provision","alternative provision schools",IF(BT14="All-through","all-through schools",IF(BT14="Nursery","nursery schools","")))))))&Calcs!$K45) ->  | BV20: =IF(OR(BX$14="",BX$15="",BX$16="",BX$17=""),"", "- "&Calcs!$J46& IF(BX14="Primary"," primary schools with ",IF(BX14="Secondary with sixth form"," secondary schools with a sixth form with ",IF(BX14="Secondary without sixth form"," secondary schools without a sixth form with ",IF(BX14="Special","special schools",IF(BX14="Alternative provision","alternative provision schools",IF(BX14="All-through","all-through schools",IF(BX14="Nursery","nursery schools","")))))))&Calcs!$K46) ->  | BZ20: =IF(OR(CB$14="",CB$15="",CB$16="",CB$17=""),"", "- "&Calcs!$J47& IF(CB14="Primary"," primary schools with ",IF(CB14="Secondary with sixth form"," secondary schools with a sixth form with ",IF(CB14="Secondary without sixth form"," secondary schools without a sixth form with ",IF(CB14="Special","special schools",IF(CB14="Alternative provision","alternative provision schools",IF(CB14="All-through","all-through schools",IF(CB14="Nursery","nursery schools","")))))))&Calcs!$K47) ->  | CD20: =IF(OR(CF$14="",CF$15="",CF$16="",CF$17=""),"", "- "&Calcs!$J48& IF(CF14="Primary"," primary schools with ",IF(CF14="Secondary with sixth form"," secondary schools with a sixth form with ",IF(CF14="Secondary without sixth form"," secondary schools without a sixth form with ",IF(CF14="Special","special schools",IF(CF14="Alternative provision","alternative provision schools",IF(CF14="All-through","all-through schools",IF(CF14="Nursery","nursery schools","")))))))&Calcs!$K48) -> 
C22: Either input the school's percentages and ratios directly, or complete the Optional - input raw data form with spending information and school characteristics. The percentages and ratios in the dashboard will then auto-calculate. | F22: =IF(OR(H$14="",H$15="",H$16="",H$17=""),"", IF(H14="Primary","- primary schools ",IF(H14="Secondary with sixth form","- secondary schools with a sixth form ",IF(H14="Secondary without sixth form","- secondary schools without a sixth form ",IF(H14="Special","- special schools ",IF(H14="Alternative provision","- alternative provision schools ",IF(H14="All-through","- all-through schools ",IF(H14="Nursery","- nursery schools ","")))))))&Calcs!$I29&" (for average teacher cost only)") -> - secondary schools with a sixth form outside London (for average teacher cost only) | J22: =IF(OR(L$14="",L$15="",L$16="",L$17=""),"", IF(L14="Primary","- primary schools ",IF(L14="Secondary with sixth form","- secondary schools with a sixth form ",IF(L14="Secondary without sixth form","- secondary schools without a sixth form ",IF(L14="Special","- special schools ",IF(L14="Alternative provision","- alternative provision schools ",IF(L14="All-through","- all-through schools ",IF(L14="Nursery","- nursery schools ","")))))))&Calcs!$I30&" (for average teacher cost only)") ->  | N22: =IF(OR(P$14="",P$15="",P$16="",P$17=""),"", IF(P14="Primary","- primary schools ",IF(P14="Secondary with sixth form","- secondary schools with a sixth form ",IF(P14="Secondary without sixth form","- secondary schools without a sixth form ",IF(P14="Special","- special schools ",IF(P14="Alternative provision","- alternative provision schools ",IF(P14="All-through","- all-through schools ",IF(P14="Nursery","- nursery schools ","")))))))&Calcs!$I31&" (for average teacher cost only)") ->  | R22: =IF(OR(T$14="",T$15="",T$16="",T$17=""),"", IF(T14="Primary","- primary schools ",IF(T14="Secondary with sixth form","- secondary schools with a sixth form ",IF(T14="Secondary without sixth form","- secondary schools without a sixth form ",IF(T14="Special","- special schools ",IF(T14="Alternative provision","- alternative provision schools ",IF(T14="All-through","- all-through schools ",IF(T14="Nursery","- nursery schools ","")))))))&Calcs!$I32&" (for average teacher cost only)") ->  | V22: =IF(OR(X$14="",X$15="",X$16="",X$17=""),"", IF(X14="Primary","- primary schools ",IF(X14="Secondary with sixth form","- secondary schools with a sixth form ",IF(X14="Secondary without sixth form","- secondary schools without a sixth form ",IF(X14="Special","- special schools ",IF(X14="Alternative provision","- alternative provision schools ",IF(X14="All-through","- all-through schools ",IF(X14="Nursery","- nursery schools ","")))))))&Calcs!$I33&" (for average teacher cost only)") ->  | Z22: =IF(OR(AB$14="",AB$15="",AB$16="",AB$17=""),"", IF(AB14="Primary","- primary schools ",IF(AB14="Secondary with sixth form","- secondary schools with a sixth form ",IF(AB14="Secondary without sixth form","- secondary schools without a sixth form ",IF(AB14="Special","- special schools ",IF(AB14="Alternative provision","- alternative provision schools ",IF(AB14="All-through","- all-through schools ",IF(AB14="Nursery","- nursery schools ","")))))))&Calcs!$I34&" (for average teacher cost only)") ->  | AD22: =IF(OR(AF$14="",AF$15="",AF$16="",AF$17=""),"", IF(AF14="Primary","- primary schools ",IF(AF14="Secondary with sixth form","- secondary schools with a sixth form ",IF(AF14="Secondary without sixth form","- secondary schools without a sixth form ",IF(AF14="Special","- special schools ",IF(AF14="Alternative provision","- alternative provision schools ",IF(AF14="All-through","- all-through schools ",IF(AF14="Nursery","- nursery schools ","")))))))&Calcs!$I35&" (for average teacher cost only)") ->  | AH22: =IF(OR(AJ$14="",AJ$15="",AJ$16="",AJ$17=""),"", IF(AJ14="Primary","- primary schools ",IF(AJ14="Secondary with sixth form","- secondary schools with a sixth form ",IF(AJ14="Secondary without sixth form","- secondary schools without a sixth form ",IF(AJ14="Special","- special schools ",IF(AJ14="Alternative provision","- alternative provision schools ",IF(AJ14="All-through","- all-through schools ",IF(AJ14="Nursery","- nursery schools ","")))))))&Calcs!$I36&" (for average teacher cost only)") ->  | AL22: =IF(OR(AN$14="",AN$15="",AN$16="",AN$17=""),"", IF(AN14="Primary","- primary schools ",IF(AN14="Secondary with sixth form","- secondary schools with a sixth form ",IF(AN14="Secondary without sixth form","- secondary schools without a sixth form ",IF(AN14="Special","- special schools ",IF(AN14="Alternative provision","- alternative provision schools ",IF(AN14="All-through","- all-through schools ",IF(AN14="Nursery","- nursery schools ","")))))))&Calcs!$I37&" (for average teacher cost only)") ->  | AP22: =IF(OR(AR$14="",AR$15="",AR$16="",AR$17=""),"", IF(AR14="Primary","- primary schools ",IF(AR14="Secondary with sixth form","- secondary schools with a sixth form ",IF(AR14="Secondary without sixth form","- secondary schools without a sixth form ",IF(AR14="Special","- special schools ",IF(AR14="Alternative provision","- alternative provision schools ",IF(AR14="All-through","- all-through schools ",IF(AR14="Nursery","- nursery schools ","")))))))&Calcs!$I38&" (for average teacher cost only)") ->  | AT22: =IF(OR(AV$14="",AV$15="",AV$16="",AV$17=""),"", IF(AV14="Primary","- primary schools ",IF(AV14="Secondary with sixth form","- secondary schools with a sixth form ",IF(AV14="Secondary without sixth form","- secondary schools without a sixth form ",IF(AV14="Special","- special schools ",IF(AV14="Alternative provision","- alternative provision schools ",IF(AV14="All-through","- all-through schools ",IF(AV14="Nursery","- nursery schools ","")))))))&Calcs!$I39&" (for average teacher cost only)") ->  | AX22: =IF(OR(AZ$14="",AZ$15="",AZ$16="",AZ$17=""),"", IF(AZ14="Primary","- primary schools ",IF(AZ14="Secondary with sixth form","- secondary schools with a sixth form ",IF(AZ14="Secondary without sixth form","- secondary schools without a sixth form ",IF(AZ14="Special","- special schools ",IF(AZ14="Alternative provision","- alternative provision schools ",IF(AZ14="All-through","- all-through schools ",IF(AZ14="Nursery","- nursery schools ","")))))))&Calcs!$I40&" (for average teacher cost only)") ->  | BB22: =IF(OR(BD$14="",BD$15="",BD$16="",BD$17=""),"", IF(BD14="Primary","- primary schools ",IF(BD14="Secondary with sixth form","- secondary schools with a sixth form ",IF(BD14="Secondary without sixth form","- secondary schools without a sixth form ",IF(BD14="Special","- special schools ",IF(BD14="Alternative provision","- alternative provision schools ",IF(BD14="All-through","- all-through schools ",IF(BD14="Nursery","- nursery schools ","")))))))&Calcs!$I41&" (for average teacher cost only)") ->  | BF22: =IF(OR(BH$14="",BH$15="",BH$16="",BH$17=""),"", IF(BH14="Primary","- primary schools ",IF(BH14="Secondary with sixth form","- secondary schools with a sixth form ",IF(BH14="Secondary without sixth form","- secondary schools without a sixth form ",IF(BH14="Special","- special schools ",IF(BH14="Alternative provision","- alternative provision schools ",IF(BH14="All-through","- all-through schools ",IF(BH14="Nursery","- nursery schools ","")))))))&Calcs!$I42&" (for average teacher cost only)") ->  | BJ22: =IF(OR(BL$14="",BL$15="",BL$16="",BL$17=""),"", IF(BL14="Primary","- primary schools ",IF(BL14="Secondary with sixth form","- secondary schools with a sixth form ",IF(BL14="Secondary without sixth form","- secondary schools without a sixth form ",IF(BL14="Special","- special schools ",IF(BL14="Alternative provision","- alternative provision schools ",IF(BL14="All-through","- all-through schools ",IF(BL14="Nursery","- nursery schools ","")))))))&Calcs!$I43&" (for average teacher cost only)") ->  | BN22: =IF(OR(BP$14="",BP$15="",BP$16="",BP$17=""),"", IF(BP14="Primary","- primary schools ",IF(BP14="Secondary with sixth form","- secondary schools with a sixth form ",IF(BP14="Secondary without sixth form","- secondary schools without a sixth form ",IF(BP14="Special","- special schools ",IF(BP14="Alternative provision","- alternative provision schools ",IF(BP14="All-through","- all-through schools ",IF(BP14="Nursery","- nursery schools ","")))))))&Calcs!$I44&" (for average teacher cost only)") ->  | BR22: =IF(OR(BT$14="",BT$15="",BT$16="",BT$17=""),"", IF(BT14="Primary","- primary schools ",IF(BT14="Secondary with sixth form","- secondary schools with a sixth form ",IF(BT14="Secondary without sixth form","- secondary schools without a sixth form ",IF(BT14="Special","- special schools ",IF(BT14="Alternative provision","- alternative provision schools ",IF(BT14="All-through","- all-through schools ",IF(BT14="Nursery","- nursery schools ","")))))))&Calcs!$I45&" (for average teacher cost only)") ->  | BV22: =IF(OR(BX$14="",BX$15="",BX$16="",BX$17=""),"", IF(BX14="Primary","- primary schools ",IF(BX14="Secondary with sixth form","- secondary schools with a sixth form ",IF(BX14="Secondary without sixth form","- secondary schools without a sixth form ",IF(BX14="Special","- special schools ",IF(BX14="Alternative provision","- alternative provision schools ",IF(BX14="All-through","- all-through schools ",IF(BX14="Nursery","- nursery schools ","")))))))&Calcs!$I46&" (for average teacher cost only)") ->  | BZ22: =IF(OR(CB$14="",CB$15="",CB$16="",CB$17=""),"", IF(CB14="Primary","- primary schools ",IF(CB14="Secondary with sixth form","- secondary schools with a sixth form ",IF(CB14="Secondary without sixth form","- secondary schools without a sixth form ",IF(CB14="Special","- special schools ",IF(CB14="Alternative provision","- alternative provision schools ",IF(CB14="All-through","- all-through schools ",IF(CB14="Nursery","- nursery schools ","")))))))&Calcs!$I47&" (for average teacher cost only)") ->  | CD22: =IF(OR(CF$14="",CF$15="",CF$16="",CF$17=""),"", IF(CF14="Primary","- primary schools ",IF(CF14="Secondary with sixth form","- secondary schools with a sixth form ",IF(CF14="Secondary without sixth form","- secondary schools without a sixth form ",IF(CF14="Special","- special schools ",IF(CF14="Alternative provision","- alternative provision schools ",IF(CF14="All-through","- all-through schools ",IF(CF14="Nursery","- nursery schools ","")))))))&Calcs!$I48&" (for average teacher cost only)") -> 
C25: Add up to 20 schools by using the Click here to add another school buttons. Macros must be enabled for this feature.
F27: Input the school's percentages and ratios directly below, or click here to input raw spending and characteristics data for this school | J27: Input the school's percentages and ratios directly below, or click here to input raw spending and characteristics data for this school | N27: Input the school's percentages and ratios directly below, or click here to input raw spending and characteristics data for this school | R27: Input the school's percentages and ratios directly below, or click here to input raw spending and characteristics data for this school | V27: Input the school's percentages and ratios directly below, or click here to input raw spending and characteristics data for this school | Z27: Input the school's percentages and ratios directly below, or click here to input raw spending and characteristics data for this school | AD27: Input the school's percentages and ratios directly below, or click here to input raw spending and characteristics data for this school | AH27: Input the school's percentages and ratios directly below, or click here to input raw spending and characteristics data for this school | AL27: Input the school's percentages and ratios directly below, or click here to input raw spending and characteristics data for this school | AP27: Input the school's percentages and ratios directly below, or click here to input raw spending and characteristics data for this school | AT27: Input the school's percentages and ratios directly below, or click here to input raw spending and characteristics data for this school | AX27: Input the school's percentages and ratios directly below, or click here to input raw spending and characteristics data for this school | BB27: Input the school's percentages and ratios directly below, or click here to input raw spending and characteristics data for this school | BF27: Input the school's percentages and ratios directly below, or click here to input raw spending and characteristics data for this school | BJ27: Input the school's percentages and ratios directly below, or click here to input raw spending and characteristics data for this school | BN27: Input the school's percentages and ratios directly below, or click here to input raw spending and characteristics data for this school | BR27: Input the school's percentages and ratios directly below, or click here to input raw spending and characteristics data for this school | BV27: Input the school's percentages and ratios directly below, or click here to input raw spending and characteristics data for this school | BZ27: Input the school's percentages and ratios directly below, or click here to input raw spending and characteristics data for this school | CD27: Input the school's percentages and ratios directly below, or click here to input raw spending and characteristics data for this school
C29: Using the results from the dashboard Click here for explanations of what the red, amber and green (RAG) ratings mean and what do with the results.
F34: The school's data | H34: Rating against thresholds | J34: The school's data | L34: Rating against thresholds | N34: The school's data | P34: Rating against thresholds | R34: The school's data | T34: Rating against thresholds | V34: The school's data | X34: Rating against thresholds | Z34: The school's data | AB34: Rating against thresholds | AD34: The school's data | AF34: Rating against thresholds | AH34: The school's data | AJ34: Rating against thresholds | AL34: The school's data | AN34: Rating against thresholds | AP34: The school's data | AR34: Rating against thresholds | AT34: The school's data | AV34: Rating against thresholds | AX34: The school's data | AZ34: Rating against thresholds | BB34: The school's data | BD34: Rating against thresholds | BF34: The school's data | BH34: Rating against thresholds | BJ34: The school's data | BL34: Rating against thresholds | BN34: The school's data | BP34: Rating against thresholds | BR34: The school's data | BT34: Rating against thresholds | BV34: The school's data | BX34: Rating against thresholds | BZ34: The school's data | CB34: Rating against thresholds | CD34: The school's data | CF34: Rating against thresholds
C36: B. Spending as a percentage of total expenditure
C38: Spend on teaching staff as a percentage of total expenditure | D38: Guidance | F38: =IFERROR('Optional - input raw data'!F34/'Optional - input raw data'!F23,Calcs!$A$75) -> 59.5% | H38: =IF(OR(H$14="",H$15="",H$16="",H$17="",F38=""),"", IF(F38<=Calcs!C9,Lowest10, IF(AND(F38>Calcs!C9,F38<=Calcs!D9),Lowest20, IF(AND(F38>Calcs!D9,F38<=Calcs!E9),Inline, IF(AND(F38>Calcs!E9,F38<=Calcs!G9),Middle20, IF(AND(F38>Calcs!G9,F38<=Calcs!H9),Inline, IF(AND(F38>Calcs!H9,F38<=Calcs!I9),Highest20, IF(F38>Calcs!I9,Highest10,"")))))))) -> Broadly in line with similar schools | J38: =IFERROR('Optional - input raw data'!H34/'Optional - input raw data'!H23,Calcs!$A$75) ->  | L38: =IF(OR(L$14="",L$15="",L$16="",L$17="",J38=""),"", IF(J38<=Calcs!K9,Lowest10, IF(AND(J38>Calcs!K9,J38<=Calcs!L9),Lowest20, IF(AND(J38>Calcs!L9,J38<=Calcs!M9),Inline, IF(AND(J38>Calcs!M9,J38<=Calcs!O9),Middle20, IF(AND(J38>Calcs!O9,J38<=Calcs!P9),Inline, IF(AND(J38>Calcs!P9,J38<=Calcs!Q9),Highest20, IF(J38>Calcs!Q9,Highest10,"")))))))) ->  | N38: =IFERROR('Optional - input raw data'!J34/'Optional - input raw data'!J23,Calcs!$A$75) ->  | P38: =IF(OR(P$14="",P$15="",P$16="",P$17="",N38=""),"", IF(N38<=Calcs!S9,Lowest10, IF(AND(N38>Calcs!S9,N38<=Calcs!T9),Lowest20, IF(AND(N38>Calcs!T9,N38<=Calcs!U9),Inline, IF(AND(N38>Calcs!U9,N38<=Calcs!W9),Middle20, IF(AND(N38>Calcs!W9,N38<=Calcs!X9),Inline, IF(AND(N38>Calcs!X9,N38<=Calcs!Y9),Highest20, IF(N38>Calcs!Y9,Highest10,"")))))))) ->  | R38: =IFERROR('Optional - input raw data'!L34/'Optional - input raw data'!L23,Calcs!$A$75) ->  | T38: =IF(OR(T$14="",T$15="",T$16="",T$17="",R38=""),"", IF(R38<=Calcs!AA9,Lowest10, IF(AND(R38>Calcs!AA9,R38<=Calcs!AB9),Lowest20, IF(AND(R38>Calcs!AB9,R38<=Calcs!AC9),Inline, IF(AND(R38>Calcs!AC9,R38<=Calcs!AE9),Middle20, IF(AND(R38>Calcs!AE9,R38<=Calcs!AF9),Inline, IF(AND(R38>Calcs!AF9,R38<=Calcs!AG9),Highest20, IF(R38>Calcs!AG9,Highest10,"")))))))) ->  | V38: =IFERROR('Optional - input raw data'!N34/'Optional - input raw data'!N23,"") ->  | X38: =IF(OR(X$14="",X$15="",X$16="",X$17="",V38=""),"", IF(V38<=Calcs!AI9,Lowest10, IF(AND(V38>Calcs!AI9,V38<=Calcs!AJ9),Lowest20, IF(AND(V38>Calcs!AJ9,V38<=Calcs!AK9),Inline, IF(AND(V38>Calcs!AK9,V38<=Calcs!AM9),Middle20, IF(AND(V38>Calcs!AM9,V38<=Calcs!AN9),Inline, IF(AND(V38>Calcs!AN9,V38<=Calcs!AO9),Highest20, IF(V38>Calcs!AO9,Highest10,"")))))))) ->  | Z38: =IFERROR('Optional - input raw data'!V34/'Optional - input raw data'!V23,"") ->  | AB38: =IF(OR(AB$14="",AB$15="",AB$16="",AB$17="",Z38=""),"", IF(Z38<=Calcs!AQ9,Lowest10, IF(AND(Z38>Calcs!AQ9,Z38<=Calcs!AR9),Lowest20, IF(AND(Z38>Calcs!AR9,Z38<=Calcs!AS9),Inline, IF(AND(Z38>Calcs!AS9,Z38<=Calcs!AU9),Middle20, IF(AND(Z38>Calcs!AU9,Z38<=Calcs!AV9),Inline, IF(AND(Z38>Calcs!AV9,Z38<=Calcs!AW9),Highest20, IF(Z38>Calcs!AW9,Highest10,"")))))))) ->  | AD38: =IFERROR('Optional - input raw data'!R34/'Optional - input raw data'!R23,"") ->  | AF38: =IF(OR(AF$14="",AF$15="",AF$16="",AF$17="",AD38=""),"", IF(AD38<=Calcs!AY9,Lowest10, IF(AND(AD38>Calcs!AY9,AD38<=Calcs!AZ9),Lowest20, IF(AND(AD38>Calcs!AZ9,AD38<=Calcs!BA9),Inline, IF(AND(AD38>Calcs!BA9,AD38<=Calcs!BC9),Middle20, IF(AND(AD38>Calcs!BC9,AD38<=Calcs!BD9),Inline, IF(AND(AD38>Calcs!BD9,AD38<=Calcs!BE9),Highest20, IF(AD38>Calcs!BE9,Highest10,"")))))))) ->  | AH38: =IFERROR('Optional - input raw data'!T34/'Optional - input raw data'!T23,"") ->  | AJ38: =IF(OR(AJ$14="",AJ$15="",AJ$16="",AJ$17="",AH38=""),"", IF(AH38<=Calcs!BG9,Lowest10, IF(AND(AH38>Calcs!BG9,AH38<=Calcs!BH9),Lowest20, IF(AND(AH38>Calcs!BH9,AH38<=Calcs!BI9),Inline, IF(AND(AH38>Calcs!BI9,AH38<=Calcs!BK9),Middle20, IF(AND(AH38>Calcs!BK9,AH38<=Calcs!BL9),Inline, IF(AND(AH38>Calcs!BL9,AH38<=Calcs!BM9),Highest20, IF(AH38>Calcs!BM9,Highest10,"")))))))) ->  | AL38: =IFERROR('Optional - input raw data'!V34/'Optional - input raw data'!V23,"") ->  | AN38: =IF(OR(AN$14="",AN$15="",AN$16="",AN$17="",AL38=""),"", IF(AL38<=Calcs!BO9,Lowest10, IF(AND(AL38>Calcs!BO9,AL38<=Calcs!BP9),Lowest20, IF(AND(AL38>Calcs!BP9,AL38<=Calcs!BQ9),Inline, IF(AND(AL38>Calcs!BQ9,AL38<=Calcs!BS9),Middle20, IF(AND(AL38>Calcs!BS9,AL38<=Calcs!BT9),Inline, IF(AND(AL38>Calcs!BT9,AL38<=Calcs!BU9),Highest20, IF(AL38>Calcs!BU9,Highest10,"")))))))) ->  | AP38: =IFERROR('Optional - input raw data'!X34/'Optional - input raw data'!X23,"") ->  | AR38: =IF(OR(AR$14="",AR$15="",AR$16="",AR$17="",AP38=""),"", IF(AP38<=Calcs!BW9,Lowest10, IF(AND(AP38>Calcs!BW9,AP38<=Calcs!BX9),Lowest20, IF(AND(AP38>Calcs!BX9,AP38<=Calcs!BY9),Inline, IF(AND(AP38>Calcs!BY9,AP38<=Calcs!CA9),Middle20, IF(AND(AP38>Calcs!CA9,AP38<=Calcs!CB9),Inline, IF(AND(AP38>Calcs!CB9,AP38<=Calcs!CC9),Highest20, IF(AP38>Calcs!CC9,Highest10,"")))))))) ->  | AT38: =IFERROR('Optional - input raw data'!Z34/'Optional - input raw data'!Z23,"") ->  | AV38: =IF(OR(AV$14="",AV$15="",AV$16="",AV$17="",AT38=""),"", IF(AT38<=Calcs!CE9,Lowest10, IF(AND(AT38>Calcs!CE9,AT38<=Calcs!CF9),Lowest20, IF(AND(AT38>Calcs!CF9,AT38<=Calcs!CG9),Inline, IF(AND(AT38>Calcs!CG9,AT38<=Calcs!CI9),Middle20, IF(AND(AT38>Calcs!CI9,AT38<=Calcs!CJ9),Inline, IF(AND(AT38>Calcs!CJ9,AT38<=Calcs!CK9),Highest20, IF(AT38>Calcs!CK9,Highest10,"")))))))) ->  | AX38: =IFERROR('Optional - input raw data'!AB34/'Optional - input raw data'!AB23,"") ->  | AZ38: =IF(OR(AZ$14="",AZ$15="",AZ$16="",AZ$17="",AX38=""),"", IF(AX38<=Calcs!CM9,Lowest10, IF(AND(AX38>Calcs!CM9,AX38<=Calcs!CN9),Lowest20, IF(AND(AX38>Calcs!CN9,AX38<=Calcs!CO9),Inline, IF(AND(AX38>Calcs!CO9,AX38<=Calcs!CQ9),Middle20, IF(AND(AX38>Calcs!CQ9,AX38<=Calcs!CR9),Inline, IF(AND(AX38>Calcs!CR9,AX38<=Calcs!CS9),Highest20, IF(AX38>Calcs!CS9,Highest10,"")))))))) ->  | BB38: =IFERROR('Optional - input raw data'!AD34/'Optional - input raw data'!AD23,"") ->  | BD38: =IF(OR(BD$14="",BD$15="",BD$16="",BD$17="",BB38=""),"", IF(BB38<=Calcs!CU9,Lowest10, IF(AND(BB38>Calcs!CU9,BB38<=Calcs!CV9),Lowest20, IF(AND(BB38>Calcs!CV9,BB38<=Calcs!CW9),Inline, IF(AND(BB38>Calcs!CW9,BB38<=Calcs!CY9),Middle20, IF(AND(BB38>Calcs!CY9,BB38<=Calcs!CZ9),Inline, IF(AND(BB38>Calcs!CZ9,BB38<=Calcs!DA9),Highest20, IF(BB38>Calcs!DA9,Highest10,"")))))))) ->  | BF38: =IFERROR('Optional - input raw data'!AF34/'Optional - input raw data'!AF23,"") ->  | BH38: =IF(OR(BH$14="",BH$15="",BH$16="",BH$17="",BF38=""),"", IF(BF38<=Calcs!DC9,Lowest10, IF(AND(BF38>Calcs!DC9,BF38<=Calcs!DD9),Lowest20, IF(AND(BF38>Calcs!DD9,BF38<=Calcs!DE9),Inline, IF(AND(BF38>Calcs!DE9,BF38<=Calcs!DG9),Middle20, IF(AND(BF38>Calcs!DG9,BF38<=Calcs!DH9),Inline, IF(AND(BF38>Calcs!DH9,BF38<=Calcs!DI9),Highest20, IF(BF38>Calcs!DI9,Highest10,"")))))))) ->  | BJ38: =IFERROR('Optional - input raw data'!AH34/'Optional - input raw data'!AH23,"") ->  | BL38: =IF(OR(BL$14="",BL$15="",BL$16="",BL$17="",BJ38=""),"", IF(BJ38<=Calcs!DK9,Lowest10, IF(AND(BJ38>Calcs!DK9,BJ38<=Calcs!DL9),Lowest20, IF(AND(BJ38>Calcs!DL9,BJ38<=Calcs!DM9),Inline, IF(AND(BJ38>Calcs!DM9,BJ38<=Calcs!DO9),Middle20, IF(AND(BJ38>Calcs!DO9,BJ38<=Calcs!DP9),Inline, IF(AND(BJ38>Calcs!DP9,BJ38<=Calcs!DQ9),Highest20, IF(BJ38>Calcs!DQ9,Highest10,"")))))))) ->  | BN38: =IFERROR('Optional - input raw data'!AJ34/'Optional - input raw data'!AJ23,"") ->  | BP38: =IF(OR(BP$14="",BP$15="",BP$16="",BP$17="",BN38=""),"", IF(BN38<=Calcs!DS9,Lowest10, IF(AND(BN38>Calcs!DS9,BN38<=Calcs!DT9),Lowest20, IF(AND(BN38>Calcs!DT9,BN38<=Calcs!DU9),Inline, IF(AND(BN38>Calcs!DU9,BN38<=Calcs!DW9),Middle20, IF(AND(BN38>Calcs!DW9,BN38<=Calcs!DX9),Inline, IF(AND(BN38>Calcs!DX9,BN38<=Calcs!DY9),Highest20, IF(BN38>Calcs!DY9,Highest10,"")))))))) ->  | BR38: =IFERROR('Optional - input raw data'!AL34/'Optional - input raw data'!AL23,"") ->  | BT38: =IF(OR(BT$14="",BT$15="",BT$16="",BT$17="",BR38=""),"", IF(BR38<=Calcs!EA9,Lowest10, IF(AND(BR38>Calcs!EA9,BR38<=Calcs!EB9),Lowest20, IF(AND(BR38>Calcs!EB9,BR38<=Calcs!EC9),Inline, IF(AND(BR38>Calcs!EC9,BR38<=Calcs!EE9),Middle20, IF(AND(BR38>Calcs!EE9,BR38<=Calcs!EF9),Inline, IF(AND(BR38>Calcs!EF9,BR38<=Calcs!EG9),Highest20, IF(BR38>Calcs!EG9,Highest10,"")))))))) ->  | BV38: =IFERROR('Optional - input raw data'!AN34/'Optional - input raw data'!AN23,"") ->  | BX38: =IF(OR(BX$14="",BX$15="",BX$16="",BX$17="",BV38=""),"", IF(BV38<=Calcs!EI9,Lowest10, IF(AND(BV38>Calcs!EI9,BV38<=Calcs!EJ9),Lowest20, IF(AND(BV38>Calcs!EJ9,BV38<=Calcs!EK9),Inline, IF(AND(BV38>Calcs!EK9,BV38<=Calcs!EM9),Middle20, IF(AND(BV38>Calcs!EM9,BV38<=Calcs!EN9),Inline, IF(AND(BV38>Calcs!EN9,BV38<=Calcs!EO9),Highest20, IF(BV38>Calcs!EO9,Highest10,"")))))))) ->  | BZ38: =IFERROR('Optional - input raw data'!AP34/'Optional - input raw data'!AP23,"") ->  | CB38: =IF(OR(CB$14="",CB$15="",CB$16="",CB$17="",BZ38=""),"", IF(BZ38<=Calcs!EQ9,Lowest10, IF(AND(BZ38>Calcs!EQ9,BZ38<=Calcs!ER9),Lowest20, IF(AND(BZ38>Calcs!ER9,BZ38<=Calcs!ES9),Inline, IF(AND(BZ38>Calcs!ES9,BZ38<=Calcs!EU9),Middle20, IF(AND(BZ38>Calcs!EU9,BZ38<=Calcs!EV9),Inline, IF(AND(BZ38>Calcs!EV9,BZ38<=Calcs!EW9),Highest20, IF(BZ38>Calcs!EW9,Highest10,"")))))))) ->  | CD38: =IFERROR('Optional - input raw data'!AR34/'Optional - input raw data'!AR23,Calcs!$A$75) ->  | CF38: =IF(OR(CF$14="",CF$15="",CF$16="",CF$17="",CD38=""),"", IF(CD38<=Calcs!EY9,Lowest10, IF(AND(CD38>Calcs!EY9,CD38<=Calcs!EZ9),Lowest20, IF(AND(CD38>Calcs!EZ9,CD38<=Calcs!FA9),Inline, IF(AND(CD38>Calcs!FA9,CD38<=Calcs!FC9),Middle20, IF(AND(CD38>Calcs!FC9,CD38<=Calcs!FD9),Inline, IF(AND(CD38>Calcs!FD9,CD38<=Calcs!FE9),Highest20, IF(CD38>Calcs!FE9,Highest10,"")))))))) -> 
C39: Spend on supply staff as a percentage of total expenditure | D39: Guidance | F39: =IFERROR(('Optional - input raw data'!F35+'Optional - input raw data'!F43+'Optional - input raw data'!F57)/'Optional - input raw data'!F23,Calcs!$A$75) -> 0.3% | H39: =IF(OR(H$14="",H$15="",H$16="",H$17="",F39=""),"", IF(F39<=Calcs!E10,Inline, IF(AND(F39>Calcs!E10,F39<=Calcs!G10),Middle20, IF(AND(F39>Calcs!G10,F39<=Calcs!H10),Inline, IF(AND(F39>Calcs!H10,F39<=Calcs!I10),Highest20, IF(F39>Calcs!I10,Highest10,"")))))) -> Broadly in line with similar schools | J39: =IFERROR(('Optional - input raw data'!H35+'Optional - input raw data'!H43+'Optional - input raw data'!H57)/'Optional - input raw data'!H23,Calcs!$A$75) ->  | L39: =IF(OR(L$14="",L$15="",L$16="",L$17="",J39=""),"", IF(J39<=Calcs!M10,Inline, IF(AND(J39>Calcs!M10,J39<=Calcs!O10),Middle20, IF(AND(J39>Calcs!O10,J39<=Calcs!P10),Inline, IF(AND(J39>Calcs!P10,J39<=Calcs!Q10),Highest20, IF(J39>Calcs!Q10,Highest10,"")))))) ->  | N39: =IFERROR(('Optional - input raw data'!J35+'Optional - input raw data'!J43+'Optional - input raw data'!J57)/'Optional - input raw data'!J23,Calcs!$A$75) ->  | P39: =IF(OR(P$14="",P$15="",P$16="",P$17="",N39=""),"", IF(N39<=Calcs!U10,Inline, IF(AND(N39>Calcs!U10,N39<=Calcs!W10),Middle20, IF(AND(N39>Calcs!W10,N39<=Calcs!X10),Inline, IF(AND(N39>Calcs!X10,N39<=Calcs!Y10),Highest20, IF(N39>Calcs!Y10,Highest10,"")))))) ->  | R39: =IFERROR(('Optional - input raw data'!L35+'Optional - input raw data'!L43+'Optional - input raw data'!L57)/'Optional - input raw data'!L23,Calcs!$A$75) ->  | T39: =IF(OR(T$14="",T$15="",T$16="",T$17="",R39=""),"", IF(R39<=Calcs!AC10,Inline, IF(AND(R39>Calcs!AC10,R39<=Calcs!AE10),Middle20, IF(AND(R39>Calcs!AE10,R39<=Calcs!AF10),Inline, IF(AND(R39>Calcs!AF10,R39<=Calcs!AG10),Highest20, IF(R39>Calcs!AG10,Highest10,"")))))) ->  | V39: =IFERROR(('Optional - input raw data'!N35+'Optional - input raw data'!N43+'Optional - input raw data'!N57)/'Optional - input raw data'!N23,"") ->  | X39: =IF(OR(X$14="",X$15="",X$16="",X$17="",V39=""),"", IF(V39<=Calcs!AK10,Inline, IF(AND(V39>Calcs!AK10,V39<=Calcs!AM10),Middle20, IF(AND(V39>Calcs!AM10,V39<=Calcs!AN10),Inline, IF(AND(V39>Calcs!AN10,V39<=Calcs!AO10),Highest20, IF(V39>Calcs!AO10,Highest10,"")))))) ->  | Z39: =IFERROR(('Optional - input raw data'!P35+'Optional - input raw data'!P43+'Optional - input raw data'!P57)/'Optional - input raw data'!P23,"") ->  | AB39: =IF(OR(AB$14="",AB$15="",AB$16="",AB$17="",Z39=""),"", IF(Z39<=Calcs!AS10,Inline, IF(AND(Z39>Calcs!AS10,Z39<=Calcs!AU10),Middle20, IF(AND(Z39>Calcs!AU10,Z39<=Calcs!AV10),Inline, IF(AND(Z39>Calcs!AV10,Z39<=Calcs!AW10),Highest20, IF(Z39>Calcs!AW10,Highest10,"")))))) ->  | AD39: =IFERROR(('Optional - input raw data'!R35+'Optional - input raw data'!R43+'Optional - input raw data'!R57)/'Optional - input raw data'!R23,"") ->  | AF39: =IF(OR(AF$14="",AF$15="",AF$16="",AF$17="",AD39=""),"", IF(AD39<=Calcs!BA10,Inline, IF(AND(AD39>Calcs!BA10,AD39<=Calcs!BC10),Middle20, IF(AND(AD39>Calcs!BC10,AD39<=Calcs!BD10),Inline, IF(AND(AD39>Calcs!BD10,AD39<=Calcs!BE10),Highest20, IF(AD39>Calcs!BE10,Highest10,"")))))) ->  | AH39: =IFERROR(('Optional - input raw data'!T35+'Optional - input raw data'!T43+'Optional - input raw data'!T57)/'Optional - input raw data'!T23,"") ->  | AJ39: =IF(OR(AJ$14="",AJ$15="",AJ$16="",AJ$17="",AH39=""),"", IF(AH39<=Calcs!BI10,Inline, IF(AND(AH39>Calcs!BI10,AH39<=Calcs!BK10),Middle20, IF(AND(AH39>Calcs!BK10,AH39<=Calcs!BL10),Inline, IF(AND(AH39>Calcs!BL10,AH39<=Calcs!BM10),Highest20, IF(AH39>Calcs!BM10,Highest10,"")))))) ->  | AL39: =IFERROR(('Optional - input raw data'!V35+'Optional - input raw data'!V43+'Optional - input raw data'!V57)/'Optional - input raw data'!V23,"") ->  | AN39: =IF(OR(AN$14="",AN$15="",AN$16="",AN$17="",AL39=""),"", IF(AL39<=Calcs!BQ10,Inline, IF(AND(AL39>Calcs!BQ10,AL39<=Calcs!BS10),Middle20, IF(AND(AL39>Calcs!BS10,AL39<=Calcs!BT10),Inline, IF(AND(AL39>Calcs!BT10,AL39<=Calcs!BU10),Highest20, IF(AL39>Calcs!BU10,Highest10,"")))))) ->  | AP39: =IFERROR(('Optional - input raw data'!X35+'Optional - input raw data'!X43+'Optional - input raw data'!X57)/'Optional - input raw data'!X23,"") ->  | AR39: =IF(OR(AR$14="",AR$15="",AR$16="",AR$17="",AP39=""),"", IF(AP39<=Calcs!BY10,Inline, IF(AND(AP39>Calcs!BY10,AP39<=Calcs!CA10),Middle20, IF(AND(AP39>Calcs!CA10,AP39<=Calcs!CB10),Inline, IF(AND(AP39>Calcs!CB10,AP39<=Calcs!CC10),Highest20, IF(AP39>Calcs!CC10,Highest10,"")))))) ->  | AT39: =IFERROR(('Optional - input raw data'!Z35+'Optional - input raw data'!Z43+'Optional - input raw data'!Z57)/'Optional - input raw data'!Z23,"") ->  | AV39: =IF(OR(AV$14="",AV$15="",AV$16="",AV$17="",AT39=""),"", IF(AT39<=Calcs!CG10,Inline, IF(AND(AT39>Calcs!CG10,AT39<=Calcs!CI10),Middle20, IF(AND(AT39>Calcs!CI10,AT39<=Calcs!CJ10),Inline, IF(AND(AT39>Calcs!CJ10,AT39<=Calcs!CK10),Highest20, IF(AT39>Calcs!CK10,Highest10,"")))))) ->  | AX39: =IFERROR(('Optional - input raw data'!AB35+'Optional - input raw data'!AB43+'Optional - input raw data'!AB57)/'Optional - input raw data'!AB23,"") ->  | AZ39: =IF(OR(AZ$14="",AZ$15="",AZ$16="",AZ$17="",AX39=""),"", IF(AX39<=Calcs!CO10,Inline, IF(AND(AX39>Calcs!CO10,AX39<=Calcs!CQ10),Middle20, IF(AND(AX39>Calcs!CQ10,AX39<=Calcs!CR10),Inline, IF(AND(AX39>Calcs!CR10,AX39<=Calcs!CS10),Highest20, IF(AX39>Calcs!CS10,Highest10,"")))))) ->  | BB39: =IFERROR(('Optional - input raw data'!AD35+'Optional - input raw data'!AD43+'Optional - input raw data'!AD57)/'Optional - input raw data'!AD23,"") ->  | BD39: =IF(OR(BD$14="",BD$15="",BD$16="",BD$17="",BB39=""),"", IF(BB39<=Calcs!CW10,Inline, IF(AND(BB39>Calcs!CW10,BB39<=Calcs!CY10),Middle20, IF(AND(BB39>Calcs!CY10,BB39<=Calcs!CZ10),Inline, IF(AND(BB39>Calcs!CZ10,BB39<=Calcs!DA10),Highest20, IF(BB39>Calcs!DA10,Highest10,"")))))) ->  | BF39: =IFERROR(('Optional - input raw data'!AF35+'Optional - input raw data'!AF43+'Optional - input raw data'!AF57)/'Optional - input raw data'!AF23,"") ->  | BH39: =IF(OR(BH$14="",BH$15="",BH$16="",BH$17="",BF39=""),"", IF(BF39<=Calcs!DE10,Inline, IF(AND(BF39>Calcs!DE10,BF39<=Calcs!DG10),Middle20, IF(AND(BF39>Calcs!DG10,BF39<=Calcs!DH10),Inline, IF(AND(BF39>Calcs!DH10,BF39<=Calcs!DI10),Highest20, IF(BF39>Calcs!DI10,Highest10,"")))))) ->  | BJ39: =IFERROR(('Optional - input raw data'!AH35+'Optional - input raw data'!AH43+'Optional - input raw data'!AH57)/'Optional - input raw data'!AH23,"") ->  | BL39: =IF(OR(BL$14="",BL$15="",BL$16="",BL$17="",BJ39=""),"", IF(BJ39<=Calcs!DM10,Inline, IF(AND(BJ39>Calcs!DM10,BJ39<=Calcs!DO10),Middle20, IF(AND(BJ39>Calcs!DO10,BJ39<=Calcs!DP10),Inline, IF(AND(BJ39>Calcs!DP10,BJ39<=Calcs!DQ10),Highest20, IF(BJ39>Calcs!DQ10,Highest10,"")))))) ->  | BN39: =IFERROR(('Optional - input raw data'!AJ35+'Optional - input raw data'!AJ43+'Optional - input raw data'!AJ57)/'Optional - input raw data'!AJ23,"") ->  | BP39: =IF(OR(BP$14="",BP$15="",BP$16="",BP$17="",BN39=""),"", IF(BN39<=Calcs!DU10,Inline, IF(AND(BN39>Calcs!DU10,BN39<=Calcs!DW10),Middle20, IF(AND(BN39>Calcs!DW10,BN39<=Calcs!DX10),Inline, IF(AND(BN39>Calcs!DX10,BN39<=Calcs!DY10),Highest20, IF(BN39>Calcs!DY10,Highest10,"")))))) ->  | BR39: =IFERROR(('Optional - input raw data'!AL35+'Optional - input raw data'!AL43+'Optional - input raw data'!AL57)/'Optional - input raw data'!AL23,"") ->  | BT39: =IF(OR(BT$14="",BT$15="",BT$16="",BT$17="",BR39=""),"", IF(BR39<=Calcs!EC10,Inline, IF(AND(BR39>Calcs!EC10,BR39<=Calcs!EE10),Middle20, IF(AND(BR39>Calcs!EE10,BR39<=Calcs!EF10),Inline, IF(AND(BR39>Calcs!EF10,BR39<=Calcs!EG10),Highest20, IF(BR39>Calcs!EG10,Highest10,"")))))) ->  | BV39: =IFERROR(('Optional - input raw data'!AN35+'Optional - input raw data'!AN43+'Optional - input raw data'!AN57)/'Optional - input raw data'!AN23,"") ->  | BX39: =IF(OR(BX$14="",BX$15="",BX$16="",BX$17="",BV39=""),"", IF(BV39<=Calcs!EK10,Inline, IF(AND(BV39>Calcs!EK10,BV39<=Calcs!EM10),Middle20, IF(AND(BV39>Calcs!EM10,BV39<=Calcs!EN10),Inline, IF(AND(BV39>Calcs!EN10,BV39<=Calcs!EO10),Highest20, IF(BV39>Calcs!EO10,Highest10,"")))))) ->  | BZ39: =IFERROR(('Optional - input raw data'!AP35+'Optional - input raw data'!AP43+'Optional - input raw data'!AP57)/'Optional - input raw data'!AP23,"") ->  | CB39: =IF(OR(CB$14="",CB$15="",CB$16="",CB$17="",BZ39=""),"", IF(BZ39<=Calcs!ES10,Inline, IF(AND(BZ39>Calcs!ES10,BZ39<=Calcs!EU10),Middle20, IF(AND(BZ39>Calcs!EU10,BZ39<=Calcs!EV10),Inline, IF(AND(BZ39>Calcs!EV10,BZ39<=Calcs!EW10),Highest20, IF(BZ39>Calcs!EW10,Highest10,"")))))) ->  | CD39: =IFERROR(('Optional - input raw data'!AR35+'Optional - input raw data'!AR43+'Optional - input raw data'!AR57)/'Optional - input raw data'!AR23,Calcs!$A$75) ->  | CF39: =IF(OR(CF$14="",CF$15="",CF$16="",CF$17="",CD39=""),"", IF(CD39<=Calcs!FA10,Inline, IF(AND(CD39>Calcs!FA10,CD39<=Calcs!FC10),Middle20, IF(AND(CD39>Calcs!FC10,CD39<=Calcs!FD10),Inline, IF(AND(CD39>Calcs!FD10,CD39<=Calcs!FE10),Highest20, IF(CD39>Calcs!FE10,Highest10,"")))))) -> 
C40: Spend on education support staff as a percentage of total expenditure | D40: Guidance | F40: =IFERROR('Optional - input raw data'!F36/'Optional - input raw data'!F23,Calcs!$A$75) -> 7.5% | H40: =IF(OR(H$14="",H$15="",H$16="",H$17="",F40=""),"", IF(F40<=Calcs!E11,Inline, IF(AND(F40>Calcs!E11,F40<=Calcs!G11),Middle20, IF(AND(F40>Calcs!G11,F40<=Calcs!H11),Inline, IF(AND(F40>Calcs!H11,F40<=Calcs!I11),Highest20, IF(F40>Calcs!I11,Highest10,"")))))) -> Broadly in line with similar schools | J40: =IFERROR('Optional - input raw data'!H36/'Optional - input raw data'!H23,Calcs!$A$75) ->  | L40: =IF(OR(L$14="",L$15="",L$16="",L$17="",J40=""),"", IF(J40<=Calcs!M11,Inline, IF(AND(J40>Calcs!M11,J40<=Calcs!O11),Middle20, IF(AND(J40>Calcs!O11,J40<=Calcs!P11),Inline, IF(AND(J40>Calcs!P11,J40<=Calcs!Q11),Highest20, IF(J40>Calcs!Q11,Highest10,"")))))) ->  | N40: =IFERROR('Optional - input raw data'!J36/'Optional - input raw data'!J23,Calcs!$A$75) ->  | P40: =IF(OR(P$14="",P$15="",P$16="",P$17="",N40=""),"", IF(N40<=Calcs!U11,Inline, IF(AND(N40>Calcs!U11,N40<=Calcs!W11),Middle20, IF(AND(N40>Calcs!W11,N40<=Calcs!X11),Inline, IF(AND(N40>Calcs!X11,N40<=Calcs!Y11),Highest20, IF(N40>Calcs!Y11,Highest10,"")))))) ->  | R40: =IFERROR('Optional - input raw data'!L36/'Optional - input raw data'!L23,Calcs!$A$75) ->  | T40: =IF(OR(T$14="",T$15="",T$16="",T$17="",R40=""),"", IF(R40<=Calcs!AC11,Inline, IF(AND(R40>Calcs!AC11,R40<=Calcs!AE11),Middle20, IF(AND(R40>Calcs!AE11,R40<=Calcs!AF11),Inline, IF(AND(R40>Calcs!AF11,R40<=Calcs!AG11),Highest20, IF(R40>Calcs!AG11,Highest10,"")))))) ->  | V40: =IFERROR('Optional - input raw data'!N36/'Optional - input raw data'!N23,"") ->  | X40: =IF(OR(X$14="",X$15="",X$16="",X$17="",V40=""),"", IF(V40<=Calcs!AK11,Inline, IF(AND(V40>Calcs!AK11,V40<=Calcs!AM11),Middle20, IF(AND(V40>Calcs!AM11,V40<=Calcs!AN11),Inline, IF(AND(V40>Calcs!AN11,V40<=Calcs!AO11),Highest20, IF(V40>Calcs!AO11,Highest10,"")))))) ->  | Z40: =IFERROR('Optional - input raw data'!P36/'Optional - input raw data'!P23,"") ->  | AB40: =IF(OR(AB$14="",AB$15="",AB$16="",AB$17="",Z40=""),"", IF(Z40<=Calcs!AS11,Inline, IF(AND(Z40>Calcs!AS11,Z40<=Calcs!AU11),Middle20, IF(AND(Z40>Calcs!AU11,Z40<=Calcs!AV11),Inline, IF(AND(Z40>Calcs!AV11,Z40<=Calcs!AW11),Highest20, IF(Z40>Calcs!AW11,Highest10,"")))))) ->  | AD40: =IFERROR('Optional - input raw data'!R36/'Optional - input raw data'!R23,"") ->  | AF40: =IF(OR(AF$14="",AF$15="",AF$16="",AF$17="",AD40=""),"", IF(AD40<=Calcs!BA11,Inline, IF(AND(AD40>Calcs!BA11,AD40<=Calcs!BC11),Middle20, IF(AND(AD40>Calcs!BC11,AD40<=Calcs!BD11),Inline, IF(AND(AD40>Calcs!BD11,AD40<=Calcs!BE11),Highest20, IF(AD40>Calcs!BE11,Highest10,"")))))) ->  | AH40: =IFERROR('Optional - input raw data'!T36/'Optional - input raw data'!T23,"") ->  | AJ40: =IF(OR(AJ$14="",AJ$15="",AJ$16="",AJ$17="",AH40=""),"", IF(AH40<=Calcs!BI11,Inline, IF(AND(AH40>Calcs!BI11,AH40<=Calcs!BK11),Middle20, IF(AND(AH40>Calcs!BK11,AH40<=Calcs!BL11),Inline, IF(AND(AH40>Calcs!BL11,AH40<=Calcs!BM11),Highest20, IF(AH40>Calcs!BM11,Highest10,"")))))) ->  | AL40: =IFERROR('Optional - input raw data'!V36/'Optional - input raw data'!V23,"") ->  | AN40: =IF(OR(AN$14="",AN$15="",AN$16="",AN$17="",AL40=""),"", IF(AL40<=Calcs!BQ11,Inline, IF(AND(AL40>Calcs!BQ11,AL40<=Calcs!BS11),Middle20, IF(AND(AL40>Calcs!BS11,AL40<=Calcs!BT11),Inline, IF(AND(AL40>Calcs!BT11,AL40<=Calcs!BU11),Highest20, IF(AL40>Calcs!BU11,Highest10,"")))))) ->  | AP40: =IFERROR('Optional - input raw data'!X36/'Optional - input raw data'!X23,"") ->  | AR40: =IF(OR(AR$14="",AR$15="",AR$16="",AR$17="",AP40=""),"", IF(AP40<=Calcs!BY11,Inline, IF(AND(AP40>Calcs!BY11,AP40<=Calcs!CA11),Middle20, IF(AND(AP40>Calcs!CA11,AP40<=Calcs!CB11),Inline, IF(AND(AP40>Calcs!CB11,AP40<=Calcs!CC11),Highest20, IF(AP40>Calcs!CC11,Highest10,"")))))) ->  | AT40: =IFERROR('Optional - input raw data'!Z36/'Optional - input raw data'!Z23,"") ->  | AV40: =IF(OR(AV$14="",AV$15="",AV$16="",AV$17="",AT40=""),"", IF(AT40<=Calcs!CG11,Inline, IF(AND(AT40>Calcs!CG11,AT40<=Calcs!CI11),Middle20, IF(AND(AT40>Calcs!CI11,AT40<=Calcs!CJ11),Inline, IF(AND(AT40>Calcs!CJ11,AT40<=Calcs!CK11),Highest20, IF(AT40>Calcs!CK11,Highest10,"")))))) ->  | AX40: =IFERROR('Optional - input raw data'!AB36/'Optional - input raw data'!AB23,"") ->  | AZ40: =IF(OR(AZ$14="",AZ$15="",AZ$16="",AZ$17="",AX40=""),"", IF(AX40<=Calcs!CO11,Inline, IF(AND(AX40>Calcs!CO11,AX40<=Calcs!CQ11),Middle20, IF(AND(AX40>Calcs!CQ11,AX40<=Calcs!CR11),Inline, IF(AND(AX40>Calcs!CR11,AX40<=Calcs!CS11),Highest20, IF(AX40>Calcs!CS11,Highest10,"")))))) ->  | BB40: =IFERROR('Optional - input raw data'!AD36/'Optional - input raw data'!AD23,"") ->  | BD40: =IF(OR(BD$14="",BD$15="",BD$16="",BD$17="",BB40=""),"", IF(BB40<=Calcs!CW11,Inline, IF(AND(BB40>Calcs!CW11,BB40<=Calcs!CY11),Middle20, IF(AND(BB40>Calcs!CY11,BB40<=Calcs!CZ11),Inline, IF(AND(BB40>Calcs!CZ11,BB40<=Calcs!DA11),Highest20, IF(BB40>Calcs!DA11,Highest10,"")))))) ->  | BF40: =IFERROR('Optional - input raw data'!AF36/'Optional - input raw data'!AF23,"") ->  | BH40: =IF(OR(BH$14="",BH$15="",BH$16="",BH$17="",BF40=""),"", IF(BF40<=Calcs!DE11,Inline, IF(AND(BF40>Calcs!DE11,BF40<=Calcs!DG11),Middle20, IF(AND(BF40>Calcs!DG11,BF40<=Calcs!DH11),Inline, IF(AND(BF40>Calcs!DH11,BF40<=Calcs!DI11),Highest20, IF(BF40>Calcs!DI11,Highest10,"")))))) ->  | BJ40: =IFERROR('Optional - input raw data'!AH36/'Optional - input raw data'!AH23,"") ->  | BL40: =IF(OR(BL$14="",BL$15="",BL$16="",BL$17="",BJ40=""),"", IF(BJ40<=Calcs!DM11,Inline, IF(AND(BJ40>Calcs!DM11,BJ40<=Calcs!DO11),Middle20, IF(AND(BJ40>Calcs!DO11,BJ40<=Calcs!DP11),Inline, IF(AND(BJ40>Calcs!DP11,BJ40<=Calcs!DQ11),Highest20, IF(BJ40>Calcs!DQ11,Highest10,"")))))) ->  | BN40: =IFERROR('Optional - input raw data'!AJ36/'Optional - input raw data'!AJ23,"") ->  | BP40: =IF(OR(BP$14="",BP$15="",BP$16="",BP$17="",BN40=""),"", IF(BN40<=Calcs!DU11,Inline, IF(AND(BN40>Calcs!DU11,BN40<=Calcs!DW11),Middle20, IF(AND(BN40>Calcs!DW11,BN40<=Calcs!DX11),Inline, IF(AND(BN40>Calcs!DX11,BN40<=Calcs!DY11),Highest20, IF(BN40>Calcs!DY11,Highest10,"")))))) ->  | BR40: =IFERROR('Optional - input raw data'!AL36/'Optional - input raw data'!AL23,"") ->  | BT40: =IF(OR(BT$14="",BT$15="",BT$16="",BT$17="",BR40=""),"", IF(BR40<=Calcs!EC11,Inline, IF(AND(BR40>Calcs!EC11,BR40<=Calcs!EE11),Middle20, IF(AND(BR40>Calcs!EE11,BR40<=Calcs!EF11),Inline, IF(AND(BR40>Calcs!EF11,BR40<=Calcs!EG11),Highest20, IF(BR40>Calcs!EG11,Highest10,"")))))) ->  | BV40: =IFERROR('Optional - input raw data'!AN36/'Optional - input raw data'!AN23,"") ->  | BX40: =IF(OR(BX$14="",BX$15="",BX$16="",BX$17="",BV40=""),"", IF(BV40<=Calcs!EK11,Inline, IF(AND(BV40>Calcs!EK11,BV40<=Calcs!EM11),Middle20, IF(AND(BV40>Calcs!EM11,BV40<=Calcs!EN11),Inline, IF(AND(BV40>Calcs!EN11,BV40<=Calcs!EO11),Highest20, IF(BV40>Calcs!EO11,Highest10,"")))))) ->  | BZ40: =IFERROR('Optional - input raw data'!AP36/'Optional - input raw data'!AP23,"") ->  | CB40: =IF(OR(CB$14="",CB$15="",CB$16="",CB$17="",BZ40=""),"", IF(BZ40<=Calcs!ES11,Inline, IF(AND(BZ40>Calcs!ES11,BZ40<=Calcs!EU11),Middle20, IF(AND(BZ40>Calcs!EU11,BZ40<=Calcs!EV11),Inline, IF(AND(BZ40>Calcs!EV11,BZ40<=Calcs!EW11),Highest20, IF(BZ40>Calcs!EW11,Highest10,"")))))) ->  | CD40: =IFERROR('Optional - input raw data'!AR36/'Optional - input raw data'!AR23,Calcs!$A$75) ->  | CF40: =IF(OR(CF$14="",CF$15="",CF$16="",CF$17="",CD40=""),"", IF(CD40<=Calcs!FA11,Inline, IF(AND(CD40>Calcs!FA11,CD40<=Calcs!FC11),Middle20, IF(AND(CD40>Calcs!FC11,CD40<=Calcs!FD11),Inline, IF(AND(CD40>Calcs!FD11,CD40<=Calcs!FE11),Highest20, IF(CD40>Calcs!FE11,Highest10,"")))))) -> 
C41: Spend on administrative and clerical staff as a percentage of total expenditure | D41: Guidance | F41: =IFERROR('Optional - input raw data'!F37/'Optional - input raw data'!F23,Calcs!$A$75) -> 9.9% | H41: =IF(OR(H$14="",H$15="",H$16="",H$17="",F41=""),"", IF(F41<=Calcs!H12,Inline, IF(AND(F41>Calcs!H12,F41<=Calcs!I12),Highest20, IF(F41>Calcs!I12,Highest10,"")))) -> Highest 20% of similar schools | J41: =IFERROR('Optional - input raw data'!H37/'Optional - input raw data'!H23,Calcs!$A$75) ->  | L41: =IF(OR(L$14="",L$15="",L$16="",L$17="",J41=""),"", IF(J41<=Calcs!P12,Inline, IF(AND(J41>Calcs!P12,J41<=Calcs!Q12),Highest20, IF(J41>Calcs!Q12,Highest10,"")))) ->  | N41: =IFERROR('Optional - input raw data'!J37/'Optional - input raw data'!J23,Calcs!$A$75) ->  | P41: =IF(OR(P$14="",P$15="",P$16="",P$17="",N41=""),"", IF(N41<=Calcs!X12,Inline, IF(AND(N41>Calcs!X12,N41<=Calcs!Y12),Highest20, IF(N41>Calcs!Y12,Highest10,"")))) ->  | R41: =IFERROR('Optional - input raw data'!L37/'Optional - input raw data'!L23,Calcs!$A$75) ->  | T41: =IF(OR(T$14="",T$15="",T$16="",T$17="",R41=""),"", IF(R41<=Calcs!AF12,Inline, IF(AND(R41>Calcs!AF12,R41<=Calcs!AG12),Highest20, IF(R41>Calcs!AG12,Highest10,"")))) ->  | V41: =IFERROR('Optional - input raw data'!N37/'Optional - input raw data'!N23,"") ->  | X41: =IF(OR(X$14="",X$15="",X$16="",X$17="",V41=""),"", IF(V41<=Calcs!AN12,Inline, IF(AND(V41>Calcs!AN12,V41<=Calcs!AO12),Highest20, IF(V41>Calcs!AO12,Highest10,"")))) ->  | Z41: =IFERROR('Optional - input raw data'!P37/'Optional - input raw data'!P23,"") ->  | AB41: =IF(OR(AB$14="",AB$15="",AB$16="",AB$17="",Z41=""),"", IF(Z41<=Calcs!AV12,Inline, IF(AND(Z41>Calcs!AV12,Z41<=Calcs!AW12),Highest20, IF(Z41>Calcs!AW12,Highest10,"")))) ->  | AD41: =IFERROR('Optional - input raw data'!R37/'Optional - input raw data'!R23,"") ->  | AF41: =IF(OR(AF$14="",AF$15="",AF$16="",AF$17="",AD41=""),"", IF(AD41<=Calcs!BD12,Inline, IF(AND(AD41>Calcs!BD12,AD41<=Calcs!BE12),Highest20, IF(AD41>Calcs!BE12,Highest10,"")))) ->  | AH41: =IFERROR('Optional - input raw data'!T37/'Optional - input raw data'!T23,"") ->  | AJ41: =IF(OR(AJ$14="",AJ$15="",AJ$16="",AJ$17="",AH41=""),"", IF(AH41<=Calcs!BL12,Inline, IF(AND(AH41>Calcs!BL12,AH41<=Calcs!BM12),Highest20, IF(AH41>Calcs!BM12,Highest10,"")))) ->  | AL41: =IFERROR('Optional - input raw data'!V37/'Optional - input raw data'!V23,"") ->  | AN41: =IF(OR(AN$14="",AN$15="",AN$16="",AN$17="",AL41=""),"", IF(AL41<=Calcs!BT12,Inline, IF(AND(AL41>Calcs!BT12,AL41<=Calcs!BU12),Highest20, IF(AL41>Calcs!BU12,Highest10,"")))) ->  | AP41: =IFERROR('Optional - input raw data'!X37/'Optional - input raw data'!X23,"") ->  | AR41: =IF(OR(AR$14="",AR$15="",AR$16="",AR$17="",AP41=""),"", IF(AP41<=Calcs!CB12,Inline, IF(AND(AP41>Calcs!CB12,AP41<=Calcs!CC12),Highest20, IF(AP41>Calcs!CC12,Highest10,"")))) ->  | AT41: =IFERROR('Optional - input raw data'!Z37/'Optional - input raw data'!Z23,"") ->  | AV41: =IF(OR(AV$14="",AV$15="",AV$16="",AV$17="",AT41=""),"", IF(AT41<=Calcs!CJ12,Inline, IF(AND(AT41>Calcs!CJ12,AT41<=Calcs!CK12),Highest20, IF(AT41>Calcs!CK12,Highest10,"")))) ->  | AX41: =IFERROR('Optional - input raw data'!AB37/'Optional - input raw data'!AB23,"") ->  | AZ41: =IF(OR(AZ$14="",AZ$15="",AZ$16="",AZ$17="",AX41=""),"", IF(AX41<=Calcs!CR12,Inline, IF(AND(AX41>Calcs!CR12,AX41<=Calcs!CS12),Highest20, IF(AX41>Calcs!CS12,Highest10,"")))) ->  | BB41: =IFERROR('Optional - input raw data'!AD37/'Optional - input raw data'!AD23,"") ->  | BD41: =IF(OR(BD$14="",BD$15="",BD$16="",BD$17="",BB41=""),"", IF(BB41<=Calcs!CZ12,Inline, IF(AND(BB41>Calcs!CZ12,BB41<=Calcs!DA12),Highest20, IF(BB41>Calcs!DA12,Highest10,"")))) ->  | BF41: =IFERROR('Optional - input raw data'!AF37/'Optional - input raw data'!AF23,"") ->  | BH41: =IF(OR(BH$14="",BH$15="",BH$16="",BH$17="",BF41=""),"", IF(BF41<=Calcs!DH12,Inline, IF(AND(BF41>Calcs!DH12,BF41<=Calcs!DI12),Highest20, IF(BF41>Calcs!DI12,Highest10,"")))) ->  | BJ41: =IFERROR('Optional - input raw data'!AH37/'Optional - input raw data'!AH23,"") ->  | BL41: =IF(OR(BL$14="",BL$15="",BL$16="",BL$17="",BJ41=""),"", IF(BJ41<=Calcs!DP12,Inline, IF(AND(BJ41>Calcs!DP12,BJ41<=Calcs!DQ12),Highest20, IF(BJ41>Calcs!DQ12,Highest10,"")))) ->  | BN41: =IFERROR('Optional - input raw data'!AJ37/'Optional - input raw data'!AJ23,"") ->  | BP41: =IF(OR(BP$14="",BP$15="",BP$16="",BP$17="",BN41=""),"", IF(BN41<=Calcs!DX12,Inline, IF(AND(BN41>Calcs!DX12,BN41<=Calcs!DY12),Highest20, IF(BN41>Calcs!DY12,Highest10,"")))) ->  | BR41: =IFERROR('Optional - input raw data'!AL37/'Optional - input raw data'!AL23,"") ->  | BT41: =IF(OR(BT$14="",BT$15="",BT$16="",BT$17="",BR41=""),"", IF(BR41<=Calcs!EF12,Inline, IF(AND(BR41>Calcs!EF12,BR41<=Calcs!EG12),Highest20, IF(BR41>Calcs!EG12,Highest10,"")))) ->  | BV41: =IFERROR('Optional - input raw data'!AN37/'Optional - input raw data'!AN23,"") ->  | BX41: =IF(OR(BX$14="",BX$15="",BX$16="",BX$17="",BV41=""),"", IF(BV41<=Calcs!EN12,Inline, IF(AND(BV41>Calcs!EN12,BV41<=Calcs!EO12),Highest20, IF(BV41>Calcs!EO12,Highest10,"")))) ->  | BZ41: =IFERROR('Optional - input raw data'!AP37/'Optional - input raw data'!AP23,"") ->  | CB41: =IF(OR(CB$14="",CB$15="",CB$16="",CB$17="",BZ41=""),"", IF(BZ41<=Calcs!EV12,Inline, IF(AND(BZ41>Calcs!EV12,BZ41<=Calcs!EW12),Highest20, IF(BZ41>Calcs!EW12,Highest10,"")))) ->  | CD41: =IFERROR('Optional - input raw data'!AR37/'Optional - input raw data'!AR23,Calcs!$A$75) ->  | CF41: =IF(OR(CF$14="",CF$15="",CF$16="",CF$17="",CD41=""),"", IF(CD41<=Calcs!FD12,Inline, IF(AND(CD41>Calcs!FD12,CD41<=Calcs!FE12),Highest20, IF(CD41>Calcs!FE12,Highest10,"")))) -> 
C42: Spend on other staff costs as a percentage of total expenditure | D42: Guidance | F42: =IFERROR(SUM('Optional - input raw data'!F40,'Optional - input raw data'!F41,'Optional - input raw data'!F42,'Optional - input raw data'!F44)/'Optional - input raw data'!F23,Calcs!$A$75) -> 3.6% | H42: =IF(OR(H$14="",H$15="",H$16="",H$17="",F42=""),"", IF(F42<=Calcs!H13,Inline, IF(AND(F42>Calcs!H13,F42<=Calcs!I13),Highest20, IF(F42>Calcs!I13,Highest10,"")))) -> Highest 20% of similar schools | J42: =IFERROR(SUM('Optional - input raw data'!H40,'Optional - input raw data'!H41,'Optional - input raw data'!H42,'Optional - input raw data'!H44)/'Optional - input raw data'!H23,Calcs!$A$75) ->  | L42: =IF(OR(L$14="",L$15="",L$16="",L$17="",J42=""),"", IF(J42<=Calcs!P13,Inline, IF(AND(J42>Calcs!P13,J42<=Calcs!Q13),Highest20, IF(J42>Calcs!Q13,Highest10,"")))) ->  | N42: =IFERROR(SUM('Optional - input raw data'!J40,'Optional - input raw data'!J41,'Optional - input raw data'!J42,'Optional - input raw data'!J44)/'Optional - input raw data'!J23,Calcs!$A$75) ->  | P42: =IF(OR(P$14="",P$15="",P$16="",P$17="",N42=""),"", IF(N42<=Calcs!X13,Inline, IF(AND(N42>Calcs!X13,N42<=Calcs!Y13),Highest20, IF(N42>Calcs!Y13,Highest10,"")))) ->  | R42: =IFERROR(SUM('Optional - input raw data'!L40,'Optional - input raw data'!L41,'Optional - input raw data'!L42,'Optional - input raw data'!L44)/'Optional - input raw data'!L23,Calcs!$A$75) ->  | T42: =IF(OR(T$14="",T$15="",T$16="",T$17="",R42=""),"", IF(R42<=Calcs!AF13,Inline, IF(AND(R42>Calcs!AF13,R42<=Calcs!AG13),Highest20, IF(R42>Calcs!AG13,Highest10,"")))) ->  | V42: =IFERROR(SUM('Optional - input raw data'!N40,'Optional - input raw data'!N41,'Optional - input raw data'!N42,'Optional - input raw data'!N44)/'Optional - input raw data'!N23,"") ->  | X42: =IF(OR(X$14="",X$15="",X$16="",X$17="",V42=""),"", IF(V42<=Calcs!AN13,Inline, IF(AND(V42>Calcs!AN13,V42<=Calcs!AO13),Highest20, IF(V42>Calcs!AO13,Highest10,"")))) ->  | Z42: =IFERROR(SUM('Optional - input raw data'!P40,'Optional - input raw data'!P41,'Optional - input raw data'!P42,'Optional - input raw data'!P44)/'Optional - input raw data'!P23,"") ->  | AB42: =IF(OR(AB$14="",AB$15="",AB$16="",AB$17="",Z42=""),"", IF(Z42<=Calcs!AV13,Inline, IF(AND(Z42>Calcs!AV13,Z42<=Calcs!AW13),Highest20, IF(Z42>Calcs!AW13,Highest10,"")))) ->  | AD42: =IFERROR(SUM('Optional - input raw data'!R40,'Optional - input raw data'!R41,'Optional - input raw data'!R42,'Optional - input raw data'!R44)/'Optional - input raw data'!R23,"") ->  | AF42: =IF(OR(AF$14="",AF$15="",AF$16="",AF$17="",AD42=""),"", IF(AD42<=Calcs!BD13,Inline, IF(AND(AD42>Calcs!BD13,AD42<=Calcs!BE13),Highest20, IF(AD42>Calcs!BE13,Highest10,"")))) ->  | AH42: =IFERROR(SUM('Optional - input raw data'!T40,'Optional - input raw data'!T41,'Optional - input raw data'!T42,'Optional - input raw data'!T44)/'Optional - input raw data'!T23,"") ->  | AJ42: =IF(OR(AJ$14="",AJ$15="",AJ$16="",AJ$17="",AH42=""),"", IF(AH42<=Calcs!BL13,Inline, IF(AND(AH42>Calcs!BL13,AH42<=Calcs!BM13),Highest20, IF(AH42>Calcs!BM13,Highest10,"")))) ->  | AL42: =IFERROR(SUM('Optional - input raw data'!V40,'Optional - input raw data'!V41,'Optional - input raw data'!V42,'Optional - input raw data'!V44)/'Optional - input raw data'!V23,"") ->  | AN42: =IF(OR(AN$14="",AN$15="",AN$16="",AN$17="",AL42=""),"", IF(AL42<=Calcs!BT13,Inline, IF(AND(AL42>Calcs!BT13,AL42<=Calcs!BU13),Highest20, IF(AL42>Calcs!BU13,Highest10,"")))) ->  | AP42: =IFERROR(SUM('Optional - input raw data'!X40,'Optional - input raw data'!X41,'Optional - input raw data'!X42,'Optional - input raw data'!X44)/'Optional - input raw data'!X23,"") ->  | AR42: =IF(OR(AR$14="",AR$15="",AR$16="",AR$17="",AP42=""),"", IF(AP42<=Calcs!CB13,Inline, IF(AND(AP42>Calcs!CB13,AP42<=Calcs!CC13),Highest20, IF(AP42>Calcs!CC13,Highest10,"")))) ->  | AT42: =IFERROR(SUM('Optional - input raw data'!Z40,'Optional - input raw data'!Z41,'Optional - input raw data'!Z42,'Optional - input raw data'!Z44)/'Optional - input raw data'!Z23,"") ->  | AV42: =IF(OR(AV$14="",AV$15="",AV$16="",AV$17="",AT42=""),"", IF(AT42<=Calcs!CJ13,Inline, IF(AND(AT42>Calcs!CJ13,AT42<=Calcs!CK13),Highest20, IF(AT42>Calcs!CK13,Highest10,"")))) ->  | AX42: =IFERROR(SUM('Optional - input raw data'!AB40,'Optional - input raw data'!AB41,'Optional - input raw data'!AB42,'Optional - input raw data'!AB44)/'Optional - input raw data'!AB23,"") ->  | AZ42: =IF(OR(AZ$14="",AZ$15="",AZ$16="",AZ$17="",AX42=""),"", IF(AX42<=Calcs!CR13,Inline, IF(AND(AX42>Calcs!CR13,AX42<=Calcs!CS13),Highest20, IF(AX42>Calcs!CS13,Highest10,"")))) ->  | BB42: =IFERROR(SUM('Optional - input raw data'!AD40,'Optional - input raw data'!AD41,'Optional - input raw data'!AD42,'Optional - input raw data'!AD44)/'Optional - input raw data'!AD23,"") ->  | BD42: =IF(OR(BD$14="",BD$15="",BD$16="",BD$17="",BB42=""),"", IF(BB42<=Calcs!CZ13,Inline, IF(AND(BB42>Calcs!CZ13,BB42<=Calcs!DA13),Highest20, IF(BB42>Calcs!DA13,Highest10,"")))) ->  | BF42: =IFERROR(SUM('Optional - input raw data'!AF40,'Optional - input raw data'!AF41,'Optional - input raw data'!AF42,'Optional - input raw data'!AF44)/'Optional - input raw data'!AF23,"") ->  | BH42: =IF(OR(BH$14="",BH$15="",BH$16="",BH$17="",BF42=""),"", IF(BF42<=Calcs!DH13,Inline, IF(AND(BF42>Calcs!DH13,BF42<=Calcs!DI13),Highest20, IF(BF42>Calcs!DI13,Highest10,"")))) ->  | BJ42: =IFERROR(SUM('Optional - input raw data'!AH40,'Optional - input raw data'!AH41,'Optional - input raw data'!AH42,'Optional - input raw data'!AH44)/'Optional - input raw data'!AH23,"") ->  | BL42: =IF(OR(BL$14="",BL$15="",BL$16="",BL$17="",BJ42=""),"", IF(BJ42<=Calcs!DP13,Inline, IF(AND(BJ42>Calcs!DP13,BJ42<=Calcs!DQ13),Highest20, IF(BJ42>Calcs!DQ13,Highest10,"")))) ->  | BN42: =IFERROR(SUM('Optional - input raw data'!AJ40,'Optional - input raw data'!AJ41,'Optional - input raw data'!AJ42,'Optional - input raw data'!AJ44)/'Optional - input raw data'!AJ23,"") ->  | BP42: =IF(OR(BP$14="",BP$15="",BP$16="",BP$17="",BN42=""),"", IF(BN42<=Calcs!DX13,Inline, IF(AND(BN42>Calcs!DX13,BN42<=Calcs!DY13),Highest20, IF(BN42>Calcs!DY13,Highest10,"")))) ->  | BR42: =IFERROR(SUM('Optional - input raw data'!AL40,'Optional - input raw data'!AL41,'Optional - input raw data'!AL42,'Optional - input raw data'!AL44)/'Optional - input raw data'!AL23,"") ->  | BT42: =IF(OR(BT$14="",BT$15="",BT$16="",BT$17="",BR42=""),"", IF(BR42<=Calcs!EF13,Inline, IF(AND(BR42>Calcs!EF13,BR42<=Calcs!EG13),Highest20, IF(BR42>Calcs!EG13,Highest10,"")))) ->  | BV42: =IFERROR(SUM('Optional - input raw data'!AN40,'Optional - input raw data'!AN41,'Optional - input raw data'!AN42,'Optional - input raw data'!AN44)/'Optional - input raw data'!AN23,"") ->  | BX42: =IF(OR(BX$14="",BX$15="",BX$16="",BX$17="",BV42=""),"", IF(BV42<=Calcs!EN13,Inline, IF(AND(BV42>Calcs!EN13,BV42<=Calcs!EO13),Highest20, IF(BV42>Calcs!EO13,Highest10,"")))) ->  | BZ42: =IFERROR(SUM('Optional - input raw data'!AP40,'Optional - input raw data'!AP41,'Optional - input raw data'!AP42,'Optional - input raw data'!AP44)/'Optional - input raw data'!AP23,"") ->  | CB42: =IF(OR(CB$14="",CB$15="",CB$16="",CB$17="",BZ42=""),"", IF(BZ42<=Calcs!EV13,Inline, IF(AND(BZ42>Calcs!EV13,BZ42<=Calcs!EW13),Highest20, IF(BZ42>Calcs!EW13,Highest10,"")))) ->  | CD42: =IFERROR(SUM('Optional - input raw data'!AR40,'Optional - input raw data'!AR41,'Optional - input raw data'!AR42,'Optional - input raw data'!AR44)/'Optional - input raw data'!AR23,Calcs!$A$75) ->  | CF42: =IF(OR(CF$14="",CF$15="",CF$16="",CF$17="",CD42=""),"", IF(CD42<=Calcs!FD13,Inline, IF(AND(CD42>Calcs!FD13,CD42<=Calcs!FE13),Highest20, IF(CD42>Calcs!FE13,Highest10,"")))) -> 
C43: Spend on premises (including staff costs) as a percentage of total expenditure | D43: Guidance | F43: =IFERROR(SUM('Optional - input raw data'!F38,'Optional - input raw data'!F45,'Optional - input raw data'!F46,'Optional - input raw data'!F50,'Optional - input raw data'!F65)/'Optional - input raw data'!F23,Calcs!$A$75) -> 5.5% | H43: =IF(OR(H$14="",H$15="",H$16="",H$17="",F43=""),"", IF(F43<=Calcs!H14,Inline, IF(AND(F43>Calcs!H14,F43<=Calcs!I14),Highest20, IF(F43>Calcs!I14,Highest10,"")))) -> Broadly in line with similar schools | J43: =IFERROR(SUM('Optional - input raw data'!H38,'Optional - input raw data'!H45,'Optional - input raw data'!H46,'Optional - input raw data'!H50,'Optional - input raw data'!H65)/'Optional - input raw data'!H23,Calcs!$A$75) ->  | L43: =IF(OR(L$14="",L$15="",L$16="",L$17="",J43=""),"", IF(J43<=Calcs!P14,Inline, IF(AND(J43>Calcs!P14,J43<=Calcs!Q14),Highest20, IF(J43>Calcs!Q14,Highest10,"")))) ->  | N43: =IFERROR(SUM('Optional - input raw data'!J38,'Optional - input raw data'!J45,'Optional - input raw data'!J46,'Optional - input raw data'!J50,'Optional - input raw data'!J65)/'Optional - input raw data'!J23,Calcs!$A$75) ->  | P43: =IF(OR(P$14="",P$15="",P$16="",P$17="",N43=""),"", IF(N43<=Calcs!X14,Inline, IF(AND(N43>Calcs!X14,N43<=Calcs!Y14),Highest20, IF(N43>Calcs!Y14,Highest10,"")))) ->  | R43: =IFERROR(SUM('Optional - input raw data'!L38,'Optional - input raw data'!L45,'Optional - input raw data'!L46,'Optional - input raw data'!L50,'Optional - input raw data'!L65)/'Optional - input raw data'!L23,Calcs!$A$75) ->  | T43: =IF(OR(T$14="",T$15="",T$16="",T$17="",R43=""),"", IF(R43<=Calcs!AF14,Inline, IF(AND(R43>Calcs!AF14,R43<=Calcs!AG14),Highest20, IF(R43>Calcs!AG14,Highest10,"")))) ->  | V43: =IFERROR(SUM('Optional - input raw data'!N38,'Optional - input raw data'!N45,'Optional - input raw data'!N46,'Optional - input raw data'!N50,'Optional - input raw data'!N65)/'Optional - input raw data'!N23,"") ->  | X43: =IF(OR(X$14="",X$15="",X$16="",X$17="",V43=""),"", IF(V43<=Calcs!AN14,Inline, IF(AND(V43>Calcs!AN14,V43<=Calcs!AO14),Highest20, IF(V43>Calcs!AO14,Highest10,"")))) ->  | Z43: =IFERROR(SUM('Optional - input raw data'!P38,'Optional - input raw data'!P45,'Optional - input raw data'!P46,'Optional - input raw data'!P50,'Optional - input raw data'!P65)/'Optional - input raw data'!P23,"") ->  | AB43: =IF(OR(AB$14="",AB$15="",AB$16="",AB$17="",Z43=""),"", IF(Z43<=Calcs!AV14,Inline, IF(AND(Z43>Calcs!AV14,Z43<=Calcs!AW14),Highest20, IF(Z43>Calcs!AW14,Highest10,"")))) ->  | AD43: =IFERROR(SUM('Optional - input raw data'!R38,'Optional - input raw data'!R45,'Optional - input raw data'!R46,'Optional - input raw data'!R50,'Optional - input raw data'!R65)/'Optional - input raw data'!R23,"") ->  | AF43: =IF(OR(AF$14="",AF$15="",AF$16="",AF$17="",AD43=""),"", IF(AD43<=Calcs!BD14,Inline, IF(AND(AD43>Calcs!BD14,AD43<=Calcs!BE14),Highest20, IF(AD43>Calcs!BE14,Highest10,"")))) ->  | AH43: =IFERROR(SUM('Optional - input raw data'!T38,'Optional - input raw data'!T45,'Optional - input raw data'!T46,'Optional - input raw data'!T50,'Optional - input raw data'!T65)/'Optional - input raw data'!T23,"") ->  | AJ43: =IF(OR(AJ$14="",AJ$15="",AJ$16="",AJ$17="",AH43=""),"", IF(AH43<=Calcs!BL14,Inline, IF(AND(AH43>Calcs!BL14,AH43<=Calcs!BM14),Highest20, IF(AH43>Calcs!BM14,Highest10,"")))) ->  | AL43: =IFERROR(SUM('Optional - input raw data'!V38,'Optional - input raw data'!V45,'Optional - input raw data'!V46,'Optional - input raw data'!V50,'Optional - input raw data'!V65)/'Optional - input raw data'!V23,"") ->  | AN43: =IF(OR(AN$14="",AN$15="",AN$16="",AN$17="",AL43=""),"", IF(AL43<=Calcs!BT14,Inline, IF(AND(AL43>Calcs!BT14,AL43<=Calcs!BU14),Highest20, IF(AL43>Calcs!BU14,Highest10,"")))) ->  | AP43: =IFERROR(SUM('Optional - input raw data'!X38,'Optional - input raw data'!X45,'Optional - input raw data'!X46,'Optional - input raw data'!X50,'Optional - input raw data'!X65)/'Optional - input raw data'!X23,"") ->  | AR43: =IF(OR(AR$14="",AR$15="",AR$16="",AR$17="",AP43=""),"", IF(AP43<=Calcs!CB14,Inline, IF(AND(AP43>Calcs!CB14,AP43<=Calcs!CC14),Highest20, IF(AP43>Calcs!CC14,Highest10,"")))) ->  | AT43: =IFERROR(SUM('Optional - input raw data'!Z38,'Optional - input raw data'!Z45,'Optional - input raw data'!Z46,'Optional - input raw data'!Z50,'Optional - input raw data'!Z65)/'Optional - input raw data'!Z23,"") ->  | AV43: =IF(OR(AV$14="",AV$15="",AV$16="",AV$17="",AT43=""),"", IF(AT43<=Calcs!CJ14,Inline, IF(AND(AT43>Calcs!CJ14,AT43<=Calcs!CK14),Highest20, IF(AT43>Calcs!CK14,Highest10,"")))) ->  | AX43: =IFERROR(SUM('Optional - input raw data'!AB38,'Optional - input raw data'!AB45,'Optional - input raw data'!AB46,'Optional - input raw data'!AB50,'Optional - input raw data'!AB65)/'Optional - input raw data'!AB23,"") ->  | AZ43: =IF(OR(AZ$14="",AZ$15="",AZ$16="",AZ$17="",AX43=""),"", IF(AX43<=Calcs!CR14,Inline, IF(AND(AX43>Calcs!CR14,AX43<=Calcs!CS14),Highest20, IF(AX43>Calcs!CS14,Highest10,"")))) ->  | BB43: =IFERROR(SUM('Optional - input raw data'!AD38,'Optional - input raw data'!AD45,'Optional - input raw data'!AD46,'Optional - input raw data'!AD50,'Optional - input raw data'!AD65)/'Optional - input raw data'!AD23,"") ->  | BD43: =IF(OR(BD$14="",BD$15="",BD$16="",BD$17="",BB43=""),"", IF(BB43<=Calcs!CZ14,Inline, IF(AND(BB43>Calcs!CZ14,BB43<=Calcs!DA14),Highest20, IF(BB43>Calcs!DA14,Highest10,"")))) ->  | BF43: =IFERROR(SUM('Optional - input raw data'!AF38,'Optional - input raw data'!AF45,'Optional - input raw data'!AF46,'Optional - input raw data'!AF50,'Optional - input raw data'!AF65)/'Optional - input raw data'!AF23,"") ->  | BH43: =IF(OR(BH$14="",BH$15="",BH$16="",BH$17="",BF43=""),"", IF(BF43<=Calcs!DH14,Inline, IF(AND(BF43>Calcs!DH14,BF43<=Calcs!DI14),Highest20, IF(BF43>Calcs!DI14,Highest10,"")))) ->  | BJ43: =IFERROR(SUM('Optional - input raw data'!AH38,'Optional - input raw data'!AH45,'Optional - input raw data'!AH46,'Optional - input raw data'!AH50,'Optional - input raw data'!AH65)/'Optional - input raw data'!AH23,"") ->  | BL43: =IF(OR(BL$14="",BL$15="",BL$16="",BL$17="",BJ43=""),"", IF(BJ43<=Calcs!DP14,Inline, IF(AND(BJ43>Calcs!DP14,BJ43<=Calcs!DQ14),Highest20, IF(BJ43>Calcs!DQ14,Highest10,"")))) ->  | BN43: =IFERROR(SUM('Optional - input raw data'!AJ38,'Optional - input raw data'!AJ45,'Optional - input raw data'!AJ46,'Optional - input raw data'!AJ50,'Optional - input raw data'!AJ65)/'Optional - input raw data'!AJ23,"") ->  | BP43: =IF(OR(BP$14="",BP$15="",BP$16="",BP$17="",BN43=""),"", IF(BN43<=Calcs!DX14,Inline, IF(AND(BN43>Calcs!DX14,BN43<=Calcs!DY14),Highest20, IF(BN43>Calcs!DY14,Highest10,"")))) ->  | BR43: =IFERROR(SUM('Optional - input raw data'!AL38,'Optional - input raw data'!AL45,'Optional - input raw data'!AL46,'Optional - input raw data'!AL50,'Optional - input raw data'!AL65)/'Optional - input raw data'!AL23,"") ->  | BT43: =IF(OR(BT$14="",BT$15="",BT$16="",BT$17="",BR43=""),"", IF(BR43<=Calcs!EF14,Inline, IF(AND(BR43>Calcs!EF14,BR43<=Calcs!EG14),Highest20, IF(BR43>Calcs!EG14,Highest10,"")))) ->  | BV43: =IFERROR(SUM('Optional - input raw data'!AN38,'Optional - input raw data'!AN45,'Optional - input raw data'!AN46,'Optional - input raw data'!AN50,'Optional - input raw data'!AN65)/'Optional - input raw data'!AN23,"") ->  | BX43: =IF(OR(BX$14="",BX$15="",BX$16="",BX$17="",BV43=""),"", IF(BV43<=Calcs!EN14,Inline, IF(AND(BV43>Calcs!EN14,BV43<=Calcs!EO14),Highest20, IF(BV43>Calcs!EO14,Highest10,"")))) ->  | BZ43: =IFERROR(SUM('Optional - input raw data'!AP38,'Optional - input raw data'!AP45,'Optional - input raw data'!AP46,'Optional - input raw data'!AP50,'Optional - input raw data'!AP65)/'Optional - input raw data'!AP23,"") ->  | CB43: =IF(OR(CB$14="",CB$15="",CB$16="",CB$17="",BZ43=""),"", IF(BZ43<=Calcs!EV14,Inline, IF(AND(BZ43>Calcs!EV14,BZ43<=Calcs!EW14),Highest20, IF(BZ43>Calcs!EW14,Highest10,"")))) ->  | CD43: =IFERROR(SUM('Optional - input raw data'!AR38,'Optional - input raw data'!AR45,'Optional - input raw data'!AR46,'Optional - input raw data'!AR50,'Optional - input raw data'!AR65)/'Optional - input raw data'!AR23,Calcs!$A$75) ->  | CF43: =IF(OR(CF$14="",CF$15="",CF$16="",CF$17="",CD43=""),"", IF(CD43<=Calcs!FD14,Inline, IF(AND(CD43>Calcs!FD14,CD43<=Calcs!FE14),Highest20, IF(CD43>Calcs!FE14,Highest10,"")))) -> 
C44: Spend on teaching resources as a percentage of total expenditure | D44: Guidance | F44: =IFERROR(SUM('Optional - input raw data'!F53,'Optional - input raw data'!F54,'Optional - input raw data'!F55)/'Optional - input raw data'!F23,Calcs!$A$75) -> 5.0% | H44: =IF(OR(H$14="",H$15="",H$16="",H$17="",F44=""),"", IF(F44<=Calcs!C15,Lowest10, IF(AND(F44>Calcs!C15,F44<=Calcs!D15),Lowest20, IF(AND(F44>Calcs!D15,F44<=Calcs!E15),Inline, IF(AND(F44>Calcs!E15,F44<=Calcs!G15),Middle20, IF(F44>Calcs!G15,Inline,"")))))) -> Lowest 20% of similar schools | J44: =IFERROR(SUM('Optional - input raw data'!H53,'Optional - input raw data'!H54,'Optional - input raw data'!H55)/'Optional - input raw data'!H23,Calcs!$A$75) ->  | L44: =IF(OR(L$14="",L$15="",L$16="",L$17="",J44=""),"", IF(J44<=Calcs!K15,Lowest10, IF(AND(J44>Calcs!K15,J44<=Calcs!L15),Lowest20, IF(AND(J44>Calcs!L15,J44<=Calcs!M15),Inline, IF(AND(J44>Calcs!M15,J44<=Calcs!O15),Middle20, IF(J44>Calcs!O15,Inline,"")))))) ->  | N44: =IFERROR(SUM('Optional - input raw data'!J53,'Optional - input raw data'!J54,'Optional - input raw data'!J55)/'Optional - input raw data'!J23,Calcs!$A$75) ->  | P44: =IF(OR(P$14="",P$15="",P$16="",P$17="",N44=""),"", IF(N44<=Calcs!S15,Lowest10, IF(AND(N44>Calcs!S15,N44<=Calcs!T15),Lowest20, IF(AND(N44>Calcs!T15,N44<=Calcs!U15),Inline, IF(AND(N44>Calcs!U15,N44<=Calcs!W15),Middle20, IF(N44>Calcs!W15,Inline,"")))))) ->  | R44: =IFERROR(SUM('Optional - input raw data'!L53,'Optional - input raw data'!L54,'Optional - input raw data'!L55)/'Optional - input raw data'!L23,Calcs!$A$75) ->  | T44: =IF(OR(T$14="",T$15="",T$16="",T$17="",R44=""),"", IF(R44<=Calcs!AA15,Lowest10, IF(AND(R44>Calcs!AA15,R44<=Calcs!AB15),Lowest20, IF(AND(R44>Calcs!AB15,R44<=Calcs!AC15),Inline, IF(AND(R44>Calcs!AC15,R44<=Calcs!AE15),Middle20, IF(R44>Calcs!AE15,Inline,"")))))) ->  | V44: =IFERROR(SUM('Optional - input raw data'!N53,'Optional - input raw data'!N54,'Optional - input raw data'!N55)/'Optional - input raw data'!N23,"") ->  | X44: =IF(OR(X$14="",X$15="",X$16="",X$17="",V44=""),"", IF(V44<=Calcs!AI15,Lowest10, IF(AND(V44>Calcs!AI15,V44<=Calcs!AJ15),Lowest20, IF(AND(V44>Calcs!AJ15,V44<=Calcs!AK15),Inline, IF(AND(V44>Calcs!AK15,V44<=Calcs!AM15),Middle20, IF(V44>Calcs!AM15,Inline,"")))))) ->  | Z44: =IFERROR(SUM('Optional - input raw data'!P53,'Optional - input raw data'!P54,'Optional - input raw data'!P55)/'Optional - input raw data'!P23,"") ->  | AB44: =IF(OR(AB$14="",AB$15="",AB$16="",AB$17="",Z44=""),"", IF(Z44<=Calcs!AQ15,Lowest10, IF(AND(Z44>Calcs!AQ15,Z44<=Calcs!AR15),Lowest20, IF(AND(Z44>Calcs!AR15,Z44<=Calcs!AS15),Inline, IF(AND(Z44>Calcs!AS15,Z44<=Calcs!AU15),Middle20, IF(Z44>Calcs!AU15,Inline,"")))))) ->  | AD44: =IFERROR(SUM('Optional - input raw data'!R53,'Optional - input raw data'!R54,'Optional - input raw data'!R55)/'Optional - input raw data'!R23,"") ->  | AF44: =IF(OR(AF$14="",AF$15="",AF$16="",AF$17="",AD44=""),"", IF(AD44<=Calcs!AY15,Lowest10, IF(AND(AD44>Calcs!AY15,AD44<=Calcs!AZ15),Lowest20, IF(AND(AD44>Calcs!AZ15,AD44<=Calcs!BA15),Inline, IF(AND(AD44>Calcs!BA15,AD44<=Calcs!BC15),Middle20, IF(AD44>Calcs!BC15,Inline,"")))))) ->  | AH44: =IFERROR(SUM('Optional - input raw data'!T53,'Optional - input raw data'!T54,'Optional - input raw data'!T55)/'Optional - input raw data'!T23,"") ->  | AJ44: =IF(OR(AJ$14="",AJ$15="",AJ$16="",AJ$17="",AH44=""),"", IF(AH44<=Calcs!BG15,Lowest10, IF(AND(AH44>Calcs!BG15,AH44<=Calcs!BH15),Lowest20, IF(AND(AH44>Calcs!BH15,AH44<=Calcs!BI15),Inline, IF(AND(AH44>Calcs!BI15,AH44<=Calcs!BK15),Middle20, IF(AH44>Calcs!BK15,Inline,"")))))) ->  | AL44: =IFERROR(SUM('Optional - input raw data'!V53,'Optional - input raw data'!V54,'Optional - input raw data'!V55)/'Optional - input raw data'!V23,"") ->  | AN44: =IF(OR(AN$14="",AN$15="",AN$16="",AN$17="",AL44=""),"", IF(AL44<=Calcs!BO15,Lowest10, IF(AND(AL44>Calcs!BO15,AL44<=Calcs!BP15),Lowest20, IF(AND(AL44>Calcs!BP15,AL44<=Calcs!BQ15),Inline, IF(AND(AL44>Calcs!BQ15,AL44<=Calcs!BS15),Middle20, IF(AL44>Calcs!BS15,Inline,"")))))) ->  | AP44: =IFERROR(SUM('Optional - input raw data'!X53,'Optional - input raw data'!X54,'Optional - input raw data'!X55)/'Optional - input raw data'!X23,"") ->  | AR44: =IF(OR(AR$14="",AR$15="",AR$16="",AR$17="",AP44=""),"", IF(AP44<=Calcs!BW15,Lowest10, IF(AND(AP44>Calcs!BW15,AP44<=Calcs!BX15),Lowest20, IF(AND(AP44>Calcs!BX15,AP44<=Calcs!BY15),Inline, IF(AND(AP44>Calcs!BY15,AP44<=Calcs!CA15),Middle20, IF(AP44>Calcs!CA15,Inline,"")))))) ->  | AT44: =IFERROR(SUM('Optional - input raw data'!Z53,'Optional - input raw data'!Z54,'Optional - input raw data'!Z55)/'Optional - input raw data'!Z23,"") ->  | AV44: =IF(OR(AV$14="",AV$15="",AV$16="",AV$17="",AT44=""),"", IF(AT44<=Calcs!CE15,Lowest10, IF(AND(AT44>Calcs!CE15,AT44<=Calcs!CF15),Lowest20, IF(AND(AT44>Calcs!CF15,AT44<=Calcs!CG15),Inline, IF(AND(AT44>Calcs!CG15,AT44<=Calcs!CI15),Middle20, IF(AT44>Calcs!CI15,Inline,"")))))) ->  | AX44: =IFERROR(SUM('Optional - input raw data'!AB53,'Optional - input raw data'!AB54,'Optional - input raw data'!AB55)/'Optional - input raw data'!AB23,"") ->  | AZ44: =IF(OR(AZ$14="",AZ$15="",AZ$16="",AZ$17="",AX44=""),"", IF(AX44<=Calcs!CM15,Lowest10, IF(AND(AX44>Calcs!CM15,AX44<=Calcs!CN15),Lowest20, IF(AND(AX44>Calcs!CN15,AX44<=Calcs!CO15),Inline, IF(AND(AX44>Calcs!CO15,AX44<=Calcs!CQ15),Middle20, IF(AX44>Calcs!CQ15,Inline,"")))))) ->  | BB44: =IFERROR(SUM('Optional - input raw data'!AD53,'Optional - input raw data'!AD54,'Optional - input raw data'!AD55)/'Optional - input raw data'!AD23,"") ->  | BD44: =IF(OR(BD$14="",BD$15="",BD$16="",BD$17="",BB44=""),"", IF(BB44<=Calcs!CU15,Lowest10, IF(AND(BB44>Calcs!CU15,BB44<=Calcs!CV15),Lowest20, IF(AND(BB44>Calcs!CV15,BB44<=Calcs!CW15),Inline, IF(AND(BB44>Calcs!CW15,BB44<=Calcs!CY15),Middle20, IF(BB44>Calcs!CY15,Inline,"")))))) ->  | BF44: =IFERROR(SUM('Optional - input raw data'!AF53,'Optional - input raw data'!AF54,'Optional - input raw data'!AF55)/'Optional - input raw data'!AF23,"") ->  | BH44: =IF(OR(BH$14="",BH$15="",BH$16="",BH$17="",BF44=""),"", IF(BF44<=Calcs!DC15,Lowest10, IF(AND(BF44>Calcs!DC15,BF44<=Calcs!DD15),Lowest20, IF(AND(BF44>Calcs!DD15,BF44<=Calcs!DE15),Inline, IF(AND(BF44>Calcs!DE15,BF44<=Calcs!DG15),Middle20, IF(BF44>Calcs!DG15,Inline,"")))))) ->  | BJ44: =IFERROR(SUM('Optional - input raw data'!AH53,'Optional - input raw data'!AH54,'Optional - input raw data'!AH55)/'Optional - input raw data'!AH23,"") ->  | BL44: =IF(OR(BL$14="",BL$15="",BL$16="",BL$17="",BJ44=""),"", IF(BJ44<=Calcs!DK15,Lowest10, IF(AND(BJ44>Calcs!DK15,BJ44<=Calcs!DL15),Lowest20, IF(AND(BJ44>Calcs!DL15,BJ44<=Calcs!DM15),Inline, IF(AND(BJ44>Calcs!DM15,BJ44<=Calcs!DO15),Middle20, IF(BJ44>Calcs!DO15,Inline,"")))))) ->  | BN44: =IFERROR(SUM('Optional - input raw data'!AJ53,'Optional - input raw data'!AJ54,'Optional - input raw data'!AJ55)/'Optional - input raw data'!AJ23,"") ->  | BP44: =IF(OR(BP$14="",BP$15="",BP$16="",BP$17="",BN44=""),"", IF(BN44<=Calcs!DS15,Lowest10, IF(AND(BN44>Calcs!DS15,BN44<=Calcs!DT15),Lowest20, IF(AND(BN44>Calcs!DT15,BN44<=Calcs!DU15),Inline, IF(AND(BN44>Calcs!DU15,BN44<=Calcs!DW15),Middle20, IF(BN44>Calcs!DW15,Inline,"")))))) ->  | BR44: =IFERROR(SUM('Optional - input raw data'!AL53,'Optional - input raw data'!AL54,'Optional - input raw data'!AL55)/'Optional - input raw data'!AL23,"") ->  | BT44: =IF(OR(BT$14="",BT$15="",BT$16="",BT$17="",BR44=""),"", IF(BR44<=Calcs!EA15,Lowest10, IF(AND(BR44>Calcs!EA15,BR44<=Calcs!EB15),Lowest20, IF(AND(BR44>Calcs!EB15,BR44<=Calcs!EC15),Inline, IF(AND(BR44>Calcs!EC15,BR44<=Calcs!EE15),Middle20, IF(BR44>Calcs!EE15,Inline,"")))))) ->  | BV44: =IFERROR(SUM('Optional - input raw data'!AN53,'Optional - input raw data'!AN54,'Optional - input raw data'!AN55)/'Optional - input raw data'!AN23,"") ->  | BX44: =IF(OR(BX$14="",BX$15="",BX$16="",BX$17="",BV44=""),"", IF(BV44<=Calcs!EI15,Lowest10, IF(AND(BV44>Calcs!EI15,BV44<=Calcs!EJ15),Lowest20, IF(AND(BV44>Calcs!EJ15,BV44<=Calcs!EK15),Inline, IF(AND(BV44>Calcs!EK15,BV44<=Calcs!EM15),Middle20, IF(BV44>Calcs!EM15,Inline,"")))))) ->  | BZ44: =IFERROR(SUM('Optional - input raw data'!AP53,'Optional - input raw data'!AP54,'Optional - input raw data'!AP55)/'Optional - input raw data'!AP23,"") ->  | CB44: =IF(OR(CB$14="",CB$15="",CB$16="",CB$17="",BZ44=""),"", IF(BZ44<=Calcs!EQ15,Lowest10, IF(AND(BZ44>Calcs!EQ15,BZ44<=Calcs!ER15),Lowest20, IF(AND(BZ44>Calcs!ER15,BZ44<=Calcs!ES15),Inline, IF(AND(BZ44>Calcs!ES15,BZ44<=Calcs!EU15),Middle20, IF(BZ44>Calcs!EU15,Inline,"")))))) ->  | CD44: =IFERROR(SUM('Optional - input raw data'!AR53,'Optional - input raw data'!AR54,'Optional - input raw data'!AR55)/'Optional - input raw data'!AR23,Calcs!$A$75) ->  | CF44: =IF(OR(CF$14="",CF$15="",CF$16="",CF$17="",CD44=""),"", IF(CD44<=Calcs!EY15,Lowest10, IF(AND(CD44>Calcs!EY15,CD44<=Calcs!EZ15),Lowest20, IF(AND(CD44>Calcs!EZ15,CD44<=Calcs!FA15),Inline, IF(AND(CD44>Calcs!FA15,CD44<=Calcs!FC15),Middle20, IF(CD44>Calcs!FC15,Inline,"")))))) -> 
C45: Spend on energy as a percentage of total expenditure | D45: Guidance | F45: =IFERROR('Optional - input raw data'!F48/'Optional - input raw data'!F23,Calcs!$A$75) -> 2.0% | H45: =IF(OR(H$14="",H$15="",H$16="",H$17="",F45=""),"", IF(F45<=Calcs!H16,Inline, IF(AND(F45>Calcs!H16,F45<=Calcs!I16),Highest20, IF(F45>Calcs!I16,Highest10,"")))) -> Highest 20% of similar schools | J45: =IFERROR('Optional - input raw data'!H48/'Optional - input raw data'!H23,Calcs!$A$75) ->  | L45: =IF(OR(L$14="",L$15="",L$16="",L$17="",J45=""),"", IF(J45<=Calcs!P16,Inline, IF(AND(J45>Calcs!P16,J45<=Calcs!Q16),Highest20, IF(J45>Calcs!Q16,Highest10,"")))) ->  | N45: =IFERROR('Optional - input raw data'!J48/'Optional - input raw data'!J23,Calcs!$A$75) ->  | P45: =IF(OR(P$14="",P$15="",P$16="",P$17="",N45=""),"", IF(N45<=Calcs!X16,Inline, IF(AND(N45>Calcs!X16,N45<=Calcs!Y16),Highest20, IF(N45>Calcs!Y16,Highest10,"")))) ->  | R45: =IFERROR('Optional - input raw data'!L48/'Optional - input raw data'!L23,Calcs!$A$75) ->  | T45: =IF(OR(T$14="",T$15="",T$16="",T$17="",R45=""),"", IF(R45<=Calcs!AF16,Inline, IF(AND(R45>Calcs!AF16,R45<=Calcs!AG16),Highest20, IF(R45>Calcs!AG16,Highest10,"")))) ->  | V45: =IFERROR('Optional - input raw data'!N48/'Optional - input raw data'!N23,"") ->  | X45: =IF(OR(X$14="",X$15="",X$16="",X$17="",V45=""),"", IF(V45<=Calcs!AN16,Inline, IF(AND(V45>Calcs!AN16,V45<=Calcs!AO16),Highest20, IF(V45>Calcs!AO16,Highest10,"")))) ->  | Z45: =IFERROR('Optional - input raw data'!P48/'Optional - input raw data'!P23,"") ->  | AB45: =IF(OR(AB$14="",AB$15="",AB$16="",AB$17="",Z45=""),"", IF(Z45<=Calcs!AV16,Inline, IF(AND(Z45>Calcs!AV16,Z45<=Calcs!AW16),Highest20, IF(Z45>Calcs!AW16,Highest10,"")))) ->  | AD45: =IFERROR('Optional - input raw data'!R48/'Optional - input raw data'!R23,"") ->  | AF45: =IF(OR(AF$14="",AF$15="",AF$16="",AF$17="",AD45=""),"", IF(AD45<=Calcs!BD16,Inline, IF(AND(AD45>Calcs!BD16,AD45<=Calcs!BE16),Highest20, IF(AD45>Calcs!BE16,Highest10,"")))) ->  | AH45: =IFERROR('Optional - input raw data'!T48/'Optional - input raw data'!T23,"") ->  | AJ45: =IF(OR(AJ$14="",AJ$15="",AJ$16="",AJ$17="",AH45=""),"", IF(AH45<=Calcs!BL16,Inline, IF(AND(AH45>Calcs!BL16,AH45<=Calcs!BM16),Highest20, IF(AH45>Calcs!BM16,Highest10,"")))) ->  | AL45: =IFERROR('Optional - input raw data'!V48/'Optional - input raw data'!V23,"") ->  | AN45: =IF(OR(AN$14="",AN$15="",AN$16="",AN$17="",AL45=""),"", IF(AL45<=Calcs!BT16,Inline, IF(AND(AL45>Calcs!BT16,AL45<=Calcs!BU16),Highest20, IF(AL45>Calcs!BU16,Highest10,"")))) ->  | AP45: =IFERROR('Optional - input raw data'!X48/'Optional - input raw data'!X23,"") ->  | AR45: =IF(OR(AR$14="",AR$15="",AR$16="",AR$17="",AP45=""),"", IF(AP45<=Calcs!CB16,Inline, IF(AND(AP45>Calcs!CB16,AP45<=Calcs!CC16),Highest20, IF(AP45>Calcs!CC16,Highest10,"")))) ->  | AT45: =IFERROR('Optional - input raw data'!Z48/'Optional - input raw data'!Z23,"") ->  | AV45: =IF(OR(AV$14="",AV$15="",AV$16="",AV$17="",AT45=""),"", IF(AT45<=Calcs!CJ16,Inline, IF(AND(AT45>Calcs!CJ16,AT45<=Calcs!CK16),Highest20, IF(AT45>Calcs!CK16,Highest10,"")))) ->  | AX45: =IFERROR('Optional - input raw data'!AB48/'Optional - input raw data'!AB23,"") ->  | AZ45: =IF(OR(AZ$14="",AZ$15="",AZ$16="",AZ$17="",AX45=""),"", IF(AX45<=Calcs!CR16,Inline, IF(AND(AX45>Calcs!CR16,AX45<=Calcs!CS16),Highest20, IF(AX45>Calcs!CS16,Highest10,"")))) ->  | BB45: =IFERROR('Optional - input raw data'!AD48/'Optional - input raw data'!AD23,"") ->  | BD45: =IF(OR(BD$14="",BD$15="",BD$16="",BD$17="",BB45=""),"", IF(BB45<=Calcs!CZ16,Inline, IF(AND(BB45>Calcs!CZ16,BB45<=Calcs!DA16),Highest20, IF(BB45>Calcs!DA16,Highest10,"")))) ->  | BF45: =IFERROR('Optional - input raw data'!AF48/'Optional - input raw data'!AF23,"") ->  | BH45: =IF(OR(BH$14="",BH$15="",BH$16="",BH$17="",BF45=""),"", IF(BF45<=Calcs!DH16,Inline, IF(AND(BF45>Calcs!DH16,BF45<=Calcs!DI16),Highest20, IF(BF45>Calcs!DI16,Highest10,"")))) ->  | BJ45: =IFERROR('Optional - input raw data'!AH48/'Optional - input raw data'!AH23,"") ->  | BL45: =IF(OR(BL$14="",BL$15="",BL$16="",BL$17="",BJ45=""),"", IF(BJ45<=Calcs!DP16,Inline, IF(AND(BJ45>Calcs!DP16,BJ45<=Calcs!DQ16),Highest20, IF(BJ45>Calcs!DQ16,Highest10,"")))) ->  | BN45: =IFERROR('Optional - input raw data'!AJ48/'Optional - input raw data'!AJ23,"") ->  | BP45: =IF(OR(BP$14="",BP$15="",BP$16="",BP$17="",BN45=""),"", IF(BN45<=Calcs!DX16,Inline, IF(AND(BN45>Calcs!DX16,BN45<=Calcs!DY16),Highest20, IF(BN45>Calcs!DY16,Highest10,"")))) ->  | BR45: =IFERROR('Optional - input raw data'!AL48/'Optional - input raw data'!AL23,"") ->  | BT45: =IF(OR(BT$14="",BT$15="",BT$16="",BT$17="",BR45=""),"", IF(BR45<=Calcs!EF16,Inline, IF(AND(BR45>Calcs!EF16,BR45<=Calcs!EG16),Highest20, IF(BR45>Calcs!EG16,Highest10,"")))) ->  | BV45: =IFERROR('Optional - input raw data'!AN48/'Optional - input raw data'!AN23,"") ->  | BX45: =IF(OR(BX$14="",BX$15="",BX$16="",BX$17="",BV45=""),"", IF(BV45<=Calcs!EN16,Inline, IF(AND(BV45>Calcs!EN16,BV45<=Calcs!EO16),Highest20, IF(BV45>Calcs!EO16,Highest10,"")))) ->  | BZ45: =IFERROR('Optional - input raw data'!AP48/'Optional - input raw data'!AP23,"") ->  | CB45: =IF(OR(CB$14="",CB$15="",CB$16="",CB$17="",BZ45=""),"", IF(BZ45<=Calcs!EV16,Inline, IF(AND(BZ45>Calcs!EV16,BZ45<=Calcs!EW16),Highest20, IF(BZ45>Calcs!EW16,Highest10,"")))) ->  | CD45: =IFERROR('Optional - input raw data'!AR48/'Optional - input raw data'!AR23,Calcs!$A$75) ->  | CF45: =IF(OR(CF$14="",CF$15="",CF$16="",CF$17="",CD45=""),"", IF(CD45<=Calcs!FD16,Inline, IF(AND(CD45>Calcs!FD16,CD45<=Calcs!FE16),Highest20, IF(CD45>Calcs!FE16,Highest10,"")))) -> 
C46: Other spending as a percentage of total expenditure (balancing line) | D46: Guidance | F46: =IFERROR(SUM('Optional - input raw data'!F39,'Optional - input raw data'!F47,'Optional - input raw data'!F49,'Optional - input raw data'!F51,'Optional - input raw data'!F52,'Optional - input raw data'!F56,'Optional - input raw data'!F58,'Optional - input raw data'!F59,'Optional - input raw data'!F60,'Optional - input raw data'!F61,'Optional - input raw data'!F62,'Optional - input raw data'!F63,'Optional - input raw data'!F64)/'Optional - input raw data'!F23,Calcs!$A$75) -> 6.8% | H46: =IF(OR(H$14="",H$15="",H$16="",H$17="",F46=""),"","N/A") -> N/A | J46: =IFERROR(SUM('Optional - input raw data'!H39,'Optional - input raw data'!H47,'Optional - input raw data'!H49,'Optional - input raw data'!H51,'Optional - input raw data'!H52,'Optional - input raw data'!H56,'Optional - input raw data'!H58,'Optional - input raw data'!H59,'Optional - input raw data'!H60,'Optional - input raw data'!H61,'Optional - input raw data'!H62,'Optional - input raw data'!H63,'Optional - input raw data'!H64)/'Optional - input raw data'!H23,Calcs!$A$75) ->  | L46: =IF(OR(L$14="",L$15="",L$16="",L$17="",J46=""),"","N/A") ->  | N46: =IFERROR(SUM('Optional - input raw data'!J39,'Optional - input raw data'!J47,'Optional - input raw data'!J49,'Optional - input raw data'!J51,'Optional - input raw data'!J52,'Optional - input raw data'!J56,'Optional - input raw data'!J58,'Optional - input raw data'!J59,'Optional - input raw data'!J60,'Optional - input raw data'!J61,'Optional - input raw data'!J62,'Optional - input raw data'!J63,'Optional - input raw data'!J64)/'Optional - input raw data'!J23,Calcs!$A$75) ->  | P46: =IF(OR(P$14="",P$15="",P$16="",P$17="",N46=""),"","N/A") ->  | R46: =IFERROR(SUM('Optional - input raw data'!L39,'Optional - input raw data'!L47,'Optional - input raw data'!L49,'Optional - input raw data'!L51,'Optional - input raw data'!L52,'Optional - input raw data'!L56,'Optional - input raw data'!L58,'Optional - input raw data'!L59,'Optional - input raw data'!L60,'Optional - input raw data'!L61,'Optional - input raw data'!L62,'Optional - input raw data'!L63,'Optional - input raw data'!L64)/'Optional - input raw data'!L23,Calcs!$A$75) ->  | T46: =IF(OR(T$14="",T$15="",T$16="",T$17="",R46=""),"","N/A") ->  | V46: =IFERROR(SUM('Optional - input raw data'!N39,'Optional - input raw data'!N47,'Optional - input raw data'!N49,'Optional - input raw data'!N51,'Optional - input raw data'!N52,'Optional - input raw data'!N56,'Optional - input raw data'!N58,'Optional - input raw data'!N59,'Optional - input raw data'!N60,'Optional - input raw data'!N61,'Optional - input raw data'!N62,'Optional - input raw data'!N63,'Optional - input raw data'!N64)/'Optional - input raw data'!N23,"") ->  | X46: =IF(OR(X$14="",X$15="",X$16="",X$17="",V46=""),"","N/A") ->  | Z46: =IFERROR(SUM('Optional - input raw data'!P39,'Optional - input raw data'!P47,'Optional - input raw data'!P49,'Optional - input raw data'!P51,'Optional - input raw data'!P52,'Optional - input raw data'!P56,'Optional - input raw data'!P58,'Optional - input raw data'!P59,'Optional - input raw data'!P60,'Optional - input raw data'!P61,'Optional - input raw data'!P62,'Optional - input raw data'!P63,'Optional - input raw data'!P64)/'Optional - input raw data'!P23,"") ->  | AB46: =IF(OR(AB$14="",AB$15="",AB$16="",AB$17="",Z46=""),"","N/A") ->  | AD46: =IFERROR(SUM('Optional - input raw data'!R39,'Optional - input raw data'!R47,'Optional - input raw data'!R49,'Optional - input raw data'!R51,'Optional - input raw data'!R52,'Optional - input raw data'!R56,'Optional - input raw data'!R58,'Optional - input raw data'!R59,'Optional - input raw data'!R60,'Optional - input raw data'!R61,'Optional - input raw data'!R62,'Optional - input raw data'!R63,'Optional - input raw data'!R64)/'Optional - input raw data'!R23,"") ->  | AF46: =IF(OR(AF$14="",AF$15="",AF$16="",AF$17="",AD46=""),"","N/A") ->  | AH46: =IFERROR(SUM('Optional - input raw data'!T39,'Optional - input raw data'!T47,'Optional - input raw data'!T49,'Optional - input raw data'!T51,'Optional - input raw data'!T52,'Optional - input raw data'!T56,'Optional - input raw data'!T58,'Optional - input raw data'!T59,'Optional - input raw data'!T60,'Optional - input raw data'!T61,'Optional - input raw data'!T62,'Optional - input raw data'!T63,'Optional - input raw data'!T64)/'Optional - input raw data'!T23,"") ->  | AJ46: =IF(OR(AJ$14="",AJ$15="",AJ$16="",AJ$17="",AH46=""),"","N/A") ->  | AL46: =IFERROR(SUM('Optional - input raw data'!V39,'Optional - input raw data'!V47,'Optional - input raw data'!V49,'Optional - input raw data'!V51,'Optional - input raw data'!V52,'Optional - input raw data'!V56,'Optional - input raw data'!V58,'Optional - input raw data'!V59,'Optional - input raw data'!V60,'Optional - input raw data'!V61,'Optional - input raw data'!V62,'Optional - input raw data'!V63,'Optional - input raw data'!V64)/'Optional - input raw data'!V23,"") ->  | AN46: =IF(OR(AN$14="",AN$15="",AN$16="",AN$17="",AL46=""),"","N/A") ->  | AP46: =IFERROR(SUM('Optional - input raw data'!X39,'Optional - input raw data'!X47,'Optional - input raw data'!X49,'Optional - input raw data'!X51,'Optional - input raw data'!X52,'Optional - input raw data'!X56,'Optional - input raw data'!X58,'Optional - input raw data'!X59,'Optional - input raw data'!X60,'Optional - input raw data'!X61,'Optional - input raw data'!X62,'Optional - input raw data'!X63,'Optional - input raw data'!X64)/'Optional - input raw data'!X23,"") ->  | AR46: =IF(OR(AR$14="",AR$15="",AR$16="",AR$17="",AP46=""),"","N/A") ->  | AT46: =IFERROR(SUM('Optional - input raw data'!Z39,'Optional - input raw data'!Z47,'Optional - input raw data'!Z49,'Optional - input raw data'!Z51,'Optional - input raw data'!Z52,'Optional - input raw data'!Z56,'Optional - input raw data'!Z58,'Optional - input raw data'!Z59,'Optional - input raw data'!Z60,'Optional - input raw data'!Z61,'Optional - input raw data'!Z62,'Optional - input raw data'!Z63,'Optional - input raw data'!Z64)/'Optional - input raw data'!Z23,"") ->  | AV46: =IF(OR(AV$14="",AV$15="",AV$16="",AV$17="",AT46=""),"","N/A") ->  | AX46: =IFERROR(SUM('Optional - input raw data'!AB39,'Optional - input raw data'!AB47,'Optional - input raw data'!AB49,'Optional - input raw data'!AB51,'Optional - input raw data'!AB52,'Optional - input raw data'!AB56,'Optional - input raw data'!AB58,'Optional - input raw data'!AB59,'Optional - input raw data'!AB60,'Optional - input raw data'!AB61,'Optional - input raw data'!AB62,'Optional - input raw data'!AB63,'Optional - input raw data'!AB64)/'Optional - input raw data'!AB23,"") ->  | AZ46: =IF(OR(AZ$14="",AZ$15="",AZ$16="",AZ$17="",AX46=""),"","N/A") ->  | BB46: =IFERROR(SUM('Optional - input raw data'!AD39,'Optional - input raw data'!AD47,'Optional - input raw data'!AD49,'Optional - input raw data'!AD51,'Optional - input raw data'!AD52,'Optional - input raw data'!AD56,'Optional - input raw data'!AD58,'Optional - input raw data'!AD59,'Optional - input raw data'!AD60,'Optional - input raw data'!AD61,'Optional - input raw data'!AD62,'Optional - input raw data'!AD63,'Optional - input raw data'!AD64)/'Optional - input raw data'!AD23,"") ->  | BD46: =IF(OR(BD$14="",BD$15="",BD$16="",BD$17="",BB46=""),"","N/A") ->  | BF46: =IFERROR(SUM('Optional - input raw data'!AF39,'Optional - input raw data'!AF47,'Optional - input raw data'!AF49,'Optional - input raw data'!AF51,'Optional - input raw data'!AF52,'Optional - input raw data'!AF56,'Optional - input raw data'!AF58,'Optional - input raw data'!AF59,'Optional - input raw data'!AF60,'Optional - input raw data'!AF61,'Optional - input raw data'!AF62,'Optional - input raw data'!AF63,'Optional - input raw data'!AF64)/'Optional - input raw data'!AF23,"") ->  | BH46: =IF(OR(BH$14="",BH$15="",BH$16="",BH$17="",BF46=""),"","N/A") ->  | BJ46: =IFERROR(SUM('Optional - input raw data'!AH39,'Optional - input raw data'!AH47,'Optional - input raw data'!AH49,'Optional - input raw data'!AH51,'Optional - input raw data'!AH52,'Optional - input raw data'!AH56,'Optional - input raw data'!AH58,'Optional - input raw data'!AH59,'Optional - input raw data'!AH60,'Optional - input raw data'!AH61,'Optional - input raw data'!AH62,'Optional - input raw data'!AH63,'Optional - input raw data'!AH64)/'Optional - input raw data'!AH23,"") ->  | BL46: =IF(OR(BL$14="",BL$15="",BL$16="",BL$17="",BJ46=""),"","N/A") ->  | BN46: =IFERROR(SUM('Optional - input raw data'!AJ39,'Optional - input raw data'!AJ47,'Optional - input raw data'!AJ49,'Optional - input raw data'!AJ51,'Optional - input raw data'!AJ52,'Optional - input raw data'!AJ56,'Optional - input raw data'!AJ58,'Optional - input raw data'!AJ59,'Optional - input raw data'!AJ60,'Optional - input raw data'!AJ61,'Optional - input raw data'!AJ62,'Optional - input raw data'!AJ63,'Optional - input raw data'!AJ64)/'Optional - input raw data'!AJ23,"") ->  | BP46: =IF(OR(BP$14="",BP$15="",BP$16="",BP$17="",BN46=""),"","N/A") ->  | BR46: =IFERROR(SUM('Optional - input raw data'!AL39,'Optional - input raw data'!AL47,'Optional - input raw data'!AL49,'Optional - input raw data'!AL51,'Optional - input raw data'!AL52,'Optional - input raw data'!AL56,'Optional - input raw data'!AL58,'Optional - input raw data'!AL59,'Optional - input raw data'!AL60,'Optional - input raw data'!AL61,'Optional - input raw data'!AL62,'Optional - input raw data'!AL63,'Optional - input raw data'!AL64)/'Optional - input raw data'!AL23,"") ->  | BT46: =IF(OR(BT$14="",BT$15="",BT$16="",BT$17="",BR46=""),"","N/A") ->  | BV46: =IFERROR(SUM('Optional - input raw data'!AN39,'Optional - input raw data'!AN47,'Optional - input raw data'!AN49,'Optional - input raw data'!AN51,'Optional - input raw data'!AN52,'Optional - input raw data'!AN56,'Optional - input raw data'!AN58,'Optional - input raw data'!AN59,'Optional - input raw data'!AN60,'Optional - input raw data'!AN61,'Optional - input raw data'!AN62,'Optional - input raw data'!AN63,'Optional - input raw data'!AN64)/'Optional - input raw data'!AN23,"") ->  | BX46: =IF(OR(BX$14="",BX$15="",BX$16="",BX$17="",BV46=""),"","N/A") ->  | BZ46: =IFERROR(SUM('Optional - input raw data'!AP39,'Optional - input raw data'!AP47,'Optional - input raw data'!AP49,'Optional - input raw data'!AP51,'Optional - input raw data'!AP52,'Optional - input raw data'!AP56,'Optional - input raw data'!AP58,'Optional - input raw data'!AP59,'Optional - input raw data'!AP60,'Optional - input raw data'!AP61,'Optional - input raw data'!AP62,'Optional - input raw data'!AP63,'Optional - input raw data'!AP64)/'Optional - input raw data'!AP23,"") ->  | CB46: =IF(OR(CB$14="",CB$15="",CB$16="",CB$17="",BZ46=""),"","N/A") ->  | CD46: =IFERROR(SUM('Optional - input raw data'!AR39,'Optional - input raw data'!AR47,'Optional - input raw data'!AR49,'Optional - input raw data'!AR51,'Optional - input raw data'!AR52,'Optional - input raw data'!AR56,'Optional - input raw data'!AR58,'Optional - input raw data'!AR59,'Optional - input raw data'!AR60,'Optional - input raw data'!AR61,'Optional - input raw data'!AR62,'Optional - input raw data'!AR63,'Optional - input raw data'!AR64)/'Optional - input raw data'!AR23,Calcs!$A$75) ->  | CF46: =IF(OR(CF$14="",CF$15="",CF$16="",CF$17="",CD46=""),"","N/A") -> 
F47: =IF(OR(ROUND(SUM(F38:F46),3)=100%,SUM(F38:F46)=0),"","Section must sum to 100%") ->  | J47: =IF(OR(ROUND(SUM(J38:J46),3)=100%,SUM(J38:J46)=0),"","Section must sum to 100%") ->  | N47: =IF(OR(ROUND(SUM(N38:N46),3)=100%,SUM(N38:N46)=0),"","Section must sum to 100%") ->  | R47: =IF(OR(ROUND(SUM(R38:R46),3)=100%,SUM(R38:R46)=0),"","Section must sum to 100%") ->  | V47: =IF(OR(ROUND(SUM(V38:V46),3)=100%,SUM(V38:V46)=0),"","Section must sum to 100%") ->  | Z47: =IF(OR(ROUND(SUM(Z38:Z46),3)=100%,SUM(Z38:Z46)=0),"","Section must sum to 100%") ->  | AD47: =IF(OR(ROUND(SUM(AD38:AD46),3)=100%,SUM(AD38:AD46)=0),"","Section must sum to 100%") ->  | AH47: =IF(OR(ROUND(SUM(AH38:AH46),3)=100%,SUM(AH38:AH46)=0),"","Section must sum to 100%") ->  | AL47: =IF(OR(ROUND(SUM(AL38:AL46),3)=100%,SUM(AL38:AL46)=0),"","Section must sum to 100%") ->  | AP47: =IF(OR(ROUND(SUM(AP38:AP46),3)=100%,SUM(AP38:AP46)=0),"","Section must sum to 100%") ->  | AT47: =IF(OR(ROUND(SUM(AT38:AT46),3)=100%,SUM(AT38:AT46)=0),"","Section must sum to 100%") ->  | AX47: =IF(OR(ROUND(SUM(AX38:AX46),3)=100%,SUM(AX38:AX46)=0),"","Section must sum to 100%") ->  | BB47: =IF(OR(ROUND(SUM(BB38:BB46),3)=100%,SUM(BB38:BB46)=0),"","Section must sum to 100%") ->  | BF47: =IF(OR(ROUND(SUM(BF38:BF46),3)=100%,SUM(BF38:BF46)=0),"","Section must sum to 100%") ->  | BJ47: =IF(OR(ROUND(SUM(BJ38:BJ46),3)=100%,SUM(BJ38:BJ46)=0),"","Section must sum to 100%") ->  | BN47: =IF(OR(ROUND(SUM(BN38:BN46),3)=100%,SUM(BN38:BN46)=0),"","Section must sum to 100%") ->  | BR47: =IF(OR(ROUND(SUM(BR38:BR46),3)=100%,SUM(BR38:BR46)=0),"","Section must sum to 100%") ->  | BV47: =IF(OR(ROUND(SUM(BV38:BV46),3)=100%,SUM(BV38:BV46)=0),"","Section must sum to 100%") ->  | BZ47: =IF(OR(ROUND(SUM(BZ38:BZ46),3)=100%,SUM(BZ38:BZ46)=0),"","Section must sum to 100%") ->  | CD47: =IF(OR(ROUND(SUM(CD38:CD46),3)=100%,SUM(CD38:CD46)=0),"","Section must sum to 100%") -> 
C48: C. Reserves / balances as a percentage of total income
C50: In-year balance as a percentage of total income | D50: Guidance | F50: =IFERROR(('Optional - input raw data'!F24-'Optional - input raw data'!F23)/'Optional - input raw data'!F24,Calcs!$A$75) -> -3.1% | H50: =IF(OR(H$14="",H$15="",H$16="",H$17="",F50=""),"", IF(F50<=-0.05,High, IF(AND(F50>-0.05,F50<0),Medium, IF(F50>=0,Low,"")))) -> Medium risk | J50: =IFERROR(('Optional - input raw data'!H24-'Optional - input raw data'!H23)/'Optional - input raw data'!H24,Calcs!$A$75) ->  | L50: =IF(OR(L$14="",L$15="",L$16="",L$17="",J50=""),"", IF(J50<=-0.05,High, IF(AND(J50>-0.05,J50<0),Medium, IF(J50>=0,Low,"")))) ->  | N50: =IFERROR(('Optional - input raw data'!J24-'Optional - input raw data'!J23)/'Optional - input raw data'!J24,Calcs!$A$75) ->  | P50: =IF(OR(P$14="",P$15="",P$16="",P$17="",N50=""),"", IF(N50<=-0.05,High, IF(AND(N50>-0.05,N50<0),Medium, IF(N50>=0,Low,"")))) ->  | R50: =IFERROR(('Optional - input raw data'!L24-'Optional - input raw data'!L23)/'Optional - input raw data'!L24,Calcs!$A$75) ->  | T50: =IF(OR(T$14="",T$15="",T$16="",T$17="",R50=""),"", IF(R50<=-0.05,High, IF(AND(R50>-0.05,R50<0),Medium, IF(R50>=0,Low,"")))) ->  | V50: =IFERROR(('Optional - input raw data'!N24-'Optional - input raw data'!N23)/'Optional - input raw data'!N24,"") ->  | X50: =IF(OR(X$14="",X$15="",X$16="",X$17="",V50=""),"", IF(V50<=-0.05,High, IF(AND(V50>-0.05,V50<0),Medium, IF(V50>=0,Low,"")))) ->  | Z50: =IFERROR(('Optional - input raw data'!P24-'Optional - input raw data'!P23)/'Optional - input raw data'!P24,"") ->  | AB50: =IF(OR(AB$14="",AB$15="",AB$16="",AB$17="",Z50=""),"", IF(Z50<=-0.05,High, IF(AND(Z50>-0.05,Z50<0),Medium, IF(Z50>=0,Low,"")))) ->  | AD50: =IFERROR(('Optional - input raw data'!R24-'Optional - input raw data'!R23)/'Optional - input raw data'!R24,"") ->  | AF50: =IF(OR(AF$14="",AF$15="",AF$16="",AF$17="",AD50=""),"", IF(AD50<=-0.05,High, IF(AND(AD50>-0.05,AD50<0),Medium, IF(AD50>=0,Low,"")))) ->  | AH50: =IFERROR(('Optional - input raw data'!T24-'Optional - input raw data'!T23)/'Optional - input raw data'!T24,"") ->  | AJ50: =IF(OR(AJ$14="",AJ$15="",AJ$16="",AJ$17="",AH50=""),"", IF(AH50<=-0.05,High, IF(AND(AH50>-0.05,AH50<0),Medium, IF(AH50>=0,Low,"")))) ->  | AL50: =IFERROR(('Optional - input raw data'!V24-'Optional - input raw data'!V23)/'Optional - input raw data'!V24,"") ->  | AN50: =IF(OR(AN$14="",AN$15="",AN$16="",AN$17="",AL50=""),"", IF(AL50<=-0.05,High, IF(AND(AL50>-0.05,AL50<0),Medium, IF(AL50>=0,Low,"")))) ->  | AP50: =IFERROR(('Optional - input raw data'!X24-'Optional - input raw data'!X23)/'Optional - input raw data'!X24,"") ->  | AR50: =IF(OR(AR$14="",AR$15="",AR$16="",AR$17="",AP50=""),"", IF(AP50<=-0.05,High, IF(AND(AP50>-0.05,AP50<0),Medium, IF(AP50>=0,Low,"")))) ->  | AT50: =IFERROR(('Optional - input raw data'!Z24-'Optional - input raw data'!Z23)/'Optional - input raw data'!Z24,"") ->  | AV50: =IF(OR(AV$14="",AV$15="",AV$16="",AV$17="",AT50=""),"", IF(AT50<=-0.05,High, IF(AND(AT50>-0.05,AT50<0),Medium, IF(AT50>=0,Low,"")))) ->  | AX50: =IFERROR(('Optional - input raw data'!AB24-'Optional - input raw data'!AB23)/'Optional - input raw data'!AB24,"") ->  | AZ50: =IF(OR(AZ$14="",AZ$15="",AZ$16="",AZ$17="",AX50=""),"", IF(AX50<=-0.05,High, IF(AND(AX50>-0.05,AX50<0),Medium, IF(AX50>=0,Low,"")))) ->  | BB50: =IFERROR(('Optional - input raw data'!AD24-'Optional - input raw data'!AD23)/'Optional - input raw data'!AD24,"") ->  | BD50: =IF(OR(BD$14="",BD$15="",BD$16="",BD$17="",BB50=""),"", IF(BB50<=-0.05,High, IF(AND(BB50>-0.05,BB50<0),Medium, IF(BB50>=0,Low,"")))) ->  | BF50: =IFERROR(('Optional - input raw data'!AF24-'Optional - input raw data'!AF23)/'Optional - input raw data'!AF24,"") ->  | BH50: =IF(OR(BH$14="",BH$15="",BH$16="",BH$17="",BF50=""),"", IF(BF50<=-0.05,High, IF(AND(BF50>-0.05,BF50<0),Medium, IF(BF50>=0,Low,"")))) ->  | BJ50: =IFERROR(('Optional - input raw data'!AH24-'Optional - input raw data'!AH23)/'Optional - input raw data'!AH24,"") ->  | BL50: =IF(OR(BL$14="",BL$15="",BL$16="",BL$17="",BJ50=""),"", IF(BJ50<=-0.05,High, IF(AND(BJ50>-0.05,BJ50<0),Medium, IF(BJ50>=0,Low,"")))) ->  | BN50: =IFERROR(('Optional - input raw data'!AJ24-'Optional - input raw data'!AJ23)/'Optional - input raw data'!AJ24,"") ->  | BP50: =IF(OR(BP$14="",BP$15="",BP$16="",BP$17="",BN50=""),"", IF(BN50<=-0.05,High, IF(AND(BN50>-0.05,BN50<0),Medium, IF(BN50>=0,Low,"")))) ->  | BR50: =IFERROR(('Optional - input raw data'!AL24-'Optional - input raw data'!AL23)/'Optional - input raw data'!AL24,"") ->  | BT50: =IF(OR(BT$14="",BT$15="",BT$16="",BT$17="",BR50=""),"", IF(BR50<=-0.05,High, IF(AND(BR50>-0.05,BR50<0),Medium, IF(BR50>=0,Low,"")))) ->  | BV50: =IFERROR(('Optional - input raw data'!AN24-'Optional - input raw data'!AN23)/'Optional - input raw data'!AN24,"") ->  | BX50: =IF(OR(BX$14="",BX$15="",BX$16="",BX$17="",BV50=""),"", IF(BV50<=-0.05,High, IF(AND(BV50>-0.05,BV50<0),Medium, IF(BV50>=0,Low,"")))) ->  | BZ50: =IFERROR(('Optional - input raw data'!AP24-'Optional - input raw data'!AP23)/'Optional - input raw data'!AP24,"") ->  | CB50: =IF(OR(CB$14="",CB$15="",CB$16="",CB$17="",BZ50=""),"", IF(BZ50<=-0.05,High, IF(AND(BZ50>-0.05,BZ50<0),Medium, IF(BZ50>=0,Low,"")))) ->  | CD50: =IFERROR(('Optional - input raw data'!AR24-'Optional - input raw data'!AR23)/'Optional - input raw data'!AR24,Calcs!$A$75) ->  | CF50: =IF(OR(CF$14="",CF$15="",CF$16="",CF$17="",CD50=""),"", IF(CD50<=-0.05,High, IF(AND(CD50>-0.05,CD50<0),Medium, IF(CD50>=0,Low,"")))) -> 
C51: Revenue reserve as a percentage of total income | D51: Guidance | F51: =IFERROR('Optional - input raw data'!F25/'Optional - input raw data'!F24,Calcs!$A$75) -> 4.6% | H51: =IF(OR(H$14="",H$15="",H$16="",H$17="",F51=""),"", IF(F51<=-0.05,High, IF(AND(F51>-0.05,F51<0),Medium, IF(F51>=0,Low,"")))) -> Low risk | J51: =IFERROR('Optional - input raw data'!H25/'Optional - input raw data'!H24,Calcs!$A$75) ->  | L51: =IF(OR(L$14="",L$15="",L$16="",L$17="",J51=""),"", IF(J51<=-0.05,High, IF(AND(J51>-0.05,J51<0),Medium, IF(J51>=0,Low,"")))) ->  | N51: =IFERROR('Optional - input raw data'!J25/'Optional - input raw data'!J24,Calcs!$A$75) ->  | P51: =IF(OR(P$14="",P$15="",P$16="",P$17="",N51=""),"", IF(N51<=-0.05,High, IF(AND(N51>-0.05,N51<0),Medium, IF(N51>=0,Low,"")))) ->  | R51: =IFERROR('Optional - input raw data'!L25/'Optional - input raw data'!L24,Calcs!$A$75) ->  | T51: =IF(OR(T$14="",T$15="",T$16="",T$17="",R51=""),"", IF(R51<=-0.05,High, IF(AND(R51>-0.05,R51<0),Medium, IF(R51>=0,Low,"")))) ->  | V51: =IFERROR('Optional - input raw data'!N25/'Optional - input raw data'!N24,"") ->  | X51: =IF(OR(X$14="",X$15="",X$16="",X$17="",V51=""),"", IF(V51<=-0.05,High, IF(AND(V51>-0.05,V51<0),Medium, IF(V51>=0,Low,"")))) ->  | Z51: =IFERROR('Optional - input raw data'!P25/'Optional - input raw data'!P24,"") ->  | AB51: =IF(OR(AB$14="",AB$15="",AB$16="",AB$17="",Z51=""),"", IF(Z51<=-0.05,High, IF(AND(Z51>-0.05,Z51<0),Medium, IF(Z51>=0,Low,"")))) ->  | AD51: =IFERROR('Optional - input raw data'!R25/'Optional - input raw data'!R24,"") ->  | AF51: =IF(OR(AF$14="",AF$15="",AF$16="",AF$17="",AD51=""),"", IF(AD51<=-0.05,High, IF(AND(AD51>-0.05,AD51<0),Medium, IF(AD51>=0,Low,"")))) ->  | AH51: =IFERROR('Optional - input raw data'!T25/'Optional - input raw data'!T24,"") ->  | AJ51: =IF(OR(AJ$14="",AJ$15="",AJ$16="",AJ$17="",AH51=""),"", IF(AH51<=-0.05,High, IF(AND(AH51>-0.05,AH51<0),Medium, IF(AH51>=0,Low,"")))) ->  | AL51: =IFERROR('Optional - input raw data'!V25/'Optional - input raw data'!V24,"") ->  | AN51: =IF(OR(AN$14="",AN$15="",AN$16="",AN$17="",AL51=""),"", IF(AL51<=-0.05,High, IF(AND(AL51>-0.05,AL51<0),Medium, IF(AL51>=0,Low,"")))) ->  | AP51: =IFERROR('Optional - input raw data'!X25/'Optional - input raw data'!X24,"") ->  | AR51: =IF(OR(AR$14="",AR$15="",AR$16="",AR$17="",AP51=""),"", IF(AP51<=-0.05,High, IF(AND(AP51>-0.05,AP51<0),Medium, IF(AP51>=0,Low,"")))) ->  | AT51: =IFERROR('Optional - input raw data'!Z25/'Optional - input raw data'!Z24,"") ->  | AV51: =IF(OR(AV$14="",AV$15="",AV$16="",AV$17="",AT51=""),"", IF(AT51<=-0.05,High, IF(AND(AT51>-0.05,AT51<0),Medium, IF(AT51>=0,Low,"")))) ->  | AX51: =IFERROR('Optional - input raw data'!AB25/'Optional - input raw data'!AB24,"") ->  | AZ51: =IF(OR(AZ$14="",AZ$15="",AZ$16="",AZ$17="",AX51=""),"", IF(AX51<=-0.05,High, IF(AND(AX51>-0.05,AX51<0),Medium, IF(AX51>=0,Low,"")))) ->  | BB51: =IFERROR('Optional - input raw data'!AD25/'Optional - input raw data'!AD24,"") ->  | BD51: =IF(OR(BD$14="",BD$15="",BD$16="",BD$17="",BB51=""),"", IF(BB51<=-0.05,High, IF(AND(BB51>-0.05,BB51<0),Medium, IF(BB51>=0,Low,"")))) ->  | BF51: =IFERROR('Optional - input raw data'!AF25/'Optional - input raw data'!AF24,"") ->  | BH51: =IF(OR(BH$14="",BH$15="",BH$16="",BH$17="",BF51=""),"", IF(BF51<=-0.05,High, IF(AND(BF51>-0.05,BF51<0),Medium, IF(BF51>=0,Low,"")))) ->  | BJ51: =IFERROR('Optional - input raw data'!AH25/'Optional - input raw data'!AH24,"") ->  | BL51: =IF(OR(BL$14="",BL$15="",BL$16="",BL$17="",BJ51=""),"", IF(BJ51<=-0.05,High, IF(AND(BJ51>-0.05,BJ51<0),Medium, IF(BJ51>=0,Low,"")))) ->  | BN51: =IFERROR('Optional - input raw data'!AJ25/'Optional - input raw data'!AJ24,"") ->  | BP51: =IF(OR(BP$14="",BP$15="",BP$16="",BP$17="",BN51=""),"", IF(BN51<=-0.05,High, IF(AND(BN51>-0.05,BN51<0),Medium, IF(BN51>=0,Low,"")))) ->  | BR51: =IFERROR('Optional - input raw data'!AL25/'Optional - input raw data'!AL24,"") ->  | BT51: =IF(OR(BT$14="",BT$15="",BT$16="",BT$17="",BR51=""),"", IF(BR51<=-0.05,High, IF(AND(BR51>-0.05,BR51<0),Medium, IF(BR51>=0,Low,"")))) ->  | BV51: =IFERROR('Optional - input raw data'!AN25/'Optional - input raw data'!AN24,"") ->  | BX51: =IF(OR(BX$14="",BX$15="",BX$16="",BX$17="",BV51=""),"", IF(BV51<=-0.05,High, IF(AND(BV51>-0.05,BV51<0),Medium, IF(BV51>=0,Low,"")))) ->  | BZ51: =IFERROR('Optional - input raw data'!AP25/'Optional - input raw data'!AP24,"") ->  | CB51: =IF(OR(CB$14="",CB$15="",CB$16="",CB$17="",BZ51=""),"", IF(BZ51<=-0.05,High, IF(AND(BZ51>-0.05,BZ51<0),Medium, IF(BZ51>=0,Low,"")))) ->  | CD51: =IFERROR('Optional - input raw data'!AR25/'Optional - input raw data'!AR24,Calcs!$A$75) ->  | CF51: =IF(OR(CF$14="",CF$15="",CF$16="",CF$17="",CD51=""),"", IF(CD51<=-0.05,High, IF(AND(CD51>-0.05,CD51<0),Medium, IF(CD51>=0,Low,"")))) -> 
C53: D. School characteristics
C55: Average teacher cost (£) | D55: Guidance | F55: =IFERROR('Optional - input raw data'!F34/'Optional - input raw data'!F19,Calcs!$A$75) -> £59,691 | H55: =IF(OR(H$14="",H$15="",H$16="",H$17="",F55=""),"", IF(F55<=Calcs!C21,Lowest10, IF(AND(F55>Calcs!C21,F55<=Calcs!D21),Lowest20, IF(AND(F55>Calcs!D21,F55<=Calcs!E21),Inline, IF(AND(F55>Calcs!E21,F55<=Calcs!G21),Middle20, IF(AND(F55>Calcs!G21,F55<=Calcs!H21),Inline, IF(AND(F55>Calcs!H21,F55<=Calcs!I21),Highest20, IF(F55>Calcs!I21,Highest10,"")))))))) -> Broadly in line with similar schools | J55: =IFERROR('Optional - input raw data'!H34/'Optional - input raw data'!H19,Calcs!$A$75) ->  | L55: =IF(OR(L$14="",L$15="",L$16="",L$17="",J55=""),"", IF(J55<=Calcs!K21,Lowest10, IF(AND(J55>Calcs!K21,J55<=Calcs!L21),Lowest20, IF(AND(J55>Calcs!L21,J55<=Calcs!M21),Inline, IF(AND(J55>Calcs!M21,J55<=Calcs!O21),Middle20, IF(AND(J55>Calcs!O21,J55<=Calcs!P21),Inline, IF(AND(J55>Calcs!P21,J55<=Calcs!Q21),Highest20, IF(J55>Calcs!Q21,Highest10,"")))))))) ->  | N55: =IFERROR('Optional - input raw data'!J34/'Optional - input raw data'!J19,Calcs!$A$75) ->  | P55: =IF(OR(P$14="",P$15="",P$16="",P$17="",N55=""),"", IF(N55<=Calcs!S21,Lowest10, IF(AND(N55>Calcs!S21,N55<=Calcs!T21),Lowest20, IF(AND(N55>Calcs!T21,N55<=Calcs!U21),Inline, IF(AND(N55>Calcs!U21,N55<=Calcs!W21),Middle20, IF(AND(N55>Calcs!W21,N55<=Calcs!X21),Inline, IF(AND(N55>Calcs!X21,N55<=Calcs!Y21),Highest20, IF(N55>Calcs!Y21,Highest10,"")))))))) ->  | R55: =IFERROR('Optional - input raw data'!L34/'Optional - input raw data'!L19,Calcs!$A$75) ->  | T55: =IF(OR(T$14="",T$15="",T$16="",T$17="",R55=""),"", IF(R55<=Calcs!AA21,Lowest10, IF(AND(R55>Calcs!AA21,R55<=Calcs!AB21),Lowest20, IF(AND(R55>Calcs!AB21,R55<=Calcs!AC21),Inline, IF(AND(R55>Calcs!AC21,R55<=Calcs!AE21),Middle20, IF(AND(R55>Calcs!AE21,R55<=Calcs!AF21),Inline, IF(AND(R55>Calcs!AF21,R55<=Calcs!AG21),Highest20, IF(R55>Calcs!AG21,Highest10,"")))))))) ->  | V55: =IFERROR('Optional - input raw data'!N34/'Optional - input raw data'!N19,"") ->  | X55: =IF(OR(X$14="",X$15="",X$16="",X$17="",V55=""),"", IF(V55<=Calcs!AI21,Lowest10, IF(AND(V55>Calcs!AI21,V55<=Calcs!AJ21),Lowest20, IF(AND(V55>Calcs!AJ21,V55<=Calcs!AK21),Inline, IF(AND(V55>Calcs!AK21,V55<=Calcs!AM21),Middle20, IF(AND(V55>Calcs!AM21,V55<=Calcs!AN21),Inline, IF(AND(V55>Calcs!AN21,V55<=Calcs!AO21),Highest20, IF(V55>Calcs!AO21,Highest10,"")))))))) ->  | Z55: =IFERROR('Optional - input raw data'!P34/'Optional - input raw data'!P19,"") ->  | AB55: =IF(OR(AB$14="",AB$15="",AB$16="",AB$17="",Z55=""),"", IF(Z55<=Calcs!AQ21,Lowest10, IF(AND(Z55>Calcs!AQ21,Z55<=Calcs!AR21),Lowest20, IF(AND(Z55>Calcs!AR21,Z55<=Calcs!AS21),Inline, IF(AND(Z55>Calcs!AS21,Z55<=Calcs!AU21),Middle20, IF(AND(Z55>Calcs!AU21,Z55<=Calcs!AV21),Inline, IF(AND(Z55>Calcs!AV21,Z55<=Calcs!AW21),Highest20, IF(Z55>Calcs!AW21,Highest10,"")))))))) ->  | AD55: =IFERROR('Optional - input raw data'!R34/'Optional - input raw data'!R19,"") ->  | AF55: =IF(OR(AF$14="",AF$15="",AF$16="",AF$17="",AD55=""),"", IF(AD55<=Calcs!AY21,Lowest10, IF(AND(AD55>Calcs!AY21,AD55<=Calcs!AZ21),Lowest20, IF(AND(AD55>Calcs!AZ21,AD55<=Calcs!BA21),Inline, IF(AND(AD55>Calcs!BA21,AD55<=Calcs!BC21),Middle20, IF(AND(AD55>Calcs!BC21,AD55<=Calcs!BD21),Inline, IF(AND(AD55>Calcs!BD21,AD55<=Calcs!BE21),Highest20, IF(AD55>Calcs!BE21,Highest10,"")))))))) ->  | AH55: =IFERROR('Optional - input raw data'!T34/'Optional - input raw data'!T19,"") ->  | AJ55: =IF(OR(AJ$14="",AJ$15="",AJ$16="",AJ$17="",AH55=""),"", IF(AH55<=Calcs!BG21,Lowest10, IF(AND(AH55>Calcs!BG21,AH55<=Calcs!BH21),Lowest20, IF(AND(AH55>Calcs!BH21,AH55<=Calcs!BI21),Inline, IF(AND(AH55>Calcs!BI21,AH55<=Calcs!BK21),Middle20, IF(AND(AH55>Calcs!BK21,AH55<=Calcs!BL21),Inline, IF(AND(AH55>Calcs!BL21,AH55<=Calcs!BM21),Highest20, IF(AH55>Calcs!BM21,Highest10,"")))))))) ->  | AL55: =IFERROR('Optional - input raw data'!V34/'Optional - input raw data'!V19,"") ->  | AN55: =IF(OR(AN$14="",AN$15="",AN$16="",AN$17="",AL55=""),"", IF(AL55<=Calcs!BO21,Lowest10, IF(AND(AL55>Calcs!BO21,AL55<=Calcs!BP21),Lowest20, IF(AND(AL55>Calcs!BP21,AL55<=Calcs!BQ21),Inline, IF(AND(AL55>Calcs!BQ21,AL55<=Calcs!BS21),Middle20, IF(AND(AL55>Calcs!BS21,AL55<=Calcs!BT21),Inline, IF(AND(AL55>Calcs!BT21,AL55<=Calcs!BU21),Highest20, IF(AL55>Calcs!BU21,Highest10,"")))))))) ->  | AP55: =IFERROR('Optional - input raw data'!X34/'Optional - input raw data'!X19,"") ->  | AR55: =IF(OR(AR$14="",AR$15="",AR$16="",AR$17="",AP55=""),"", IF(AP55<=Calcs!BW21,Lowest10, IF(AND(AP55>Calcs!BW21,AP55<=Calcs!BX21),Lowest20, IF(AND(AP55>Calcs!BX21,AP55<=Calcs!BY21),Inline, IF(AND(AP55>Calcs!BY21,AP55<=Calcs!CA21),Middle20, IF(AND(AP55>Calcs!CA21,AP55<=Calcs!CB21),Inline, IF(AND(AP55>Calcs!CB21,AP55<=Calcs!CC21),Highest20, IF(AP55>Calcs!CC21,Highest10,"")))))))) ->  | AT55: =IFERROR('Optional - input raw data'!Z34/'Optional - input raw data'!Z19,"") ->  | AV55: =IF(OR(AV$14="",AV$15="",AV$16="",AV$17="",AT55=""),"", IF(AT55<=Calcs!CE21,Lowest10, IF(AND(AT55>Calcs!CE21,AT55<=Calcs!CF21),Lowest20, IF(AND(AT55>Calcs!CF21,AT55<=Calcs!CG21),Inline, IF(AND(AT55>Calcs!CG21,AT55<=Calcs!CI21),Middle20, IF(AND(AT55>Calcs!CI21,AT55<=Calcs!CJ21),Inline, IF(AND(AT55>Calcs!CJ21,AT55<=Calcs!CK21),Highest20, IF(AT55>Calcs!CK21,Highest10,"")))))))) ->  | AX55: =IFERROR('Optional - input raw data'!AB34/'Optional - input raw data'!AB19,"") ->  | AZ55: =IF(OR(AZ$14="",AZ$15="",AZ$16="",AZ$17="",AX55=""),"", IF(AX55<=Calcs!CM21,Lowest10, IF(AND(AX55>Calcs!CM21,AX55<=Calcs!CN21),Lowest20, IF(AND(AX55>Calcs!CN21,AX55<=Calcs!CO21),Inline, IF(AND(AX55>Calcs!CO21,AX55<=Calcs!CQ21),Middle20, IF(AND(AX55>Calcs!CQ21,AX55<=Calcs!CR21),Inline, IF(AND(AX55>Calcs!CR21,AX55<=Calcs!CS21),Highest20, IF(AX55>Calcs!CS21,Highest10,"")))))))) ->  | BB55: =IFERROR('Optional - input raw data'!AD34/'Optional - input raw data'!AD19,"") ->  | BD55: =IF(OR(BD$14="",BD$15="",BD$16="",BD$17="",BB55=""),"", IF(BB55<=Calcs!CU21,Lowest10, IF(AND(BB55>Calcs!CU21,BB55<=Calcs!CV21),Lowest20, IF(AND(BB55>Calcs!CV21,BB55<=Calcs!CW21),Inline, IF(AND(BB55>Calcs!CW21,BB55<=Calcs!CY21),Middle20, IF(AND(BB55>Calcs!CY21,BB55<=Calcs!CZ21),Inline, IF(AND(BB55>Calcs!CZ21,BB55<=Calcs!DA21),Highest20, IF(BB55>Calcs!DA21,Highest10,"")))))))) ->  | BF55: =IFERROR('Optional - input raw data'!AF34/'Optional - input raw data'!AF19,"") ->  | BH55: =IF(OR(BH$14="",BH$15="",BH$16="",BH$17="",BF55=""),"", IF(BF55<=Calcs!DC21,Lowest10, IF(AND(BF55>Calcs!DC21,BF55<=Calcs!DD21),Lowest20, IF(AND(BF55>Calcs!DD21,BF55<=Calcs!DE21),Inline, IF(AND(BF55>Calcs!DE21,BF55<=Calcs!DG21),Middle20, IF(AND(BF55>Calcs!DG21,BF55<=Calcs!DH21),Inline, IF(AND(BF55>Calcs!DH21,BF55<=Calcs!DI21),Highest20, IF(BF55>Calcs!DI21,Highest10,"")))))))) ->  | BJ55: =IFERROR('Optional - input raw data'!AH34/'Optional - input raw data'!AH19,"") ->  | BL55: =IF(OR(BL$14="",BL$15="",BL$16="",BL$17="",BJ55=""),"", IF(BJ55<=Calcs!DK21,Lowest10, IF(AND(BJ55>Calcs!DK21,BJ55<=Calcs!DL21),Lowest20, IF(AND(BJ55>Calcs!DL21,BJ55<=Calcs!DM21),Inline, IF(AND(BJ55>Calcs!DM21,BJ55<=Calcs!DO21),Middle20, IF(AND(BJ55>Calcs!DO21,BJ55<=Calcs!DP21),Inline, IF(AND(BJ55>Calcs!DP21,BJ55<=Calcs!DQ21),Highest20, IF(BJ55>Calcs!DQ21,Highest10,"")))))))) ->  | BN55: =IFERROR('Optional - input raw data'!AJ34/'Optional - input raw data'!AJ19,"") ->  | BP55: =IF(OR(BP$14="",BP$15="",BP$16="",BP$17="",BN55=""),"", IF(BN55<=Calcs!DS21,Lowest10, IF(AND(BN55>Calcs!DS21,BN55<=Calcs!DT21),Lowest20, IF(AND(BN55>Calcs!DT21,BN55<=Calcs!DU21),Inline, IF(AND(BN55>Calcs!DU21,BN55<=Calcs!DW21),Middle20, IF(AND(BN55>Calcs!DW21,BN55<=Calcs!DX21),Inline, IF(AND(BN55>Calcs!DX21,BN55<=Calcs!DY21),Highest20, IF(BN55>Calcs!DY21,Highest10,"")))))))) ->  | BR55: =IFERROR('Optional - input raw data'!AL34/'Optional - input raw data'!AL19,"") ->  | BT55: =IF(OR(BT$14="",BT$15="",BT$16="",BT$17="",BR55=""),"", IF(BR55<=Calcs!EA21,Lowest10, IF(AND(BR55>Calcs!EA21,BR55<=Calcs!EB21),Lowest20, IF(AND(BR55>Calcs!EB21,BR55<=Calcs!EC21),Inline, IF(AND(BR55>Calcs!EC21,BR55<=Calcs!EE21),Middle20, IF(AND(BR55>Calcs!EE21,BR55<=Calcs!EF21),Inline, IF(AND(BR55>Calcs!EF21,BR55<=Calcs!EG21),Highest20, IF(BR55>Calcs!EG21,Highest10,"")))))))) ->  | BV55: =IFERROR('Optional - input raw data'!AN34/'Optional - input raw data'!AN19,"") ->  | BX55: =IF(OR(BX$14="",BX$15="",BX$16="",BX$17="",BV55=""),"", IF(BV55<=Calcs!EI21,Lowest10, IF(AND(BV55>Calcs!EI21,BV55<=Calcs!EJ21),Lowest20, IF(AND(BV55>Calcs!EJ21,BV55<=Calcs!EK21),Inline, IF(AND(BV55>Calcs!EK21,BV55<=Calcs!EM21),Middle20, IF(AND(BV55>Calcs!EM21,BV55<=Calcs!EN21),Inline, IF(AND(BV55>Calcs!EN21,BV55<=Calcs!EO21),Highest20, IF(BV55>Calcs!EO21,Highest10,"")))))))) ->  | BZ55: =IFERROR('Optional - input raw data'!AP34/'Optional - input raw data'!AP19,"") ->  | CB55: =IF(OR(CB$14="",CB$15="",CB$16="",CB$17="",BZ55=""),"", IF(BZ55<=Calcs!EQ21,Lowest10, IF(AND(BZ55>Calcs!EQ21,BZ55<=Calcs!ER21),Lowest20, IF(AND(BZ55>Calcs!ER21,BZ55<=Calcs!ES21),Inline, IF(AND(BZ55>Calcs!ES21,BZ55<=Calcs!EU21),Middle20, IF(AND(BZ55>Calcs!EU21,BZ55<=Calcs!EV21),Inline, IF(AND(BZ55>Calcs!EV21,BZ55<=Calcs!EW21),Highest20, IF(BZ55>Calcs!EW21,Highest10,"")))))))) ->  | CD55: =IFERROR('Optional - input raw data'!AR34/'Optional - input raw data'!AR19,Calcs!$A$75) ->  | CF55: =IF(OR(CF$14="",CF$15="",CF$16="",CF$17="",CD55=""),"", IF(CD55<=Calcs!EY21,Lowest10, IF(AND(CD55>Calcs!EY21,CD55<=Calcs!EZ21),Lowest20, IF(AND(CD55>Calcs!EZ21,CD55<=Calcs!FA21),Inline, IF(AND(CD55>Calcs!FA21,CD55<=Calcs!FC21),Middle20, IF(AND(CD55>Calcs!FC21,CD55<=Calcs!FD21),Inline, IF(AND(CD55>Calcs!FD21,CD55<=Calcs!FE21),Highest20, IF(CD55>Calcs!FE21,Highest10,"")))))))) -> 
C56: Senior leaders as a percentage of workforce | D56: Guidance | F56: =IFERROR('Optional - input raw data'!F20/'Optional - input raw data'!F21,Calcs!$A$75) -> 7.1% | H56: =IF(OR(H$14="",H$15="",H$16="",H$17="",F56=""),"", IF(F56<=Calcs!E17,Inline, IF(AND(F56>Calcs!E17,F56<=Calcs!G17),Middle20, IF(AND(F56>Calcs!G17,F56<=Calcs!H17),Inline, IF(AND(F56>Calcs!H17,F56<=Calcs!I17),Highest20, IF(F56>Calcs!I17,Highest10,"")))))) -> Highest 20% of similar schools | J56: =IFERROR('Optional - input raw data'!H20/'Optional - input raw data'!H21,Calcs!$A$75) ->  | L56: =IF(OR(L$14="",L$15="",L$16="",L$17="",J56=""),"", IF(J56<=Calcs!M17,Inline, IF(AND(J56>Calcs!M17,J56<=Calcs!O17),Middle20, IF(AND(J56>Calcs!O17,J56<=Calcs!P17),Inline, IF(AND(J56>Calcs!P17,J56<=Calcs!Q17),Highest20, IF(J56>Calcs!Q17,Highest10,"")))))) ->  | N56: =IFERROR('Optional - input raw data'!J20/'Optional - input raw data'!J21,Calcs!$A$75) ->  | P56: =IF(OR(P$14="",P$15="",P$16="",P$17="",N56=""),"", IF(N56<=Calcs!U17,Inline, IF(AND(N56>Calcs!U17,N56<=Calcs!W17),Middle20, IF(AND(N56>Calcs!W17,N56<=Calcs!X17),Inline, IF(AND(N56>Calcs!X17,N56<=Calcs!Y17),Highest20, IF(N56>Calcs!Y17,Highest10,"")))))) ->  | R56: =IFERROR('Optional - input raw data'!L20/'Optional - input raw data'!L21,Calcs!$A$75) ->  | T56: =IF(OR(T$14="",T$15="",T$16="",T$17="",R56=""),"", IF(R56<=Calcs!AC17,Inline, IF(AND(R56>Calcs!AC17,R56<=Calcs!AE17),Middle20, IF(AND(R56>Calcs!AE17,R56<=Calcs!AF17),Inline, IF(AND(R56>Calcs!AF17,R56<=Calcs!AG17),Highest20, IF(R56>Calcs!AG17,Highest10,"")))))) ->  | V56: =IFERROR('Optional - input raw data'!N20/'Optional - input raw data'!N21,"") ->  | X56: =IF(OR(X$14="",X$15="",X$16="",X$17="",V56=""),"", IF(V56<=Calcs!AK17,Inline, IF(AND(V56>Calcs!AK17,V56<=Calcs!AM17),Middle20, IF(AND(V56>Calcs!AM17,V56<=Calcs!AN17),Inline, IF(AND(V56>Calcs!AN17,V56<=Calcs!AO17),Highest20, IF(V56>Calcs!AO17,Highest10,"")))))) ->  | Z56: =IFERROR('Optional - input raw data'!P20/'Optional - input raw data'!P21,"") ->  | AB56: =IF(OR(AB$14="",AB$15="",AB$16="",AB$17="",Z56=""),"", IF(Z56<=Calcs!AS17,Inline, IF(AND(Z56>Calcs!AS17,Z56<=Calcs!AU17),Middle20, IF(AND(Z56>Calcs!AU17,Z56<=Calcs!AV17),Inline, IF(AND(Z56>Calcs!AV17,Z56<=Calcs!AW17),Highest20, IF(Z56>Calcs!AW17,Highest10,"")))))) ->  | AD56: =IFERROR('Optional - input raw data'!R20/'Optional - input raw data'!R21,"") ->  | AF56: =IF(OR(AF$14="",AF$15="",AF$16="",AF$17="",AD56=""),"", IF(AD56<=Calcs!BA17,Inline, IF(AND(AD56>Calcs!BA17,AD56<=Calcs!BC17),Middle20, IF(AND(AD56>Calcs!BC17,AD56<=Calcs!BD17),Inline, IF(AND(AD56>Calcs!BD17,AD56<=Calcs!BE17),Highest20, IF(AD56>Calcs!BE17,Highest10,"")))))) ->  | AH56: =IFERROR('Optional - input raw data'!T20/'Optional - input raw data'!T21,"") ->  | AJ56: =IF(OR(AJ$14="",AJ$15="",AJ$16="",AJ$17="",AH56=""),"", IF(AH56<=Calcs!BI17,Inline, IF(AND(AH56>Calcs!BI17,AH56<=Calcs!BK17),Middle20, IF(AND(AH56>Calcs!BK17,AH56<=Calcs!BL17),Inline, IF(AND(AH56>Calcs!BL17,AH56<=Calcs!BM17),Highest20, IF(AH56>Calcs!BM17,Highest10,"")))))) ->  | AL56: =IFERROR('Optional - input raw data'!V20/'Optional - input raw data'!V21,"") ->  | AN56: =IF(OR(AN$14="",AN$15="",AN$16="",AN$17="",AL56=""),"", IF(AL56<=Calcs!BQ17,Inline, IF(AND(AL56>Calcs!BQ17,AL56<=Calcs!BS17),Middle20, IF(AND(AL56>Calcs!BS17,AL56<=Calcs!BT17),Inline, IF(AND(AL56>Calcs!BT17,AL56<=Calcs!BU17),Highest20, IF(AL56>Calcs!BU17,Highest10,"")))))) ->  | AP56: =IFERROR('Optional - input raw data'!X20/'Optional - input raw data'!X21,"") ->  | AR56: =IF(OR(AR$14="",AR$15="",AR$16="",AR$17="",AP56=""),"", IF(AP56<=Calcs!BY17,Inline, IF(AND(AP56>Calcs!BY17,AP56<=Calcs!CA17),Middle20, IF(AND(AP56>Calcs!CA17,AP56<=Calcs!CB17),Inline, IF(AND(AP56>Calcs!CB17,AP56<=Calcs!CC17),Highest20, IF(AP56>Calcs!CC17,Highest10,"")))))) ->  | AT56: =IFERROR('Optional - input raw data'!Z20/'Optional - input raw data'!Z21,"") ->  | AV56: =IF(OR(AV$14="",AV$15="",AV$16="",AV$17="",AT56=""),"", IF(AT56<=Calcs!CG17,Inline, IF(AND(AT56>Calcs!CG17,AT56<=Calcs!CI17),Middle20, IF(AND(AT56>Calcs!CI17,AT56<=Calcs!CJ17),Inline, IF(AND(AT56>Calcs!CJ17,AT56<=Calcs!CK17),Highest20, IF(AT56>Calcs!CK17,Highest10,"")))))) ->  | AX56: =IFERROR('Optional - input raw data'!AB20/'Optional - input raw data'!AB21,"") ->  | AZ56: =IF(OR(AZ$14="",AZ$15="",AZ$16="",AZ$17="",AX56=""),"", IF(AX56<=Calcs!CO17,Inline, IF(AND(AX56>Calcs!CO17,AX56<=Calcs!CQ17),Middle20, IF(AND(AX56>Calcs!CQ17,AX56<=Calcs!CR17),Inline, IF(AND(AX56>Calcs!CR17,AX56<=Calcs!CS17),Highest20, IF(AX56>Calcs!CS17,Highest10,"")))))) ->  | BB56: =IFERROR('Optional - input raw data'!AD20/'Optional - input raw data'!AD21,"") ->  | BD56: =IF(OR(BD$14="",BD$15="",BD$16="",BD$17="",BB56=""),"", IF(BB56<=Calcs!CW17,Inline, IF(AND(BB56>Calcs!CW17,BB56<=Calcs!CY17),Middle20, IF(AND(BB56>Calcs!CY17,BB56<=Calcs!CZ17),Inline, IF(AND(BB56>Calcs!CZ17,BB56<=Calcs!DA17),Highest20, IF(BB56>Calcs!DA17,Highest10,"")))))) ->  | BF56: =IFERROR('Optional - input raw data'!AF20/'Optional - input raw data'!AF21,"") ->  | BH56: =IF(OR(BH$14="",BH$15="",BH$16="",BH$17="",BF56=""),"", IF(BF56<=Calcs!DE17,Inline, IF(AND(BF56>Calcs!DE17,BF56<=Calcs!DG17),Middle20, IF(AND(BF56>Calcs!DG17,BF56<=Calcs!DH17),Inline, IF(AND(BF56>Calcs!DH17,BF56<=Calcs!DI17),Highest20, IF(BF56>Calcs!DI17,Highest10,"")))))) ->  | BJ56: =IFERROR('Optional - input raw data'!AH20/'Optional - input raw data'!AH21,"") ->  | BL56: =IF(OR(BL$14="",BL$15="",BL$16="",BL$17="",BJ56=""),"", IF(BJ56<=Calcs!DM17,Inline, IF(AND(BJ56>Calcs!DM17,BJ56<=Calcs!DO17),Middle20, IF(AND(BJ56>Calcs!DO17,BJ56<=Calcs!DP17),Inline, IF(AND(BJ56>Calcs!DP17,BJ56<=Calcs!DQ17),Highest20, IF(BJ56>Calcs!DQ17,Highest10,"")))))) ->  | BN56: =IFERROR('Optional - input raw data'!AJ20/'Optional - input raw data'!AJ21,"") ->  | BP56: =IF(OR(BP$14="",BP$15="",BP$16="",BP$17="",BN56=""),"", IF(BN56<=Calcs!DU17,Inline, IF(AND(BN56>Calcs!DU17,BN56<=Calcs!DW17),Middle20, IF(AND(BN56>Calcs!DW17,BN56<=Calcs!DX17),Inline, IF(AND(BN56>Calcs!DX17,BN56<=Calcs!DY17),Highest20, IF(BN56>Calcs!DY17,Highest10,"")))))) ->  | BR56: =IFERROR('Optional - input raw data'!AL20/'Optional - input raw data'!AL21,"") ->  | BT56: =IF(OR(BT$14="",BT$15="",BT$16="",BT$17="",BR56=""),"", IF(BR56<=Calcs!EC17,Inline, IF(AND(BR56>Calcs!EC17,BR56<=Calcs!EE17),Middle20, IF(AND(BR56>Calcs!EE17,BR56<=Calcs!EF17),Inline, IF(AND(BR56>Calcs!EF17,BR56<=Calcs!EG17),Highest20, IF(BR56>Calcs!EG17,Highest10,"")))))) ->  | BV56: =IFERROR('Optional - input raw data'!AN20/'Optional - input raw data'!AN21,"") ->  | BX56: =IF(OR(BX$14="",BX$15="",BX$16="",BX$17="",BV56=""),"", IF(BV56<=Calcs!EK17,Inline, IF(AND(BV56>Calcs!EK17,BV56<=Calcs!EM17),Middle20, IF(AND(BV56>Calcs!EM17,BV56<=Calcs!EN17),Inline, IF(AND(BV56>Calcs!EN17,BV56<=Calcs!EO17),Highest20, IF(BV56>Calcs!EO17,Highest10,"")))))) ->  | BZ56: =IFERROR('Optional - input raw data'!AP20/'Optional - input raw data'!AP21,"") ->  | CB56: =IF(OR(CB$14="",CB$15="",CB$16="",CB$17="",BZ56=""),"", IF(BZ56<=Calcs!ES17,Inline, IF(AND(BZ56>Calcs!ES17,BZ56<=Calcs!EU17),Middle20, IF(AND(BZ56>Calcs!EU17,BZ56<=Calcs!EV17),Inline, IF(AND(BZ56>Calcs!EV17,BZ56<=Calcs!EW17),Highest20, IF(BZ56>Calcs!EW17,Highest10,"")))))) ->  | CD56: =IFERROR('Optional - input raw data'!AR20/'Optional - input raw data'!AR21,Calcs!$A$75) ->  | CF56: =IF(OR(CF$14="",CF$15="",CF$16="",CF$17="",CD56=""),"", IF(CD56<=Calcs!FA17,Inline, IF(AND(CD56>Calcs!FA17,CD56<=Calcs!FC17),Middle20, IF(AND(CD56>Calcs!FC17,CD56<=Calcs!FD17),Inline, IF(AND(CD56>Calcs!FD17,CD56<=Calcs!FE17),Highest20, IF(CD56>Calcs!FE17,Highest10,"")))))) -> 
C57: Pupil to teacher ratio | D57: Guidance | F57: =IFERROR(H16/'Optional - input raw data'!F19,Calcs!$A$75) -> 18.5 | H57: =IF(OR(H$14="",H$15="",H$16="",H$17="",F57=""),"", IF(F57<=Calcs!C18,Lowest10, IF(AND(F57>Calcs!C18,F57<=Calcs!D18),Lowest20, IF(AND(F57>Calcs!D18,F57<=Calcs!E18),Inline, IF(AND(F57>Calcs!E18,F57<=Calcs!G18),Middle20, IF(AND(F57>Calcs!G18,F57<=Calcs!H18),Inline, IF(AND(F57>Calcs!H18,F57<=Calcs!I18),Highest20, IF(F57>Calcs!I18,Highest10,"")))))))) -> Highest 20% of similar schools | J57: =IFERROR(L16/'Optional - input raw data'!H19,Calcs!$A$75) ->  | L57: =IF(OR(L$14="",L$15="",L$16="",L$17="",J57=""),"", IF(J57<=Calcs!K18,Lowest10, IF(AND(J57>Calcs!K18,J57<=Calcs!L18),Lowest20, IF(AND(J57>Calcs!L18,J57<=Calcs!M18),Inline, IF(AND(J57>Calcs!M18,J57<=Calcs!O18),Middle20, IF(AND(J57>Calcs!O18,J57<=Calcs!P18),Inline, IF(AND(J57>Calcs!P18,J57<=Calcs!Q18),Highest20, IF(J57>Calcs!Q18,Highest10,"")))))))) ->  | N57: =IFERROR(P16/'Optional - input raw data'!J19,Calcs!$A$75) ->  | P57: =IF(OR(P$14="",P$15="",P$16="",P$17="",N57=""),"", IF(N57<=Calcs!S18,Lowest10, IF(AND(N57>Calcs!S18,N57<=Calcs!T18),Lowest20, IF(AND(N57>Calcs!T18,N57<=Calcs!U18),Inline, IF(AND(N57>Calcs!U18,N57<=Calcs!W18),Middle20, IF(AND(N57>Calcs!W18,N57<=Calcs!X18),Inline, IF(AND(N57>Calcs!X18,N57<=Calcs!Y18),Highest20, IF(N57>Calcs!Y18,Highest10,"")))))))) ->  | R57: =IFERROR(T16/'Optional - input raw data'!L19,Calcs!$A$75) ->  | T57: =IF(OR(T$14="",T$15="",T$16="",T$17="",R57=""),"", IF(R57<=Calcs!AA18,Lowest10, IF(AND(R57>Calcs!AA18,R57<=Calcs!AB18),Lowest20, IF(AND(R57>Calcs!AB18,R57<=Calcs!AC18),Inline, IF(AND(R57>Calcs!AC18,R57<=Calcs!AE18),Middle20, IF(AND(R57>Calcs!AE18,R57<=Calcs!AF18),Inline, IF(AND(R57>Calcs!AF18,R57<=Calcs!AG18),Highest20, IF(R57>Calcs!AG18,Highest10,"")))))))) ->  | V57: =IFERROR(X16/'Optional - input raw data'!N19,"") ->  | X57: =IF(OR(X$14="",X$15="",X$16="",X$17="",V57=""),"", IF(V57<=Calcs!AI18,Lowest10, IF(AND(V57>Calcs!AI18,V57<=Calcs!AJ18),Lowest20, IF(AND(V57>Calcs!AJ18,V57<=Calcs!AK18),Inline, IF(AND(V57>Calcs!AK18,V57<=Calcs!AM18),Middle20, IF(AND(V57>Calcs!AM18,V57<=Calcs!AN18),Inline, IF(AND(V57>Calcs!AN18,V57<=Calcs!AO18),Highest20, IF(V57>Calcs!AO18,Highest10,"")))))))) ->  | Z57: =IFERROR(AB16/'Optional - input raw data'!P19,"") ->  | AB57: =IF(OR(AB$14="",AB$15="",AB$16="",AB$17="",Z57=""),"", IF(Z57<=Calcs!AQ18,Lowest10, IF(AND(Z57>Calcs!AQ18,Z57<=Calcs!AR18),Lowest20, IF(AND(Z57>Calcs!AR18,Z57<=Calcs!AS18),Inline, IF(AND(Z57>Calcs!AS18,Z57<=Calcs!AU18),Middle20, IF(AND(Z57>Calcs!AU18,Z57<=Calcs!AV18),Inline, IF(AND(Z57>Calcs!AV18,Z57<=Calcs!AW18),Highest20, IF(Z57>Calcs!AW18,Highest10,"")))))))) ->  | AD57: =IFERROR(AF16/'Optional - input raw data'!R19,"") ->  | AF57: =IF(OR(AF$14="",AF$15="",AF$16="",AF$17="",AD57=""),"", IF(AD57<=Calcs!AY18,Lowest10, IF(AND(AD57>Calcs!AY18,AD57<=Calcs!AZ18),Lowest20, IF(AND(AD57>Calcs!AZ18,AD57<=Calcs!BA18),Inline, IF(AND(AD57>Calcs!BA18,AD57<=Calcs!BC18),Middle20, IF(AND(AD57>Calcs!BC18,AD57<=Calcs!BD18),Inline, IF(AND(AD57>Calcs!BD18,AD57<=Calcs!BE18),Highest20, IF(AD57>Calcs!BE18,Highest10,"")))))))) ->  | AH57: =IFERROR(AJ16/'Optional - input raw data'!T19,"") ->  | AJ57: =IF(OR(AJ$14="",AJ$15="",AJ$16="",AJ$17="",AH57=""),"", IF(AH57<=Calcs!BG18,Lowest10, IF(AND(AH57>Calcs!BG18,AH57<=Calcs!BH18),Lowest20, IF(AND(AH57>Calcs!BH18,AH57<=Calcs!BI18),Inline, IF(AND(AH57>Calcs!BI18,AH57<=Calcs!BK18),Middle20, IF(AND(AH57>Calcs!BK18,AH57<=Calcs!BL18),Inline, IF(AND(AH57>Calcs!BL18,AH57<=Calcs!BM18),Highest20, IF(AH57>Calcs!BM18,Highest10,"")))))))) ->  | AL57: =IFERROR(AN16/'Optional - input raw data'!V19,"") ->  | AN57: =IF(OR(AN$14="",AN$15="",AN$16="",AN$17="",AL57=""),"", IF(AL57<=Calcs!BO18,Lowest10, IF(AND(AL57>Calcs!BO18,AL57<=Calcs!BP18),Lowest20, IF(AND(AL57>Calcs!BP18,AL57<=Calcs!BQ18),Inline, IF(AND(AL57>Calcs!BQ18,AL57<=Calcs!BS18),Middle20, IF(AND(AL57>Calcs!BS18,AL57<=Calcs!BT18),Inline, IF(AND(AL57>Calcs!BT18,AL57<=Calcs!BU18),Highest20, IF(AL57>Calcs!BU18,Highest10,"")))))))) ->  | AP57: =IFERROR(AR16/'Optional - input raw data'!X19,"") ->  | AR57: =IF(OR(AR$14="",AR$15="",AR$16="",AR$17="",AP57=""),"", IF(AP57<=Calcs!BW18,Lowest10, IF(AND(AP57>Calcs!BW18,AP57<=Calcs!BX18),Lowest20, IF(AND(AP57>Calcs!BX18,AP57<=Calcs!BY18),Inline, IF(AND(AP57>Calcs!BY18,AP57<=Calcs!CA18),Middle20, IF(AND(AP57>Calcs!CA18,AP57<=Calcs!CB18),Inline, IF(AND(AP57>Calcs!CB18,AP57<=Calcs!CC18),Highest20, IF(AP57>Calcs!CC18,Highest10,"")))))))) ->  | AT57: =IFERROR(AV16/'Optional - input raw data'!Z19,"") ->  | AV57: =IF(OR(AV$14="",AV$15="",AV$16="",AV$17="",AT57=""),"", IF(AT57<=Calcs!CE18,Lowest10, IF(AND(AT57>Calcs!CE18,AT57<=Calcs!CF18),Lowest20, IF(AND(AT57>Calcs!CF18,AT57<=Calcs!CG18),Inline, IF(AND(AT57>Calcs!CG18,AT57<=Calcs!CI18),Middle20, IF(AND(AT57>Calcs!CI18,AT57<=Calcs!CJ18),Inline, IF(AND(AT57>Calcs!CJ18,AT57<=Calcs!CK18),Highest20, IF(AT57>Calcs!CK18,Highest10,"")))))))) ->  | AX57: =IFERROR(AZ16/'Optional - input raw data'!AB19,"") ->  | AZ57: =IF(OR(AZ$14="",AZ$15="",AZ$16="",AZ$17="",AX57=""),"", IF(AX57<=Calcs!CM18,Lowest10, IF(AND(AX57>Calcs!CM18,AX57<=Calcs!CN18),Lowest20, IF(AND(AX57>Calcs!CN18,AX57<=Calcs!CO18),Inline, IF(AND(AX57>Calcs!CO18,AX57<=Calcs!CQ18),Middle20, IF(AND(AX57>Calcs!CQ18,AX57<=Calcs!CR18),Inline, IF(AND(AX57>Calcs!CR18,AX57<=Calcs!CS18),Highest20, IF(AX57>Calcs!CS18,Highest10,"")))))))) ->  | BB57: =IFERROR(BD16/'Optional - input raw data'!AD19,"") ->  | BD57: =IF(OR(BD$14="",BD$15="",BD$16="",BD$17="",BB57=""),"", IF(BB57<=Calcs!CU18,Lowest10, IF(AND(BB57>Calcs!CU18,BB57<=Calcs!CV18),Lowest20, IF(AND(BB57>Calcs!CV18,BB57<=Calcs!CW18),Inline, IF(AND(BB57>Calcs!CW18,BB57<=Calcs!CY18),Middle20, IF(AND(BB57>Calcs!CY18,BB57<=Calcs!CZ18),Inline, IF(AND(BB57>Calcs!CZ18,BB57<=Calcs!DA18),Highest20, IF(BB57>Calcs!DA18,Highest10,"")))))))) ->  | BF57: =IFERROR(BH16/'Optional - input raw data'!AF19,"") ->  | BH57: =IF(OR(BH$14="",BH$15="",BH$16="",BH$17="",BF57=""),"", IF(BF57<=Calcs!DC18,Lowest10, IF(AND(BF57>Calcs!DC18,BF57<=Calcs!DD18),Lowest20, IF(AND(BF57>Calcs!DD18,BF57<=Calcs!DE18),Inline, IF(AND(BF57>Calcs!DE18,BF57<=Calcs!DG18),Middle20, IF(AND(BF57>Calcs!DG18,BF57<=Calcs!DH18),Inline, IF(AND(BF57>Calcs!DH18,BF57<=Calcs!DI18),Highest20, IF(BF57>Calcs!DI18,Highest10,"")))))))) ->  | BJ57: =IFERROR(BL16/'Optional - input raw data'!AH19,"") ->  | BL57: =IF(OR(BL$14="",BL$15="",BL$16="",BL$17="",BJ57=""),"", IF(BJ57<=Calcs!DK18,Lowest10, IF(AND(BJ57>Calcs!DK18,BJ57<=Calcs!DL18),Lowest20, IF(AND(BJ57>Calcs!DL18,BJ57<=Calcs!DM18),Inline, IF(AND(BJ57>Calcs!DM18,BJ57<=Calcs!DO18),Middle20, IF(AND(BJ57>Calcs!DO18,BJ57<=Calcs!DP18),Inline, IF(AND(BJ57>Calcs!DP18,BJ57<=Calcs!DQ18),Highest20, IF(BJ57>Calcs!DQ18,Highest10,"")))))))) ->  | BN57: =IFERROR(BP16/'Optional - input raw data'!AJ19,"") ->  | BP57: =IF(OR(BP$14="",BP$15="",BP$16="",BP$17="",BN57=""),"", IF(BN57<=Calcs!DS18,Lowest10, IF(AND(BN57>Calcs!DS18,BN57<=Calcs!DT18),Lowest20, IF(AND(BN57>Calcs!DT18,BN57<=Calcs!DU18),Inline, IF(AND(BN57>Calcs!DU18,BN57<=Calcs!DW18),Middle20, IF(AND(BN57>Calcs!DW18,BN57<=Calcs!DX18),Inline, IF(AND(BN57>Calcs!DX18,BN57<=Calcs!DY18),Highest20, IF(BN57>Calcs!DY18,Highest10,"")))))))) ->  | BR57: =IFERROR(BT16/'Optional - input raw data'!AL19,"") ->  | BT57: =IF(OR(BT$14="",BT$15="",BT$16="",BT$17="",BR57=""),"", IF(BR57<=Calcs!EA18,Lowest10, IF(AND(BR57>Calcs!EA18,BR57<=Calcs!EB18),Lowest20, IF(AND(BR57>Calcs!EB18,BR57<=Calcs!EC18),Inline, IF(AND(BR57>Calcs!EC18,BR57<=Calcs!EE18),Middle20, IF(AND(BR57>Calcs!EE18,BR57<=Calcs!EF18),Inline, IF(AND(BR57>Calcs!EF18,BR57<=Calcs!EG18),Highest20, IF(BR57>Calcs!EG18,Highest10,"")))))))) ->  | BV57: =IFERROR(BX16/'Optional - input raw data'!AN19,"") ->  | BX57: =IF(OR(BX$14="",BX$15="",BX$16="",BX$17="",BV57=""),"", IF(BV57<=Calcs!EI18,Lowest10, IF(AND(BV57>Calcs!EI18,BV57<=Calcs!EJ18),Lowest20, IF(AND(BV57>Calcs!EJ18,BV57<=Calcs!EK18),Inline, IF(AND(BV57>Calcs!EK18,BV57<=Calcs!EM18),Middle20, IF(AND(BV57>Calcs!EM18,BV57<=Calcs!EN18),Inline, IF(AND(BV57>Calcs!EN18,BV57<=Calcs!EO18),Highest20, IF(BV57>Calcs!EO18,Highest10,"")))))))) ->  | BZ57: =IFERROR(CB16/'Optional - input raw data'!AP19,"") ->  | CB57: =IF(OR(CB$14="",CB$15="",CB$16="",CB$17="",BZ57=""),"", IF(BZ57<=Calcs!EQ18,Lowest10, IF(AND(BZ57>Calcs!EQ18,BZ57<=Calcs!ER18),Lowest20, IF(AND(BZ57>Calcs!ER18,BZ57<=Calcs!ES18),Inline, IF(AND(BZ57>Calcs!ES18,BZ57<=Calcs!EU18),Middle20, IF(AND(BZ57>Calcs!EU18,BZ57<=Calcs!EV18),Inline, IF(AND(BZ57>Calcs!EV18,BZ57<=Calcs!EW18),Highest20, IF(BZ57>Calcs!EW18,Highest10,"")))))))) ->  | CD57: =IFERROR(CF16/'Optional - input raw data'!AR19,Calcs!$A$75) ->  | CF57: =IF(OR(CF$14="",CF$15="",CF$16="",CF$17="",CD57=""),"", IF(CD57<=Calcs!EY18,Lowest10, IF(AND(CD57>Calcs!EY18,CD57<=Calcs!EZ18),Lowest20, IF(AND(CD57>Calcs!EZ18,CD57<=Calcs!FA18),Inline, IF(AND(CD57>Calcs!FA18,CD57<=Calcs!FC18),Middle20, IF(AND(CD57>Calcs!FC18,CD57<=Calcs!FD18),Inline, IF(AND(CD57>Calcs!FD18,CD57<=Calcs!FE18),Highest20, IF(CD57>Calcs!FE18,Highest10,"")))))))) -> 
C58: Pupil to adult ratio | D58: Guidance | F58: =IFERROR(H16/'Optional - input raw data'!F21,Calcs!$A$75) -> 10.7 | H58: =IF(OR(H$14="",H$15="",H$16="",H$17="",F58=""),"", IF(F58<=Calcs!C19,Lowest10, IF(AND(F58>Calcs!C19,F58<=Calcs!D19),Lowest20, IF(AND(F58>Calcs!D19,F58<=Calcs!E19),Inline, IF(AND(F58>Calcs!E19,F58<=Calcs!G19),Middle20, IF(AND(F58>Calcs!G19,F58<=Calcs!H19),Inline, IF(AND(F58>Calcs!H19,F58<=Calcs!I19),Highest20, IF(F58>Calcs!I19,Highest10,"")))))))) -> Broadly in line with similar schools | J58: =IFERROR(L16/'Optional - input raw data'!H21,Calcs!$A$75) ->  | L58: =IF(OR(L$14="",L$15="",L$16="",L$17="",J58=""),"", IF(J58<=Calcs!K19,Lowest10, IF(AND(J58>Calcs!K19,J58<=Calcs!L19),Lowest20, IF(AND(J58>Calcs!L19,J58<=Calcs!M19),Inline, IF(AND(J58>Calcs!M19,J58<=Calcs!O19),Middle20, IF(AND(J58>Calcs!O19,J58<=Calcs!P19),Inline, IF(AND(J58>Calcs!P19,J58<=Calcs!Q19),Highest20, IF(J58>Calcs!Q19,Highest10,"")))))))) ->  | N58: =IFERROR(P16/'Optional - input raw data'!J21,Calcs!$A$75) ->  | P58: =IF(OR(P$14="",P$15="",P$16="",P$17="",N58=""),"", IF(N58<=Calcs!S19,Lowest10, IF(AND(N58>Calcs!S19,N58<=Calcs!T19),Lowest20, IF(AND(N58>Calcs!T19,N58<=Calcs!U19),Inline, IF(AND(N58>Calcs!U19,N58<=Calcs!W19),Middle20, IF(AND(N58>Calcs!W19,N58<=Calcs!X19),Inline, IF(AND(N58>Calcs!X19,N58<=Calcs!Y19),Highest20, IF(N58>Calcs!Y19,Highest10,"")))))))) ->  | R58: =IFERROR(T16/'Optional - input raw data'!L21,Calcs!$A$75) ->  | T58: =IF(OR(T$14="",T$15="",T$16="",T$17="",R58=""),"", IF(R58<=Calcs!AA19,Lowest10, IF(AND(R58>Calcs!AA19,R58<=Calcs!AB19),Lowest20, IF(AND(R58>Calcs!AB19,R58<=Calcs!AC19),Inline, IF(AND(R58>Calcs!AC19,R58<=Calcs!AE19),Middle20, IF(AND(R58>Calcs!AE19,R58<=Calcs!AF19),Inline, IF(AND(R58>Calcs!AF19,R58<=Calcs!AG19),Highest20, IF(R58>Calcs!AG19,Highest10,"")))))))) ->  | V58: =IFERROR(X16/'Optional - input raw data'!N21,"") ->  | X58: =IF(OR(X$14="",X$15="",X$16="",X$17="",V58=""),"", IF(V58<=Calcs!AI19,Lowest10, IF(AND(V58>Calcs!AI19,V58<=Calcs!AJ19),Lowest20, IF(AND(V58>Calcs!AJ19,V58<=Calcs!AK19),Inline, IF(AND(V58>Calcs!AK19,V58<=Calcs!AM19),Middle20, IF(AND(V58>Calcs!AM19,V58<=Calcs!AN19),Inline, IF(AND(V58>Calcs!AN19,V58<=Calcs!AO19),Highest20, IF(V58>Calcs!AO19,Highest10,"")))))))) ->  | Z58: =IFERROR(AB16/'Optional - input raw data'!P21,"") ->  | AB58: =IF(OR(AB$14="",AB$15="",AB$16="",AB$17="",Z58=""),"", IF(Z58<=Calcs!AQ19,Lowest10, IF(AND(Z58>Calcs!AQ19,Z58<=Calcs!AR19),Lowest20, IF(AND(Z58>Calcs!AR19,Z58<=Calcs!AS19),Inline, IF(AND(Z58>Calcs!AS19,Z58<=Calcs!AU19),Middle20, IF(AND(Z58>Calcs!AU19,Z58<=Calcs!AV19),Inline, IF(AND(Z58>Calcs!AV19,Z58<=Calcs!AW19),Highest20, IF(Z58>Calcs!AW19,Highest10,"")))))))) ->  | AD58: =IFERROR(AF16/'Optional - input raw data'!R21,"") ->  | AF58: =IF(OR(AF$14="",AF$15="",AF$16="",AF$17="",AD58=""),"", IF(AD58<=Calcs!AY19,Lowest10, IF(AND(AD58>Calcs!AY19,AD58<=Calcs!AZ19),Lowest20, IF(AND(AD58>Calcs!AZ19,AD58<=Calcs!BA19),Inline, IF(AND(AD58>Calcs!BA19,AD58<=Calcs!BC19),Middle20, IF(AND(AD58>Calcs!BC19,AD58<=Calcs!BD19),Inline, IF(AND(AD58>Calcs!BD19,AD58<=Calcs!BE19),Highest20, IF(AD58>Calcs!BE19,Highest10,"")))))))) ->  | AH58: =IFERROR(AJ16/'Optional - input raw data'!T21,"") ->  | AJ58: =IF(OR(AJ$14="",AJ$15="",AJ$16="",AJ$17="",AH58=""),"", IF(AH58<=Calcs!BG19,Lowest10, IF(AND(AH58>Calcs!BG19,AH58<=Calcs!BH19),Lowest20, IF(AND(AH58>Calcs!BH19,AH58<=Calcs!BI19),Inline, IF(AND(AH58>Calcs!BI19,AH58<=Calcs!BK19),Middle20, IF(AND(AH58>Calcs!BK19,AH58<=Calcs!BL19),Inline, IF(AND(AH58>Calcs!BL19,AH58<=Calcs!BM19),Highest20, IF(AH58>Calcs!BM19,Highest10,"")))))))) ->  | AL58: =IFERROR(AN16/'Optional - input raw data'!V21,"") ->  | AN58: =IF(OR(AN$14="",AN$15="",AN$16="",AN$17="",AL58=""),"", IF(AL58<=Calcs!BO19,Lowest10, IF(AND(AL58>Calcs!BO19,AL58<=Calcs!BP19),Lowest20, IF(AND(AL58>Calcs!BP19,AL58<=Calcs!BQ19),Inline, IF(AND(AL58>Calcs!BQ19,AL58<=Calcs!BS19),Middle20, IF(AND(AL58>Calcs!BS19,AL58<=Calcs!BT19),Inline, IF(AND(AL58>Calcs!BT19,AL58<=Calcs!BU19),Highest20, IF(AL58>Calcs!BU19,Highest10,"")))))))) ->  | AP58: =IFERROR(AR16/'Optional - input raw data'!X21,"") ->  | AR58: =IF(OR(AR$14="",AR$15="",AR$16="",AR$17="",AP58=""),"", IF(AP58<=Calcs!BW19,Lowest10, IF(AND(AP58>Calcs!BW19,AP58<=Calcs!BX19),Lowest20, IF(AND(AP58>Calcs!BX19,AP58<=Calcs!BY19),Inline, IF(AND(AP58>Calcs!BY19,AP58<=Calcs!CA19),Middle20, IF(AND(AP58>Calcs!CA19,AP58<=Calcs!CB19),Inline, IF(AND(AP58>Calcs!CB19,AP58<=Calcs!CC19),Highest20, IF(AP58>Calcs!CC19,Highest10,"")))))))) ->  | AT58: =IFERROR(AV16/'Optional - input raw data'!Z21,"") ->  | AV58: =IF(OR(AV$14="",AV$15="",AV$16="",AV$17="",AT58=""),"", IF(AT58<=Calcs!CE19,Lowest10, IF(AND(AT58>Calcs!CE19,AT58<=Calcs!CF19),Lowest20, IF(AND(AT58>Calcs!CF19,AT58<=Calcs!CG19),Inline, IF(AND(AT58>Calcs!CG19,AT58<=Calcs!CI19),Middle20, IF(AND(AT58>Calcs!CI19,AT58<=Calcs!CJ19),Inline, IF(AND(AT58>Calcs!CJ19,AT58<=Calcs!CK19),Highest20, IF(AT58>Calcs!CK19,Highest10,"")))))))) ->  | AX58: =IFERROR(AZ16/'Optional - input raw data'!AB21,"") ->  | AZ58: =IF(OR(AZ$14="",AZ$15="",AZ$16="",AZ$17="",AX58=""),"", IF(AX58<=Calcs!CM19,Lowest10, IF(AND(AX58>Calcs!CM19,AX58<=Calcs!CN19),Lowest20, IF(AND(AX58>Calcs!CN19,AX58<=Calcs!CO19),Inline, IF(AND(AX58>Calcs!CO19,AX58<=Calcs!CQ19),Middle20, IF(AND(AX58>Calcs!CQ19,AX58<=Calcs!CR19),Inline, IF(AND(AX58>Calcs!CR19,AX58<=Calcs!CS19),Highest20, IF(AX58>Calcs!CS19,Highest10,"")))))))) ->  | BB58: =IFERROR(BD16/'Optional - input raw data'!AD21,"") ->  | BD58: =IF(OR(BD$14="",BD$15="",BD$16="",BD$17="",BB58=""),"", IF(BB58<=Calcs!CU19,Lowest10, IF(AND(BB58>Calcs!CU19,BB58<=Calcs!CV19),Lowest20, IF(AND(BB58>Calcs!CV19,BB58<=Calcs!CW19),Inline, IF(AND(BB58>Calcs!CW19,BB58<=Calcs!CY19),Middle20, IF(AND(BB58>Calcs!CY19,BB58<=Calcs!CZ19),Inline, IF(AND(BB58>Calcs!CZ19,BB58<=Calcs!DA19),Highest20, IF(BB58>Calcs!DA19,Highest10,"")))))))) ->  | BF58: =IFERROR(BH16/'Optional - input raw data'!AF21,"") ->  | BH58: =IF(OR(BH$14="",BH$15="",BH$16="",BH$17="",BF58=""),"", IF(BF58<=Calcs!DC19,Lowest10, IF(AND(BF58>Calcs!DC19,BF58<=Calcs!DD19),Lowest20, IF(AND(BF58>Calcs!DD19,BF58<=Calcs!DE19),Inline, IF(AND(BF58>Calcs!DE19,BF58<=Calcs!DG19),Middle20, IF(AND(BF58>Calcs!DG19,BF58<=Calcs!DH19),Inline, IF(AND(BF58>Calcs!DH19,BF58<=Calcs!DI19),Highest20, IF(BF58>Calcs!DI19,Highest10,"")))))))) ->  | BJ58: =IFERROR(BL16/'Optional - input raw data'!AH21,"") ->  | BL58: =IF(OR(BL$14="",BL$15="",BL$16="",BL$17="",BJ58=""),"", IF(BJ58<=Calcs!DK19,Lowest10, IF(AND(BJ58>Calcs!DK19,BJ58<=Calcs!DL19),Lowest20, IF(AND(BJ58>Calcs!DL19,BJ58<=Calcs!DM19),Inline, IF(AND(BJ58>Calcs!DM19,BJ58<=Calcs!DO19),Middle20, IF(AND(BJ58>Calcs!DO19,BJ58<=Calcs!DP19),Inline, IF(AND(BJ58>Calcs!DP19,BJ58<=Calcs!DQ19),Highest20, IF(BJ58>Calcs!DQ19,Highest10,"")))))))) ->  | BN58: =IFERROR(BP16/'Optional - input raw data'!AJ21,"") ->  | BP58: =IF(OR(BP$14="",BP$15="",BP$16="",BP$17="",BN58=""),"", IF(BN58<=Calcs!DS19,Lowest10, IF(AND(BN58>Calcs!DS19,BN58<=Calcs!DT19),Lowest20, IF(AND(BN58>Calcs!DT19,BN58<=Calcs!DU19),Inline, IF(AND(BN58>Calcs!DU19,BN58<=Calcs!DW19),Middle20, IF(AND(BN58>Calcs!DW19,BN58<=Calcs!DX19),Inline, IF(AND(BN58>Calcs!DX19,BN58<=Calcs!DY19),Highest20, IF(BN58>Calcs!DY19,Highest10,"")))))))) ->  | BR58: =IFERROR(BT16/'Optional - input raw data'!AL21,"") ->  | BT58: =IF(OR(BT$14="",BT$15="",BT$16="",BT$17="",BR58=""),"", IF(BR58<=Calcs!EA19,Lowest10, IF(AND(BR58>Calcs!EA19,BR58<=Calcs!EB19),Lowest20, IF(AND(BR58>Calcs!EB19,BR58<=Calcs!EC19),Inline, IF(AND(BR58>Calcs!EC19,BR58<=Calcs!EE19),Middle20, IF(AND(BR58>Calcs!EE19,BR58<=Calcs!EF19),Inline, IF(AND(BR58>Calcs!EF19,BR58<=Calcs!EG19),Highest20, IF(BR58>Calcs!EG19,Highest10,"")))))))) ->  | BV58: =IFERROR(BX16/'Optional - input raw data'!AN21,"") ->  | BX58: =IF(OR(BX$14="",BX$15="",BX$16="",BX$17="",BV58=""),"", IF(BV58<=Calcs!EI19,Lowest10, IF(AND(BV58>Calcs!EI19,BV58<=Calcs!EJ19),Lowest20, IF(AND(BV58>Calcs!EJ19,BV58<=Calcs!EK19),Inline, IF(AND(BV58>Calcs!EK19,BV58<=Calcs!EM19),Middle20, IF(AND(BV58>Calcs!EM19,BV58<=Calcs!EN19),Inline, IF(AND(BV58>Calcs!EN19,BV58<=Calcs!EO19),Highest20, IF(BV58>Calcs!EO19,Highest10,"")))))))) ->  | BZ58: =IFERROR(CB16/'Optional - input raw data'!AP21,"") ->  | CB58: =IF(OR(CB$14="",CB$15="",CB$16="",CB$17="",BZ58=""),"", IF(BZ58<=Calcs!EQ19,Lowest10, IF(AND(BZ58>Calcs!EQ19,BZ58<=Calcs!ER19),Lowest20, IF(AND(BZ58>Calcs!ER19,BZ58<=Calcs!ES19),Inline, IF(AND(BZ58>Calcs!ES19,BZ58<=Calcs!EU19),Middle20, IF(AND(BZ58>Calcs!EU19,BZ58<=Calcs!EV19),Inline, IF(AND(BZ58>Calcs!EV19,BZ58<=Calcs!EW19),Highest20, IF(BZ58>Calcs!EW19,Highest10,"")))))))) ->  | CD58: =IFERROR(CF16/'Optional - input raw data'!AR21,Calcs!$A$75) ->  | CF58: =IF(OR(CF$14="",CF$15="",CF$16="",CF$17="",CD58=""),"", IF(CD58<=Calcs!EY19,Lowest10, IF(AND(CD58>Calcs!EY19,CD58<=Calcs!EZ19),Lowest20, IF(AND(CD58>Calcs!EZ19,CD58<=Calcs!FA19),Inline, IF(AND(CD58>Calcs!FA19,CD58<=Calcs!FC19),Middle20, IF(AND(CD58>Calcs!FC19,CD58<=Calcs!FD19),Inline, IF(AND(CD58>Calcs!FD19,CD58<=Calcs!FE19),Highest20, IF(CD58>Calcs!FE19,Highest10,"")))))))) -> 
C59: Teacher contact ratio (less than 1.0) | D59: Guidance | F59: =IFERROR(IF(H14=Calcs!$A$71,('Optional - input raw data'!F32/'Optional - input raw data'!F19),IF(OR(H14=Calcs!$A$72,H14=Calcs!$A$73,H14=Calcs!$A$74),('Optional - input raw data'!F29/('Optional - input raw data'!F28*'Optional - input raw data'!F19)),Calcs!$A$75)),Calcs!$A$75) -> 0.76 | H59: =IF(OR(H$14="",H$15="",H$16="",H$17="",F59=""),"", IF(F59<=0.7,Muchlower, IF(AND(F59>0.7,F59<=0.74),Lower, IF(AND(F59>0.74,F59<=0.8),Inline2, IF(AND(F59>0.8,F59<=0.82),Higher, IF(F59>0.82,Muchhigher,"")))))) -> Broadly in line with recommendations | J59: =IFERROR(IF(L14=Calcs!$A$71,('Optional - input raw data'!H32/'Optional - input raw data'!H19),IF(OR(L14=Calcs!$A$72,L14=Calcs!$A$73,L14=Calcs!$A$74),('Optional - input raw data'!H29/('Optional - input raw data'!H28*'Optional - input raw data'!H19)),Calcs!$A$75)),Calcs!$A$75) ->  | L59: =IF(OR(L$14="",L$15="",L$16="",L$17="",J59=""),"", IF(J59<=0.7,Muchlower, IF(AND(J59>0.7,J59<=0.74),Lower, IF(AND(J59>0.74,J59<=0.8),Inline2, IF(AND(J59>0.8,J59<=0.82),Higher, IF(J59>0.82,Muchhigher,"")))))) ->  | N59: =IFERROR(IF(P14=Calcs!$A$71,('Optional - input raw data'!J32/'Optional - input raw data'!J19),IF(OR(P14=Calcs!$A$72,P14=Calcs!$A$73,P14=Calcs!$A$74),('Optional - input raw data'!J29/('Optional - input raw data'!J28*'Optional - input raw data'!J19)),Calcs!$A$75)),Calcs!$A$75) ->  | P59: =IF(OR(P$14="",P$15="",P$16="",P$17="",N59=""),"", IF(N59<=0.7,Muchlower, IF(AND(N59>0.7,N59<=0.74),Lower, IF(AND(N59>0.74,N59<=0.8),Inline2, IF(AND(N59>0.8,N59<=0.82),Higher, IF(N59>0.82,Muchhigher,"")))))) ->  | R59: =IFERROR(IF(T14=Calcs!$A$71,('Optional - input raw data'!L32/'Optional - input raw data'!L19),IF(OR(T14=Calcs!$A$72,T14=Calcs!$A$73,T14=Calcs!$A$74),('Optional - input raw data'!L29/('Optional - input raw data'!L28*'Optional - input raw data'!L19)),Calcs!$A$75)),Calcs!$A$75) ->  | T59: =IF(OR(T$14="",T$15="",T$16="",T$17="",R59=""),"", IF(R59<=0.7,Muchlower, IF(AND(R59>0.7,R59<=0.74),Lower, IF(AND(R59>0.74,R59<=0.8),Inline2, IF(AND(R59>0.8,R59<=0.82),Higher, IF(R59>0.82,Muchhigher,"")))))) ->  | V59: =IFERROR(IF(X14="Primary",('Optional - input raw data'!N32/'Optional - input raw data'!N19),IF(OR(X14="Secondary with sixth form",X14="Secondary without sixth form",X14="All-through"),('Optional - input raw data'!N29/('Optional - input raw data'!N28*'Optional - input raw data'!N19)),"")),"") ->  | X59: =IF(OR(X$14="",X$15="",X$16="",X$17="",V59=""),"", IF(V59<=0.7,Muchlower, IF(AND(V59>0.7,V59<=0.74),Lower, IF(AND(V59>0.74,V59<=0.8),Inline2, IF(AND(V59>0.8,V59<=0.82),Higher, IF(V59>0.82,Muchhigher,"")))))) ->  | Z59: =IFERROR(IF(AB14="Primary",('Optional - input raw data'!P32/'Optional - input raw data'!P19),IF(OR(AB14="Secondary with sixth form",AB14="Secondary without sixth form",AB14="All-through"),('Optional - input raw data'!P29/('Optional - input raw data'!P28*'Optional - input raw data'!P19)),"")),"") ->  | AB59: =IF(OR(AB$14="",AB$15="",AB$16="",AB$17="",Z59=""),"", IF(Z59<=0.7,Muchlower, IF(AND(Z59>0.7,Z59<=0.74),Lower, IF(AND(Z59>0.74,Z59<=0.8),Inline2, IF(AND(Z59>0.8,Z59<=0.82),Higher, IF(Z59>0.82,Muchhigher,"")))))) ->  | AD59: =IFERROR(IF(AF14="Primary",('Optional - input raw data'!R32/'Optional - input raw data'!R19),IF(OR(AF14="Secondary with sixth form",AF14="Secondary without sixth form",AF14="All-through"),('Optional - input raw data'!R29/('Optional - input raw data'!R28*'Optional - input raw data'!R19)),"")),"") ->  | AF59: =IF(OR(AF$14="",AF$15="",AF$16="",AF$17="",AD59=""),"", IF(AD59<=0.7,Muchlower, IF(AND(AD59>0.7,AD59<=0.74),Lower, IF(AND(AD59>0.74,AD59<=0.8),Inline2, IF(AND(AD59>0.8,AD59<=0.82),Higher, IF(AD59>0.82,Muchhigher,"")))))) ->  | AH59: =IFERROR(IF(AJ14="Primary",('Optional - input raw data'!T32/'Optional - input raw data'!T19),IF(OR(AJ14="Secondary with sixth form",AJ14="Secondary without sixth form",AJ14="All-through"),('Optional - input raw data'!T29/('Optional - input raw data'!T28*'Optional - input raw data'!T19)),"")),"") ->  | AJ59: =IF(OR(AJ$14="",AJ$15="",AJ$16="",AJ$17="",AH59=""),"", IF(AH59<=0.7,Muchlower, IF(AND(AH59>0.7,AH59<=0.74),Lower, IF(AND(AH59>0.74,AH59<=0.8),Inline2, IF(AND(AH59>0.8,AH59<=0.82),Higher, IF(AH59>0.82,Muchhigher,"")))))) ->  | AL59: =IFERROR(IF(AN14="Primary",('Optional - input raw data'!V32/'Optional - input raw data'!V19),IF(OR(AN14="Secondary with sixth form",AN14="Secondary without sixth form",AN14="All-through"),('Optional - input raw data'!V29/('Optional - input raw data'!V28*'Optional - input raw data'!V19)),"")),"") ->  | AN59: =IF(OR(AN$14="",AN$15="",AN$16="",AN$17="",AL59=""),"", IF(AL59<=0.7,Muchlower, IF(AND(AL59>0.7,AL59<=0.74),Lower, IF(AND(AL59>0.74,AL59<=0.8),Inline2, IF(AND(AL59>0.8,AL59<=0.82),Higher, IF(AL59>0.82,Muchhigher,"")))))) ->  | AP59: =IFERROR(IF(AR14="Primary",('Optional - input raw data'!X32/'Optional - input raw data'!X19),IF(OR(AR14="Secondary with sixth form",AR14="Secondary without sixth form",AR14="All-through"),('Optional - input raw data'!X29/('Optional - input raw data'!X28*'Optional - input raw data'!X19)),"")),"") ->  | AR59: =IF(OR(AR$14="",AR$15="",AR$16="",AR$17="",AP59=""),"", IF(AP59<=0.7,Muchlower, IF(AND(AP59>0.7,AP59<=0.74),Lower, IF(AND(AP59>0.74,AP59<=0.8),Inline2, IF(AND(AP59>0.8,AP59<=0.82),Higher, IF(AP59>0.82,Muchhigher,"")))))) ->  | AT59: =IFERROR(IF(AV14="Primary",('Optional - input raw data'!Z32/'Optional - input raw data'!Z19),IF(OR(AV14="Secondary with sixth form",AV14="Secondary without sixth form",AV14="All-through"),('Optional - input raw data'!Z29/('Optional - input raw data'!Z28*'Optional - input raw data'!Z19)),"")),"") ->  | AV59: =IF(OR(AV$14="",AV$15="",AV$16="",AV$17="",AT59=""),"", IF(AT59<=0.7,Muchlower, IF(AND(AT59>0.7,AT59<=0.74),Lower, IF(AND(AT59>0.74,AT59<=0.8),Inline2, IF(AND(AT59>0.8,AT59<=0.82),Higher, IF(AT59>0.82,Muchhigher,"")))))) ->  | AX59: =IFERROR(IF(AZ14="Primary",('Optional - input raw data'!AB32/'Optional - input raw data'!AB19),IF(OR(AZ14="Secondary with sixth form",AZ14="Secondary without sixth form",AZ14="All-through"),('Optional - input raw data'!AB29/('Optional - input raw data'!AB28*'Optional - input raw data'!AB19)),"")),"") ->  | AZ59: =IF(OR(AZ$14="",AZ$15="",AZ$16="",AZ$17="",AX59=""),"", IF(AX59<=0.7,Muchlower, IF(AND(AX59>0.7,AX59<=0.74),Lower, IF(AND(AX59>0.74,AX59<=0.8),Inline2, IF(AND(AX59>0.8,AX59<=0.82),Higher, IF(AX59>0.82,Muchhigher,"")))))) ->  | BB59: =IFERROR(IF(BD14="Primary",('Optional - input raw data'!AD32/'Optional - input raw data'!AD19),IF(OR(BD14="Secondary with sixth form",BD14="Secondary without sixth form",BD14="All-through"),('Optional - input raw data'!AD29/('Optional - input raw data'!AD28*'Optional - input raw data'!AD19)),"")),"") ->  | BD59: =IF(OR(BD$14="",BD$15="",BD$16="",BD$17="",BB59=""),"", IF(BB59<=0.7,Muchlower, IF(AND(BB59>0.7,BB59<=0.74),Lower, IF(AND(BB59>0.74,BB59<=0.8),Inline2, IF(AND(BB59>0.8,BB59<=0.82),Higher, IF(BB59>0.82,Muchhigher,"")))))) ->  | BF59: =IFERROR(IF(BH14="Primary",('Optional - input raw data'!AF32/'Optional - input raw data'!AF19),IF(OR(BH14="Secondary with sixth form",BH14="Secondary without sixth form",BH14="All-through"),('Optional - input raw data'!AF29/('Optional - input raw data'!AF28*'Optional - input raw data'!AF19)),"")),"") ->  | BH59: =IF(OR(BH$14="",BH$15="",BH$16="",BH$17="",BF59=""),"", IF(BF59<=0.7,Muchlower, IF(AND(BF59>0.7,BF59<=0.74),Lower, IF(AND(BF59>0.74,BF59<=0.8),Inline2, IF(AND(BF59>0.8,BF59<=0.82),Higher, IF(BF59>0.82,Muchhigher,"")))))) ->  | BJ59: =IFERROR(IF(BL14="Primary",('Optional - input raw data'!AH32/'Optional - input raw data'!AH19),IF(OR(BL14="Secondary with sixth form",BL14="Secondary without sixth form",BL14="All-through"),('Optional - input raw data'!AH29/('Optional - input raw data'!AH28*'Optional - input raw data'!AH19)),"")),"") ->  | BL59: =IF(OR(BL$14="",BL$15="",BL$16="",BL$17="",BJ59=""),"", IF(BJ59<=0.7,Muchlower, IF(AND(BJ59>0.7,BJ59<=0.74),Lower, IF(AND(BJ59>0.74,BJ59<=0.8),Inline2, IF(AND(BJ59>0.8,BJ59<=0.82),Higher, IF(BJ59>0.82,Muchhigher,"")))))) ->  | BN59: =IFERROR(IF(BP14="Primary",('Optional - input raw data'!AJ32/'Optional - input raw data'!AJ19),IF(OR(BP14="Secondary with sixth form",BP14="Secondary without sixth form",BP14="All-through"),('Optional - input raw data'!AJ29/('Optional - input raw data'!AJ28*'Optional - input raw data'!AJ19)),"")),"") ->  | BP59: =IF(OR(BP$14="",BP$15="",BP$16="",BP$17="",BN59=""),"", IF(BN59<=0.7,Muchlower, IF(AND(BN59>0.7,BN59<=0.74),Lower, IF(AND(BN59>0.74,BN59<=0.8),Inline2, IF(AND(BN59>0.8,BN59<=0.82),Higher, IF(BN59>0.82,Muchhigher,"")))))) ->  | BR59: =IFERROR(IF(BT14="Primary",('Optional - input raw data'!AL32/'Optional - input raw data'!AL19),IF(OR(BT14="Secondary with sixth form",BT14="Secondary without sixth form",BT14="All-through"),('Optional - input raw data'!AL29/('Optional - input raw data'!AL28*'Optional - input raw data'!AL19)),"")),"") ->  | BT59: =IF(OR(BT$14="",BT$15="",BT$16="",BT$17="",BR59=""),"", IF(BR59<=0.7,Muchlower, IF(AND(BR59>0.7,BR59<=0.74),Lower, IF(AND(BR59>0.74,BR59<=0.8),Inline2, IF(AND(BR59>0.8,BR59<=0.82),Higher, IF(BR59>0.82,Muchhigher,"")))))) ->  | BV59: =IFERROR(IF(BX14="Primary",('Optional - input raw data'!AN32/'Optional - input raw data'!AN19),IF(OR(BX14="Secondary with sixth form",BX14="Secondary without sixth form",BX14="All-through"),('Optional - input raw data'!AN29/('Optional - input raw data'!AN28*'Optional - input raw data'!AN19)),"")),"") ->  | BX59: =IF(OR(BX$14="",BX$15="",BX$16="",BX$17="",BV59=""),"", IF(BV59<=0.7,Muchlower, IF(AND(BV59>0.7,BV59<=0.74),Lower, IF(AND(BV59>0.74,BV59<=0.8),Inline2, IF(AND(BV59>0.8,BV59<=0.82),Higher, IF(BV59>0.82,Muchhigher,"")))))) ->  | BZ59: =IFERROR(IF(CB14="Primary",('Optional - input raw data'!AP32/'Optional - input raw data'!AP19),IF(OR(CB14="Secondary with sixth form",CB14="Secondary without sixth form",CB14="All-through"),('Optional - input raw data'!AP29/('Optional - input raw data'!AP28*'Optional - input raw data'!AP19)),"")),"") ->  | CB59: =IF(OR(CB$14="",CB$15="",CB$16="",CB$17="",BZ59=""),"", IF(BZ59<=0.7,Muchlower, IF(AND(BZ59>0.7,BZ59<=0.74),Lower, IF(AND(BZ59>0.74,BZ59<=0.8),Inline2, IF(AND(BZ59>0.8,BZ59<=0.82),Higher, IF(BZ59>0.82,Muchhigher,"")))))) ->  | CD59: =IFERROR(IF(CF14=Calcs!$A$71,('Optional - input raw data'!AR32/'Optional - input raw data'!AR19),IF(OR(CF14=Calcs!$A$72,CF14=Calcs!$A$73,CF14=Calcs!$A$74),('Optional - input raw data'!AR29/('Optional - input raw data'!AR28*'Optional - input raw data'!AR19)),Calcs!$A$75)),Calcs!$A$75) ->  | CF59: =IF(OR(CF$14="",CF$15="",CF$16="",CF$17="",CD59=""),"", IF(CD59<=0.7,Muchlower, IF(AND(CD59>0.7,CD59<=0.74),Lower, IF(AND(CD59>0.74,CD59<=0.8),Inline2, IF(AND(CD59>0.8,CD59<=0.82),Higher, IF(CD59>0.82,Muchhigher,"")))))) -> 
C60: Predicted percentage pupil number change in 3-5 years | D60: Guidance | H60: =IF(OR(H$14="",H$15="",H$16="",H$17="",F60=""),"", IF(F60<=-0.1,High, IF(AND(F60>-0.1,F60<=-0.02),Medium, IF(F60>=-0.02,Low,"")))) ->  | L60: =IF(OR(L$14="",L$15="",L$16="",L$17="",J60=""),"", IF(J60<=-0.1,High, IF(AND(J60>-0.1,J60<=-0.02),Medium, IF(J60>=-0.02,Low,"")))) ->  | P60: =IF(OR(P$14="",P$15="",P$16="",P$17="",N60=""),"", IF(N60<=-0.1,High, IF(AND(N60>-0.1,N60<=-0.02),Medium, IF(N60>=-0.02,Low,"")))) ->  | T60: =IF(OR(T$14="",T$15="",T$16="",T$17="",R60=""),"", IF(R60<=-0.1,High, IF(AND(R60>-0.1,R60<=-0.02),Medium, IF(R60>=-0.02,Low,"")))) ->  | X60: =IF(OR(X$14="",X$15="",X$16="",X$17="",V60=""),"", IF(V60<=-0.1,High, IF(AND(V60>-0.1,V60<=-0.02),Medium, IF(V60>=-0.02,Low,"")))) ->  | AB60: =IF(OR(AB$14="",AB$15="",AB$16="",AB$17="",Z60=""),"", IF(Z60<=-0.1,High, IF(AND(Z60>-0.1,Z60<=-0.02),Medium, IF(Z60>=-0.02,Low,"")))) ->  | AF60: =IF(OR(AF$14="",AF$15="",AF$16="",AF$17="",AD60=""),"", IF(AD60<=-0.1,High, IF(AND(AD60>-0.1,AD60<=-0.02),Medium, IF(AD60>=-0.02,Low,"")))) ->  | AJ60: =IF(OR(AJ$14="",AJ$15="",AJ$16="",AJ$17="",AH60=""),"", IF(AH60<=-0.1,High, IF(AND(AH60>-0.1,AH60<=-0.02),Medium, IF(AH60>=-0.02,Low,"")))) ->  | AN60: =IF(OR(AN$14="",AN$15="",AN$16="",AN$17="",AL60=""),"", IF(AL60<=-0.1,High, IF(AND(AL60>-0.1,AL60<=-0.02),Medium, IF(AL60>=-0.02,Low,"")))) ->  | AR60: =IF(OR(AR$14="",AR$15="",AR$16="",AR$17="",AP60=""),"", IF(AP60<=-0.1,High, IF(AND(AP60>-0.1,AP60<=-0.02),Medium, IF(AP60>=-0.02,Low,"")))) ->  | AV60: =IF(OR(AV$14="",AV$15="",AV$16="",AV$17="",AT60=""),"", IF(AT60<=-0.1,High, IF(AND(AT60>-0.1,AT60<=-0.02),Medium, IF(AT60>=-0.02,Low,"")))) ->  | AZ60: =IF(OR(AZ$14="",AZ$15="",AZ$16="",AZ$17="",AX60=""),"", IF(AX60<=-0.1,High, IF(AND(AX60>-0.1,AX60<=-0.02),Medium, IF(AX60>=-0.02,Low,"")))) ->  | BD60: =IF(OR(BD$14="",BD$15="",BD$16="",BD$17="",BB60=""),"", IF(BB60<=-0.1,High, IF(AND(BB60>-0.1,BB60<=-0.02),Medium, IF(BB60>=-0.02,Low,"")))) ->  | BH60: =IF(OR(BH$14="",BH$15="",BH$16="",BH$17="",BF60=""),"", IF(BF60<=-0.1,High, IF(AND(BF60>-0.1,BF60<=-0.02),Medium, IF(BF60>=-0.02,Low,"")))) ->  | BL60: =IF(OR(BL$14="",BL$15="",BL$16="",BL$17="",BJ60=""),"", IF(BJ60<=-0.1,High, IF(AND(BJ60>-0.1,BJ60<=-0.02),Medium, IF(BJ60>=-0.02,Low,"")))) ->  | BP60: =IF(OR(BP$14="",BP$15="",BP$16="",BP$17="",BN60=""),"", IF(BN60<=-0.1,High, IF(AND(BN60>-0.1,BN60<=-0.02),Medium, IF(BN60>=-0.02,Low,"")))) ->  | BT60: =IF(OR(BT$14="",BT$15="",BT$16="",BT$17="",BR60=""),"", IF(BR60<=-0.1,High, IF(AND(BR60>-0.1,BR60<=-0.02),Medium, IF(BR60>=-0.02,Low,"")))) ->  | BX60: =IF(OR(BX$14="",BX$15="",BX$16="",BX$17="",BV60=""),"", IF(BV60<=-0.1,High, IF(AND(BV60>-0.1,BV60<=-0.02),Medium, IF(BV60>=-0.02,Low,"")))) ->  | CB60: =IF(OR(CB$14="",CB$15="",CB$16="",CB$17="",BZ60=""),"", IF(BZ60<=-0.1,High, IF(AND(BZ60>-0.1,BZ60<=-0.02),Medium, IF(BZ60>=-0.02,Low,"")))) ->  | CF60: =IF(OR(CF$14="",CF$15="",CF$16="",CF$17="",CD60=""),"", IF(CD60<=-0.1,High, IF(AND(CD60>-0.1,CD60<=-0.02),Medium, IF(CD60>=-0.02,Low,"")))) -> 
C61: Average class size | D61: Guidance | H61: =IF(OR(H$14="",H$15="",H$16="",H$17="",F61=""),"", IF(F61<=Calcs!C20,Lowest10, IF(AND(F61>Calcs!C20,F61<=Calcs!D20),Lowest20, IF(AND(F61>Calcs!D20,F61<=Calcs!E20),Inline, IF(AND(F61>Calcs!E20,F61<=Calcs!G20),Middle20, IF(AND(F61>Calcs!G20,F61<=Calcs!H20),Inline, IF(AND(F61>Calcs!H20,F61<=Calcs!I20),Highest20, IF(F61>Calcs!I20,Highest10,"")))))))) ->  | L61: =IF(OR(L$14="",L$15="",L$16="",L$17="",J61=""),"", IF(J61<=Calcs!K20,Lowest10, IF(AND(J61>Calcs!K20,J61<=Calcs!L20),Lowest20, IF(AND(J61>Calcs!L20,J61<=Calcs!M20),Inline, IF(AND(J61>Calcs!M20,J61<=Calcs!O20),Middle20, IF(AND(J61>Calcs!O20,J61<=Calcs!P20),Inline, IF(AND(J61>Calcs!P20,J61<=Calcs!Q20),Highest20, IF(J61>Calcs!Q20,Highest10,"")))))))) ->  | P61: =IF(OR(P$14="",P$15="",P$16="",P$17="",N61=""),"", IF(N61<=Calcs!S20,Lowest10, IF(AND(N61>Calcs!S20,N61<=Calcs!T20),Lowest20, IF(AND(N61>Calcs!T20,N61<=Calcs!U20),Inline, IF(AND(N61>Calcs!U20,N61<=Calcs!W20),Middle20, IF(AND(N61>Calcs!W20,N61<=Calcs!X20),Inline, IF(AND(N61>Calcs!X20,N61<=Calcs!Y20),Highest20, IF(N61>Calcs!Y20,Highest10,"")))))))) ->  | T61: =IF(OR(T$14="",T$15="",T$16="",T$17="",R61=""),"", IF(R61<=Calcs!AA20,Lowest10, IF(AND(R61>Calcs!AA20,R61<=Calcs!AB20),Lowest20, IF(AND(R61>Calcs!AB20,R61<=Calcs!AC20),Inline, IF(AND(R61>Calcs!AC20,R61<=Calcs!AE20),Middle20, IF(AND(R61>Calcs!AE20,R61<=Calcs!AF20),Inline, IF(AND(R61>Calcs!AF20,R61<=Calcs!AG20),Highest20, IF(R61>Calcs!AG20,Highest10,"")))))))) ->  | X61: =IF(OR(X$14="",X$15="",X$16="",X$17="",V61=""),"", IF(V61<=Calcs!AI20,Lowest10, IF(AND(V61>Calcs!AI20,V61<=Calcs!AJ20),Lowest20, IF(AND(V61>Calcs!AJ20,V61<=Calcs!AK20),Inline, IF(AND(V61>Calcs!AK20,V61<=Calcs!AM20),Middle20, IF(AND(V61>Calcs!AM20,V61<=Calcs!AN20),Inline, IF(AND(V61>Calcs!AN20,V61<=Calcs!AO20),Highest20, IF(V61>Calcs!AO20,Highest10,"")))))))) ->  | AB61: =IF(OR(AB$14="",AB$15="",AB$16="",AB$17="",Z61=""),"", IF(Z61<=Calcs!AQ20,Lowest10, IF(AND(Z61>Calcs!AQ20,Z61<=Calcs!AR20),Lowest20, IF(AND(Z61>Calcs!AR20,Z61<=Calcs!AS20),Inline, IF(AND(Z61>Calcs!AS20,Z61<=Calcs!AU20),Middle20, IF(AND(Z61>Calcs!AU20,Z61<=Calcs!AV20),Inline, IF(AND(Z61>Calcs!AV20,Z61<=Calcs!AW20),Highest20, IF(Z61>Calcs!AW20,Highest10,"")))))))) ->  | AF61: =IF(OR(AF$14="",AF$15="",AF$16="",AF$17="",AD61=""),"", IF(AD61<=Calcs!AY20,Lowest10, IF(AND(AD61>Calcs!AY20,AD61<=Calcs!AZ20),Lowest20, IF(AND(AD61>Calcs!AZ20,AD61<=Calcs!BA20),Inline, IF(AND(AD61>Calcs!BA20,AD61<=Calcs!BC20),Middle20, IF(AND(AD61>Calcs!BC20,AD61<=Calcs!BD20),Inline, IF(AND(AD61>Calcs!BD20,AD61<=Calcs!BE20),Highest20, IF(AD61>Calcs!BE20,Highest10,"")))))))) ->  | AJ61: =IF(OR(AJ$14="",AJ$15="",AJ$16="",AJ$17="",AH61=""),"", IF(AH61<=Calcs!BG20,Lowest10, IF(AND(AH61>Calcs!BG20,AH61<=Calcs!BH20),Lowest20, IF(AND(AH61>Calcs!BH20,AH61<=Calcs!BI20),Inline, IF(AND(AH61>Calcs!BI20,AH61<=Calcs!BK20),Middle20, IF(AND(AH61>Calcs!BK20,AH61<=Calcs!BL20),Inline, IF(AND(AH61>Calcs!BL20,AH61<=Calcs!BM20),Highest20, IF(AH61>Calcs!BM20,Highest10,"")))))))) ->  | AN61: =IF(OR(AN$14="",AN$15="",AN$16="",AN$17="",AL61=""),"", IF(AL61<=Calcs!BO20,Lowest10, IF(AND(AL61>Calcs!BO20,AL61<=Calcs!BP20),Lowest20, IF(AND(AL61>Calcs!BP20,AL61<=Calcs!BQ20),Inline, IF(AND(AL61>Calcs!BQ20,AL61<=Calcs!BS20),Middle20, IF(AND(AL61>Calcs!BS20,AL61<=Calcs!BT20),Inline, IF(AND(AL61>Calcs!BT20,AL61<=Calcs!BU20),Highest20, IF(AL61>Calcs!BU20,Highest10,"")))))))) ->  | AR61: =IF(OR(AR$14="",AR$15="",AR$16="",AR$17="",AP61=""),"", IF(AP61<=Calcs!BW20,Lowest10, IF(AND(AP61>Calcs!BW20,AP61<=Calcs!BX20),Lowest20, IF(AND(AP61>Calcs!BX20,AP61<=Calcs!BY20),Inline, IF(AND(AP61>Calcs!BY20,AP61<=Calcs!CA20),Middle20, IF(AND(AP61>Calcs!CA20,AP61<=Calcs!CB20),Inline, IF(AND(AP61>Calcs!CB20,AP61<=Calcs!CC20),Highest20, IF(AP61>Calcs!CC20,Highest10,"")))))))) ->  | AV61: =IF(OR(AV$14="",AV$15="",AV$16="",AV$17="",AT61=""),"", IF(AT61<=Calcs!CE20,Lowest10, IF(AND(AT61>Calcs!CE20,AT61<=Calcs!CF20),Lowest20, IF(AND(AT61>Calcs!CF20,AT61<=Calcs!CG20),Inline, IF(AND(AT61>Calcs!CG20,AT61<=Calcs!CI20),Middle20, IF(AND(AT61>Calcs!CI20,AT61<=Calcs!CJ20),Inline, IF(AND(AT61>Calcs!CJ20,AT61<=Calcs!CK20),Highest20, IF(AT61>Calcs!CK20,Highest10,"")))))))) ->  | AZ61: =IF(OR(AZ$14="",AZ$15="",AZ$16="",AZ$17="",AX61=""),"", IF(AX61<=Calcs!CM20,Lowest10, IF(AND(AX61>Calcs!CM20,AX61<=Calcs!CN20),Lowest20, IF(AND(AX61>Calcs!CN20,AX61<=Calcs!CO20),Inline, IF(AND(AX61>Calcs!CO20,AX61<=Calcs!CQ20),Middle20, IF(AND(AX61>Calcs!CQ20,AX61<=Calcs!CR20),Inline, IF(AND(AX61>Calcs!CR20,AX61<=Calcs!CS20),Highest20, IF(AX61>Calcs!CS20,Highest10,"")))))))) ->  | BD61: =IF(OR(BD$14="",BD$15="",BD$16="",BD$17="",BB61=""),"", IF(BB61<=Calcs!CU20,Lowest10, IF(AND(BB61>Calcs!CU20,BB61<=Calcs!CV20),Lowest20, IF(AND(BB61>Calcs!CV20,BB61<=Calcs!CW20),Inline, IF(AND(BB61>Calcs!CW20,BB61<=Calcs!CY20),Middle20, IF(AND(BB61>Calcs!CY20,BB61<=Calcs!CZ20),Inline, IF(AND(BB61>Calcs!CZ20,BB61<=Calcs!DA20),Highest20, IF(BB61>Calcs!DA20,Highest10,"")))))))) ->  | BH61: =IF(OR(BH$14="",BH$15="",BH$16="",BH$17="",BF61=""),"", IF(BF61<=Calcs!DC20,Lowest10, IF(AND(BF61>Calcs!DC20,BF61<=Calcs!DD20),Lowest20, IF(AND(BF61>Calcs!DD20,BF61<=Calcs!DE20),Inline, IF(AND(BF61>Calcs!DE20,BF61<=Calcs!DG20),Middle20, IF(AND(BF61>Calcs!DG20,BF61<=Calcs!DH20),Inline, IF(AND(BF61>Calcs!DH20,BF61<=Calcs!DI20),Highest20, IF(BF61>Calcs!DI20,Highest10,"")))))))) ->  | BL61: =IF(OR(BL$14="",BL$15="",BL$16="",BL$17="",BJ61=""),"", IF(BJ61<=Calcs!DK20,Lowest10, IF(AND(BJ61>Calcs!DK20,BJ61<=Calcs!DL20),Lowest20, IF(AND(BJ61>Calcs!DL20,BJ61<=Calcs!DM20),Inline, IF(AND(BJ61>Calcs!DM20,BJ61<=Calcs!DO20),Middle20, IF(AND(BJ61>Calcs!DO20,BJ61<=Calcs!DP20),Inline, IF(AND(BJ61>Calcs!DP20,BJ61<=Calcs!DQ20),Highest20, IF(BJ61>Calcs!DQ20,Highest10,"")))))))) ->  | BP61: =IF(OR(BP$14="",BP$15="",BP$16="",BP$17="",BN61=""),"", IF(BN61<=Calcs!DS20,Lowest10, IF(AND(BN61>Calcs!DS20,BN61<=Calcs!DT20),Lowest20, IF(AND(BN61>Calcs!DT20,BN61<=Calcs!DU20),Inline, IF(AND(BN61>Calcs!DU20,BN61<=Calcs!DW20),Middle20, IF(AND(BN61>Calcs!DW20,BN61<=Calcs!DX20),Inline, IF(AND(BN61>Calcs!DX20,BN61<=Calcs!DY20),Highest20, IF(BN61>Calcs!DY20,Highest10,"")))))))) ->  | BT61: =IF(OR(BT$14="",BT$15="",BT$16="",BT$17="",BR61=""),"", IF(BR61<=Calcs!EA20,Lowest10, IF(AND(BR61>Calcs!EA20,BR61<=Calcs!EB20),Lowest20, IF(AND(BR61>Calcs!EB20,BR61<=Calcs!EC20),Inline, IF(AND(BR61>Calcs!EC20,BR61<=Calcs!EE20),Middle20, IF(AND(BR61>Calcs!EE20,BR61<=Calcs!EF20),Inline, IF(AND(BR61>Calcs!EF20,BR61<=Calcs!EG20),Highest20, IF(BR61>Calcs!EG20,Highest10,"")))))))) ->  | BX61: =IF(OR(BX$14="",BX$15="",BX$16="",BX$17="",BV61=""),"", IF(BV61<=Calcs!EI20,Lowest10, IF(AND(BV61>Calcs!EI20,BV61<=Calcs!EJ20),Lowest20, IF(AND(BV61>Calcs!EJ20,BV61<=Calcs!EK20),Inline, IF(AND(BV61>Calcs!EK20,BV61<=Calcs!EM20),Middle20, IF(AND(BV61>Calcs!EM20,BV61<=Calcs!EN20),Inline, IF(AND(BV61>Calcs!EN20,BV61<=Calcs!EO20),Highest20, IF(BV61>Calcs!EO20,Highest10,"")))))))) ->  | CB61: =IF(OR(CB$14="",CB$15="",CB$16="",CB$17="",BZ61=""),"", IF(BZ61<=Calcs!EQ20,Lowest10, IF(AND(BZ61>Calcs!EQ20,BZ61<=Calcs!ER20),Lowest20, IF(AND(BZ61>Calcs!ER20,BZ61<=Calcs!ES20),Inline, IF(AND(BZ61>Calcs!ES20,BZ61<=Calcs!EU20),Middle20, IF(AND(BZ61>Calcs!EU20,BZ61<=Calcs!EV20),Inline, IF(AND(BZ61>Calcs!EV20,BZ61<=Calcs!EW20),Highest20, IF(BZ61>Calcs!EW20,Highest10,"")))))))) ->  | CF61: =IF(OR(CF$14="",CF$15="",CF$16="",CF$17="",CD61=""),"", IF(CD61<=Calcs!EY20,Lowest10, IF(AND(CD61>Calcs!EY20,CD61<=Calcs!EZ20),Lowest20, IF(AND(CD61>Calcs!EZ20,CD61<=Calcs!FA20),Inline, IF(AND(CD61>Calcs!FA20,CD61<=Calcs!FC20),Middle20, IF(AND(CD61>Calcs!FC20,CD61<=Calcs!FD20),Inline, IF(AND(CD61>Calcs!FD20,CD61<=Calcs!FE20),Highest20, IF(CD61>Calcs!FE20,Highest10,"")))))))) -> 
C63: E. Outcomes
C65: Ofsted rating | D65: Guidance | F65: Good | H65: =IF(OR(H$14="",H$15="",H$16="",H$17="",F65=""),"",INDIRECT(F65)) -> Good | L65: =IF(OR(L$14="",L$15="",L$16="",L$17="",J65=""),"",INDIRECT(J65)) ->  | P65: =IF(OR(P$14="",P$15="",P$16="",P$17="",N65=""),"",INDIRECT(N65)) ->  | T65: =IF(OR(T$14="",T$15="",T$16="",T$17="",R65=""),"",INDIRECT(R65)) ->  | X65: =IF(OR(X$14="",X$15="",X$16="",X$17="",V65=""),"",INDIRECT(V65)) ->  | AB65: =IF(OR(AB$14="",AB$15="",AB$16="",AB$17="",Z65=""),"",INDIRECT(Z65)) ->  | AF65: =IF(OR(AF$14="",AF$15="",AF$16="",AF$17="",AD65=""),"",INDIRECT(AD65)) ->  | AJ65: =IF(OR(AJ$14="",AJ$15="",AJ$16="",AJ$17="",AH65=""),"",INDIRECT(AH65)) ->  | AN65: =IF(OR(AN$14="",AN$15="",AN$16="",AN$17="",AL65=""),"",INDIRECT(AL65)) ->  | AR65: =IF(OR(AR$14="",AR$15="",AR$16="",AR$17="",AP65=""),"",INDIRECT(AP65)) ->  | AV65: =IF(OR(AV$14="",AV$15="",AV$16="",AV$17="",AT65=""),"",INDIRECT(AT65)) ->  | AZ65: =IF(OR(AZ$14="",AZ$15="",AZ$16="",AZ$17="",AX65=""),"",INDIRECT(AX65)) ->  | BD65: =IF(OR(BD$14="",BD$15="",BD$16="",BD$17="",BB65=""),"",INDIRECT(BB65)) ->  | BH65: =IF(OR(BH$14="",BH$15="",BH$16="",BH$17="",BF65=""),"",INDIRECT(BF65)) ->  | BL65: =IF(OR(BL$14="",BL$15="",BL$16="",BL$17="",BJ65=""),"",INDIRECT(BJ65)) ->  | BP65: =IF(OR(BP$14="",BP$15="",BP$16="",BP$17="",BN65=""),"",INDIRECT(BN65)) ->  | BT65: =IF(OR(BT$14="",BT$15="",BT$16="",BT$17="",BR65=""),"",INDIRECT(BR65)) ->  | BX65: =IF(OR(BX$14="",BX$15="",BX$16="",BX$17="",BV65=""),"",INDIRECT(BV65)) ->  | CB65: =IF(OR(CB$14="",CB$15="",CB$16="",CB$17="",BZ65=""),"",INDIRECT(BZ65)) ->  | CF65: =IF(OR(CF$14="",CF$15="",CF$16="",CF$17="",CD65=""),"",INDIRECT(CD65)) -> 
C66: Progress 8 score | D66: Guidance | F66: -0.2 | H66: =IF(OR(H$14="",H$15="",H$16="",H$17="",F66=""),"", IF(F66>=0.5,Wellabove, IF(AND(F66>=0,F66<0.5),Average, IF(AND(F66>=-0.5,F66<0),Below, IF(F66<-0.5,Wellbelow,""))))) -> Below average | L66: =IF(OR(L$14="",L$15="",L$16="",L$17="",J66=""),"", IF(J66>=0.5,Wellabove, IF(AND(J66>=0,J66<0.5),Average, IF(AND(J66>=-0.5,J66<0),Below, IF(J66<-0.5,Wellbelow,""))))) ->  | P66: =IF(OR(P$14="",P$15="",P$16="",P$17="",N66=""),"", IF(N66>=0.5,Wellabove, IF(AND(N66>=0,N66<0.5),Average, IF(AND(N66>=-0.5,N66<0),Below, IF(N66<-0.5,Wellbelow,""))))) ->  | T66: =IF(OR(T$14="",T$15="",T$16="",T$17="",R66=""),"", IF(R66>=0.5,Wellabove, IF(AND(R66>=0,R66<0.5),Average, IF(AND(R66>=-0.5,R66<0),Below, IF(R66<-0.5,Wellbelow,""))))) ->  | X66: =IF(OR(X$14="",X$15="",X$16="",X$17="",V66=""),"", IF(V66>=0.5,Wellabove, IF(AND(V66>=0,V66<0.5),Average, IF(AND(V66>=-0.5,V66<0),Below, IF(V66<-0.5,Wellbelow,""))))) ->  | AB66: =IF(OR(AB$14="",AB$15="",AB$16="",AB$17="",Z66=""),"", IF(Z66>=0.5,Wellabove, IF(AND(Z66>=0,Z66<0.5),Average, IF(AND(Z66>=-0.5,Z66<0),Below, IF(Z66<-0.5,Wellbelow,""))))) ->  | AF66: =IF(OR(AF$14="",AF$15="",AF$16="",AF$17="",AD66=""),"", IF(AD66>=0.5,Wellabove, IF(AND(AD66>=0,AD66<0.5),Average, IF(AND(AD66>=-0.5,AD66<0),Below, IF(AD66<-0.5,Wellbelow,""))))) ->  | AJ66: =IF(OR(AJ$14="",AJ$15="",AJ$16="",AJ$17="",AH66=""),"", IF(AH66>=0.5,Wellabove, IF(AND(AH66>=0,AH66<0.5),Average, IF(AND(AH66>=-0.5,AH66<0),Below, IF(AH66<-0.5,Wellbelow,""))))) ->  | AN66: =IF(OR(AN$14="",AN$15="",AN$16="",AN$17="",AL66=""),"", IF(AL66>=0.5,Wellabove, IF(AND(AL66>=0,AL66<0.5),Average, IF(AND(AL66>=-0.5,AL66<0),Below, IF(AL66<-0.5,Wellbelow,""))))) ->  | AR66: =IF(OR(AR$14="",AR$15="",AR$16="",AR$17="",AP66=""),"", IF(AP66>=0.5,Wellabove, IF(AND(AP66>=0,AP66<0.5),Average, IF(AND(AP66>=-0.5,AP66<0),Below, IF(AP66<-0.5,Wellbelow,""))))) ->  | AV66: =IF(OR(AV$14="",AV$15="",AV$16="",AV$17="",AT66=""),"", IF(AT66>=0.5,Wellabove, IF(AND(AT66>=0,AT66<0.5),Average, IF(AND(AT66>=-0.5,AT66<0),Below, IF(AT66<-0.5,Wellbelow,""))))) ->  | AZ66: =IF(OR(AZ$14="",AZ$15="",AZ$16="",AZ$17="",AX66=""),"", IF(AX66>=0.5,Wellabove, IF(AND(AX66>=0,AX66<0.5),Average, IF(AND(AX66>=-0.5,AX66<0),Below, IF(AX66<-0.5,Wellbelow,""))))) ->  | BD66: =IF(OR(BD$14="",BD$15="",BD$16="",BD$17="",BB66=""),"", IF(BB66>=0.5,Wellabove, IF(AND(BB66>=0,BB66<0.5),Average, IF(AND(BB66>=-0.5,BB66<0),Below, IF(BB66<-0.5,Wellbelow,""))))) ->  | BH66: =IF(OR(BH$14="",BH$15="",BH$16="",BH$17="",BF66=""),"", IF(BF66>=0.5,Wellabove, IF(AND(BF66>=0,BF66<0.5),Average, IF(AND(BF66>=-0.5,BF66<0),Below, IF(BF66<-0.5,Wellbelow,""))))) ->  | BL66: =IF(OR(BL$14="",BL$15="",BL$16="",BL$17="",BJ66=""),"", IF(BJ66>=0.5,Wellabove, IF(AND(BJ66>=0,BJ66<0.5),Average, IF(AND(BJ66>=-0.5,BJ66<0),Below, IF(BJ66<-0.5,Wellbelow,""))))) ->  | BP66: =IF(OR(BP$14="",BP$15="",BP$16="",BP$17="",BN66=""),"", IF(BN66>=0.5,Wellabove, IF(AND(BN66>=0,BN66<0.5),Average, IF(AND(BN66>=-0.5,BN66<0),Below, IF(BN66<-0.5,Wellbelow,""))))) ->  | BT66: =IF(OR(BT$14="",BT$15="",BT$16="",BT$17="",BR66=""),"", IF(BR66>=0.5,Wellabove, IF(AND(BR66>=0,BR66<0.5),Average, IF(AND(BR66>=-0.5,BR66<0),Below, IF(BR66<-0.5,Wellbelow,""))))) ->  | BX66: =IF(OR(BX$14="",BX$15="",BX$16="",BX$17="",BV66=""),"", IF(BV66>=0.5,Wellabove, IF(AND(BV66>=0,BV66<0.5),Average, IF(AND(BV66>=-0.5,BV66<0),Below, IF(BV66<-0.5,Wellbelow,""))))) ->  | CB66: =IF(OR(CB$14="",CB$15="",CB$16="",CB$17="",BZ66=""),"", IF(BZ66>=0.5,Wellabove, IF(AND(BZ66>=0,BZ66<0.5),Average, IF(AND(BZ66>=-0.5,BZ66<0),Below, IF(BZ66<-0.5,Wellbelow,""))))) ->  | CF66: =IF(OR(CF$14="",CF$15="",CF$16="",CF$17="",CD66=""),"", IF(CD66>=0.5,Wellabove, IF(AND(CD66>=0,CD66<0.5),Average, IF(AND(CD66>=-0.5,CD66<0),Below, IF(CD66<-0.5,Wellbelow,""))))) -> 
C67: Progress score in reading | D67: Guidance | H67: =IF(OR(H$14="",H$15="",H$16="",H$17="",F67=""),"", IF(F67>=3.1,Wellabove, IF(AND(F67>=0,F67<3.1),Average, IF(AND(F67>=-2.8,F67<0),Below, IF(F67<-2.8,Wellbelow,""))))) ->  | L67: =IF(OR(L$14="",L$15="",L$16="",L$17="",J67=""),"", IF(J67>=3.1,Wellabove, IF(AND(J67>=0,J67<3.1),Average, IF(AND(J67>=-2.8,J67<0),Below, IF(J67<-2.8,Wellbelow,""))))) ->  | P67: =IF(OR(P$14="",P$15="",P$16="",P$17="",N67=""),"", IF(N67>=3.1,Wellabove, IF(AND(N67>=0,N67<3.1),Average, IF(AND(N67>=-2.8,N67<0),Below, IF(N67<-2.8,Wellbelow,""))))) ->  | T67: =IF(OR(T$14="",T$15="",T$16="",T$17="",R67=""),"", IF(R67>=3.1,Wellabove, IF(AND(R67>=0,R67<3.1),Average, IF(AND(R67>=-2.8,R67<0),Below, IF(R67<-2.8,Wellbelow,""))))) ->  | X67: =IF(OR(X$14="",X$15="",X$16="",X$17="",V67=""),"", IF(V67>=3.1,Wellabove, IF(AND(V67>=0,V67<3.1),Average, IF(AND(V67>=-2.8,V67<0),Below, IF(V67<-2.8,Wellbelow,""))))) ->  | AB67: =IF(OR(AB$14="",AB$15="",AB$16="",AB$17="",Z67=""),"", IF(Z67>=3.1,Wellabove, IF(AND(Z67>=0,Z67<3.1),Average, IF(AND(Z67>=-2.8,Z67<0),Below, IF(Z67<-2.8,Wellbelow,""))))) ->  | AF67: =IF(OR(AF$14="",AF$15="",AF$16="",AF$17="",AD67=""),"", IF(AD67>=3.1,Wellabove, IF(AND(AD67>=0,AD67<3.1),Average, IF(AND(AD67>=-2.8,AD67<0),Below, IF(AD67<-2.8,Wellbelow,""))))) ->  | AJ67: =IF(OR(AJ$14="",AJ$15="",AJ$16="",AJ$17="",AH67=""),"", IF(AH67>=3.1,Wellabove, IF(AND(AH67>=0,AH67<3.1),Average, IF(AND(AH67>=-2.8,AH67<0),Below, IF(AH67<-2.8,Wellbelow,""))))) ->  | AN67: =IF(OR(AN$14="",AN$15="",AN$16="",AN$17="",AL67=""),"", IF(AL67>=3.1,Wellabove, IF(AND(AL67>=0,AL67<3.1),Average, IF(AND(AL67>=-2.8,AL67<0),Below, IF(AL67<-2.8,Wellbelow,""))))) ->  | AR67: =IF(OR(AR$14="",AR$15="",AR$16="",AR$17="",AP67=""),"", IF(AP67>=3.1,Wellabove, IF(AND(AP67>=0,AP67<3.1),Average, IF(AND(AP67>=-2.8,AP67<0),Below, IF(AP67<-2.8,Wellbelow,""))))) ->  | AV67: =IF(OR(AV$14="",AV$15="",AV$16="",AV$17="",AT67=""),"", IF(AT67>=3.1,Wellabove, IF(AND(AT67>=0,AT67<3.1),Average, IF(AND(AT67>=-2.8,AT67<0),Below, IF(AT67<-2.8,Wellbelow,""))))) ->  | AZ67: =IF(OR(AZ$14="",AZ$15="",AZ$16="",AZ$17="",AX67=""),"", IF(AX67>=3.1,Wellabove, IF(AND(AX67>=0,AX67<3.1),Average, IF(AND(AX67>=-2.8,AX67<0),Below, IF(AX67<-2.8,Wellbelow,""))))) ->  | BD67: =IF(OR(BD$14="",BD$15="",BD$16="",BD$17="",BB67=""),"", IF(BB67>=3.1,Wellabove, IF(AND(BB67>=0,BB67<3.1),Average, IF(AND(BB67>=-2.8,BB67<0),Below, IF(BB67<-2.8,Wellbelow,""))))) ->  | BH67: =IF(OR(BH$14="",BH$15="",BH$16="",BH$17="",BF67=""),"", IF(BF67>=3.1,Wellabove, IF(AND(BF67>=0,BF67<3.1),Average, IF(AND(BF67>=-2.8,BF67<0),Below, IF(BF67<-2.8,Wellbelow,""))))) ->  | BL67: =IF(OR(BL$14="",BL$15="",BL$16="",BL$17="",BJ67=""),"", IF(BJ67>=3.1,Wellabove, IF(AND(BJ67>=0,BJ67<3.1),Average, IF(AND(BJ67>=-2.8,BJ67<0),Below, IF(BJ67<-2.8,Wellbelow,""))))) ->  | BP67: =IF(OR(BP$14="",BP$15="",BP$16="",BP$17="",BN67=""),"", IF(BN67>=3.1,Wellabove, IF(AND(BN67>=0,BN67<3.1),Average, IF(AND(BN67>=-2.8,BN67<0),Below, IF(BN67<-2.8,Wellbelow,""))))) ->  | BT67: =IF(OR(BT$14="",BT$15="",BT$16="",BT$17="",BR67=""),"", IF(BR67>=3.1,Wellabove, IF(AND(BR67>=0,BR67<3.1),Average, IF(AND(BR67>=-2.8,BR67<0),Below, IF(BR67<-2.8,Wellbelow,""))))) ->  | BX67: =IF(OR(BX$14="",BX$15="",BX$16="",BX$17="",BV67=""),"", IF(BV67>=3.1,Wellabove, IF(AND(BV67>=0,BV67<3.1),Average, IF(AND(BV67>=-2.8,BV67<0),Below, IF(BV67<-2.8,Wellbelow,""))))) ->  | CB67: =IF(OR(CB$14="",CB$15="",CB$16="",CB$17="",BZ67=""),"", IF(BZ67>=3.1,Wellabove, IF(AND(BZ67>=0,BZ67<3.1),Average, IF(AND(BZ67>=-2.8,BZ67<0),Below, IF(BZ67<-2.8,Wellbelow,""))))) ->  | CF67: =IF(OR(CF$14="",CF$15="",CF$16="",CF$17="",CD67=""),"", IF(CD67>=3.1,Wellabove, IF(AND(CD67>=0,CD67<3.1),Average, IF(AND(CD67>=-2.8,CD67<0),Below, IF(CD67<-2.8,Wellbelow,""))))) -> 
C68: Progress score in writing | D68: Guidance | H68: =IF(OR(H$14="",H$15="",H$16="",H$17="",F68=""),"", IF(F68>=2.7,Wellabove, IF(AND(F68>=0,F68<2.7),Average, IF(AND(F68>=-2.6,F68<0),Below, IF(F68<-2.6,Wellbelow,""))))) ->  | L68: =IF(OR(L$14="",L$15="",L$16="",L$17="",J68=""),"", IF(J68>=2.7,Wellabove, IF(AND(J68>=0,J68<2.7),Average, IF(AND(J68>=-2.6,J68<0),Below, IF(J68<-2.6,Wellbelow,""))))) ->  | P68: =IF(OR(P$14="",P$15="",P$16="",P$17="",N68=""),"", IF(N68>=2.7,Wellabove, IF(AND(N68>=0,N68<2.7),Average, IF(AND(N68>=-2.6,N68<0),Below, IF(N68<-2.6,Wellbelow,""))))) ->  | T68: =IF(OR(T$14="",T$15="",T$16="",T$17="",R68=""),"", IF(R68>=2.7,Wellabove, IF(AND(R68>=0,R68<2.7),Average, IF(AND(R68>=-2.6,R68<0),Below, IF(R68<-2.6,Wellbelow,""))))) ->  | X68: =IF(OR(X$14="",X$15="",X$16="",X$17="",V68=""),"", IF(V68>=2.7,Wellabove, IF(AND(V68>=0,V68<2.7),Average, IF(AND(V68>=-2.6,V68<0),Below, IF(V68<-2.6,Wellbelow,""))))) ->  | AB68: =IF(OR(AB$14="",AB$15="",AB$16="",AB$17="",Z68=""),"", IF(Z68>=2.7,Wellabove, IF(AND(Z68>=0,Z68<2.7),Average, IF(AND(Z68>=-2.6,Z68<0),Below, IF(Z68<-2.6,Wellbelow,""))))) ->  | AF68: =IF(OR(AF$14="",AF$15="",AF$16="",AF$17="",AD68=""),"", IF(AD68>=2.7,Wellabove, IF(AND(AD68>=0,AD68<2.7),Average, IF(AND(AD68>=-2.6,AD68<0),Below, IF(AD68<-2.6,Wellbelow,""))))) ->  | AJ68: =IF(OR(AJ$14="",AJ$15="",AJ$16="",AJ$17="",AH68=""),"", IF(AH68>=2.7,Wellabove, IF(AND(AH68>=0,AH68<2.7),Average, IF(AND(AH68>=-2.6,AH68<0),Below, IF(AH68<-2.6,Wellbelow,""))))) ->  | AN68: =IF(OR(AN$14="",AN$15="",AN$16="",AN$17="",AL68=""),"", IF(AL68>=2.7,Wellabove, IF(AND(AL68>=0,AL68<2.7),Average, IF(AND(AL68>=-2.6,AL68<0),Below, IF(AL68<-2.6,Wellbelow,""))))) ->  | AR68: =IF(OR(AR$14="",AR$15="",AR$16="",AR$17="",AP68=""),"", IF(AP68>=2.7,Wellabove, IF(AND(AP68>=0,AP68<2.7),Average, IF(AND(AP68>=-2.6,AP68<0),Below, IF(AP68<-2.6,Wellbelow,""))))) ->  | AV68: =IF(OR(AV$14="",AV$15="",AV$16="",AV$17="",AT68=""),"", IF(AT68>=2.7,Wellabove, IF(AND(AT68>=0,AT68<2.7),Average, IF(AND(AT68>=-2.6,AT68<0),Below, IF(AT68<-2.6,Wellbelow,""))))) ->  | AZ68: =IF(OR(AZ$14="",AZ$15="",AZ$16="",AZ$17="",AX68=""),"", IF(AX68>=2.7,Wellabove, IF(AND(AX68>=0,AX68<2.7),Average, IF(AND(AX68>=-2.6,AX68<0),Below, IF(AX68<-2.6,Wellbelow,""))))) ->  | BD68: =IF(OR(BD$14="",BD$15="",BD$16="",BD$17="",BB68=""),"", IF(BB68>=2.7,Wellabove, IF(AND(BB68>=0,BB68<2.7),Average, IF(AND(BB68>=-2.6,BB68<0),Below, IF(BB68<-2.6,Wellbelow,""))))) ->  | BH68: =IF(OR(BH$14="",BH$15="",BH$16="",BH$17="",BF68=""),"", IF(BF68>=2.7,Wellabove, IF(AND(BF68>=0,BF68<2.7),Average, IF(AND(BF68>=-2.6,BF68<0),Below, IF(BF68<-2.6,Wellbelow,""))))) ->  | BL68: =IF(OR(BL$14="",BL$15="",BL$16="",BL$17="",BJ68=""),"", IF(BJ68>=2.7,Wellabove, IF(AND(BJ68>=0,BJ68<2.7),Average, IF(AND(BJ68>=-2.6,BJ68<0),Below, IF(BJ68<-2.6,Wellbelow,""))))) ->  | BP68: =IF(OR(BP$14="",BP$15="",BP$16="",BP$17="",BN68=""),"", IF(BN68>=2.7,Wellabove, IF(AND(BN68>=0,BN68<2.7),Average, IF(AND(BN68>=-2.6,BN68<0),Below, IF(BN68<-2.6,Wellbelow,""))))) ->  | BT68: =IF(OR(BT$14="",BT$15="",BT$16="",BT$17="",BR68=""),"", IF(BR68>=2.7,Wellabove, IF(AND(BR68>=0,BR68<2.7),Average, IF(AND(BR68>=-2.6,BR68<0),Below, IF(BR68<-2.6,Wellbelow,""))))) ->  | BX68: =IF(OR(BX$14="",BX$15="",BX$16="",BX$17="",BV68=""),"", IF(BV68>=2.7,Wellabove, IF(AND(BV68>=0,BV68<2.7),Average, IF(AND(BV68>=-2.6,BV68<0),Below, IF(BV68<-2.6,Wellbelow,""))))) ->  | CB68: =IF(OR(CB$14="",CB$15="",CB$16="",CB$17="",BZ68=""),"", IF(BZ68>=2.7,Wellabove, IF(AND(BZ68>=0,BZ68<2.7),Average, IF(AND(BZ68>=-2.6,BZ68<0),Below, IF(BZ68<-2.6,Wellbelow,""))))) ->  | CF68: =IF(OR(CF$14="",CF$15="",CF$16="",CF$17="",CD68=""),"", IF(CD68>=2.7,Wellabove, IF(AND(CD68>=0,CD68<2.7),Average, IF(AND(CD68>=-2.6,CD68<0),Below, IF(CD68<-2.6,Wellbelow,""))))) -> 
C69: Progress score in maths | D69: Guidance | H69: =IF(OR(H$14="",H$15="",H$16="",H$17="",F69=""),"", IF(F69>=3.2,Wellabove, IF(AND(F69>=0,F69<3.2),Average, IF(AND(F69>=-3.2,F69<0),Below, IF(F69<-3.2,Wellbelow,""))))) ->  | L69: =IF(OR(L$14="",L$15="",L$16="",L$17="",J69=""),"", IF(J69>=3.2,Wellabove, IF(AND(J69>=0,J69<3.2),Average, IF(AND(J69>=-3.2,J69<0),Below, IF(J69<-3.2,Wellbelow,""))))) ->  | P69: =IF(OR(P$14="",P$15="",P$16="",P$17="",N69=""),"", IF(N69>=3.2,Wellabove, IF(AND(N69>=0,N69<3.2),Average, IF(AND(N69>=-3.2,N69<0),Below, IF(N69<-3.2,Wellbelow,""))))) ->  | T69: =IF(OR(T$14="",T$15="",T$16="",T$17="",R69=""),"", IF(R69>=3.2,Wellabove, IF(AND(R69>=0,R69<3.2),Average, IF(AND(R69>=-3.2,R69<0),Below, IF(R69<-3.2,Wellbelow,""))))) ->  | X69: =IF(OR(X$14="",X$15="",X$16="",X$17="",V69=""),"", IF(V69>=3.2,Wellabove, IF(AND(V69>=0,V69<3.2),Average, IF(AND(V69>=-3.2,V69<0),Below, IF(V69<-3.2,Wellbelow,""))))) ->  | AB69: =IF(OR(AB$14="",AB$15="",AB$16="",AB$17="",Z69=""),"", IF(Z69>=3.2,Wellabove, IF(AND(Z69>=0,Z69<3.2),Average, IF(AND(Z69>=-3.2,Z69<0),Below, IF(Z69<-3.2,Wellbelow,""))))) ->  | AF69: =IF(OR(AF$14="",AF$15="",AF$16="",AF$17="",AD69=""),"", IF(AD69>=3.2,Wellabove, IF(AND(AD69>=0,AD69<3.2),Average, IF(AND(AD69>=-3.2,AD69<0),Below, IF(AD69<-3.2,Wellbelow,""))))) ->  | AJ69: =IF(OR(AJ$14="",AJ$15="",AJ$16="",AJ$17="",AH69=""),"", IF(AH69>=3.2,Wellabove, IF(AND(AH69>=0,AH69<3.2),Average, IF(AND(AH69>=-3.2,AH69<0),Below, IF(AH69<-3.2,Wellbelow,""))))) ->  | AN69: =IF(OR(AN$14="",AN$15="",AN$16="",AN$17="",AL69=""),"", IF(AL69>=3.2,Wellabove, IF(AND(AL69>=0,AL69<3.2),Average, IF(AND(AL69>=-3.2,AL69<0),Below, IF(AL69<-3.2,Wellbelow,""))))) ->  | AR69: =IF(OR(AR$14="",AR$15="",AR$16="",AR$17="",AP69=""),"", IF(AP69>=3.2,Wellabove, IF(AND(AP69>=0,AP69<3.2),Average, IF(AND(AP69>=-3.2,AP69<0),Below, IF(AP69<-3.2,Wellbelow,""))))) ->  | AV69: =IF(OR(AV$14="",AV$15="",AV$16="",AV$17="",AT69=""),"", IF(AT69>=3.2,Wellabove, IF(AND(AT69>=0,AT69<3.2),Average, IF(AND(AT69>=-3.2,AT69<0),Below, IF(AT69<-3.2,Wellbelow,""))))) ->  | AZ69: =IF(OR(AZ$14="",AZ$15="",AZ$16="",AZ$17="",AX69=""),"", IF(AX69>=3.2,Wellabove, IF(AND(AX69>=0,AX69<3.2),Average, IF(AND(AX69>=-3.2,AX69<0),Below, IF(AX69<-3.2,Wellbelow,""))))) ->  | BD69: =IF(OR(BD$14="",BD$15="",BD$16="",BD$17="",BB69=""),"", IF(BB69>=3.2,Wellabove, IF(AND(BB69>=0,BB69<3.2),Average, IF(AND(BB69>=-3.2,BB69<0),Below, IF(BB69<-3.2,Wellbelow,""))))) ->  | BH69: =IF(OR(BH$14="",BH$15="",BH$16="",BH$17="",BF69=""),"", IF(BF69>=3.2,Wellabove, IF(AND(BF69>=0,BF69<3.2),Average, IF(AND(BF69>=-3.2,BF69<0),Below, IF(BF69<-3.2,Wellbelow,""))))) ->  | BL69: =IF(OR(BL$14="",BL$15="",BL$16="",BL$17="",BJ69=""),"", IF(BJ69>=3.2,Wellabove, IF(AND(BJ69>=0,BJ69<3.2),Average, IF(AND(BJ69>=-3.2,BJ69<0),Below, IF(BJ69<-3.2,Wellbelow,""))))) ->  | BP69: =IF(OR(BP$14="",BP$15="",BP$16="",BP$17="",BN69=""),"", IF(BN69>=3.2,Wellabove, IF(AND(BN69>=0,BN69<3.2),Average, IF(AND(BN69>=-3.2,BN69<0),Below, IF(BN69<-3.2,Wellbelow,""))))) ->  | BT69: =IF(OR(BT$14="",BT$15="",BT$16="",BT$17="",BR69=""),"", IF(BR69>=3.2,Wellabove, IF(AND(BR69>=0,BR69<3.2),Average, IF(AND(BR69>=-3.2,BR69<0),Below, IF(BR69<-3.2,Wellbelow,""))))) ->  | BX69: =IF(OR(BX$14="",BX$15="",BX$16="",BX$17="",BV69=""),"", IF(BV69>=3.2,Wellabove, IF(AND(BV69>=0,BV69<3.2),Average, IF(AND(BV69>=-3.2,BV69<0),Below, IF(BV69<-3.2,Wellbelow,""))))) ->  | CB69: =IF(OR(CB$14="",CB$15="",CB$16="",CB$17="",BZ69=""),"", IF(BZ69>=3.2,Wellabove, IF(AND(BZ69>=0,BZ69<3.2),Average, IF(AND(BZ69>=-3.2,BZ69<0),Below, IF(BZ69<-3.2,Wellbelow,""))))) ->  | CF69: =IF(OR(CF$14="",CF$15="",CF$16="",CF$17="",CD69=""),"", IF(CD69>=3.2,Wellabove, IF(AND(CD69>=0,CD69<3.2),Average, IF(AND(CD69>=-3.2,CD69<0),Below, IF(CD69<-3.2,Wellbelow,""))))) -> 
C71: F: Optional commentary
C73: [enter text] | F73: [enter text] | J73: [enter text] | N73: [enter text] | R73: [enter text] | V73: [enter text] | Z73: [enter text] | AD73: [enter text] | AH73: [enter text] | AL73: [enter text] | AP73: [enter text] | AT73: [enter text] | AX73: [enter text] | BB73: [enter text] | BF73: [enter text] | BJ73: [enter text] | BN73: [enter text] | BR73: [enter text] | BV73: [enter text] | BZ73: [enter text] | CD73: [enter text]

Sheet Optional - input raw data
C3: Raw data form
F4: 1 | H4: 2 | J4: 3 | L4: 4 | N4: 5 | P4: 6 | R4: 7 | T4: 8 | V4: 9 | X4: 10 | Z4: 11 | AB4: 12 | AF4: 14 | AH4: 15 | AJ4: 16 | AL4: 17 | AN4: 18 | AP4: 19 | AR4: 20
C5: This form can be used to input raw spend and characteristics information. If used, the information in this table will be used to calculate the percentages and ratios required in the dashboard. The percentages and ratios can also be inputted directly into the dashboard. Schools should use the most up to date information available to them, and not rely on lagged published data. All of the data should refer to the same financial year. Add up to 20 schools by using the Click here to add another school buttons. Macros must be enabled for this feature. | AD5: 13
F8: School name: | H8: School name: | J8: School name: | L8: School name: | N8: School name: | P8: School name: | R8: School name: | T8: School name: | V8: School name: | X8: School name: | Z8: School name: | AB8: School name: | AD8: School name: | AF8: School name: | AH8: School name: | AJ8: School name: | AL8: School name: | AN8: School name: | AP8: School name: | AR8: School name:
F9: =IF(Dashboard!H13="","",Dashboard!H13) -> Shenfield High School | H9: =IF(Dashboard!L13="","",Dashboard!L13) ->  | J9: =IF(Dashboard!P13="","",Dashboard!P13) ->  | L9: =IF(Dashboard!T13="","",Dashboard!T13) ->  | N9: =IF(Dashboard!X13="","",Dashboard!X13) ->  | P9: =IF(Dashboard!AB13="","",Dashboard!AB13) ->  | R9: =IF(Dashboard!AF13="","",Dashboard!AF13) ->  | T9: =IF(Dashboard!AJ13="","",Dashboard!AJ13) ->  | V9: =IF(Dashboard!AN13="","",Dashboard!AN13) ->  | X9: =IF(Dashboard!AR13="","",Dashboard!AR13) ->  | Z9: =IF(Dashboard!AV13="","",Dashboard!AV13) ->  | AB9: =IF(Dashboard!AZ13="","",Dashboard!AZ13) ->  | AD9: =IF(Dashboard!BD13="","",Dashboard!BD13) ->  | AF9: =IF(Dashboard!BH13="","",Dashboard!BH13) ->  | AH9: =IF(Dashboard!BL13="","",Dashboard!BL13) ->  | AJ9: =IF(Dashboard!BP13="","",Dashboard!BP13) ->  | AL9: =IF(Dashboard!BT13="","",Dashboard!BT13) ->  | AN9: =IF(Dashboard!BX13="","",Dashboard!BX13) ->  | AP9: =IF(Dashboard!CB13="","",Dashboard!CB13) ->  | AR9: =IF(Dashboard!CF13="","",Dashboard!CF13) -> 
F12: Input the raw spending and characteristics data for this school below, or click here to input the school's percentages and ratios directly into the dashboard | H12: Input the raw spending and characteristics data for this school below, or click here to input the school's percentages and ratios directly into the dashboard | J12: Input the raw spending and characteristics data for this school below, or click here to input the school's percentages and ratios directly into the dashboard | L12: Input the raw spending and characteristics data for this school below, or click here to input the school's percentages and ratios directly into the dashboard | N12: Input the raw spending and characteristics data for this school below, or click here to input the school's percentages and ratios directly into the dashboard | P12: Input the raw spending and characteristics data for this school below, or click here to input the school's percentages and ratios directly into the dashboard | R12: Input the raw spending and characteristics data for this school below, or click here to input the school's percentages and ratios directly into the dashboard | T12: Input the raw spending and characteristics data for this school below, or click here to input the school's percentages and ratios directly into the dashboard | V12: Input the raw spending and characteristics data for this school below, or click here to input the school's percentages and ratios directly into the dashboard | X12: Input the raw spending and characteristics data for this school below, or click here to input the school's percentages and ratios directly into the dashboard | Z12: Input the raw spending and characteristics data for this school below, or click here to input the school's percentages and ratios directly into the dashboard | AB12: Input the raw spending and characteristics data for this school below, or click here to input the school's percentages and ratios directly into the dashboard | AD12: Input the raw spending and characteristics data for this school below, or click here to input the school's percentages and ratios directly into the dashboard | AF12: Input the raw spending and characteristics data for this school below, or click here to input the school's percentages and ratios directly into the dashboard | AH12: Input the raw spending and characteristics data for this school below, or click here to input the school's percentages and ratios directly into the dashboard | AJ12: Input the raw spending and characteristics data for this school below, or click here to input the school's percentages and ratios directly into the dashboard | AL12: Input the raw spending and characteristics data for this school below, or click here to input the school's percentages and ratios directly into the dashboard | AN12: Input the raw spending and characteristics data for this school below, or click here to input the school's percentages and ratios directly into the dashboard | AP12: Input the raw spending and characteristics data for this school below, or click here to input the school's percentages and ratios directly into the dashboard | AR12: Input the raw spending and characteristics data for this school below, or click here to input the school's percentages and ratios directly into the dashboard
C19: Full time equivalent number of teachers (classroom and leadership) | F19: 73.2
C20: Full time equivalent of teachers in the leadership group | F20: 9.0
C21: Full time equivalent of total school workforce | F21: 126.2
C23: Total expenditure | F23: £7,344,512
C24: Total income | F24: £7,125,706
C25: Revenue balances (committed and uncommitted) | F25: £329,596
C27: For secondary and all-through schools:
C28: Teaching periods in the timetable cycle | F28: 50
C29: Total lessons taught by all teachers in the timetable cycle | F29: 2,768
D30: =IFERROR(IF((F29/(F28*F19))<0.5,"Resulting teacher contact ratio is low. Total lessons taught may be incorrectly calculated as too low",IF((F29/(F28*F19))>1,"Resulting teacher contact ratio is greater than 1. Total lessons taught is too high","")),"") -> 
C31: For primary schools:
C32: Total number of classes
C34: E1 | D34: Teaching staff | F34: £4,370,608
C35: E2 | D35: Supply teaching staff | F35: £20,000
C36: E3 | D36: Education support staff | F36: £548,524
C37: E4 | D37: Administrative and clerical staff | F37: £729,076
C38: E5 | D38: Premises staff | F38: £157,423
C39: E6 | D39: Catering staff
C40: E7 | D40: Cost of other staff | F40: £224,468
C41: E8 | D41: Indirect employee expenses | F41: £28,000
C42: E9 | D42: Staff development and training | F42: £12,000
C43: E10 | D43: Supply teacher insurance | F43: £0
C44: E11 | D44: Staff-related insurance
C45: E13 | D45: Maintenance of premises | F45: £54,000
C46: E14 | D46: Cleaning and caretaking | F46: £175,600
C47: E15 | D47: Water and sewerage | F47: £30,000
C48: E16 | D48: Energy | F48: £144,000
C49: E17 | D49: Rent and rates | F49: £34,442
C50: E18 | D50: Grounds maintenance | F50: £15,000
C51: E19 | D51: Other occupation costs | F51: £66,508
C52: E21 | D52: Special facilities | F52: £16,000
C53: E22 | D53: Teaching resources | F53: £150,650
C54: E23 | D54: ICT teaching resources | F54: £94,000
C55: E24 | D55: Examination fees | F55: £125,000
C56: E25 | D56: Educational consultancy
C57: E26 | D57: Agency supply teaching staff
C58: E28 | D58: Catering supplies | F58: £12,500
C59: E29 | D59: Auditor costs
C60: E30 | D60: Other insurance premiums | F60: £33,500
C61: E31 | D61: Administrative supplies - non educational | F61: £139,109
C62: E32 | D62: Direct revenue financing (revenue contributions to capital) | F62: £88,254
C63: E33 | D63: Professional services - non-curriculum | F63: £75,855
C64: E35 | D64: Interest charges for loan and bank
C65: E36 | D65: PFI charges

Sheet RAG rating data for your school
B2: Select which school to show the RAG ratings for: | H2: The RAG ratings have been calculated using maintained school and academy 2017 to 18 data. The majority of metrics in the dashboard are percentages and ratios which at a national level don't change significantly year on year, so they still provide a fair and useful comparison with your up to date data. The exception is average teacher cost, which does change year on year. To reflect the latest pay awards (from September 2018 and September 2019) and pensions contribution changes we have uplifted the underlying data by 11.2%. The thresholds therefore reflect average teacher costs for the academic year 2019/20.
B3: Shenfield High School
B6: Your school has been identified as:
B7: =IF($B$3="","","- "& INDEX(Calcs!L:L,MATCH($B$3,Calcs!A:A,0))) -> - a secondary school with a sixth form
B8: =IF($B$3="","","- "& INDEX(Calcs!I:I,MATCH($B$3,Calcs!A:A,0))) -> - outside London
B9: =IF($B$3="","", IF(OR($B$7="- an alternative provision school",$B$7="- a special school",$B$7="- an all-through school",$B$7="- a nursery school"),"", "- a "&INDEX(Calcs!J:J,MATCH($B$3,Calcs!A:A,0))&" school because it has "&INDEX(Calcs!M:M,MATCH($B$3,Calcs!A:A,0)))) -> - a large school because it has more than 1300 pupils
B10: =IF($B$3="","", IF(OR($B$7="- an alternative provision school",$B$7="- a special school",$B$7="- an all-through school",$B$7="- a nursery school"),"", "- a school with "&INDEX(Calcs!K:K,MATCH($B$3,Calcs!A:A,0))&" because "&INDEX(Calcs!N:N,MATCH($B$3,Calcs!A:A,0))&" are eligible")) -> - a school with medium levels of FSM because between 6% and 16.5% of pupils are eligible
B13: The thresholds for the RAG ratings are based on these characteristics and are:
B15: B. Your spending as a percentage of expenditure
D17: Red rating | G17: Amber rating | L17: Light green rating | Q17: Dark green rating
B19: Spend on teaching staff as a percentage of total expenditure | D19: Less than or equal to | E19: =IF($B$3="","",INDEX(INDIRECT(INDEX(Calcs!$D:$D,MATCH($B$3,Calcs!$A:$A,0))),1,1)) -> 50.0% | G19: Between | H19: =IF($B$3="","",INDEX(INDIRECT(INDEX(Calcs!$D:$D,MATCH($B$3,Calcs!$A:$A,0))),1,1)) -> 50.0% | I19: and | J19: =IF($B$3="","",INDEX(INDIRECT(INDEX(Calcs!$D:$D,MATCH($B$3,Calcs!$A:$A,0))),1,2)) -> 53.0% | L19: Between | M19: =IF($B$3="","",INDEX(INDIRECT(INDEX(Calcs!$D:$D,MATCH($B$3,Calcs!$A:$A,0))),1,2)) -> 53.0% | N19: and | O19: =IF($B$3="","",INDEX(INDIRECT(INDEX(Calcs!$D:$D,MATCH($B$3,Calcs!$A:$A,0))),1,3)) -> 55.5% | Q19: Between | R19: =IF($B$3="","",INDEX(INDIRECT(INDEX(Calcs!$D:$D,MATCH($B$3,Calcs!$A:$A,0))),1,3)) -> 55.5% | S19: and | T19: =IF($B$3="","",INDEX(INDIRECT(INDEX(Calcs!$D:$D,MATCH($B$3,Calcs!$A:$A,0))),1,5)) -> 57.5%
D20: Or more than | E20: =IF($B$3="","",INDEX(INDIRECT(INDEX(Calcs!$D:$D,MATCH($B$3,Calcs!$A:$A,0))),1,7)) -> 63.5% | G20: Or between | H20: =IF($B$3="","",INDEX(INDIRECT(INDEX(Calcs!$D:$D,MATCH($B$3,Calcs!$A:$A,0))),1,6)) -> 61.0% | I20: and | J20: =IF($B$3="","",INDEX(INDIRECT(INDEX(Calcs!$D:$D,MATCH($B$3,Calcs!$A:$A,0))),1,7)) -> 63.5% | L20: Or between | M20: =IF($B$3="","",INDEX(INDIRECT(INDEX(Calcs!$D:$D,MATCH($B$3,Calcs!$A:$A,0))),1,5)) -> 57.5% | N20: and | O20: =IF($B$3="","",INDEX(INDIRECT(INDEX(Calcs!$D:$D,MATCH($B$3,Calcs!$A:$A,0))),1,6)) -> 61.0%
B22: Spend on supply staff as a percentage of total expenditure | D22: More than | E22: =IF($B$3="","",INDEX(INDIRECT(INDEX(Calcs!$D:$D,MATCH($B$3,Calcs!$A:$A,0))),2,7)) -> 4.0% | G22: Between | H22: =IF($B$3="","",INDEX(INDIRECT(INDEX(Calcs!$D:$D,MATCH($B$3,Calcs!$A:$A,0))),2,6)) -> 3.0% | I22: and | J22: =IF($B$3="","",INDEX(INDIRECT(INDEX(Calcs!$D:$D,MATCH($B$3,Calcs!$A:$A,0))),2,7)) -> 4.0% | L22: Between | M22: =IF($B$3="","",INDEX(INDIRECT(INDEX(Calcs!$D:$D,MATCH($B$3,Calcs!$A:$A,0))),2,5)) -> 2.0% | N22: and | O22: =IF($B$3="","",INDEX(INDIRECT(INDEX(Calcs!$D:$D,MATCH($B$3,Calcs!$A:$A,0))),2,6)) -> 3.0% | Q22: Between | R22: =IF($B$3="","",INDEX(INDIRECT(INDEX(Calcs!$D:$D,MATCH($B$3,Calcs!$A:$A,0))),2,3)) -> 1.0% | S22: and | T22: =IF($B$3="","",INDEX(INDIRECT(INDEX(Calcs!$D:$D,MATCH($B$3,Calcs!$A:$A,0))),2,5)) -> 2.0%
L23: Or less than or equal to | M23: =IF($B$3="","",INDEX(INDIRECT(INDEX(Calcs!$D:$D,MATCH($B$3,Calcs!$A:$A,0))),2,3)) -> 1.0%
B25: Spend on education support staff as a percentage of total expenditure | D25: More than | E25: =IF($B$3="","",INDEX(INDIRECT(INDEX(Calcs!$D:$D,MATCH($B$3,Calcs!$A:$A,0))),3,7)) -> 13.0% | G25: Between | H25: =IF($B$3="","",INDEX(INDIRECT(INDEX(Calcs!$D:$D,MATCH($B$3,Calcs!$A:$A,0))),3,6)) -> 11.5% | I25: and | J25: =IF($B$3="","",INDEX(INDIRECT(INDEX(Calcs!$D:$D,MATCH($B$3,Calcs!$A:$A,0))),3,7)) -> 13.0% | L25: Between | M25: =IF($B$3="","",INDEX(INDIRECT(INDEX(Calcs!$D:$D,MATCH($B$3,Calcs!$A:$A,0))),3,5)) -> 10.0% | N25: and | O25: =IF($B$3="","",INDEX(INDIRECT(INDEX(Calcs!$D:$D,MATCH($B$3,Calcs!$A:$A,0))),3,6)) -> 11.5% | Q25: Between | R25: =IF($B$3="","",INDEX(INDIRECT(INDEX(Calcs!$D:$D,MATCH($B$3,Calcs!$A:$A,0))),3,3)) -> 8.5% | S25: and | T25: =IF($B$3="","",INDEX(INDIRECT(INDEX(Calcs!$D:$D,MATCH($B$3,Calcs!$A:$A,0))),3,5)) -> 10.0%
L26: Or less than or equal to | M26: =IF($B$3="","",INDEX(INDIRECT(INDEX(Calcs!$D:$D,MATCH($B$3,Calcs!$A:$A,0))),3,3)) -> 8.5%
B28: Spend on administrative and clerical staff as a percentage of total expenditure | D28: More than | E28: =IF($B$3="","",INDEX(INDIRECT(INDEX(Calcs!$D:$D,MATCH($B$3,Calcs!$A:$A,0))),4,7)) -> 10.0% | G28: Between | H28: =IF($B$3="","",INDEX(INDIRECT(INDEX(Calcs!$D:$D,MATCH($B$3,Calcs!$A:$A,0))),4,6)) -> 8.0% | I28: and | J28: =IF($B$3="","",INDEX(INDIRECT(INDEX(Calcs!$D:$D,MATCH($B$3,Calcs!$A:$A,0))),4,7)) -> 10.0% | L28: Less than or equal to | M28: =IF($B$3="","",INDEX(INDIRECT(INDEX(Calcs!$D:$D,MATCH($B$3,Calcs!$A:$A,0))),4,6)) -> 8.0%
B31: Spend on other staff costs as a percentage of total expenditure | D31: More than | E31: =IF($B$3="","",INDEX(INDIRECT(INDEX(Calcs!$D:$D,MATCH($B$3,Calcs!$A:$A,0))),5,7)) -> 5.0% | G31: Between | H31: =IF($B$3="","",INDEX(INDIRECT(INDEX(Calcs!$D:$D,MATCH($B$3,Calcs!$A:$A,0))),5,6)) -> 3.0% | I31: and | J31: =IF($B$3="","",INDEX(INDIRECT(INDEX(Calcs!$D:$D,MATCH($B$3,Calcs!$A:$A,0))),5,7)) -> 5.0% | L31: Less than or equal to | M31: =IF($B$3="","",INDEX(INDIRECT(INDEX(Calcs!$D:$D,MATCH($B$3,Calcs!$A:$A,0))),5,6)) -> 3.0%
B34: Spend on premises (including staff costs) as a percentage of total expenditure | D34: More than | E34: =IF($B$3="","",INDEX(INDIRECT(INDEX(Calcs!$D:$D,MATCH($B$3,Calcs!$A:$A,0))),6,7)) -> 8.5% | G34: Between | H34: =IF($B$3="","",INDEX(INDIRECT(INDEX(Calcs!$D:$D,MATCH($B$3,Calcs!$A:$A,0))),6,6)) -> 6.5% | I34: and | J34: =IF($B$3="","",INDEX(INDIRECT(INDEX(Calcs!$D:$D,MATCH($B$3,Calcs!$A:$A,0))),6,7)) -> 8.5% | L34: Less than or equal to | M34: =IF($B$3="","",INDEX(INDIRECT(INDEX(Calcs!$D:$D,MATCH($B$3,Calcs!$A:$A,0))),6,6)) -> 6.5%
B37: Spend on teaching resources as a percentage of total expenditure | D37: Less than or equal to | E37: =IF($B$3="","",INDEX(INDIRECT(INDEX(Calcs!$D:$D,MATCH($B$3,Calcs!$A:$A,0))),7,1)) -> 4.5% | G37: Between | H37: =IF($B$3="","",INDEX(INDIRECT(INDEX(Calcs!$D:$D,MATCH($B$3,Calcs!$A:$A,0))),7,1)) -> 4.5% | I37: and | J37: =IF($B$3="","",INDEX(INDIRECT(INDEX(Calcs!$D:$D,MATCH($B$3,Calcs!$A:$A,0))),7,2)) -> 5.5% | L37: Between | M37: =IF($B$3="","",INDEX(INDIRECT(INDEX(Calcs!$D:$D,MATCH($B$3,Calcs!$A:$A,0))),7,2)) -> 5.5% | N37: and | O37: =IF($B$3="","",INDEX(INDIRECT(INDEX(Calcs!$D:$D,MATCH($B$3,Calcs!$A:$A,0))),7,3)) -> 6.5% | Q37: Between | R37: =IF($B$3="","",INDEX(INDIRECT(INDEX(Calcs!$D:$D,MATCH($B$3,Calcs!$A:$A,0))),7,3)) -> 6.5% | S37: and | T37: =IF($B$3="","",INDEX(INDIRECT(INDEX(Calcs!$D:$D,MATCH($B$3,Calcs!$A:$A,0))),7,5)) -> 7.5%
L38: Or more than | M38: =IF($B$3="","",INDEX(INDIRECT(INDEX(Calcs!$D:$D,MATCH($B$3,Calcs!$A:$A,0))),7,5)) -> 7.5%
B40: Spend on energy as a percentage of total expenditure | D40: More than | E40: =IF($B$3="","",INDEX(INDIRECT(INDEX(Calcs!$D:$D,MATCH($B$3,Calcs!$A:$A,0))),8,7)) -> 2.0% | G40: Between | H40: =IF($B$3="","",INDEX(INDIRECT(INDEX(Calcs!$D:$D,MATCH($B$3,Calcs!$A:$A,0))),8,6)) -> 1.5% | I40: and | J40: =IF($B$3="","",INDEX(INDIRECT(INDEX(Calcs!$D:$D,MATCH($B$3,Calcs!$A:$A,0))),8,7)) -> 2.0% | L40: Less than or equal to | M40: =IF($B$3="","",INDEX(INDIRECT(INDEX(Calcs!$D:$D,MATCH($B$3,Calcs!$A:$A,0))),8,6)) -> 1.5%
B44: C. Reserves / balances as a percentage of total income
D46: Red rating | G46: Amber rating | L46: Light green rating | Q46: Dark green rating
B48: In-year balance as a percentage of total income | D48: Less than or equal to | E48: =IF($B$3="","",-0.05) -> -5.0% | G48: Between | H48: =IF($B$3="","",-0.05) -> -5.0% | I48: and | J48: =IF($B$3="","",0) -> 0.0% | L48: More than or equal to | M48: =IF($B$3="","",0) -> 0.0%
B51: Revenue reserve as a percentage of total income | D51: Less than or equal to | E51: =IF($B$3="","",-0.05) -> -5.0% | G51: Between | H51: =IF($B$3="","",-0.05) -> -5.0% | I51: and | J51: =IF($B$3="","",0) -> 0.0% | L51: More than or equal to | M51: =IF($B$3="","",0) -> 0.0%
B55: D. School characteristics
D57: Red rating | G57: Amber rating | L57: Light green rating | Q57: Dark green rating
B59: Average teacher cost (£) | D59: Less than or equal to | E59: =IF($B$3="","",INDEX(INDIRECT(INDEX(Calcs!$D:$D,MATCH($B$3,Calcs!$A:$A,0))),13,1)) -> £51,000 | G59: Between | H59: =IF($B$3="","",INDEX(INDIRECT(INDEX(Calcs!$D:$D,MATCH($B$3,Calcs!$A:$A,0))),13,1)) -> £51,000 | I59: and | J59: =IF($B$3="","",INDEX(INDIRECT(INDEX(Calcs!$D:$D,MATCH($B$3,Calcs!$A:$A,0))),13,2)) -> £53,500 | L59: Between | M59: =IF($B$3="","",INDEX(INDIRECT(INDEX(Calcs!$D:$D,MATCH($B$3,Calcs!$A:$A,0))),13,2)) -> £53,500 | N59: and | O59: =IF($B$3="","",INDEX(INDIRECT(INDEX(Calcs!$D:$D,MATCH($B$3,Calcs!$A:$A,0))),13,3)) -> £56,000 | Q59: Between | R59: =IF($B$3="","",INDEX(INDIRECT(INDEX(Calcs!$D:$D,MATCH($B$3,Calcs!$A:$A,0))),13,3)) -> £56,000 | S59: and | T59: =IF($B$3="","",INDEX(INDIRECT(INDEX(Calcs!$D:$D,MATCH($B$3,Calcs!$A:$A,0))),13,5)) -> £58,000
D60: Or more than | E60: =IF($B$3="","",INDEX(INDIRECT(INDEX(Calcs!$D:$D,MATCH($B$3,Calcs!$A:$A,0))),13,7)) -> £62,500 | G60: Or between | H60: =IF($B$3="","",INDEX(INDIRECT(INDEX(Calcs!$D:$D,MATCH($B$3,Calcs!$A:$A,0))),13,6)) -> £60,500 | I60: and | J60: =IF($B$3="","",INDEX(INDIRECT(INDEX(Calcs!$D:$D,MATCH($B$3,Calcs!$A:$A,0))),13,7)) -> £62,500 | L60: Or between | M60: =IF($B$3="","",INDEX(INDIRECT(INDEX(Calcs!$D:$D,MATCH($B$3,Calcs!$A:$A,0))),13,5)) -> £58,000 | N60: and | O60: =IF($B$3="","",INDEX(INDIRECT(INDEX(Calcs!$D:$D,MATCH($B$3,Calcs!$A:$A,0))),13,6)) -> £60,500
B62: Senior leaders as a percentage of workforce | D62: More than | E62: =IF($B$3="","",INDEX(INDIRECT(INDEX(Calcs!$D:$D,MATCH($B$3,Calcs!$A:$A,0))),9,7)) -> 8.0% | G62: Between | H62: =IF($B$3="","",INDEX(INDIRECT(INDEX(Calcs!$D:$D,MATCH($B$3,Calcs!$A:$A,0))),9,6)) -> 7.0% | I62: and | J62: =IF($B$3="","",INDEX(INDIRECT(INDEX(Calcs!$D:$D,MATCH($B$3,Calcs!$A:$A,0))),9,7)) -> 8.0% | L62: Between | M62: =IF($B$3="","",INDEX(INDIRECT(INDEX(Calcs!$D:$D,MATCH($B$3,Calcs!$A:$A,0))),9,5)) -> 6.0% | N62: and | O62: =IF($B$3="","",INDEX(INDIRECT(INDEX(Calcs!$D:$D,MATCH($B$3,Calcs!$A:$A,0))),9,6)) -> 7.0% | Q62: Between | R62: =IF($B$3="","",INDEX(INDIRECT(INDEX(Calcs!$D:$D,MATCH($B$3,Calcs!$A:$A,0))),9,3)) -> 5.0% | S62: and | T62: =IF($B$3="","",INDEX(INDIRECT(INDEX(Calcs!$D:$D,MATCH($B$3,Calcs!$A:$A,0))),9,5)) -> 6.0%
L63: Or less than or equal to | M63: =IF($B$3="","",INDEX(INDIRECT(INDEX(Calcs!$D:$D,MATCH($B$3,Calcs!$A:$A,0))),9,3)) -> 5.0%
B65: Pupil to teacher ratio | D65: Less than or equal to | E65: =IF($B$3="","",INDEX(INDIRECT(INDEX(Calcs!$D:$D,MATCH($B$3,Calcs!$A:$A,0))),10,1)) -> 14.0 | G65: Between | H65: =IF($B$3="","",INDEX(INDIRECT(INDEX(Calcs!$D:$D,MATCH($B$3,Calcs!$A:$A,0))),10,1)) -> 14.0 | I65: and | J65: =IF($B$3="","",INDEX(INDIRECT(INDEX(Calcs!$D:$D,MATCH($B$3,Calcs!$A:$A,0))),10,2)) -> 15.0 | L65: Between | M65: =IF($B$3="","",INDEX(INDIRECT(INDEX(Calcs!$D:$D,MATCH($B$3,Calcs!$A:$A,0))),10,2)) -> 15.0 | N65: and | O65: =IF($B$3="","",INDEX(INDIRECT(INDEX(Calcs!$D:$D,MATCH($B$3,Calcs!$A:$A,0))),10,3)) -> 16.0 | Q65: Between | R65: =IF($B$3="","",INDEX(INDIRECT(INDEX(Calcs!$D:$D,MATCH($B$3,Calcs!$A:$A,0))),10,3)) -> 16.0 | S65: and | T65: =IF($B$3="","",INDEX(INDIRECT(INDEX(Calcs!$D:$D,MATCH($B$3,Calcs!$A:$A,0))),10,5)) -> 16.5
D66: Or more than | E66: =IF($B$3="","",INDEX(INDIRECT(INDEX(Calcs!$D:$D,MATCH($B$3,Calcs!$A:$A,0))),10,7)) -> 18.5 | G66: Or between | H66: =IF($B$3="","",INDEX(INDIRECT(INDEX(Calcs!$D:$D,MATCH($B$3,Calcs!$A:$A,0))),10,6)) -> 17.5 | I66: and | J66: =IF($B$3="","",INDEX(INDIRECT(INDEX(Calcs!$D:$D,MATCH($B$3,Calcs!$A:$A,0))),10,7)) -> 18.5 | L66: Or between | M66: =IF($B$3="","",INDEX(INDIRECT(INDEX(Calcs!$D:$D,MATCH($B$3,Calcs!$A:$A,0))),10,5)) -> 16.5 | N66: and | O66: =IF($B$3="","",INDEX(INDIRECT(INDEX(Calcs!$D:$D,MATCH($B$3,Calcs!$A:$A,0))),10,6)) -> 17.5
B68: Pupil to adult ratio | D68: Less than or equal to | E68: =IF($B$3="","",INDEX(INDIRECT(INDEX(Calcs!$D:$D,MATCH($B$3,Calcs!$A:$A,0))),11,1)) -> 8.5 | G68: Between | H68: =IF($B$3="","",INDEX(INDIRECT(INDEX(Calcs!$D:$D,MATCH($B$3,Calcs!$A:$A,0))),11,1)) -> 8.5 | I68: and | J68: =IF($B$3="","",INDEX(INDIRECT(INDEX(Calcs!$D:$D,MATCH($B$3,Calcs!$A:$A,0))),11,2)) -> 9.0 | L68: Between | M68: =IF($B$3="","",INDEX(INDIRECT(INDEX(Calcs!$D:$D,MATCH($B$3,Calcs!$A:$A,0))),11,2)) -> 9.0 | N68: and | O68: =IF($B$3="","",INDEX(INDIRECT(INDEX(Calcs!$D:$D,MATCH($B$3,Calcs!$A:$A,0))),11,3)) -> 9.5 | Q68: Between | R68: =IF($B$3="","",INDEX(INDIRECT(INDEX(Calcs!$D:$D,MATCH($B$3,Calcs!$A:$A,0))),11,3)) -> 9.5 | S68: and | T68: =IF($B$3="","",INDEX(INDIRECT(INDEX(Calcs!$D:$D,MATCH($B$3,Calcs!$A:$A,0))),11,5)) -> 10.0
D69: Or more than | E69: =IF($B$3="","",INDEX(INDIRECT(INDEX(Calcs!$D:$D,MATCH($B$3,Calcs!$A:$A,0))),11,7)) -> 11.5 | G69: Or between | H69: =IF($B$3="","",INDEX(INDIRECT(INDEX(Calcs!$D:$D,MATCH($B$3,Calcs!$A:$A,0))),11,6)) -> 11.0 | I69: and | J69: =IF($B$3="","",INDEX(INDIRECT(INDEX(Calcs!$D:$D,MATCH($B$3,Calcs!$A:$A,0))),11,7)) -> 11.5 | L69: Or between | M69: =IF($B$3="","",INDEX(INDIRECT(INDEX(Calcs!$D:$D,MATCH($B$3,Calcs!$A:$A,0))),11,5)) -> 10.0 | N69: and | O69: =IF($B$3="","",INDEX(INDIRECT(INDEX(Calcs!$D:$D,MATCH($B$3,Calcs!$A:$A,0))),11,6)) -> 11.0
B71: =IF(OR($B$7="- an alternative provision school",$B$7="- a special school",$B$7="- a nursery school"),"","Teacher contact ratio (less than 1.0)") -> Teacher contact ratio (less than 1.0) | D71: =IF(B71="","","Less than or equal to") -> Less than or equal to | E71: =IF(OR($B$7="- an alternative provision school",$B$7="- a special school",$B$7="- a nursery school",$B$3=""),"",0.7) -> 0.70 | G71: =IF(B71="","","Between") -> Between | H71: =IF(OR($B$7="- an alternative provision school",$B$7="- a special school",$B$7="- a nursery school",$B$3=""),"",0.7) -> 0.70 | I71: =IF(B71="","","and") -> and | J71: =IF(OR($B$7="- an alternative provision school",$B$7="- a special school",$B$7="- a nursery school",$B$3=""),"",0.74) -> 0.74 | L71: =IF(B71="","","Between") -> Between | M71: =IF(OR($B$7="- an alternative provision school",$B$7="- a special school",$B$7="- a nursery school",$B$3=""),"",0.4) -> 0.40 | N71: =IF(G71="","","and") -> and | O71: =IF(OR($B$7="- an alternative provision school",$B$7="- a special school",$B$7="- a nursery school",$B$3=""),"",0.8) -> 0.80
D72: =IF(B71="","","Or more than") -> Or more than | E72: =IF(OR($B$7="- an alternative provision school",$B$7="- a special school",$B$7="- a nursery school",$B$3=""),"",0.82) -> 0.82 | G72: =IF(B71="","","Or between") -> Or between | H72: =IF(OR($B$7="- an alternative provision school",$B$7="- a special school",$B$7="- a nursery school",$B$3=""),"",0.8) -> 0.80 | I72: =IF(B72="","","and") ->  | J72: =IF(OR($B$7="- an alternative provision school",$B$7="- a special school",$B$7="- a nursery school",$B$3=""),"",0.82) -> 0.82
B74: Predicted percentage pupil number change in 3-5 years | D74: Less than or equal to | E74: =IF($B$3="","",-0.1) -> -10.0% | G74: Between | H74: =IF($B$3="","",-0.1) -> -10.0% | I74: and | J74: =IF($B$3="","",-0.02) -> -2.0% | L74: More than | M74: =IF($B$3="","",-0.02) -> -2.0%
B77: =IF(OR($B$7="- an alternative provision school",$B$7="- a special school",$B$7="- a nursery school"),"","Average class size") -> Average class size | D77: =IF(B77="","","Less than or equal to") -> Less than or equal to | E77: =IF($B$3="","",INDEX(INDIRECT(INDEX(Calcs!$D:$D,MATCH($B$3,Calcs!$A:$A,0))),12,1)) -> 19.0 | G77: =IF(B77="","","Between") -> Between | H77: =IF($B$3="","",INDEX(INDIRECT(INDEX(Calcs!$D:$D,MATCH($B$3,Calcs!$A:$A,0))),12,1)) -> 19.0 | I77: =IF(B77="","","and") -> and | J77: =IF($B$3="","",INDEX(INDIRECT(INDEX(Calcs!$D:$D,MATCH($B$3,Calcs!$A:$A,0))),12,2)) -> 19.5 | L77: =IF(B77="","","Between") -> Between | M77: =IF($B$3="","",INDEX(INDIRECT(INDEX(Calcs!$D:$D,MATCH($B$3,Calcs!$A:$A,0))),12,2)) -> 19.5 | N77: =IF(B77="","","and") -> and | O77: =IF($B$3="","",INDEX(INDIRECT(INDEX(Calcs!$D:$D,MATCH($B$3,Calcs!$A:$A,0))),12,3)) -> 20.5 | Q77: =IF(B77="","","Between") -> Between | R77: =IF($B$3="","",INDEX(INDIRECT(INDEX(Calcs!$D:$D,MATCH($B$3,Calcs!$A:$A,0))),12,3)) -> 20.5 | S77: =IF(B77="","","and") -> and | T77: =IF($B$3="","",INDEX(INDIRECT(INDEX(Calcs!$D:$D,MATCH($B$3,Calcs!$A:$A,0))),12,5)) -> 21.5
D78: =IF(B77="","","Or more than") -> Or more than | E78: =IF($B$3="","",INDEX(INDIRECT(INDEX(Calcs!$D:$D,MATCH($B$3,Calcs!$A:$A,0))),12,7)) -> 23.0 | G78: =IF(B77="","","Or between") -> Or between | H78: =IF($B$3="","",INDEX(INDIRECT(INDEX(Calcs!$D:$D,MATCH($B$3,Calcs!$A:$A,0))),12,6)) -> 22.0 | I78: =IF(B77="","","and") -> and | J78: =IF($B$3="","",INDEX(INDIRECT(INDEX(Calcs!$D:$D,MATCH($B$3,Calcs!$A:$A,0))),12,7)) -> 23.0 | L78: =IF(B77="","","Or between") -> Or between | M78: =IF($B$3="","",INDEX(INDIRECT(INDEX(Calcs!$D:$D,MATCH($B$3,Calcs!$A:$A,0))),12,5)) -> 21.5 | N78: =IF(B77="","","and") -> and | O78: =IF($B$3="","",INDEX(INDIRECT(INDEX(Calcs!$D:$D,MATCH($B$3,Calcs!$A:$A,0))),12,6)) -> 22.0
B81: E. Outcomes
D83: Red rating | G83: Amber rating | L83: Light green rating | Q83: Dark green rating
B85: Ofsted rating | D85: School is rated | G85: School is rated | L85: School is rated | Q85: School is rated
D86: =IF($B$3="","","Inadequate") -> Inadequate | G86: =IF($B$3="","","Requires Improvement (RI)") -> Requires Improvement (RI) | L86: =IF($B$3="","","Good") -> Good | Q86: =IF($B$3="","","Outstanding") -> Outstanding
B88: =IF(OR($B$7="- a primary school",$B$7="- a nursery school"),"","Progress 8 score") -> Progress 8 score | D88: =IF(B88="","","Less than or equal to") -> Less than or equal to | E88: =IF(OR($B$3="",B88=""),"",-0.5) -> -0.5 | G88: =IF(B88="","","Between") -> Between | H88: =IF(OR($B$3="",B88=""),"",-0.5) -> -0.5 | I88: =IF(B88="","","and") -> and | J88: =IF(OR($B$3="",B88=""),"",0) -> 0 | L88: =IF(B88="","","Between") -> Between | M88: =IF(OR($B$3="",B88=""),"",0) -> 0 | N88: =IF(B88="","","and") -> and | O88: =IF(OR($B$3="",B88=""),"",0.5) -> 0.5 | Q88: =IF(B88="","","More than") -> More than | R88: =IF(OR($B$3="",B88=""),"",0.5) -> 0.5
B91: =IF(OR($B$7="- a secondary school with a sixth form", $B$7="- a secondary school without a sixth form",$B$7="- a nursery school"),"","Progress score in reading") ->  | D91: =IF(B91="","","Less than or equal to") ->  | E91: =IF(OR($B$3="",B91=""),"",-2.7) ->  | G91: =IF(B91="","","Between") ->  | H91: =IF(OR($B$3="",B91=""),"",-2.7) ->  | I91: =IF(B91="","","and") ->  | J91: =IF(OR($B$3="",B91=""),"",0) ->  | L91: =IF(B91="","","Between") ->  | M91: =IF(OR($B$3="",B91=""),"",0) ->  | N91: =IF(B91="","","and") ->  | O91: =IF(OR($B$3="",B91=""),"",3.2) ->  | Q91: =IF(B91="","","More than") ->  | R91: =IF(OR($B$3="",B91=""),"",3.2) -> 
B94: =IF(OR($B$7="- a secondary school with a sixth form", $B$7="- a secondary school without a sixth form",$B$7="- a nursery school"),"","Progress score in writing") ->  | D94: =IF(B94="","","Less than or equal to") ->  | E94: =IF(OR($B$3="",B94=""),"",-2.6) ->  | G94: =IF(B94="","","Between") ->  | H94: =IF(OR($B$3="",B94=""),"",-2.6) ->  | I94: =IF(B94="","","and") ->  | J94: =IF(OR($B$3="",B94=""),"",0) ->  | L94: =IF(B94="","","Between") ->  | M94: =IF(OR($B$3="",B94=""),"",0) ->  | N94: =IF(B94="","","and") ->  | O94: =IF(OR($B$3="",B94=""),"",2.7) ->  | Q94: =IF(B94="","","More than") ->  | R94: =IF(OR($B$3="",B94=""),"",2.7) -> 
B97: =IF(OR($B$7="- a secondary school with a sixth form", $B$7="- a secondary school without a sixth form",$B$7="- a nursery school"),"","Progress score in maths") ->  | D97: =IF(B97="","","Less than or equal to") ->  | E97: =IF(OR($B$3="",B97=""),"",-3.1) ->  | G97: =IF(B97="","","Between") ->  | H97: =IF(OR($B$3="",B97=""),"",-3.1) ->  | I97: =IF(B97="","","and") ->  | J97: =IF(OR($B$3="",B97=""),"",0) ->  | L97: =IF(B97="","","Between") ->  | M97: =IF(OR($B$3="",B97=""),"",0) ->  | N97: =IF(B97="","","and") ->  | O97: =IF(OR($B$3="",B97=""),"",3.2) ->  | Q97: =IF(B97="","","More than") ->  | R97: =IF(OR($B$3="",B97=""),"",3.2) -> 

Sheet RAG rating data for all schools
B1: Expand the groups to see the thresholds
A3: Sample size | B3: Phase | C3: Size | D3: FSM | F3: Red if less than: | G3: Amber if less than: | H3: Dark green if between: | I3: (Median) | J3: and: | K3: Amber if more than: | L3: Red if more than: | N3: Light green for everything else
A4: 726 | B4: Primary | C4: Very small | D4: Low FSM | E4: PVSL
B5: Primary | C5: Very small | D5: Low FSM | E5: Spend on teaching staff as a percentage of total expenditure | F5: 39.5% | G5: 42.0% | H5: 45.5% | I5: 47.0% | J5: 48.5% | K5: 51.5% | L5: 54.0%
B6: Primary | C6: Very small | D6: Low FSM | E6: Spend on supply staff as a percentage of total expenditure | H6: 2.0% | I6: 2.0% | J6: 2.5% | K6: 4.0% | L6: 5.5%
B7: Primary | C7: Very small | D7: Low FSM | E7: Spend on education support staff as a percentage of total expenditure | H7: 12.5% | I7: 13.0% | J7: 14.5% | K7: 17.0% | L7: 19.0%
B8: Primary | C8: Very small | D8: Low FSM | E8: Spend on administrative and clerical staff as a percentage of total expenditure | I8: 5.5% | K8: 7.5% | L8: 8.5%
B9: Primary | C9: Very small | D9: Low FSM | E9: Spend on other staff costs as a percentage of total expenditure | I9: 3.0% | K9: 5.0% | L9: 6.0%
B10: Primary | C10: Very small | D10: Low FSM | E10: Spend on premises (including staff costs) as a percentage of total expenditure | I10: 5.0% | K10: 6.5% | L10: 8.0%
B11: Primary | C11: Very small | D11: Low FSM | E11: Spend on teaching resources as a percentage of total expenditure | F11: 3.0% | G11: 4.0% | H11: 5.0% | I11: 5.5% | J11: 6.5%
B12: Primary | C12: Very small | D12: Low FSM | E12: Spend on energy as a percentage of total expenditure | I12: 1.0% | K12: 1.5% | L12: 2.0%
B13: Primary | C13: Very small | D13: Low FSM | E13: Senior leaders as a percentage of workforce | H13: 11.5% | I13: 12.5% | J13: 14.0% | K13: 17.5% | L13: 21.0%
B14: Primary | C14: Very small | D14: Low FSM | E14: Pupil to teacher ratio | F14: 12.0 | G14: 14.0 | H14: 16.0 | I14: 17.0 | J14: 18.0 | K14: 20.0 | L14: 22.5
B15: Primary | C15: Very small | D15: Low FSM | E15: Pupil to adult ratio | F15: 6.0 | G15: 7.0 | H15: 8.0 | I15: 8.5 | J15: 9.0 | K15: 10.0 | L15: 11.0
B16: Primary | C16: Very small | D16: Low FSM | E16: Average class size | F16: 14.5 | G16: 17.0 | H16: 20.5 | I16: 21.0 | J16: 22.5 | K16: 24.5 | L16: 26.0
A18: 698 | B18: Primary | C18: Small | D18: Low FSM | E18: PSL
B19: Primary | C19: Small | D19: Low FSM | E19: Spend on teaching staff as a percentage of total expenditure | F19: 40.5% | G19: 43.0% | H19: 46.0% | I19: 47.0% | J19: 48.0% | K19: 51.5% | L19: 53.5%
B20: Primary | C20: Small | D20: Low FSM | E20: Spend on supply staff as a percentage of total expenditure | H20: 2.0% | I20: 2.0% | J20: 2.5% | K20: 4.0% | L20: 5.5%
B21: Primary | C21: Small | D21: Low FSM | E21: Spend on education support staff as a percentage of total expenditure | H21: 13.5% | I21: 14.5% | J21: 15.5% | K21: 17.5% | L21: 19.5%
B22: Primary | C22: Small | D22: Low FSM | E22: Spend on administrative and clerical staff as a percentage of total expenditure | I22: 5.0% | K22: 6.5% | L22: 7.5%
B23: Primary | C23: Small | D23: Low FSM | E23: Spend on other staff costs as a percentage of total expenditure | I23: 3.0% | K23: 5.0% | L23: 6.5%
B24: Primary | C24: Small | D24: Low FSM | E24: Spend on premises (including staff costs) as a percentage of total expenditure | I24: 5.0% | K24: 6.0% | L24: 7.0%
B25: Primary | C25: Small | D25: Low FSM | E25: Spend on teaching resources as a percentage of total expenditure | F25: 3.0% | G25: 4.0% | H25: 5.0% | I25: 5.5% | J25: 6.0%
B26: Primary | C26: Small | D26: Low FSM | E26: Spend on energy as a percentage of total expenditure | I26: 1.0% | K26: 1.5% | L26: 2.0%
B27: Primary | C27: Small | D27: Low FSM | E27: Senior leaders as a percentage of workforce | H27: 10.0% | I27: 11.5% | J27: 12.5% | K27: 15.5% | L27: 18.0%
B28: Primary | C28: Small | D28: Low FSM | E28: Pupil to teacher ratio | F28: 17.0 | G28: 18.5 | H28: 19.5 | I28: 20.5 | J28: 21.0 | K28: 22.5 | L28: 24.0
B29: Primary | C29: Small | D29: Low FSM | E29: Pupil to adult ratio | F29: 8.0 | G29: 8.5 | H29: 9.0 | I29: 9.5 | J29: 10.0 | K29: 11.0 | L29: 12.0
B30: Primary | C30: Small | D30: Low FSM | E30: Average class size | F30: 21.5 | G30: 23.0 | H30: 25.0 | I30: 26.0 | J30: 26.5 | K30: 28.0 | L30: 29.0
A32: 1,757 | B32: Primary | C32: Medium | D32: Low FSM | E32: PML
B33: Primary | C33: Medium | D33: Low FSM | E33: Spend on teaching staff as a percentage of total expenditure | F33: 40.5% | G33: 42.5% | H33: 45.5% | I33: 46.5% | J33: 48.0% | K33: 50.5% | L33: 52.5%
B34: Primary | C34: Medium | D34: Low FSM | E34: Spend on supply staff as a percentage of total expenditure | H34: 2.0% | I34: 2.0% | J34: 2.5% | K34: 4.0% | L34: 5.0%
B35: Primary | C35: Medium | D35: Low FSM | E35: Spend on education support staff as a percentage of total expenditure | H35: 14.5% | I35: 15.5% | J35: 16.5% | K35: 19.0% | L35: 21.0%
B36: Primary | C36: Medium | D36: Low FSM | E36: Spend on administrative and clerical staff as a percentage of total expenditure | I36: 5.0% | K36: 6.0% | L36: 7.0%
B37: Primary | C37: Medium | D37: Low FSM | E37: Spend on other staff costs as a percentage of total expenditure | I37: 3.5% | K37: 5.0% | L37: 6.5%
B38: Primary | C38: Medium | D38: Low FSM | E38: Spend on premises (including staff costs) as a percentage of total expenditure | I38: 5.0% | K38: 6.5% | L38: 7.5%
B39: Primary | C39: Medium | D39: Low FSM | E39: Spend on teaching resources as a percentage of total expenditure | F39: 3.0% | G39: 4.0% | H39: 5.0% | I39: 5.5% | J39: 6.0%
B40: Primary | C40: Medium | D40: Low FSM | E40: Spend on energy as a percentage of total expenditure | I40: 1.0% | K40: 1.5% | L40: 2.0%
B41: Primary | C41: Medium | D41: Low FSM | E41: Senior leaders as a percentage of workforce | H41: 9.0% | I41: 9.5% | J41: 10.0% | K41: 11.5% | L41: 13.5%
B42: Primary | C42: Medium | D42: Low FSM | E42: Pupil to teacher ratio | F42: 19.5 | G42: 20.5 | H42: 22.0 | I42: 22.5 | J42: 23.0 | K42: 24.5 | L42: 26.0
B43: Primary | C43: Medium | D43: Low FSM | E43: Pupil to adult ratio | F43: 8.5 | G43: 9.5 | H43: 10.0 | I43: 10.5 | J43: 11.0 | K43: 12.0 | L43: 12.5
B44: Primary | C44: Medium | D44: Low FSM | E44: Average class size | F44: 26.0 | G44: 27.0 | H44: 28.5 | I44: 29.0 | J44: 29.5 | K44: 30.0 | L44: 30.5
A46: 650 | B46: Primary | C46: Large | D46: Low FSM | E46: PLL
B47: Primary | C47: Large | D47: Low FSM | E47: Spend on teaching staff as a percentage of total expenditure | F47: 42.0% | G47: 44.5% | H47: 47.0% | I47: 48.0% | J47: 49.0% | K47: 51.0% | L47: 53.0%
B48: Primary | C48: Large | D48: Low FSM | E48: Spend on supply staff as a percentage of total expenditure | H48: 1.5% | I48: 2.0% | J48: 2.5% | K48: 3.5% | L48: 5.0%
B49: Primary | C49: Large | D49: Low FSM | E49: Spend on education support staff as a percentage of total expenditure | H49: 15.5% | I49: 16.0% | J49: 17.0% | K49: 19.5% | L49: 21.0%
B50: Primary | C50: Large | D50: Low FSM | E50: Spend on administrative and clerical staff as a percentage of total expenditure | I50: 4.5% | K50: 6.0% | L50: 7.0%
B51: Primary | C51: Large | D51: Low FSM | E51: Spend on other staff costs as a percentage of total expenditure | I51: 3.5% | K51: 5.0% | L51: 6.0%
B52: Primary | C52: Large | D52: Low FSM | E52: Spend on premises (including staff costs) as a percentage of total expenditure | I52: 5.0% | K52: 6.0% | L52: 7.0%
B53: Primary | C53: Large | D53: Low FSM | E53: Spend on teaching resources as a percentage of total expenditure | F53: 3.0% | G53: 4.0% | H53: 4.5% | I53: 5.0% | J53: 5.5%
B54: Primary | C54: Large | D54: Low FSM | E54: Spend on energy as a percentage of total expenditure | I54: 1.0% | K54: 1.5% | L54: 2.0%
B55: Primary | C55: Large | D55: Low FSM | E55: Senior leaders as a percentage of workforce | H55: 6.0% | I55: 7.0% | J55: 7.5% | K55: 9.0% | L55: 10.0%
B56: Primary | C56: Large | D56: Low FSM | E56: Pupil to teacher ratio | F56: 20.5 | G56: 21.5 | H56: 22.5 | I56: 23.0 | J56: 24.0 | K56: 25.0 | L56: 26.5
B57: Primary | C57: Large | D57: Low FSM | E57: Pupil to adult ratio | F57: 9.5 | G57: 10.0 | H57: 11.0 | I57: 11.0 | J57: 11.5 | K57: 12.5 | L57: 13.0
B58: Primary | C58: Large | D58: Low FSM | E58: Average class size | F58: 28.0 | G58: 28.5 | H58: 29.0 | I58: 29.5 | J58: 29.5 | K58: 30.0 | L58: 30.5
A60: 880 | B60: Primary | C60: Very small | D60: Medium FSM | E60: PVSM
B61: Primary | C61: Very small | D61: Medium FSM | E61: Spend on teaching staff as a percentage of total expenditure | F61: 38.0% | G61: 41.5% | H61: 44.5% | I61: 45.5% | J61: 47.5% | K61: 51.0% | L61: 53.5%
B62: Primary | C62: Very small | D62: Medium FSM | E62: Spend on supply staff as a percentage of total expenditure | H62: 2.0% | I62: 2.5% | J62: 3.0% | K62: 4.5% | L62: 6.5%
B63: Primary | C63: Very small | D63: Medium FSM | E63: Spend on education support staff as a percentage of total expenditure | H63: 13.0% | I63: 14.5% | J63: 15.5% | K63: 18.0% | L63: 20.0%
B64: Primary | C64: Very small | D64: Medium FSM | E64: Spend on administrative and clerical staff as a percentage of total expenditure | I64: 5.5% | K64: 7.0% | L64: 8.5%
B65: Primary | C65: Very small | D65: Medium FSM | E65: Spend on other staff costs as a percentage of total expenditure | I65: 3.5% | K65: 5.0% | L65: 6.5%
B66: Primary | C66: Very small | D66: Medium FSM | E66: Spend on premises (including staff costs) as a percentage of total expenditure | I66: 5.0% | K66: 6.5% | L66: 7.5%
B67: Primary | C67: Very small | D67: Medium FSM | E67: Spend on teaching resources as a percentage of total expenditure | F67: 3.0% | G67: 4.0% | H67: 5.0% | I67: 5.5% | J67: 6.0%
B68: Primary | C68: Very small | D68: Medium FSM | E68: Spend on energy as a percentage of total expenditure | I68: 1.0% | K68: 1.5% | L68: 2.0%
B69: Primary | C69: Very small | D69: Medium FSM | E69: Senior leaders as a percentage of workforce | H69: 10.5% | I69: 12.0% | J69: 13.5% | K69: 17.5% | L69: 20.5%
B70: Primary | C70: Very small | D70: Medium FSM | E70: Pupil to teacher ratio | F70: 12.0 | G70: 14.0 | H70: 16.0 | I70: 17.0 | J70: 17.5 | K70: 20.0 | L70: 21.5
B71: Primary | C71: Very small | D71: Medium FSM | E71: Pupil to adult ratio | F71: 5.5 | G71: 6.5 | H71: 7.5 | I71: 8.0 | J71: 8.5 | K71: 9.5 | L71: 10.5
B72: Primary | C72: Very small | D72: Medium FSM | E72: Average class size | F72: 14.5 | G72: 17.0 | H72: 20.0 | I72: 21.5 | J72: 22.5 | K72: 24.5 | L72: 26.0
A74: 994 | B74: Primary | C74: Small | D74: Medium FSM | E74: PSM
B75: Primary | C75: Small | D75: Medium FSM | E75: Spend on teaching staff as a percentage of total expenditure | F75: 38.5% | G75: 41.0% | H75: 44.5% | I75: 45.5% | J75: 47.0% | K75: 49.5% | L75: 52.5%
B76: Primary | C76: Small | D76: Medium FSM | E76: Spend on supply staff as a percentage of total expenditure | H76: 2.0% | I76: 2.5% | J76: 3.0% | K76: 4.0% | L76: 5.5%
B77: Primary | C77: Small | D77: Medium FSM | E77: Spend on education support staff as a percentage of total expenditure | H77: 15.0% | I77: 16.0% | J77: 17.0% | K77: 19.5% | L77: 22.0%
B78: Primary | C78: Small | D78: Medium FSM | E78: Spend on administrative and clerical staff as a percentage of total expenditure | I78: 5.0% | K78: 6.5% | L78: 7.5%
B79: Primary | C79: Small | D79: Medium FSM | E79: Spend on other staff costs as a percentage of total expenditure | I79: 3.5% | K79: 5.0% | L79: 6.5%
B80: Primary | C80: Small | D80: Medium FSM | E80: Spend on premises (including staff costs) as a percentage of total expenditure | I80: 5.0% | K80: 6.5% | L80: 7.5%
B81: Primary | C81: Small | D81: Medium FSM | E81: Spend on teaching resources as a percentage of total expenditure | F81: 3.0% | G81: 3.5% | H81: 4.5% | I81: 5.0% | J81: 5.5%
B82: Primary | C82: Small | D82: Medium FSM | E82: Spend on energy as a percentage of total expenditure | I82: 1.0% | K82: 1.5% | L82: 2.0%
B83: Primary | C83: Small | D83: Medium FSM | E83: Senior leaders as a percentage of workforce | H83: 9.5% | I83: 11.0% | J83: 12.0% | K83: 14.0% | L83: 16.5%
B84: Primary | C84: Small | D84: Medium FSM | E84: Pupil to teacher ratio | F84: 16.5 | G84: 17.5 | H84: 19.0 | I84: 20.0 | J84: 20.5 | K84: 22.5 | L84: 24.0
B85: Primary | C85: Small | D85: Medium FSM | E85: Pupil to adult ratio | F85: 7.0 | G85: 8.0 | H85: 8.5 | I85: 9.0 | J85: 9.5 | K85: 10.5 | L85: 11.5
B86: Primary | C86: Small | D86: Medium FSM | E86: Average class size | F86: 21.5 | G86: 23.0 | H86: 24.5 | I86: 25.5 | J86: 26.5 | K86: 28.0 | L86: 29.0
A88: 3,735 | B88: Primary | C88: Medium | D88: Medium FSM | E88: PMM
B89: Primary | C89: Medium | D89: Medium FSM | E89: Spend on teaching staff as a percentage of total expenditure | F89: 39.0% | G89: 41.5% | H89: 44.0% | I89: 45.5% | J89: 46.5% | K89: 49.5% | L89: 51.5%
B90: Primary | C90: Medium | D90: Medium FSM | E90: Spend on supply staff as a percentage of total expenditure | H90: 2.0% | I90: 2.5% | J90: 3.0% | K90: 4.0% | L90: 5.5%
B91: Primary | C91: Medium | D91: Medium FSM | E91: Spend on education support staff as a percentage of total expenditure | H91: 16.5% | I91: 17.5% | J91: 18.5% | K91: 21.0% | L91: 23.5%
B92: Primary | C92: Medium | D92: Medium FSM | E92: Spend on administrative and clerical staff as a percentage of total expenditure | I92: 4.5% | K92: 6.0% | L92: 7.0%
B93: Primary | C93: Medium | D93: Medium FSM | E93: Spend on other staff costs as a percentage of total expenditure | I93: 3.5% | K93: 5.0% | L93: 6.0%
B94: Primary | C94: Medium | D94: Medium FSM | E94: Spend on premises (including staff costs) as a percentage of total expenditure | I94: 5.0% | K94: 6.5% | L94: 7.5%
B95: Primary | C95: Medium | D95: Medium FSM | E95: Spend on teaching resources as a percentage of total expenditure | F95: 3.0% | G95: 3.5% | H95: 4.5% | I95: 5.0% | J95: 5.5%
B96: Primary | C96: Medium | D96: Medium FSM | E96: Spend on energy as a percentage of total expenditure | I96: 1.0% | K96: 1.5% | L96: 2.0%
B97: Primary | C97: Medium | D97: Medium FSM | E97: Senior leaders as a percentage of workforce | H97: 8.0% | I97: 8.5% | J97: 9.5% | K97: 11.0% | L97: 13.0%
B98: Primary | C98: Medium | D98: Medium FSM | E98: Pupil to teacher ratio | F98: 18.0 | G98: 19.5 | H98: 21.0 | I98: 21.5 | J98: 22.5 | K98: 24.0 | L98: 25.5
B99: Primary | C99: Medium | D99: Medium FSM | E99: Pupil to adult ratio | F99: 8.0 | G99: 8.5 | H99: 9.5 | I99: 9.5 | J99: 10.0 | K99: 11.0 | L99: 11.5
B100: Primary | C100: Medium | D100: Medium FSM | E100: Average class size | F100: 24.5 | G100: 26.0 | H100: 27.5 | I100: 28.0 | J100: 28.5 | K100: 29.5 | L100: 30.0
A102: 2,027 | B102: Primary | C102: Large | D102: Medium FSM | E102: PLM
B103: Primary | C103: Large | D103: Medium FSM | E103: Spend on teaching staff as a percentage of total expenditure | F103: 38.5% | G103: 41.0% | H103: 44.5% | I103: 45.5% | J103: 47.0% | K103: 49.5% | L103: 52.0%
B104: Primary | C104: Large | D104: Medium FSM | E104: Spend on supply staff as a percentage of total expenditure | H104: 2.0% | I104: 2.0% | J104: 3.0% | K104: 4.0% | L104: 5.5%
B105: Primary | C105: Large | D105: Medium FSM | E105: Spend on education support staff as a percentage of total expenditure | H105: 17.5% | I105: 18.5% | J105: 19.5% | K105: 22.0% | L105: 24.5%
B106: Primary | C106: Large | D106: Medium FSM | E106: Spend on administrative and clerical staff as a percentage of total expenditure | I106: 4.5% | K106: 6.0% | L106: 6.5%
B107: Primary | C107: Large | D107: Medium FSM | E107: Spend on other staff costs as a percentage of total expenditure | I107: 3.5% | K107: 5.0% | L107: 6.0%
B108: Primary | C108: Large | D108: Medium FSM | E108: Spend on premises (including staff costs) as a percentage of total expenditure | I108: 5.0% | K108: 6.5% | L108: 7.5%
B109: Primary | C109: Large | D109: Medium FSM | E109: Spend on teaching resources as a percentage of total expenditure | F109: 3.0% | G109: 3.5% | H109: 4.5% | I109: 4.5% | J109: 5.0%
B110: Primary | C110: Large | D110: Medium FSM | E110: Spend on energy as a percentage of total expenditure | I110: 1.0% | K110: 1.5% | L110: 2.0%
B111: Primary | C111: Large | D111: Medium FSM | E111: Senior leaders as a percentage of workforce | H111: 6.0% | I111: 6.5% | J111: 7.5% | K111: 9.0% | L111: 10.5%
B112: Primary | C112: Large | D112: Medium FSM | E112: Pupil to teacher ratio | F112: 18.5 | G112: 20.0 | H112: 21.5 | I112: 22.0 | J112: 22.5 | K112: 24.0 | L112: 25.0
B113: Primary | C113: Large | D113: Medium FSM | E113: Pupil to adult ratio | F113: 8.0 | G113: 8.5 | H113: 9.5 | I113: 10.0 | J113: 10.0 | K113: 11.0 | L113: 12.0
B114: Primary | C114: Large | D114: Medium FSM | E114: Average class size | F114: 26.0 | G114: 27.0 | H114: 28.5 | I114: 29.0 | J114: 29.0 | K114: 29.5 | L114: 30.0
A116: 214 | B116: Primary | C116: Very small | D116: High FSM | E116: PVSH
B117: Primary | C117: Very small | D117: High FSM | E117: Spend on teaching staff as a percentage of total expenditure | F117: 36.0% | G117: 39.5% | H117: 42.5% | I117: 44.0% | J117: 45.5% | K117: 49.0% | L117: 52.0%
B118: Primary | C118: Very small | D118: High FSM | E118: Spend on supply staff as a percentage of total expenditure | H118: 2.0% | I118: 2.5% | J118: 3.0% | K118: 5.5% | L118: 8.0%
B119: Primary | C119: Very small | D119: High FSM | E119: Spend on education support staff as a percentage of total expenditure | H119: 14.0% | I119: 15.0% | J119: 17.0% | K119: 20.0% | L119: 23.5%
B120: Primary | C120: Very small | D120: High FSM | E120: Spend on administrative and clerical staff as a percentage of total expenditure | I120: 5.0% | K120: 7.0% | L120: 8.5%
B121: Primary | C121: Very small | D121: High FSM | E121: Spend on other staff costs as a percentage of total expenditure | I121: 3.5% | K121: 5.0% | L121: 6.5%
B122: Primary | C122: Very small | D122: High FSM | E122: Spend on premises (including staff costs) as a percentage of total expenditure | I122: 5.5% | K122: 7.0% | L122: 8.5%
B123: Primary | C123: Very small | D123: High FSM | E123: Spend on teaching resources as a percentage of total expenditure | F123: 3.0% | G123: 4.0% | H123: 4.5% | I123: 5.5% | J123: 6.0%
B124: Primary | C124: Very small | D124: High FSM | E124: Spend on energy as a percentage of total expenditure | I124: 1.0% | K124: 1.5% | L124: 2.0%
B125: Primary | C125: Very small | D125: High FSM | E125: Senior leaders as a percentage of workforce | H125: 10.5% | I125: 12.0% | J125: 13.5% | K125: 17.0% | L125: 20.0%
B126: Primary | C126: Very small | D126: High FSM | E126: Pupil to teacher ratio | F126: 11.0 | G126: 13.0 | H126: 15.5 | I126: 16.0 | J126: 17.0 | K126: 19.0 | L126: 20.0
B127: Primary | C127: Very small | D127: High FSM | E127: Pupil to adult ratio | F127: 5.0 | G127: 5.5 | H127: 6.5 | I127: 7.0 | J127: 7.5 | K127: 8.5 | L127: 9.0
B128: Primary | C128: Very small | D128: High FSM | E128: Average class size | F128: 13.0 | G128: 16.5 | H128: 19.5 | I128: 21.0 | J128: 22.5 | K128: 24.0 | L128: 25.5
A130: 370 | B130: Primary | C130: Small | D130: High FSM | E130: PSH
B131: Primary | C131: Small | D131: High FSM | E131: Spend on teaching staff as a percentage of total expenditure | F131: 36.5% | G131: 39.0% | H131: 42.0% | I131: 43.5% | J131: 45.0% | K131: 48.0% | L131: 51.5%
B132: Primary | C132: Small | D132: High FSM | E132: Spend on supply staff as a percentage of total expenditure | H132: 2.0% | I132: 2.5% | J132: 3.5% | K132: 5.5% | L132: 7.5%
B133: Primary | C133: Small | D133: High FSM | E133: Spend on education support staff as a percentage of total expenditure | H133: 16.5% | I133: 17.5% | J133: 18.5% | K133: 21.5% | L133: 23.0%
B134: Primary | C134: Small | D134: High FSM | E134: Spend on administrative and clerical staff as a percentage of total expenditure | I134: 4.5% | K134: 6.5% | L134: 7.5%
B135: Primary | C135: Small | D135: High FSM | E135: Spend on other staff costs as a percentage of total expenditure | I135: 3.5% | K135: 5.0% | L135: 6.5%
B136: Primary | C136: Small | D136: High FSM | E136: Spend on premises (including staff costs) as a percentage of total expenditure | I136: 5.5% | K136: 7.0% | L136: 8.0%
B137: Primary | C137: Small | D137: High FSM | E137: Spend on teaching resources as a percentage of total expenditure | F137: 2.5% | G137: 3.5% | H137: 4.5% | I137: 5.0% | J137: 5.5%
B138: Primary | C138: Small | D138: High FSM | E138: Spend on energy as a percentage of total expenditure | I138: 1.0% | K138: 1.5% | L138: 2.0%
B139: Primary | C139: Small | D139: High FSM | E139: Senior leaders as a percentage of workforce | H139: 9.5% | I139: 10.5% | J139: 11.5% | K139: 13.5% | L139: 15.5%
B140: Primary | C140: Small | D140: High FSM | E140: Pupil to teacher ratio | F140: 15.0 | G140: 16.0 | H140: 17.5 | I140: 18.0 | J140: 19.0 | K140: 21.0 | L140: 22.5
B141: Primary | C141: Small | D141: High FSM | E141: Pupil to adult ratio | F141: 6.5 | G141: 7.0 | H141: 7.5 | I141: 8.0 | J141: 8.5 | K141: 9.0 | L141: 10.0
B142: Primary | C142: Small | D142: High FSM | E142: Average class size | F142: 19.0 | G142: 20.5 | H142: 22.5 | I142: 23.0 | J142: 24.0 | K142: 26.5 | L142: 28.0
A144: 2,197 | B144: Primary | C144: Medium | D144: High FSM | E144: PMH
B145: Primary | C145: Medium | D145: High FSM | E145: Spend on teaching staff as a percentage of total expenditure | F145: 36.0% | G145: 38.5% | H145: 41.0% | I145: 42.5% | J145: 43.5% | K145: 46.5% | L145: 49.0%
B146: Primary | C146: Medium | D146: High FSM | E146: Spend on supply staff as a percentage of total expenditure | H146: 2.0% | I146: 2.5% | J146: 3.0% | K146: 4.5% | L146: 6.5%
B147: Primary | C147: Medium | D147: High FSM | E147: Spend on education support staff as a percentage of total expenditure | H147: 18.5% | I147: 20.0% | J147: 21.0% | K147: 23.5% | L147: 26.0%
B148: Primary | C148: Medium | D148: High FSM | E148: Spend on administrative and clerical staff as a percentage of total expenditure | I148: 4.5% | K148: 6.0% | L148: 7.5%
B149: Primary | C149: Medium | D149: High FSM | E149: Spend on other staff costs as a percentage of total expenditure | I149: 3.5% | K149: 5.0% | L149: 6.0%
B150: Primary | C150: Medium | D150: High FSM | E150: Spend on premises (including staff costs) as a percentage of total expenditure | I150: 5.5% | K150: 7.0% | L150: 8.0%
B151: Primary | C151: Medium | D151: High FSM | E151: Spend on teaching resources as a percentage of total expenditure | F151: 2.5% | G151: 3.5% | H151: 4.0% | I151: 4.5% | J151: 5.0%
B152: Primary | C152: Medium | D152: High FSM | E152: Spend on energy as a percentage of total expenditure | I152: 1.0% | K152: 1.5% | L152: 2.0%
B153: Primary | C153: Medium | D153: High FSM | E153: Senior leaders as a percentage of workforce | H153: 7.5% | I153: 8.0% | J153: 9.0% | K153: 11.0% | L153: 13.0%
B154: Primary | C154: Medium | D154: High FSM | E154: Pupil to teacher ratio | F154: 16.0 | G154: 17.5 | H154: 19.0 | I154: 19.5 | J154: 20.5 | K154: 22.5 | L154: 24.0
B155: Primary | C155: Medium | D155: High FSM | E155: Pupil to adult ratio | F155: 6.5 | G155: 7.5 | H155: 8.0 | I155: 8.5 | J155: 8.5 | K155: 9.5 | L155: 10.0
B156: Primary | C156: Medium | D156: High FSM | E156: Average class size | F156: 22.5 | G156: 23.5 | H156: 25.5 | I156: 26.5 | J156: 27.0 | K156: 28.5 | L156: 29.5
A158: 1,120 | B158: Primary | C158: Large | D158: High FSM | E158: PLH
B159: Primary | C159: Large | D159: High FSM | E159: Spend on teaching staff as a percentage of total expenditure | F159: 35.5% | G159: 38.0% | H159: 41.0% | I159: 42.5% | J159: 43.5% | K159: 46.5% | L159: 49.0%
B160: Primary | C160: Large | D160: High FSM | E160: Spend on supply staff as a percentage of total expenditure | H160: 2.0% | I160: 2.5% | J160: 3.0% | K160: 4.5% | L160: 6.0%
B161: Primary | C161: Large | D161: High FSM | E161: Spend on education support staff as a percentage of total expenditure | H161: 19.5% | I161: 20.5% | J161: 22.0% | K161: 25.0% | L161: 26.5%
B162: Primary | C162: Large | D162: High FSM | E162: Spend on administrative and clerical staff as a percentage of total expenditure | I162: 4.5% | K162: 6.0% | L162: 7.5%
B163: Primary | C163: Large | D163: High FSM | E163: Spend on other staff costs as a percentage of total expenditure | I163: 3.5% | K163: 4.5% | L163: 6.0%
B164: Primary | C164: Large | D164: High FSM | E164: Spend on premises (including staff costs) as a percentage of total expenditure | I164: 5.0% | K164: 7.0% | L164: 8.0%
B165: Primary | C165: Large | D165: High FSM | E165: Spend on teaching resources as a percentage of total expenditure | F165: 2.5% | G165: 3.0% | H165: 4.0% | I165: 4.5% | J165: 5.0%
B166: Primary | C166: Large | D166: High FSM | E166: Spend on energy as a percentage of total expenditure | I166: 1.0% | K166: 1.5% | L166: 2.0%
B167: Primary | C167: Large | D167: High FSM | E167: Senior leaders as a percentage of workforce | H167: 6.5% | I167: 7.0% | J167: 7.5% | K167: 9.0% | L167: 10.5%
B168: Primary | C168: Large | D168: High FSM | E168: Pupil to teacher ratio | F168: 17.0 | G168: 18.0 | H168: 20.0 | I168: 20.5 | J168: 21.0 | K168: 23.0 | L168: 24.5
B169: Primary | C169: Large | D169: High FSM | E169: Pupil to adult ratio | F169: 7.0 | G169: 7.5 | H169: 8.0 | I169: 8.5 | J169: 9.0 | K169: 9.5 | L169: 10.5
B170: Primary | C170: Large | D170: High FSM | E170: Average class size | F170: 24.5 | G170: 25.5 | H170: 27.0 | I170: 27.5 | J170: 28.0 | K170: 29.0 | L170: 29.5
A173: Sample size | B173: Phase | C173: Size | D173: FSM | F173: Red if less than: | G173: Amber if less than: | H173: Dark green if between: | I173: (Median) | J173: and: | K173: Amber if more than: | L173: Red if more than: | N173: Light green for everything else
A174: 59 | B174: Secondary with sixth form | C174: Small | D174: Low FSM | E174: SSSL
B175: Secondary with sixth form | C175: Small | D175: Low FSM | E175: Spend on teaching staff as a percentage of total expenditure | F175: 45.5% | G175: 49.0% | H175: 54.0% | I175: 56.0% | J175: 57.0% | K175: 61.0% | L175: 62.5%
B176: Secondary with sixth form | C176: Small | D176: Low FSM | E176: Spend on supply staff as a percentage of total expenditure | H176: 1.0% | I176: 1.5% | J176: 2.0% | K176: 3.0% | L176: 4.0%
B177: Secondary with sixth form | C177: Small | D177: Low FSM | E177: Spend on education support staff as a percentage of total expenditure | H177: 5.0% | I177: 6.0% | J177: 7.0% | K177: 9.0% | L177: 11.0%
B178: Secondary with sixth form | C178: Small | D178: Low FSM | E178: Spend on administrative and clerical staff as a percentage of total expenditure | I178: 6.5% | K178: 9.0% | L178: 10.0%
B179: Secondary with sixth form | C179: Small | D179: Low FSM | E179: Spend on other staff costs as a percentage of total expenditure | I179: 1.0% | K179: 4.5% | L179: 7.0%
B180: Secondary with sixth form | C180: Small | D180: Low FSM | E180: Spend on premises (including staff costs) as a percentage of total expenditure | I180: 5.0% | K180: 7.5% | L180: 8.5%
B181: Secondary with sixth form | C181: Small | D181: Low FSM | E181: Spend on teaching resources as a percentage of total expenditure | F181: 5.0% | G181: 6.0% | H181: 7.0% | I181: 7.5% | J181: 8.5%
B182: Secondary with sixth form | C182: Small | D182: Low FSM | E182: Spend on energy as a percentage of total expenditure | I182: 1.0% | K182: 1.5% | L182: 2.0%
B183: Secondary with sixth form | C183: Small | D183: Low FSM | E183: Senior leaders as a percentage of workforce | H183: 6.0% | I183: 6.5% | J183: 7.0% | K183: 9.0% | L183: 14.0%
B184: Secondary with sixth form | C184: Small | D184: Low FSM | E184: Pupil to teacher ratio | F184: 12.0 | G184: 13.5 | H184: 15.5 | I184: 16.0 | J184: 17.0 | K184: 18.0 | L184: 18.5
B185: Secondary with sixth form | C185: Small | D185: Low FSM | E185: Pupil to adult ratio | F185: 7.5 | G185: 8.5 | H185: 10.0 | I185: 10.0 | J185: 10.5 | K185: 11.5 | L185: 12.0
B186: Secondary with sixth form | C186: Small | D186: Low FSM | E186: Average class size | F186: 14.0 | G186: 18.0 | H186: 19.5 | I186: 19.5 | J186: 20.5 | K186: 22.0 | L186: 23.0
A188: 304 | B188: Secondary with sixth form | C188: Medium | D188: Low FSM | E188: SSML
B189: Secondary with sixth form | C189: Medium | D189: Low FSM | E189: Spend on teaching staff as a percentage of total expenditure | F189: 49.5% | G189: 52.5% | H189: 55.5% | I189: 56.0% | J189: 57.5% | K189: 61.0% | L189: 63.0%
B190: Secondary with sixth form | C190: Medium | D190: Low FSM | E190: Spend on supply staff as a percentage of total expenditure | H190: 1.0% | I190: 1.0% | J190: 1.5% | K190: 2.0% | L190: 2.5%
B191: Secondary with sixth form | C191: Medium | D191: Low FSM | E191: Spend on education support staff as a percentage of total expenditure | H191: 7.0% | I191: 7.5% | J191: 8.0% | K191: 10.0% | L191: 11.0%
B192: Secondary with sixth form | C192: Medium | D192: Low FSM | E192: Spend on administrative and clerical staff as a percentage of total expenditure | I192: 6.5% | K192: 8.5% | L192: 10.0%
B193: Secondary with sixth form | C193: Medium | D193: Low FSM | E193: Spend on other staff costs as a percentage of total expenditure | I193: 1.5% | K193: 3.0% | L193: 5.5%
B194: Secondary with sixth form | C194: Medium | D194: Low FSM | E194: Spend on premises (including staff costs) as a percentage of total expenditure | I194: 5.5% | K194: 7.0% | L194: 8.0%
B195: Secondary with sixth form | C195: Medium | D195: Low FSM | E195: Spend on teaching resources as a percentage of total expenditure | F195: 5.0% | G195: 6.0% | H195: 7.5% | I195: 8.5% | J195: 9.0%
B196: Secondary with sixth form | C196: Medium | D196: Low FSM | E196: Spend on energy as a percentage of total expenditure | I196: 1.0% | K196: 1.5% | L196: 2.0%
B197: Secondary with sixth form | C197: Medium | D197: Low FSM | E197: Senior leaders as a percentage of workforce | H197: 5.5% | I197: 6.0% | J197: 6.5% | K197: 7.5% | L197: 8.5%
B198: Secondary with sixth form | C198: Medium | D198: Low FSM | E198: Pupil to teacher ratio | F198: 15.0 | G198: 15.5 | H198: 16.5 | I198: 17.0 | J198: 17.5 | K198: 18.5 | L198: 19.0
B199: Secondary with sixth form | C199: Medium | D199: Low FSM | E199: Pupil to adult ratio | F199: 9.0 | G199: 9.5 | H199: 10.5 | I199: 10.5 | J199: 11.0 | K199: 11.5 | L199: 12.5
B200: Secondary with sixth form | C200: Medium | D200: Low FSM | E200: Average class size | F200: 19.5 | G200: 20.0 | H200: 21.0 | I200: 21.5 | J200: 21.5 | K200: 22.5 | L200: 23.5
A202: 206 | B202: Secondary with sixth form | C202: Large | D202: Low FSM | E202: SSLL
B203: Secondary with sixth form | C203: Large | D203: Low FSM | E203: Spend on teaching staff as a percentage of total expenditure | F203: 50.5% | G203: 53.0% | H203: 56.0% | I203: 57.5% | J203: 59.0% | K203: 61.0% | L203: 62.5%
B204: Secondary with sixth form | C204: Large | D204: Low FSM | E204: Spend on supply staff as a percentage of total expenditure | H204: 1.0% | I204: 1.0% | J204: 1.5% | K204: 2.0% | L204: 3.0%
B205: Secondary with sixth form | C205: Large | D205: Low FSM | E205: Spend on education support staff as a percentage of total expenditure | H205: 7.5% | I205: 8.0% | J205: 9.0% | K205: 11.0% | L205: 12.0%
B206: Secondary with sixth form | C206: Large | D206: Low FSM | E206: Spend on administrative and clerical staff as a percentage of total expenditure | I206: 6.0% | K206: 8.0% | L206: 9.5%
B207: Secondary with sixth form | C207: Large | D207: Low FSM | E207: Spend on other staff costs as a percentage of total expenditure | I207: 1.5% | K207: 3.5% | L207: 5.5%
B208: Secondary with sixth form | C208: Large | D208: Low FSM | E208: Spend on premises (including staff costs) as a percentage of total expenditure | I208: 5.5% | K208: 6.5% | L208: 8.0%
B209: Secondary with sixth form | C209: Large | D209: Low FSM | E209: Spend on teaching resources as a percentage of total expenditure | F209: 5.0% | G209: 5.5% | H209: 7.0% | I209: 7.5% | J209: 8.5%
B210: Secondary with sixth form | C210: Large | D210: Low FSM | E210: Spend on energy as a percentage of total expenditure | I210: 1.0% | K210: 1.5% | L210: 2.0%
B211: Secondary with sixth form | C211: Large | D211: Low FSM | E211: Senior leaders as a percentage of workforce | H211: 5.0% | I211: 5.5% | J211: 5.5% | K211: 6.5% | L211: 7.5%
B212: Secondary with sixth form | C212: Large | D212: Low FSM | E212: Pupil to teacher ratio | F212: 15.5 | G212: 16.0 | H212: 16.5 | I212: 17.0 | J212: 17.0 | K212: 18.0 | L212: 18.5
B213: Secondary with sixth form | C213: Large | D213: Low FSM | E213: Pupil to adult ratio | F213: 9.0 | G213: 9.5 | H213: 10.0 | I213: 10.5 | J213: 10.5 | K213: 11.0 | L213: 12.0
B214: Secondary with sixth form | C214: Large | D214: Low FSM | E214: Average class size | F214: 19.5 | G214: 20.0 | H214: 20.5 | I214: 21.0 | J214: 21.5 | K214: 22.5 | L214: 23.5
A216: 36 | B216: Secondary without sixth form | C216: Small | D216: Low FSM | E216: SSL
B217: Secondary without sixth form | C217: Small | D217: Low FSM | E217: Spend on teaching staff as a percentage of total expenditure | F217: 44.5% | G217: 49.5% | H217: 52.5% | I217: 54.5% | J217: 55.0% | K217: 58.0% | L217: 60.0%
... 313 more rows

Sheet Calcs (hidden)
A2: RAG ratings for each school
C4: 1 | K4: 2 | S4: 3 | AA4: 4 | AI4: 5 | AQ4: 6 | AY4: 7 | BG4: 8 | BO4: 9 | BW4: 10 | CE4: 11 | CM4: 12 | CU4: 13 | DC4: 14 | DK4: 15 | DS4: 16 | EA4: 17 | EI4: 18 | EQ4: 19 | EY4: 20
C5: =IF(Dashboard!H14="Primary","P",IF(Dashboard!H14="Secondary with sixth form","SS",IF(Dashboard!H14="Secondary without sixth form","S",IF(Dashboard!H14="Special","SP",IF(Dashboard!H14="Alternative provision","AP",IF(Dashboard!H14="All-through","AT",IF(Dashboard!H14="Nursery","N"))))))) -> SS | K5: =IF(Dashboard!L14="Primary","P",IF(Dashboard!L14="Secondary with sixth form","SS",IF(Dashboard!L14="Secondary without sixth form","S",IF(Dashboard!L14="Special","SP",IF(Dashboard!L14="Alternative provision","AP",IF(Dashboard!L14="All-through","AT",IF(Dashboard!L14="Nursery","N"))))))) -> FALSE | S5: =IF(Dashboard!P14="Primary","P",IF(Dashboard!P14="Secondary with sixth form","SS",IF(Dashboard!P14="Secondary without sixth form","S",IF(Dashboard!P14="Special","SP",IF(Dashboard!P14="Alternative provision","AP",IF(Dashboard!P14="All-through","AT",IF(Dashboard!P14="Nursery","N"))))))) -> FALSE | AA5: =IF(Dashboard!T14="Primary","P",IF(Dashboard!T14="Secondary with sixth form","SS",IF(Dashboard!T14="Secondary without sixth form","S",IF(Dashboard!T14="Special","SP",IF(Dashboard!T14="Alternative provision","AP",IF(Dashboard!T14="All-through","AT",IF(Dashboard!T14="Nursery","N"))))))) -> FALSE | AI5: =IF(Dashboard!X14="Primary","P",IF(Dashboard!X14="Secondary with sixth form","SS",IF(Dashboard!X14="Secondary without sixth form","S",IF(Dashboard!X14="Special","SP",IF(Dashboard!X14="Alternative provision","AP",IF(Dashboard!X14="All-through","AT",IF(Dashboard!X14="Nursery","N"))))))) -> FALSE | AQ5: =IF(Dashboard!AB14="Primary","P",IF(Dashboard!AB14="Secondary with sixth form","SS",IF(Dashboard!AB14="Secondary without sixth form","S",IF(Dashboard!AB14="Special","SP",IF(Dashboard!AB14="Alternative provision","AP",IF(Dashboard!AB14="All-through","AT",IF(Dashboard!AB14="Nursery","N"))))))) -> FALSE | AY5: =IF(Dashboard!AF14="Primary","P",IF(Dashboard!AF14="Secondary with sixth form","SS",IF(Dashboard!AF14="Secondary without sixth form","S",IF(Dashboard!AF14="Special","SP",IF(Dashboard!AF14="Alternative provision","AP",IF(Dashboard!AF14="All-through","AT",IF(Dashboard!AF14="Nursery","N"))))))) -> FALSE | BG5: =IF(Dashboard!AJ14="Primary","P",IF(Dashboard!AJ14="Secondary with sixth form","SS",IF(Dashboard!AJ14="Secondary without sixth form","S",IF(Dashboard!AJ14="Special","SP",IF(Dashboard!AJ14="Alternative provision","AP",IF(Dashboard!AJ14="All-through","AT",IF(Dashboard!AJ14="Nursery","N"))))))) -> FALSE | BO5: =IF(Dashboard!AN14="Primary","P",IF(Dashboard!AN14="Secondary with sixth form","SS",IF(Dashboard!AN14="Secondary without sixth form","S",IF(Dashboard!AN14="Special","SP",IF(Dashboard!AN14="Alternative provision","AP",IF(Dashboard!AN14="All-through","AT",IF(Dashboard!AN14="Nursery","N"))))))) -> FALSE | BW5: =IF(Dashboard!AR14="Primary","P",IF(Dashboard!AR14="Secondary with sixth form","SS",IF(Dashboard!AR14="Secondary without sixth form","S",IF(Dashboard!AR14="Special","SP",IF(Dashboard!AR14="Alternative provision","AP",IF(Dashboard!AR14="All-through","AT",IF(Dashboard!AR14="Nursery","N"))))))) -> FALSE | CE5: =IF(Dashboard!AV14="Primary","P",IF(Dashboard!AV14="Secondary with sixth form","SS",IF(Dashboard!AV14="Secondary without sixth form","S",IF(Dashboard!AV14="Special","SP",IF(Dashboard!AV14="Alternative provision","AP",IF(Dashboard!AV14="All-through","AT",IF(Dashboard!AV14="Nursery","N"))))))) -> FALSE | CM5: =IF(Dashboard!AZ14="Primary","P",IF(Dashboard!AZ14="Secondary with sixth form","SS",IF(Dashboard!AZ14="Secondary without sixth form","S",IF(Dashboard!AZ14="Special","SP",IF(Dashboard!AZ14="Alternative provision","AP",IF(Dashboard!AZ14="All-through","AT",IF(Dashboard!AZ14="Nursery","N"))))))) -> FALSE | CU5: =IF(Dashboard!BD14="Primary","P",IF(Dashboard!BD14="Secondary with sixth form","SS",IF(Dashboard!BD14="Secondary without sixth form","S",IF(Dashboard!BD14="Special","SP",IF(Dashboard!BD14="Alternative provision","AP",IF(Dashboard!BD14="All-through","AT",IF(Dashboard!BD14="Nursery","N"))))))) -> FALSE | DC5: =IF(Dashboard!BH14="Primary","P",IF(Dashboard!BH14="Secondary with sixth form","SS",IF(Dashboard!BH14="Secondary without sixth form","S",IF(Dashboard!BH14="Special","SP",IF(Dashboard!BH14="Alternative provision","AP",IF(Dashboard!BH14="All-through","AT",IF(Dashboard!BH14="Nursery","N"))))))) -> FALSE | DK5: =IF(Dashboard!BL14="Primary","P",IF(Dashboard!BL14="Secondary with sixth form","SS",IF(Dashboard!BL14="Secondary without sixth form","S",IF(Dashboard!BL14="Special","SP",IF(Dashboard!BL14="Alternative provision","AP",IF(Dashboard!BL14="All-through","AT",IF(Dashboard!BL14="Nursery","N"))))))) -> FALSE | DS5: =IF(Dashboard!BP14="Primary","P",IF(Dashboard!BP14="Secondary with sixth form","SS",IF(Dashboard!BP14="Secondary without sixth form","S",IF(Dashboard!BP14="Special","SP",IF(Dashboard!BP14="Alternative provision","AP",IF(Dashboard!BP14="All-through","AT",IF(Dashboard!BP14="Nursery","N"))))))) -> FALSE | EA5: =IF(Dashboard!BT14="Primary","P",IF(Dashboard!BT14="Secondary with sixth form","SS",IF(Dashboard!BT14="Secondary without sixth form","S",IF(Dashboard!BT14="Special","SP",IF(Dashboard!BT14="Alternative provision","AP",IF(Dashboard!BT14="All-through","AT",IF(Dashboard!BT14="Nursery","N"))))))) -> FALSE | EI5: =IF(Dashboard!BX14="Primary","P",IF(Dashboard!BX14="Secondary with sixth form","SS",IF(Dashboard!BX14="Secondary without sixth form","S",IF(Dashboard!BX14="Special","SP",IF(Dashboard!BX14="Alternative provision","AP",IF(Dashboard!BX14="All-through","AT",IF(Dashboard!BX14="Nursery","N"))))))) -> FALSE | EQ5: =IF(Dashboard!CB14="Primary","P",IF(Dashboard!CB14="Secondary with sixth form","SS",IF(Dashboard!CB14="Secondary without sixth form","S",IF(Dashboard!CB14="Special","SP",IF(Dashboard!CB14="Alternative provision","AP",IF(Dashboard!CB14="All-through","AT",IF(Dashboard!CB14="Nursery","N"))))))) -> FALSE | EY5: =IF(Dashboard!CF14="Primary","P",IF(Dashboard!CF14="Secondary with sixth form","SS",IF(Dashboard!CF14="Secondary without sixth form","S",IF(Dashboard!CF14="Special","SP",IF(Dashboard!CF14="Alternative provision","AP",IF(Dashboard!CF14="All-through","AT",IF(Dashboard!CF14="Nursery","N"))))))) -> FALSE
C6: =C5& IF($J29="very small","VS",IF($J29="small","S",IF($J29="medium","M",IF($J29="large","L"))))& IF($K29="low levels of FSM","L",IF($K29="medium levels of FSM","M",IF($K29="high levels of FSM","H"))) -> SSLM | K6: =K5& IF($J30="very small","VS",IF($J30="small","S",IF($J30="medium","M",IF($J30="large","L"))))& IF($K30="low levels of FSM","L",IF($K30="medium levels of FSM","M",IF($K30="high levels of FSM","H"))) -> FALSEFALSEFALSE | S6: =S5& IF($J31="very small","VS",IF($J31="small","S",IF($J31="medium","M",IF($J31="large","L"))))& IF($K31="low levels of FSM","L",IF($K31="medium levels of FSM","M",IF($K31="high levels of FSM","H"))) -> FALSEFALSEFALSE | AA6: =AA5& IF($J32="very small","VS",IF($J32="small","S",IF($J32="medium","M",IF($J32="large","L"))))& IF($K32="low levels of FSM","L",IF($K32="medium levels of FSM","M",IF($K32="high levels of FSM","H"))) -> FALSEFALSEFALSE | AI6: =AI5& IF($J33="very small","VS",IF($J33="small","S",IF($J33="medium","M",IF($J33="large","L"))))& IF($K33="low levels of FSM","L",IF($K33="medium levels of FSM","M",IF($K33="high levels of FSM","H"))) -> FALSEFALSEFALSE | AQ6: =AQ5& IF($J34="very small","VS",IF($J34="small","S",IF($J34="medium","M",IF($J34="large","L"))))& IF($K34="low levels of FSM","L",IF($K34="medium levels of FSM","M",IF($K34="high levels of FSM","H"))) -> FALSEFALSEFALSE | AY6: =AY5& IF($J35="very small","VS",IF($J35="small","S",IF($J35="medium","M",IF($J35="large","L"))))& IF($K35="low levels of FSM","L",IF($K35="medium levels of FSM","M",IF($K35="high levels of FSM","H"))) -> FALSEFALSEFALSE | BG6: =BG5& IF($J36="very small","VS",IF($J36="small","S",IF($J36="medium","M",IF($J36="large","L"))))& IF($K36="low levels of FSM","L",IF($K36="medium levels of FSM","M",IF($K36="high levels of FSM","H"))) -> FALSEFALSEFALSE | BO6: =BO5& IF($J37="very small","VS",IF($J37="small","S",IF($J37="medium","M",IF($J37="large","L"))))& IF($K37="low levels of FSM","L",IF($K37="medium levels of FSM","M",IF($K37="high levels of FSM","H"))) -> FALSEFALSEFALSE | BW6: =BW5& IF($J38="very small","VS",IF($J38="small","S",IF($J38="medium","M",IF($J38="large","L"))))& IF($K38="low levels of FSM","L",IF($K38="medium levels of FSM","M",IF($K38="high levels of FSM","H"))) -> FALSEFALSEFALSE | CE6: =CE5& IF($J39="very small","VS",IF($J39="small","S",IF($J39="medium","M",IF($J39="large","L"))))& IF($K39="low levels of FSM","L",IF($K39="medium levels of FSM","M",IF($K39="high levels of FSM","H"))) -> FALSEFALSEFALSE | CM6: =CM5& IF($J40="very small","VS",IF($J40="small","S",IF($J40="medium","M",IF($J40="large","L"))))& IF($K40="low levels of FSM","L",IF($K40="medium levels of FSM","M",IF($K40="high levels of FSM","H"))) -> FALSEFALSEFALSE | CU6: =CU5& IF($J41="very small","VS",IF($J41="small","S",IF($J41="medium","M",IF($J41="large","L"))))& IF($K41="low levels of FSM","L",IF($K41="medium levels of FSM","M",IF($K41="high levels of FSM","H"))) -> FALSEFALSEFALSE | DC6: =DC5& IF($J42="very small","VS",IF($J42="small","S",IF($J42="medium","M",IF($J42="large","L"))))& IF($K42="low levels of FSM","L",IF($K42="medium levels of FSM","M",IF($K42="high levels of FSM","H"))) -> FALSEFALSEFALSE | DK6: =DK5& IF($J43="very small","VS",IF($J43="small","S",IF($J43="medium","M",IF($J43="large","L"))))& IF($K43="low levels of FSM","L",IF($K43="medium levels of FSM","M",IF($K43="high levels of FSM","H"))) -> FALSEFALSEFALSE | DS6: =DS5& IF($J44="very small","VS",IF($J44="small","S",IF($J44="medium","M",IF($J44="large","L"))))& IF($K44="low levels of FSM","L",IF($K44="medium levels of FSM","M",IF($K44="high levels of FSM","H"))) -> FALSEFALSEFALSE | EA6: =EA5& IF($J45="very small","VS",IF($J45="small","S",IF($J45="medium","M",IF($J45="large","L"))))& IF($K45="low levels of FSM","L",IF($K45="medium levels of FSM","M",IF($K45="high levels of FSM","H"))) -> FALSEFALSEFALSE | EI6: =EI5& IF($J46="very small","VS",IF($J46="small","S",IF($J46="medium","M",IF($J46="large","L"))))& IF($K46="low levels of FSM","L",IF($K46="medium levels of FSM","M",IF($K46="high levels of FSM","H"))) -> FALSEFALSEFALSE | EQ6: =EQ5& IF($J47="very small","VS",IF($J47="small","S",IF($J47="medium","M",IF($J47="large","L"))))& IF($K47="low levels of FSM","L",IF($K47="medium levels of FSM","M",IF($K47="high levels of FSM","H"))) -> FALSEFALSEFALSE | EY6: =EY5& IF($J48="very small","VS",IF($J48="small","S",IF($J48="medium","M",IF($J48="large","L"))))& IF($K48="low levels of FSM","L",IF($K48="medium levels of FSM","M",IF($K48="high levels of FSM","H"))) -> FALSEFALSEFALSE
C7: =C5& IF(AND(C5="SS",$I29="in London"),"Lo",IF($I29="in London","L",IF($I29="outside London","NL"))) -> SSNL | K7: =K5& IF(AND(K5="SS",$I30="in London"),"Lo",IF($I30="in London","L",IF($I30="outside London","NL"))) -> FALSEFALSE | S7: =S5& IF(AND(S5="SS",$I31="in London"),"Lo",IF($I31="in London","L",IF($I31="outside London","NL"))) -> FALSEFALSE | AA7: =AA5& IF(AND(AA5="SS",$I32="in London"),"Lo",IF($I32="in London","L",IF($I32="outside London","NL"))) -> FALSEFALSE | AI7: =AI5& IF(AND(AI5="SS",$I33="in London"),"Lo",IF($I33="in London","L",IF($I33="outside London","NL"))) -> FALSEFALSE | AQ7: =AQ5& IF(AND(AQ5="SS",$I34="in London"),"Lo",IF($I34="in London","L",IF($I34="outside London","NL"))) -> FALSEFALSE | AY7: =AY5& IF(AND(AY5="SS",$I35="in London"),"Lo",IF($I35="in London","L",IF($I35="outside London","NL"))) -> FALSEFALSE | BG7: =BG5& IF(AND(BG5="SS",$I36="in London"),"Lo",IF($I36="in London","L",IF($I36="outside London","NL"))) -> FALSEFALSE | BO7: =BO5& IF(AND(BO5="SS",$I37="in London"),"Lo",IF($I37="in London","L",IF($I37="outside London","NL"))) -> FALSEFALSE | BW7: =BW5& IF(AND(BW5="SS",$I38="in London"),"Lo",IF($I38="in London","L",IF($I38="outside London","NL"))) -> FALSEFALSE | CE7: =CE5& IF(AND(CE5="SS",$I39="in London"),"Lo",IF($I39="in London","L",IF($I39="outside London","NL"))) -> FALSEFALSE | CM7: =CM5& IF(AND(CM5="SS",$I40="in London"),"Lo",IF($I40="in London","L",IF($I40="outside London","NL"))) -> FALSEFALSE | CU7: =CU5& IF(AND(CU5="SS",$I41="in London"),"Lo",IF($I41="in London","L",IF($I41="outside London","NL"))) -> FALSEFALSE | DC7: =DC5& IF(AND(DC5="SS",$I42="in London"),"Lo",IF($I42="in London","L",IF($I42="outside London","NL"))) -> FALSEFALSE | DK7: =DK5& IF(AND(DK5="SS",$I43="in London"),"Lo",IF($I43="in London","L",IF($I43="outside London","NL"))) -> FALSEFALSE | DS7: =DS5& IF(AND(DS5="SS",$I44="in London"),"Lo",IF($I44="in London","L",IF($I44="outside London","NL"))) -> FALSEFALSE | EA7: =EA5& IF(AND(EA5="SS",$I45="in London"),"Lo",IF($I45="in London","L",IF($I45="outside London","NL"))) -> FALSEFALSE | EI7: =EI5& IF(AND(EI5="SS",$I46="in London"),"Lo",IF($I46="in London","L",IF($I46="outside London","NL"))) -> FALSEFALSE | EQ7: =EQ5& IF(AND(EQ5="SS",$I47="in London"),"Lo",IF($I47="in London","L",IF($I47="outside London","NL"))) -> FALSEFALSE | EY7: =EY5& IF(AND(EY5="SS",$I48="in London"),"Lo",IF($I48="in London","L",IF($I48="outside London","NL"))) -> FALSEFALSE
C8: 1 | D8: 2 | E8: 3 | F8: 4 | G8: 5 | H8: 6 | I8: 7 | K8: 1 | L8: 2 | M8: 3 | N8: 4 | O8: 5 | P8: 6 | Q8: 7 | S8: 1 | T8: 2 | U8: 3 | V8: 4 | W8: 5 | X8: 6 | Y8: 7 | AA8: 1 | AB8: 2 | AC8: 3 | AD8: 4 | AE8: 5 | AF8: 6 | AG8: 7 | AI8: 1 | AJ8: 2 | AK8: 3 | AL8: 4 | AM8: 5 | AN8: 6 | AO8: 7 | AQ8: 1 | AR8: 2 | AS8: 3 | AT8: 4 | AU8: 5 | AV8: 6 | AW8: 7 | AY8: 1 | AZ8: 2 | BA8: 3 | BB8: 4 | BC8: 5 | BD8: 6 | BE8: 7 | BG8: 1 | BH8: 2 | BI8: 3 | BJ8: 4 | BK8: 5 | BL8: 6 | BM8: 7 | BO8: 1 | BP8: 2 | BQ8: 3 | BR8: 4 | BS8: 5 | BT8: 6 | BU8: 7 | BW8: 1 | BX8: 2 | BY8: 3 | BZ8: 4 | CA8: 5 | CB8: 6 | CC8: 7 | CE8: 1 | CF8: 2 | CG8: 3 | CH8: 4 | CI8: 5 | CJ8: 6 | CK8: 7 | CM8: 1 | CN8: 2 | CO8: 3 | CP8: 4 | CQ8: 5 | CR8: 6 | CS8: 7 | CU8: 1 | CV8: 2 | CW8: 3 | CX8: 4 | CY8: 5 | CZ8: 6 | DA8: 7 | DC8: 1 | DD8: 2 | DE8: 3 | DF8: 4 | DG8: 5 | DH8: 6 | DI8: 7 | DK8: 1 | DL8: 2 | DM8: 3 | DN8: 4 | DO8: 5 | DP8: 6 | DQ8: 7 | DS8: 1 | DT8: 2 | DU8: 3 | DV8: 4 | DW8: 5 | DX8: 6 | DY8: 7 | EA8: 1 | EB8: 2 | EC8: 3 | ED8: 4 | EE8: 5 | EF8: 6 | EG8: 7 | EI8: 1 | EJ8: 2 | EK8: 3 | EL8: 4 | EM8: 5 | EN8: 6 | EO8: 7 | EQ8: 1 | ER8: 2 | ES8: 3 | ET8: 4 | EU8: 5 | EV8: 6 | EW8: 7 | EY8: 1 | EZ8: 2 | FA8: 3 | FB8: 4 | FC8: 5 | FD8: 6 | FE8: 7
A9: Spend on teaching staff as a percentage of total expenditure | B9: 1 | C9: =IF(OR($C$5="P",$C$5="SS",$C$5="S"),INDEX(INDIRECT($C$6),$B9,C$8), IF(OR($C$5="N",$C$5="AP",$C$5="AT",$C$5="SP"),INDEX(INDIRECT($C$7),$B9,C$8))) -> 50.0% | D9: 53.0% | E9: 55.5% | F9: 56.5% | G9: 57.5% | H9: 61.0% | I9: 63.5% | K9: =IF(OR($K$5="P",$K$5="SS",$K$5="S"),INDEX(INDIRECT($K$6),$B9,K$8), IF(OR($K$5="N",$K$5="AP",$K$5="AT",$K$5="SP"),INDEX(INDIRECT($K$7),$B9,K$8))) -> FALSE | L9: FALSE | M9: FALSE | N9: FALSE | O9: FALSE | P9: FALSE | Q9: FALSE | S9: =IF(OR($S$5="P",$S$5="SS",$S$5="S"),INDEX(INDIRECT($S$6),$B9,S$8), IF(OR($S$5="N",$S$5="AP",$S$5="AT",$S$5="SP"),INDEX(INDIRECT($S$7),$B9,S$8))) -> FALSE | T9: FALSE | U9: FALSE | V9: FALSE | W9: FALSE | X9: FALSE | Y9: FALSE | AA9: =IF(OR($AA$5="P",$AA$5="SS",$AA$5="S"),INDEX(INDIRECT($AA$6),$B9,AA$8), IF(OR($AA$5="N",$AA$5="AP",$AA$5="AT",$AA$5="SP"),INDEX(INDIRECT($AA$7),$B9,AA$8))) -> FALSE | AB9: FALSE | AC9: FALSE | AD9: FALSE | AE9: FALSE | AF9: FALSE | AG9: FALSE | AI9: =IF(OR($AI$5="P",$AI$5="SS",$AI$5="S"),INDEX(INDIRECT($AI$6),$B9,AI$8), IF(OR($AI$5="N",$AI$5="AP",$AI$5="AT",$AI$5="SP"),INDEX(INDIRECT($AI$7),$B9,AI$8))) -> FALSE | AJ9: FALSE | AK9: FALSE | AL9: FALSE | AM9: FALSE | AN9: FALSE | AO9: FALSE | AQ9: =IF(OR($AQ$5="P",$AQ$5="SS",$AQ$5="S"),INDEX(INDIRECT($AQ$6),$B9,AQ$8), IF(OR($AQ$5="N",$AQ$5="AP",$AQ$5="AT",$AQ$5="SP"),INDEX(INDIRECT($AQ$7),$B9,AQ$8))) -> FALSE | AR9: FALSE | AS9: FALSE | AT9: FALSE | AU9: FALSE | AV9: FALSE | AW9: FALSE | AY9: =IF(OR($AY$5="P",$AY$5="SS",$AY$5="S"),INDEX(INDIRECT($AY$6),$B9,AY$8), IF(OR($AY$5="N",$AY$5="AP",$AY$5="AT",$AY$5="SP"),INDEX(INDIRECT($AY$7),$B9,AY$8))) -> FALSE | AZ9: FALSE | BA9: FALSE | BB9: FALSE | BC9: FALSE | BD9: FALSE | BE9: FALSE | BG9: =IF(OR($BG$5="P",$BG$5="SS",$BG$5="S"),INDEX(INDIRECT($BG$6),$B9,BG$8), IF(OR($BG$5="N",$BG$5="AP",$BG$5="AT",$BG$5="SP"),INDEX(INDIRECT($BG$7),$B9,BG$8))) -> FALSE | BH9: FALSE | BI9: FALSE | BJ9: FALSE | BK9: FALSE | BL9: FALSE | BM9: FALSE | BO9: =IF(OR($BO$5="P",$BO$5="SS",$BO$5="S"),INDEX(INDIRECT($BO$6),$B9,BO$8), IF(OR($BO$5="N",$BO$5="AP",$BO$5="AT",$BO$5="SP"),INDEX(INDIRECT($BO$7),$B9,BO$8))) -> FALSE | BP9: FALSE | BQ9: FALSE | BR9: FALSE | BS9: FALSE | BT9: FALSE | BU9: FALSE | BW9: =IF(OR($BW$5="P",$BW$5="SS",$BW$5="S"),INDEX(INDIRECT($BW$6),$B9,BW$8), IF(OR($BW$5="N",$BW$5="AP",$BW$5="AT",$BW$5="SP"),INDEX(INDIRECT($BW$7),$B9,BW$8))) -> FALSE | BX9: FALSE | BY9: FALSE | BZ9: FALSE | CA9: FALSE | CB9: FALSE | CC9: FALSE | CE9: =IF(OR($CE$5="P",$CE$5="SS",$CE$5="S"),INDEX(INDIRECT($CE$6),$B9,CE$8), IF(OR($CE$5="N",$CE$5="AP",$CE$5="AT",$CE$5="SP"),INDEX(INDIRECT($CE$7),$B9,CE$8))) -> FALSE | CF9: FALSE | CG9: FALSE | CH9: FALSE | CI9: FALSE | CJ9: FALSE | CK9: FALSE | CM9: =IF(OR($CM$5="P",$CM$5="SS",$CM$5="S"),INDEX(INDIRECT($CM$6),$B9,CM$8), IF(OR($CM$5="N",$CM$5="AP",$CM$5="AT",$CM$5="SP"),INDEX(INDIRECT($CM$7),$B9,CM$8))) -> FALSE | CN9: FALSE | CO9: FALSE | CP9: FALSE | CQ9: FALSE | CR9: FALSE | CS9: FALSE | CU9: =IF(OR($CU$5="P",$CU$5="SS",$CU$5="S"),INDEX(INDIRECT($CU$6),$B9,CU$8), IF(OR($CU$5="N",$CU$5="AP",$CU$5="AT",$CU$5="SP"),INDEX(INDIRECT($CU$7),$B9,CU$8))) -> FALSE | CV9: FALSE | CW9: FALSE | CX9: FALSE | CY9: FALSE | CZ9: FALSE | DA9: FALSE | DC9: =IF(OR($DC$5="P",$DC$5="SS",$DC$5="S"),INDEX(INDIRECT($DC$6),$B9,DC$8), IF(OR($DC$5="N",$DC$5="AP",$DC$5="AT",$DC$5="SP"),INDEX(INDIRECT($DC$7),$B9,DC$8))) -> FALSE | DD9: FALSE | DE9: FALSE | DF9: FALSE | DG9: FALSE | DH9: FALSE | DI9: FALSE | DK9: =IF(OR($DK$5="P",$DK$5="SS",$DK$5="S"),INDEX(INDIRECT($DK$6),$B9,DK$8), IF(OR($DK$5="N",$DK$5="AP",$DK$5="AT",$DK$5="SP"),INDEX(INDIRECT($DK$7),$B9,DK$8))) -> FALSE | DL9: FALSE | DM9: FALSE | DN9: FALSE | DO9: FALSE | DP9: FALSE | DQ9: FALSE | DS9: =IF(OR($DS$5="P",$DS$5="SS",$DS$5="S"),INDEX(INDIRECT($DS$6),$B9,DS$8), IF(OR($DS$5="N",$DS$5="AP",$DS$5="AT",$DS$5="SP"),INDEX(INDIRECT($DS$7),$B9,DS$8))) -> FALSE | DT9: FALSE | DU9: FALSE | DV9: FALSE | DW9: FALSE | DX9: FALSE | DY9: FALSE | EA9: =IF(OR($EA$5="P",$EA$5="SS",$EA$5="S"),INDEX(INDIRECT($EA$6),$B9,EA$8), IF(OR($EA$5="N",$EA$5="AP",$EA$5="AT",$EA$5="SP"),INDEX(INDIRECT($EA$7),$B9,EA$8))) -> FALSE | EB9: FALSE | EC9: FALSE | ED9: FALSE | EE9: FALSE | EF9: FALSE | EG9: FALSE | EI9: =IF(OR($EI$5="P",$EI$5="SS",$EI$5="S"),INDEX(INDIRECT($EI$6),$B9,EI$8), IF(OR($EI$5="N",$EI$5="AP",$EI$5="AT",$EI$5="SP"),INDEX(INDIRECT($EI$7),$B9,EI$8))) -> FALSE | EJ9: FALSE | EK9: FALSE | EL9: FALSE | EM9: FALSE | EN9: FALSE | EO9: FALSE | EQ9: =IF(OR($EQ$5="P",$EQ$5="SS",$EQ$5="S"),INDEX(INDIRECT($EQ$6),$B9,EQ$8), IF(OR($EQ$5="N",$EQ$5="AP",$EQ$5="AT",$EQ$5="SP"),INDEX(INDIRECT($EQ$7),$B9,EQ$8))) -> FALSE | ER9: FALSE | ES9: FALSE | ET9: FALSE | EU9: FALSE | EV9: FALSE | EW9: FALSE | EY9: =IF(OR($EY$5="P",$EY$5="SS",$EY$5="S"),INDEX(INDIRECT($EY$6),$B9,EY$8), IF(OR($EY$5="N",$EY$5="AP",$EY$5="AT",$EY$5="SP"),INDEX(INDIRECT($EY$7),$B9,EY$8))) -> FALSE | EZ9: FALSE | FA9: FALSE | FB9: FALSE | FC9: FALSE | FD9: FALSE | FE9: FALSE
A10: Spend on supply staff as a percentage of total expenditure | B10: 2 | E10: =IF(OR($C$5="P",$C$5="SS",$C$5="S"),INDEX(INDIRECT($C$6),$B10,E$8), IF(OR($C$5="N",$C$5="AP",$C$5="AT",$C$5="SP"),INDEX(INDIRECT($C$7),$B10,E$8))) -> 1.0% | F10: 1.5% | G10: 2.0% | H10: 3.0% | I10: 4.0% | M10: =IF(OR($K$5="P",$K$5="SS",$K$5="S"),INDEX(INDIRECT($K$6),$B10,M$8), IF(OR($K$5="N",$K$5="AP",$K$5="AT",$K$5="SP"),INDEX(INDIRECT($K$7),$B10,M$8))) -> FALSE | N10: FALSE | O10: FALSE | P10: FALSE | Q10: FALSE | U10: =IF(OR($S$5="P",$S$5="SS",$S$5="S"),INDEX(INDIRECT($S$6),$B10,U$8), IF(OR($S$5="N",$S$5="AP",$S$5="AT",$S$5="SP"),INDEX(INDIRECT($S$7),$B10,U$8))) -> FALSE | V10: FALSE | W10: FALSE | X10: FALSE | Y10: FALSE | AC10: =IF(OR($AA$5="P",$AA$5="SS",$AA$5="S"),INDEX(INDIRECT($AA$6),$B10,AC$8), IF(OR($AA$5="N",$AA$5="AP",$AA$5="AT",$AA$5="SP"),INDEX(INDIRECT($AA$7),$B10,AC$8))) -> FALSE | AD10: FALSE | AE10: FALSE | AF10: FALSE | AG10: FALSE | AK10: =IF(OR($AI$5="P",$AI$5="SS",$AI$5="S"),INDEX(INDIRECT($AI$6),$B10,AK$8), IF(OR($AI$5="N",$AI$5="AP",$AI$5="AT",$AI$5="SP"),INDEX(INDIRECT($AI$7),$B10,AK$8))) -> FALSE | AL10: FALSE | AM10: FALSE | AN10: FALSE | AO10: FALSE | AS10: =IF(OR($AQ$5="P",$AQ$5="SS",$AQ$5="S"),INDEX(INDIRECT($AQ$6),$B10,AS$8), IF(OR($AQ$5="N",$AQ$5="AP",$AQ$5="AT",$AQ$5="SP"),INDEX(INDIRECT($AQ$7),$B10,AS$8))) -> FALSE | AT10: FALSE | AU10: FALSE | AV10: FALSE | AW10: FALSE | BA10: =IF(OR($AY$5="P",$AY$5="SS",$AY$5="S"),INDEX(INDIRECT($AY$6),$B10,BA$8), IF(OR($AY$5="N",$AY$5="AP",$AY$5="AT",$AY$5="SP"),INDEX(INDIRECT($AY$7),$B10,BA$8))) -> FALSE | BB10: FALSE | BC10: FALSE | BD10: FALSE | BE10: FALSE | BI10: =IF(OR($BG$5="P",$BG$5="SS",$BG$5="S"),INDEX(INDIRECT($BG$6),$B10,BI$8), IF(OR($BG$5="N",$BG$5="AP",$BG$5="AT",$BG$5="SP"),INDEX(INDIRECT($BG$7),$B10,BI$8))) -> FALSE | BJ10: FALSE | BK10: FALSE | BL10: FALSE | BM10: FALSE | BQ10: =IF(OR($BO$5="P",$BO$5="SS",$BO$5="S"),INDEX(INDIRECT($BO$6),$B10,BQ$8), IF(OR($BO$5="N",$BO$5="AP",$BO$5="AT",$BO$5="SP"),INDEX(INDIRECT($BO$7),$B10,BQ$8))) -> FALSE | BR10: FALSE | BS10: FALSE | BT10: FALSE | BU10: FALSE | BY10: =IF(OR($BW$5="P",$BW$5="SS",$BW$5="S"),INDEX(INDIRECT($BW$6),$B10,BY$8), IF(OR($BW$5="N",$BW$5="AP",$BW$5="AT",$BW$5="SP"),INDEX(INDIRECT($BW$7),$B10,BY$8))) -> FALSE | BZ10: FALSE | CA10: FALSE | CB10: FALSE | CC10: FALSE | CG10: =IF(OR($CE$5="P",$CE$5="SS",$CE$5="S"),INDEX(INDIRECT($CE$6),$B10,CG$8), IF(OR($CE$5="N",$CE$5="AP",$CE$5="AT",$CE$5="SP"),INDEX(INDIRECT($CE$7),$B10,CG$8))) -> FALSE | CH10: FALSE | CI10: FALSE | CJ10: FALSE | CK10: FALSE | CO10: =IF(OR($CM$5="P",$CM$5="SS",$CM$5="S"),INDEX(INDIRECT($CM$6),$B10,CO$8), IF(OR($CM$5="N",$CM$5="AP",$CM$5="AT",$CM$5="SP"),INDEX(INDIRECT($CM$7),$B10,CO$8))) -> FALSE | CP10: FALSE | CQ10: FALSE | CR10: FALSE | CS10: FALSE | CW10: =IF(OR($CU$5="P",$CU$5="SS",$CU$5="S"),INDEX(INDIRECT($CU$6),$B10,CW$8), IF(OR($CU$5="N",$CU$5="AP",$CU$5="AT",$CU$5="SP"),INDEX(INDIRECT($CU$7),$B10,CW$8))) -> FALSE | CX10: FALSE | CY10: FALSE | CZ10: FALSE | DA10: FALSE | DE10: =IF(OR($DC$5="P",$DC$5="SS",$DC$5="S"),INDEX(INDIRECT($DC$6),$B10,DE$8), IF(OR($DC$5="N",$DC$5="AP",$DC$5="AT",$DC$5="SP"),INDEX(INDIRECT($DC$7),$B10,DE$8))) -> FALSE | DF10: FALSE | DG10: FALSE | DH10: FALSE | DI10: FALSE | DM10: =IF(OR($DK$5="P",$DK$5="SS",$DK$5="S"),INDEX(INDIRECT($DK$6),$B10,DM$8), IF(OR($DK$5="N",$DK$5="AP",$DK$5="AT",$DK$5="SP"),INDEX(INDIRECT($DK$7),$B10,DM$8))) -> FALSE | DN10: FALSE | DO10: FALSE | DP10: FALSE | DQ10: FALSE | DU10: =IF(OR($DS$5="P",$DS$5="SS",$DS$5="S"),INDEX(INDIRECT($DS$6),$B10,DU$8), IF(OR($DS$5="N",$DS$5="AP",$DS$5="AT",$DS$5="SP"),INDEX(INDIRECT($DS$7),$B10,DU$8))) -> FALSE | DV10: FALSE | DW10: FALSE | DX10: FALSE | DY10: FALSE | EC10: =IF(OR($EA$5="P",$EA$5="SS",$EA$5="S"),INDEX(INDIRECT($EA$6),$B10,EC$8), IF(OR($EA$5="N",$EA$5="AP",$EA$5="AT",$EA$5="SP"),INDEX(INDIRECT($EA$7),$B10,EC$8))) -> FALSE | ED10: FALSE | EE10: FALSE | EF10: FALSE | EG10: FALSE | EK10: =IF(OR($EI$5="P",$EI$5="SS",$EI$5="S"),INDEX(INDIRECT($EI$6),$B10,EK$8), IF(OR($EI$5="N",$EI$5="AP",$EI$5="AT",$EI$5="SP"),INDEX(INDIRECT($EI$7),$B10,EK$8))) -> FALSE | EL10: FALSE | EM10: FALSE | EN10: FALSE | EO10: FALSE | ES10: =IF(OR($EQ$5="P",$EQ$5="SS",$EQ$5="S"),INDEX(INDIRECT($EQ$6),$B10,ES$8), IF(OR($EQ$5="N",$EQ$5="AP",$EQ$5="AT",$EQ$5="SP"),INDEX(INDIRECT($EQ$7),$B10,ES$8))) -> FALSE | ET10: FALSE | EU10: FALSE | EV10: FALSE | EW10: FALSE | FA10: =IF(OR($EY$5="P",$EY$5="SS",$EY$5="S"),INDEX(INDIRECT($EY$6),$B10,FA$8), IF(OR($EY$5="N",$EY$5="AP",$EY$5="AT",$EY$5="SP"),INDEX(INDIRECT($EY$7),$B10,FA$8))) -> FALSE | FB10: FALSE | FC10: FALSE | FD10: FALSE | FE10: FALSE
A11: Spend on education support staff as a percentage of total expenditure | B11: 3 | E11: 8.5% | F11: 9.0% | G11: 10.0% | H11: 11.5% | I11: 13.0% | M11: FALSE | N11: FALSE | O11: FALSE | P11: FALSE | Q11: FALSE | U11: FALSE | V11: FALSE | W11: FALSE | X11: FALSE | Y11: FALSE | AC11: FALSE | AD11: FALSE | AE11: FALSE | AF11: FALSE | AG11: FALSE | AK11: FALSE | AL11: FALSE | AM11: FALSE | AN11: FALSE | AO11: FALSE | AS11: FALSE | AT11: FALSE | AU11: FALSE | AV11: FALSE | AW11: FALSE | BA11: FALSE | BB11: FALSE | BC11: FALSE | BD11: FALSE | BE11: FALSE | BI11: FALSE | BJ11: FALSE | BK11: FALSE | BL11: FALSE | BM11: FALSE | BQ11: FALSE | BR11: FALSE | BS11: FALSE | BT11: FALSE | BU11: FALSE | BY11: FALSE | BZ11: FALSE | CA11: FALSE | CB11: FALSE | CC11: FALSE | CG11: FALSE | CH11: FALSE | CI11: FALSE | CJ11: FALSE | CK11: FALSE | CO11: FALSE | CP11: FALSE | CQ11: FALSE | CR11: FALSE | CS11: FALSE | CW11: FALSE | CX11: FALSE | CY11: FALSE | CZ11: FALSE | DA11: FALSE | DE11: FALSE | DF11: FALSE | DG11: FALSE | DH11: FALSE | DI11: FALSE | DM11: FALSE | DN11: FALSE | DO11: FALSE | DP11: FALSE | DQ11: FALSE | DU11: FALSE | DV11: FALSE | DW11: FALSE | DX11: FALSE | DY11: FALSE | EC11: FALSE | ED11: FALSE | EE11: FALSE | EF11: FALSE | EG11: FALSE | EK11: FALSE | EL11: FALSE | EM11: FALSE | EN11: FALSE | EO11: FALSE | ES11: FALSE | ET11: FALSE | EU11: FALSE | EV11: FALSE | EW11: FALSE | FA11: FALSE | FB11: FALSE | FC11: FALSE | FD11: FALSE | FE11: FALSE
A12: Spend on administrative and clerical staff as a percentage of total expenditure | B12: 4 | F12: =IF(OR($C$5="P",$C$5="SS",$C$5="S"),INDEX(INDIRECT($C$6),$B12,F$8), IF(OR($C$5="N",$C$5="AP",$C$5="AT",$C$5="SP"),INDEX(INDIRECT($C$7),$B12,F$8))) -> 6.0% | H12: =IF(OR($C$5="P",$C$5="SS",$C$5="S"),INDEX(INDIRECT($C$6),$B12,H$8), IF(OR($C$5="N",$C$5="AP",$C$5="AT",$C$5="SP"),INDEX(INDIRECT($C$7),$B12,H$8))) -> 8.0% | I12: =IF(OR($C$5="P",$C$5="SS",$C$5="S"),INDEX(INDIRECT($C$6),$B12,I$8), IF(OR($C$5="N",$C$5="AP",$C$5="AT",$C$5="SP"),INDEX(INDIRECT($C$7),$B12,I$8))) -> 10.0% | N12: =IF(OR($K$5="P",$K$5="SS",$K$5="S"),INDEX(INDIRECT($K$6),$B12,N$8), IF(OR($K$5="N",$K$5="AP",$K$5="AT",$K$5="SP"),INDEX(INDIRECT($K$7),$B12,N$8))) -> FALSE | P12: =IF(OR($K$5="P",$K$5="SS",$K$5="S"),INDEX(INDIRECT($K$6),$B12,P$8), IF(OR($K$5="N",$K$5="AP",$K$5="AT",$K$5="SP"),INDEX(INDIRECT($K$7),$B12,P$8))) -> FALSE | Q12: =IF(OR($K$5="P",$K$5="SS",$K$5="S"),INDEX(INDIRECT($K$6),$B12,Q$8), IF(OR($K$5="N",$K$5="AP",$K$5="AT",$K$5="SP"),INDEX(INDIRECT($K$7),$B12,Q$8))) -> FALSE | V12: =IF(OR($S$5="P",$S$5="SS",$S$5="S"),INDEX(INDIRECT($S$6),$B12,V$8), IF(OR($S$5="N",$S$5="AP",$S$5="AT",$S$5="SP"),INDEX(INDIRECT($S$7),$B12,V$8))) -> FALSE | X12: =IF(OR($S$5="P",$S$5="SS",$S$5="S"),INDEX(INDIRECT($S$6),$B12,X$8), IF(OR($S$5="N",$S$5="AP",$S$5="AT",$S$5="SP"),INDEX(INDIRECT($S$7),$B12,X$8))) -> FALSE | Y12: =IF(OR($S$5="P",$S$5="SS",$S$5="S"),INDEX(INDIRECT($S$6),$B12,Y$8), IF(OR($S$5="N",$S$5="AP",$S$5="AT",$S$5="SP"),INDEX(INDIRECT($S$7),$B12,Y$8))) -> FALSE | AD12: =IF(OR($AA$5="P",$AA$5="SS",$AA$5="S"),INDEX(INDIRECT($AA$6),$B12,AD$8), IF(OR($AA$5="N",$AA$5="AP",$AA$5="AT",$AA$5="SP"),INDEX(INDIRECT($AA$7),$B12,AD$8))) -> FALSE | AF12: =IF(OR($AA$5="P",$AA$5="SS",$AA$5="S"),INDEX(INDIRECT($AA$6),$B12,AF$8), IF(OR($AA$5="N",$AA$5="AP",$AA$5="AT",$AA$5="SP"),INDEX(INDIRECT($AA$7),$B12,AF$8))) -> FALSE | AG12: =IF(OR($AA$5="P",$AA$5="SS",$AA$5="S"),INDEX(INDIRECT($AA$6),$B12,AG$8), IF(OR($AA$5="N",$AA$5="AP",$AA$5="AT",$AA$5="SP"),INDEX(INDIRECT($AA$7),$B12,AG$8))) -> FALSE | AL12: =IF(OR($AI$5="P",$AI$5="SS",$AI$5="S"),INDEX(INDIRECT($AI$6),$B12,AL$8), IF(OR($AI$5="N",$AI$5="AP",$AI$5="AT",$AI$5="SP"),INDEX(INDIRECT($AI$7),$B12,AL$8))) -> FALSE | AN12: =IF(OR($AI$5="P",$AI$5="SS",$AI$5="S"),INDEX(INDIRECT($AI$6),$B12,AN$8), IF(OR($AI$5="N",$AI$5="AP",$AI$5="AT",$AI$5="SP"),INDEX(INDIRECT($AI$7),$B12,AN$8))) -> FALSE | AO12: =IF(OR($AI$5="P",$AI$5="SS",$AI$5="S"),INDEX(INDIRECT($AI$6),$B12,AO$8), IF(OR($AI$5="N",$AI$5="AP",$AI$5="AT",$AI$5="SP"),INDEX(INDIRECT($AI$7),$B12,AO$8))) -> FALSE | AT12: =IF(OR($AQ$5="P",$AQ$5="SS",$AQ$5="S"),INDEX(INDIRECT($AQ$6),$B12,AT$8), IF(OR($AQ$5="N",$AQ$5="AP",$AQ$5="AT",$AQ$5="SP"),INDEX(INDIRECT($AQ$7),$B12,AT$8))) -> FALSE | AV12: =IF(OR($AQ$5="P",$AQ$5="SS",$AQ$5="S"),INDEX(INDIRECT($AQ$6),$B12,AV$8), IF(OR($AQ$5="N",$AQ$5="AP",$AQ$5="AT",$AQ$5="SP"),INDEX(INDIRECT($AQ$7),$B12,AV$8))) -> FALSE | AW12: =IF(OR($AQ$5="P",$AQ$5="SS",$AQ$5="S"),INDEX(INDIRECT($AQ$6),$B12,AW$8), IF(OR($AQ$5="N",$AQ$5="AP",$AQ$5="AT",$AQ$5="SP"),INDEX(INDIRECT($AQ$7),$B12,AW$8))) -> FALSE | BB12: =IF(OR($AY$5="P",$AY$5="SS",$AY$5="S"),INDEX(INDIRECT($AY$6),$B12,BB$8), IF(OR($AY$5="N",$AY$5="AP",$AY$5="AT",$AY$5="SP"),INDEX(INDIRECT($AY$7),$B12,BB$8))) -> FALSE | BD12: =IF(OR($AY$5="P",$AY$5="SS",$AY$5="S"),INDEX(INDIRECT($AY$6),$B12,BD$8), IF(OR($AY$5="N",$AY$5="AP",$AY$5="AT",$AY$5="SP"),INDEX(INDIRECT($AY$7),$B12,BD$8))) -> FALSE | BE12: =IF(OR($AY$5="P",$AY$5="SS",$AY$5="S"),INDEX(INDIRECT($AY$6),$B12,BE$8), IF(OR($AY$5="N",$AY$5="AP",$AY$5="AT",$AY$5="SP"),INDEX(INDIRECT($AY$7),$B12,BE$8))) -> FALSE | BJ12: =IF(OR($BG$5="P",$BG$5="SS",$BG$5="S"),INDEX(INDIRECT($BG$6),$B12,BJ$8), IF(OR($BG$5="N",$BG$5="AP",$BG$5="AT",$BG$5="SP"),INDEX(INDIRECT($BG$7),$B12,BJ$8))) -> FALSE | BL12: =IF(OR($BG$5="P",$BG$5="SS",$BG$5="S"),INDEX(INDIRECT($BG$6),$B12,BL$8), IF(OR($BG$5="N",$BG$5="AP",$BG$5="AT",$BG$5="SP"),INDEX(INDIRECT($BG$7),$B12,BL$8))) -> FALSE | BM12: =IF(OR($BG$5="P",$BG$5="SS",$BG$5="S"),INDEX(INDIRECT($BG$6),$B12,BM$8), IF(OR($BG$5="N",$BG$5="AP",$BG$5="AT",$BG$5="SP"),INDEX(INDIRECT($BG$7),$B12,BM$8))) -> FALSE | BR12: =IF(OR($BO$5="P",$BO$5="SS",$BO$5="S"),INDEX(INDIRECT($BO$6),$B12,BR$8), IF(OR($BO$5="N",$BO$5="AP",$BO$5="AT",$BO$5="SP"),INDEX(INDIRECT($BO$7),$B12,BR$8))) -> FALSE | BT12: =IF(OR($BO$5="P",$BO$5="SS",$BO$5="S"),INDEX(INDIRECT($BO$6),$B12,BT$8), IF(OR($BO$5="N",$BO$5="AP",$BO$5="AT",$BO$5="SP"),INDEX(INDIRECT($BO$7),$B12,BT$8))) -> FALSE | BU12: =IF(OR($BO$5="P",$BO$5="SS",$BO$5="S"),INDEX(INDIRECT($BO$6),$B12,BU$8), IF(OR($BO$5="N",$BO$5="AP",$BO$5="AT",$BO$5="SP"),INDEX(INDIRECT($BO$7),$B12,BU$8))) -> FALSE | BZ12: =IF(OR($BW$5="P",$BW$5="SS",$BW$5="S"),INDEX(INDIRECT($BW$6),$B12,BZ$8), IF(OR($BW$5="N",$BW$5="AP",$BW$5="AT",$BW$5="SP"),INDEX(INDIRECT($BW$7),$B12,BZ$8))) -> FALSE | CB12: =IF(OR($BW$5="P",$BW$5="SS",$BW$5="S"),INDEX(INDIRECT($BW$6),$B12,CB$8), IF(OR($BW$5="N",$BW$5="AP",$BW$5="AT",$BW$5="SP"),INDEX(INDIRECT($BW$7),$B12,CB$8))) -> FALSE | CC12: =IF(OR($BW$5="P",$BW$5="SS",$BW$5="S"),INDEX(INDIRECT($BW$6),$B12,CC$8), IF(OR($BW$5="N",$BW$5="AP",$BW$5="AT",$BW$5="SP"),INDEX(INDIRECT($BW$7),$B12,CC$8))) -> FALSE | CH12: =IF(OR($CE$5="P",$CE$5="SS",$CE$5="S"),INDEX(INDIRECT($CE$6),$B12,CH$8), IF(OR($CE$5="N",$CE$5="AP",$CE$5="AT",$CE$5="SP"),INDEX(INDIRECT($CE$7),$B12,CH$8))) -> FALSE | CJ12: =IF(OR($CE$5="P",$CE$5="SS",$CE$5="S"),INDEX(INDIRECT($CE$6),$B12,CJ$8), IF(OR($CE$5="N",$CE$5="AP",$CE$5="AT",$CE$5="SP"),INDEX(INDIRECT($CE$7),$B12,CJ$8))) -> FALSE | CK12: =IF(OR($CE$5="P",$CE$5="SS",$CE$5="S"),INDEX(INDIRECT($CE$6),$B12,CK$8), IF(OR($CE$5="N",$CE$5="AP",$CE$5="AT",$CE$5="SP"),INDEX(INDIRECT($CE$7),$B12,CK$8))) -> FALSE | CP12: =IF(OR($CM$5="P",$CM$5="SS",$CM$5="S"),INDEX(INDIRECT($CM$6),$B12,CP$8), IF(OR($CM$5="N",$CM$5="AP",$CM$5="AT",$CM$5="SP"),INDEX(INDIRECT($CM$7),$B12,CP$8))) -> FALSE | CR12: =IF(OR($CM$5="P",$CM$5="SS",$CM$5="S"),INDEX(INDIRECT($CM$6),$B12,CR$8), IF(OR($CM$5="N",$CM$5="AP",$CM$5="AT",$CM$5="SP"),INDEX(INDIRECT($CM$7),$B12,CR$8))) -> FALSE | CS12: =IF(OR($CM$5="P",$CM$5="SS",$CM$5="S"),INDEX(INDIRECT($CM$6),$B12,CS$8), IF(OR($CM$5="N",$CM$5="AP",$CM$5="AT",$CM$5="SP"),INDEX(INDIRECT($CM$7),$B12,CS$8))) -> FALSE | CX12: =IF(OR($CU$5="P",$CU$5="SS",$CU$5="S"),INDEX(INDIRECT($CU$6),$B12,CX$8), IF(OR($CU$5="N",$CU$5="AP",$CU$5="AT",$CU$5="SP"),INDEX(INDIRECT($CU$7),$B12,CX$8))) -> FALSE | CZ12: =IF(OR($CU$5="P",$CU$5="SS",$CU$5="S"),INDEX(INDIRECT($CU$6),$B12,CZ$8), IF(OR($CU$5="N",$CU$5="AP",$CU$5="AT",$CU$5="SP"),INDEX(INDIRECT($CU$7),$B12,CZ$8))) -> FALSE | DA12: =IF(OR($CU$5="P",$CU$5="SS",$CU$5="S"),INDEX(INDIRECT($CU$6),$B12,DA$8), IF(OR($CU$5="N",$CU$5="AP",$CU$5="AT",$CU$5="SP"),INDEX(INDIRECT($CU$7),$B12,DA$8))) -> FALSE | DF12: =IF(OR($DC$5="P",$DC$5="SS",$DC$5="S"),INDEX(INDIRECT($DC$6),$B12,DF$8), IF(OR($DC$5="N",$DC$5="AP",$DC$5="AT",$DC$5="SP"),INDEX(INDIRECT($DC$7),$B12,DF$8))) -> FALSE | DH12: =IF(OR($DC$5="P",$DC$5="SS",$DC$5="S"),INDEX(INDIRECT($DC$6),$B12,DH$8), IF(OR($DC$5="N",$DC$5="AP",$DC$5="AT",$DC$5="SP"),INDEX(INDIRECT($DC$7),$B12,DH$8))) -> FALSE | DI12: =IF(OR($DC$5="P",$DC$5="SS",$DC$5="S"),INDEX(INDIRECT($DC$6),$B12,DI$8), IF(OR($DC$5="N",$DC$5="AP",$DC$5="AT",$DC$5="SP"),INDEX(INDIRECT($DC$7),$B12,DI$8))) -> FALSE | DN12: =IF(OR($DK$5="P",$DK$5="SS",$DK$5="S"),INDEX(INDIRECT($DK$6),$B12,DN$8), IF(OR($DK$5="N",$DK$5="AP",$DK$5="AT",$DK$5="SP"),INDEX(INDIRECT($DK$7),$B12,DN$8))) -> FALSE | DP12: =IF(OR($DK$5="P",$DK$5="SS",$DK$5="S"),INDEX(INDIRECT($DK$6),$B12,DP$8), IF(OR($DK$5="N",$DK$5="AP",$DK$5="AT",$DK$5="SP"),INDEX(INDIRECT($DK$7),$B12,DP$8))) -> FALSE | DQ12: =IF(OR($DK$5="P",$DK$5="SS",$DK$5="S"),INDEX(INDIRECT($DK$6),$B12,DQ$8), IF(OR($DK$5="N",$DK$5="AP",$DK$5="AT",$DK$5="SP"),INDEX(INDIRECT($DK$7),$B12,DQ$8))) -> FALSE | DV12: =IF(OR($DS$5="P",$DS$5="SS",$DS$5="S"),INDEX(INDIRECT($DS$6),$B12,DV$8), IF(OR($DS$5="N",$DS$5="AP",$DS$5="AT",$DS$5="SP"),INDEX(INDIRECT($DS$7),$B12,DV$8))) -> FALSE | DX12: =IF(OR($DS$5="P",$DS$5="SS",$DS$5="S"),INDEX(INDIRECT($DS$6),$B12,DX$8), IF(OR($DS$5="N",$DS$5="AP",$DS$5="AT",$DS$5="SP"),INDEX(INDIRECT($DS$7),$B12,DX$8))) -> FALSE | DY12: =IF(OR($DS$5="P",$DS$5="SS",$DS$5="S"),INDEX(INDIRECT($DS$6),$B12,DY$8), IF(OR($DS$5="N",$DS$5="AP",$DS$5="AT",$DS$5="SP"),INDEX(INDIRECT($DS$7),$B12,DY$8))) -> FALSE | ED12: =IF(OR($EA$5="P",$EA$5="SS",$EA$5="S"),INDEX(INDIRECT($EA$6),$B12,ED$8), IF(OR($EA$5="N",$EA$5="AP",$EA$5="AT",$EA$5="SP"),INDEX(INDIRECT($EA$7),$B12,ED$8))) -> FALSE | EF12: =IF(OR($EA$5="P",$EA$5="SS",$EA$5="S"),INDEX(INDIRECT($EA$6),$B12,EF$8), IF(OR($EA$5="N",$EA$5="AP",$EA$5="AT",$EA$5="SP"),INDEX(INDIRECT($EA$7),$B12,EF$8))) -> FALSE | EG12: =IF(OR($EA$5="P",$EA$5="SS",$EA$5="S"),INDEX(INDIRECT($EA$6),$B12,EG$8), IF(OR($EA$5="N",$EA$5="AP",$EA$5="AT",$EA$5="SP"),INDEX(INDIRECT($EA$7),$B12,EG$8))) -> FALSE | EL12: =IF(OR($EI$5="P",$EI$5="SS",$EI$5="S"),INDEX(INDIRECT($EI$6),$B12,EL$8), IF(OR($EI$5="N",$EI$5="AP",$EI$5="AT",$EI$5="SP"),INDEX(INDIRECT($EI$7),$B12,EL$8))) -> FALSE | EN12: =IF(OR($EI$5="P",$EI$5="SS",$EI$5="S"),INDEX(INDIRECT($EI$6),$B12,EN$8), IF(OR($EI$5="N",$EI$5="AP",$EI$5="AT",$EI$5="SP"),INDEX(INDIRECT($EI$7),$B12,EN$8))) -> FALSE | EO12: =IF(OR($EI$5="P",$EI$5="SS",$EI$5="S"),INDEX(INDIRECT($EI$6),$B12,EO$8), IF(OR($EI$5="N",$EI$5="AP",$EI$5="AT",$EI$5="SP"),INDEX(INDIRECT($EI$7),$B12,EO$8))) -> FALSE | ET12: =IF(OR($EQ$5="P",$EQ$5="SS",$EQ$5="S"),INDEX(INDIRECT($EQ$6),$B12,ET$8), IF(OR($EQ$5="N",$EQ$5="AP",$EQ$5="AT",$EQ$5="SP"),INDEX(INDIRECT($EQ$7),$B12,ET$8))) -> FALSE | EV12: =IF(OR($EQ$5="P",$EQ$5="SS",$EQ$5="S"),INDEX(INDIRECT($EQ$6),$B12,EV$8), IF(OR($EQ$5="N",$EQ$5="AP",$EQ$5="AT",$EQ$5="SP"),INDEX(INDIRECT($EQ$7),$B12,EV$8))) -> FALSE | EW12: =IF(OR($EQ$5="P",$EQ$5="SS",$EQ$5="S"),INDEX(INDIRECT($EQ$6),$B12,EW$8), IF(OR($EQ$5="N",$EQ$5="AP",$EQ$5="AT",$EQ$5="SP"),INDEX(INDIRECT($EQ$7),$B12,EW$8))) -> FALSE | FB12: =IF(OR($EY$5="P",$EY$5="SS",$EY$5="S"),INDEX(INDIRECT($EY$6),$B12,FB$8), IF(OR($EY$5="N",$EY$5="AP",$EY$5="AT",$EY$5="SP"),INDEX(INDIRECT($EY$7),$B12,FB$8))) -> FALSE | FD12: =IF(OR($EY$5="P",$EY$5="SS",$EY$5="S"),INDEX(INDIRECT($EY$6),$B12,FD$8), IF(OR($EY$5="N",$EY$5="AP",$EY$5="AT",$EY$5="SP"),INDEX(INDIRECT($EY$7),$B12,FD$8))) -> FALSE | FE12: =IF(OR($EY$5="P",$EY$5="SS",$EY$5="S"),INDEX(INDIRECT($EY$6),$B12,FE$8), IF(OR($EY$5="N",$EY$5="AP",$EY$5="AT",$EY$5="SP"),INDEX(INDIRECT($EY$7),$B12,FE$8))) -> FALSE
